Workbook

Sheet Start-Experte (hidden)
C2: EEG-Rechner | T2: =CONCATENATE("Version ",Impressum!$C$17) -> Version 4.2.1
C4: Expertenmodus
Q5: Darstellung monetärer Daten: | T5: =ControlPanel!$T$5 -> nominal
D6: Eingabeparameter: Jährlicher Kapazitätszubau (Brutto) | J6: ="Eingabe-Parameter: Entwicklung der Vergütungssätze (real, bezogen auf "&ControlPanel!D60&")" -> Eingabe-Parameter: Entwicklung der Vergütungssätze (real, bezogen auf 2021)
C7: Technologie | D7: mögliche Werte | E7: gewähltes Szenario | I7: Technologie | J7: mögliche Werte | L7: gewähltes Szenario
C8: Wind Onshore | D8: frei wählbar -> | E8: Referenz | F8: ='D-Bruttozubau'!E10 -> 1,5 GW bis 2021, ab 2023 2,5 GW/a | I8: Wind Onshore | J8: frei wählbar -> | L8: Referenz | M8: ='D-Vergütungssatz Neuanlagen'!E10 -> sinkt auf 3,5 ct/kWh in 2035
C9: Wind Offshore | D9: frei wählbar -> | E9: Referenz | F9: ='D-Bruttozubau'!E11 -> MFP Trend, danach konstant 1,6 GW | I9: Wind Offshore | J9: frei wählbar -> | L9: Referenz | M9: ='D-Vergütungssatz Neuanlagen'!E11 -> sinkt auf 4,5 ct/kWh in 2035
C10: Solar | D10: frei wählbar -> | E10: Referenz | F10: ='D-Bruttozubau'!E12 -> MFP Trend | I10: Solar | J10: frei wählbar -> | L10: Referenz | M10: ='D-Vergütungssatz Neuanlagen'!E12 -> EEG 2017; Anteil Ausschreibungen ab 2020 50%
C11: Biomasse | D11: frei wählbar -> | E11: Referenz | F11: ='D-Bruttozubau'!E8 -> 0,2 GW/a | I11: Biomasse | J11: frei wählbar -> | L11: Referenz | M11: ='D-Vergütungssatz Neuanlagen'!E8 -> EEG 2017
C12: Geothermie | D12: frei wählbar -> | E12: Referenz | F12: ='D-Bruttozubau'!E9 -> 0,01GW/a | I12: Geothermie | J12: frei wählbar -> | L12: Referenz | M12: ='D-Vergütungssatz Neuanlagen'!E9 -> EEG 2017
C13: Wasser | D13: frei wählbar -> | E13: Referenz | F13: ='D-Bruttozubau'!E6 -> 0,01 GW/a | I13: Wasser | J13: frei wählbar -> | L13: Referenz | M13: ='D-Vergütungssatz Neuanlagen'!E6 -> EEG 2017
C14: Gase | D14: frei wählbar -> | E14: Referenz | F14: ='D-Bruttozubau'!E7 -> 0,01GW/a | I14: Gase | J14: frei wählbar -> | L14: Referenz | M14: ='D-Vergütungssatz Neuanlagen'!E7 -> EEG 2017
F15: zu den Szenariendaten: > | M15: zu den Szenariendaten: >
D17: Eingabeparameter: Ausnahmen für stromintensive Unternehmen (BesAR) | J17: Eingabeparameter: Strompreis, Liquiditätsreserve und Kontostand
D18: mögliche Werte | E18: gewähltes Szenario | J18: mögliche Werte | L18: gewähltes Szenario
C19: Privilegierter Letztverbrauch | D19: frei wählbar -> | E19: Referenz | F19: ='D-Privilegierter Letztverbrauch'!$D$6 -> MFP Referenz | H19: > | I19: Großhandelsstrompreis (Future) | J19: frei wählbar -> | L19: Referenz | M19: ='D-Future Strompreis'!$D$6 -> 4,9 -> 6,5 ct/kWh | O19: >
C20: Anteil an Umlage für privilegierte Letztverbraucher | D20: frei wählbar -> | E20: Referenz | F20: ='D-Umlage priv. Letztverbrauch'!$D$6 -> 15% (gem. EEG 2021) | H20: > | I20: Liquiditätsreserve | J20: frei wählbar -> | L20: Referenz | M20: ='D-Liquiditätspuffer'!$D$6 -> ÜNB-Umlageberechnungen, danach 6% | O20: >
C21: Faktor zur Erfassung zusätzlicher Privilegierungen | D21: frei wählbar -> | E21: Referenz | F21: ='D-Faktor Zusatzprivilegierung'!$D$6 -> Bis 2021: ÜNB-Umlageberechnungen, danach konstant (wirkt wie vollständige Befreiung von 62% des priv. LV) | H21: > | I21: =CONCATENATE("Kontostand am 30.9.",ControlPanel!$D$59-1) -> Kontostand am 30.9.2021 | J21: frei wählbar -> | L21: endogen | M21: ='D-Kontostand aktuelles Jahr'!D6 -> wird endogen berechnet | O21: >
I22: =CONCATENATE("Alternativ: Abweichung von Kontostandsprognose für den 30.9.",ControlPanel!$D$59-1) -> Alternativ: Abweichung von Kontostandsprognose für den 30.9.2021 | J22: frei wählbar -> | L22: keine Abweichung | M22: ='D-Prognosefehler Kontostand'!D6 -> keine Abweichung | O22: >
D24: Eingabeparameter: Eigenverbrauch | J24: Eingabeparameter: Sonstiges
C25: Kategorien Eigenverbrauch und jeweilige Beteiligung | D25: mögliche Werte | E25: gewähltes Szenario | J25: mögliche Werte | L25: gewähltes Szenario
C26: Eigenverbrauch (KWK-Neuanlagen) | D26: frei wählbar -> | E26: Referenz | F26: ='D-Eigenverbrauch KWK Neue'!$D$6 -> 2021: ÜNB-Umlageberechnungen bis 2025, danach konstant | H26: > | I26: Nettostromverbrauch | J26: frei wählbar -> | L26: Referenz | M26: ='D-Nettostromverbrauch'!$D$6 -> 2021: ÜNB-Umlageberechnung 2020. Danach ansteigend auf 600 TWh in 2030 | O26: >
C27: Eigenverbrauchsanteil bei PV-Neuanlagen | D27: frei wählbar -> | E27: Referenz | F27: ='D-Anteil Eigenverbrauch EE neu'!E12 -> 9% | H27: > | I27: Spot-Skalierungsfaktor (Verhältnis Spotpreis zu Futurepreis) | J27: frei wählbar -> | L27: Referenz | M27: ='D-Spot-Skalierungsfaktor'!$D$6 -> 100% | O27: >
C28: Anteil an Umlage für neuen Eigenverbrauch (PV und KWK) | D28: frei wählbar -> | E28: Referenz | F28: ='D-Umlage Eigenverbrauch PV+KWK'!$D$6 -> gem. EEG 2017, ab 2020 konstant 38% | H28: > | I28: Vermiedene Netzentgelte (für nicht fluktuierende Erzeugung) | J28: frei wählbar -> | L28: Referenz | M28: ='D-vermiedene Netzentgelte'!$D$6 -> 7.17€/MWh | O28: >
C29: Anteil an Umlage für Eigenverbrauch (Bestandsanlagen) | D29: frei wählbar -> | E29: Referenz | F29: ='D-Umlage EV Bestand'!$D$6 -> vollständig befreit (gem. EEG 2014) | H29: > | I29: Sonstige Kosten | J29: frei wählbar -> | L29: Referenz | M29: ='D-Sonstige Kosten'!$D$6 -> 0,06Mrd. € | O29: >
I30: Inflationsrate | J30: frei wählbar -> | L30: Referenz | M30: ='D-Inflationsrate'!$D$6 -> 1,5% pro Jahr | O30: >
E32: Eingabeparameter: Standardauslastung | I32: Eingabeparameter: Dargebotsfaktor | L32: Eingabeparameter: Profilfaktor
C33: Technologie | D33: mögliche Werte | E33: gewähltes Szenario | I33: gewähltes Szenario | L33: gewähltes Szenario
C34: Wind Onshore | D34: frei wählbar -> | E34: Referenz | F34: ='D-Standardauslastung'!E10 -> Anstieg auf 2600h in 2035 | I34: Referenz | J34: ='D-Dargebotsfaktor'!E10 -> 100% | L34: Referenz | M34: ='D-Profilfaktoren'!E10 -> eigene Berechnung
C35: Wind Offshore | D35: frei wählbar -> | E35: Referenz | F35: ='D-Standardauslastung'!E11 -> Anstieg auf 4700 h in 2035 | I35: Referenz | J35: ='D-Dargebotsfaktor'!E11 -> 100% | L35: Referenz | M35: ='D-Profilfaktoren'!E11 -> eigene Berechnung
C36: Solar | D36: frei wählbar -> | E36: Referenz | F36: ='D-Standardauslastung'!E12 -> Anstieg auf 950h in 2035 | I36: Referenz | J36: ='D-Dargebotsfaktor'!E12 -> 100% | L36: Referenz | M36: ='D-Profilfaktoren'!E12 -> eigene Berechnung | Q36: Ergebnis: EEG-Umlage und Summe aus Strompreis und Umlage [ct/kWh]
C37: Biomasse | D37: frei wählbar -> | E37: Referenz | F37: ='D-Standardauslastung'!E8 -> MFP Trend | I37: Referenz | J37: ='D-Dargebotsfaktor'!E8 -> 100% | L37: Referenz | M37: ='D-Profilfaktoren'!E8 -> 100% | S37: =ControlPanel!$D$59-1 -> 2021 | T37: =ControlPanel!$D$59 -> 2022 | U37: =ControlPanel!$D$59+1 -> 2023 | V37: =ControlPanel!$D$59+2 -> 2024 | W37: =ControlPanel!$D$59+3 -> 2025 | X37: 2025 | Y37: 2030 | Z37: 2035
C38: Geothermie | D38: frei wählbar -> | E38: Referenz | F38: ='D-Standardauslastung'!E9 -> MFP Trend | I38: Referenz | J38: ='D-Dargebotsfaktor'!E9 -> 100% | L38: Referenz | M38: ='D-Profilfaktoren'!E9 -> 100% | Q38: Referenz-Szenario
C39: Wasser | D39: frei wählbar -> | E39: Referenz | F39: ='D-Standardauslastung'!E6 -> MFP Trend | I39: Referenz | J39: ='D-Dargebotsfaktor'!E6 -> 100% | L39: Referenz | M39: ='D-Profilfaktoren'!E6 -> 100% | Q39: Umlage [ct/kWh] | S39: =IF(ControlPanel!$T$5="nominal",OFFSET('GrD-Grafikdaten'!$J8,0,S$37-2014),OFFSET('GrD-Grafikdaten'!$J26,0,S$37-2014)) -> 6.503615364 | T39: =IF(ControlPanel!$T$5="nominal",OFFSET('GrD-Grafikdaten'!$J8,0,T$37-2014),OFFSET('GrD-Grafikdaten'!$J26,0,T$37-2014)) -> 4.272216638 | U39: =IF(ControlPanel!$T$5="nominal",OFFSET('GrD-Grafikdaten'!$J8,0,U$37-2014),OFFSET('GrD-Grafikdaten'!$J26,0,U$37-2014)) -> 4.309716663 | V39: =IF(ControlPanel!$T$5="nominal",OFFSET('GrD-Grafikdaten'!$J8,0,V$37-2014),OFFSET('GrD-Grafikdaten'!$J26,0,V$37-2014)) -> 4.014094388 | W39: =IF(ControlPanel!$T$5="nominal",OFFSET('GrD-Grafikdaten'!$J8,0,W$37-2014),OFFSET('GrD-Grafikdaten'!$J26,0,W$37-2014)) -> 3.379770582 | X39: =IF(ControlPanel!$T$5="nominal",OFFSET('GrD-Grafikdaten'!$J8,0,X$37-2014),OFFSET('GrD-Grafikdaten'!$J26,0,X$37-2014)) -> 3.379770582 | Y39: =IF(ControlPanel!$T$5="nominal",OFFSET('GrD-Grafikdaten'!$J8,0,Y$37-2014),OFFSET('GrD-Grafikdaten'!$J26,0,Y$37-2014)) -> 1.135168332 | Z39: =IF(ControlPanel!$T$5="nominal",OFFSET('GrD-Grafikdaten'!$J8,0,Z$37-2014),OFFSET('GrD-Grafikdaten'!$J26,0,Z$37-2014)) -> -0.1228598728
C40: Gase | D40: frei wählbar -> | E40: Referenz | F40: ='D-Standardauslastung'!E7 -> MFP Trend | I40: Referenz | J40: ='D-Dargebotsfaktor'!E7 -> 100% | L40: Referenz | M40: ='D-Profilfaktoren'!E7 -> 100% | Q40: Strompreis + Umlage [ct/kWh] | S40: =IF(ControlPanel!$T$5="nominal",OFFSET('GrD-Grafikdaten'!$J20,0,S$37-2014),OFFSET('GrD-Grafikdaten'!$J38,0,S$37-2014)) -> 10.57761536 | T40: =IF(ControlPanel!$T$5="nominal",OFFSET('GrD-Grafikdaten'!$J20,0,T$37-2014),OFFSET('GrD-Grafikdaten'!$J38,0,T$37-2014)) -> 11.52337664 | U40: =IF(ControlPanel!$T$5="nominal",OFFSET('GrD-Grafikdaten'!$J20,0,U$37-2014),OFFSET('GrD-Grafikdaten'!$J38,0,U$37-2014)) -> 10.83619204 | V40: =IF(ControlPanel!$T$5="nominal",OFFSET('GrD-Grafikdaten'!$J20,0,V$37-2014),OFFSET('GrD-Grafikdaten'!$J38,0,V$37-2014)) -> 10.65284497 | W40: =IF(ControlPanel!$T$5="nominal",OFFSET('GrD-Grafikdaten'!$J20,0,W$37-2014),OFFSET('GrD-Grafikdaten'!$J38,0,W$37-2014)) -> 10.13269617 | X40: =IF(ControlPanel!$T$5="nominal",OFFSET('GrD-Grafikdaten'!$J20,0,X$37-2014),OFFSET('GrD-Grafikdaten'!$J38,0,X$37-2014)) -> 10.13269617 | Y40: =IF(ControlPanel!$T$5="nominal",OFFSET('GrD-Grafikdaten'!$J20,0,Y$37-2014),OFFSET('GrD-Grafikdaten'!$J38,0,Y$37-2014)) -> 8.488595112 | Z40: =IF(ControlPanel!$T$5="nominal",OFFSET('GrD-Grafikdaten'!$J20,0,Z$37-2014),OFFSET('GrD-Grafikdaten'!$J38,0,Z$37-2014)) -> 7.883552377
F41: > | J41: > | M41: > | Q41: EE-Anteil an Bruttostromverbrauch | S41: =OFFSET('GrD-Grafikdaten'!$J48,0,S$37-2014) -> 0.4325342395 | T41: =OFFSET('GrD-Grafikdaten'!$J48,0,T$37-2014) -> 0.4635923294 | U41: =OFFSET('GrD-Grafikdaten'!$J48,0,U$37-2014) -> 0.4747262021 | V41: =OFFSET('GrD-Grafikdaten'!$J48,0,V$37-2014) -> 0.4861586614 | W41: =OFFSET('GrD-Grafikdaten'!$J48,0,W$37-2014) -> 0.494183211 | X41: =OFFSET('GrD-Grafikdaten'!$J48,0,X$37-2014) -> 0.494183211 | Y41: =OFFSET('GrD-Grafikdaten'!$J48,0,Y$37-2014) -> 0.5162281664 | Z41: =OFFSET('GrD-Grafikdaten'!$J48,0,Z$37-2014) -> 0.5320460353
Q42: Prognose-Szenario
E43: Eingabeparameter: Lebensdauer der Anlagen nach Ende der Förderung | J43: Eingabeparameter: Zuschüsse aus dem Bundeshaushalt | Q43: Umlage [ct/kWh] | S43: =S39+S47 -> 6.503615364 | T43: =T39+T47 -> 4.272216638 | U43: 4.309716663 | V43: 4.014094388 | W43: 3.379770582 | X43: 3.379770582 | Y43: 1.135168332 | Z43: -0.1228598728
C44: Technologie | D44: mögliche Werte | E44: gewähltes Szenario | J44: mögliche Werte | L44: gewähltes Szenario | Q44: Strompreis + Umlage [ct/kWh] | S44: =S40+S48 -> 10.57761536 | T44: 11.52337664 | U44: 10.83619204 | V44: 10.65284497 | W44: 10.13269617 | X44: 10.13269617 | Y44: 8.488595112 | Z44: 7.883552377
C45: Wind Onshore | D45: frei wählbar -> | E45: Referenz | F45: ='D-Dauer Goldenes Ende'!E10 -> 5 Jahre | I45: Referenz | J45: frei wählbar -> | L45: Referenz | M45: ='D-Zuschuss'!D6 -> 6,5 ct/kWh in 2021 und 6,0 ct/kWh in 2022 werden erreicht | O45: > | Q45: EE-Anteil an Bruttostromverbrauch | S45: =S41+S49 -> 0.4325342395 | T45: 0.4635923294 | U45: 0.4747262021 | V45: 0.4861586614 | W45: 0.494183211 | X45: 0.494183211 | Y45: 0.5162281664 | Z45: 0.5320460353
C46: Wind Offshore | D46: frei wählbar -> | E46: Referenz | F46: ='D-Dauer Goldenes Ende'!E11 -> keine | Q46: Differenz zum Referenz-Szenario
C47: Solar | D47: frei wählbar -> | E47: Referenz | F47: ='D-Dauer Goldenes Ende'!E12 -> 5 Jahre | Q47: Umlage [ct/kWh] | S47: =OFFSET('GrD-Grafikdaten'!$J132,0,S$37-2014) -> 0 | T47: =OFFSET('GrD-Grafikdaten'!$J132,0,T$37-2014) -> 0 | U47: =OFFSET('GrD-Grafikdaten'!$J132,0,U$37-2014) -> 0 | V47: =OFFSET('GrD-Grafikdaten'!$J132,0,V$37-2014) -> 0 | W47: =OFFSET('GrD-Grafikdaten'!$J132,0,W$37-2014) -> 0 | X47: =OFFSET('GrD-Grafikdaten'!$J132,0,X$37-2014) -> 0 | Y47: =OFFSET('GrD-Grafikdaten'!$J132,0,Y$37-2014) -> 0 | Z47: =OFFSET('GrD-Grafikdaten'!$J132,0,Z$37-2014) -> 0
C48: Biomasse | D48: frei wählbar -> | E48: Referenz | F48: ='D-Dauer Goldenes Ende'!E8 -> keine | Q48: Strompreis + Umlage [ct/kWh] | S48: =OFFSET('GrD-Grafikdaten'!$J144,0,S$37-2014) -> 0 | T48: =OFFSET('GrD-Grafikdaten'!$J144,0,T$37-2014) -> 0 | U48: =OFFSET('GrD-Grafikdaten'!$J144,0,U$37-2014) -> 0 | V48: =OFFSET('GrD-Grafikdaten'!$J144,0,V$37-2014) -> 0 | W48: =OFFSET('GrD-Grafikdaten'!$J144,0,W$37-2014) -> 0 | X48: =OFFSET('GrD-Grafikdaten'!$J144,0,X$37-2014) -> 0 | Y48: =OFFSET('GrD-Grafikdaten'!$J144,0,Y$37-2014) -> 0 | Z48: =OFFSET('GrD-Grafikdaten'!$J144,0,Z$37-2014) -> 0
C49: Geothermie | D49: frei wählbar -> | E49: Referenz | F49: ='D-Dauer Goldenes Ende'!E9 -> keine | Q49: EE-Anteil an Bruttostromverbrauch | S49: =OFFSET('GrD-Grafikdaten'!$J92,0,S$37-2014) - OFFSET('GrD-Grafikdaten'!$J48,0,S$37-2014) -> 0 | T49: =OFFSET('GrD-Grafikdaten'!$J92,0,T$37-2014) - OFFSET('GrD-Grafikdaten'!$J48,0,T$37-2014) -> 0 | U49: =OFFSET('GrD-Grafikdaten'!$J92,0,U$37-2014) - OFFSET('GrD-Grafikdaten'!$J48,0,U$37-2014) -> 0 | V49: =OFFSET('GrD-Grafikdaten'!$J92,0,V$37-2014) - OFFSET('GrD-Grafikdaten'!$J48,0,V$37-2014) -> 0 | W49: =OFFSET('GrD-Grafikdaten'!$J92,0,W$37-2014) - OFFSET('GrD-Grafikdaten'!$J48,0,W$37-2014) -> 0 | X49: =OFFSET('GrD-Grafikdaten'!$J92,0,X$37-2014) - OFFSET('GrD-Grafikdaten'!$J48,0,X$37-2014) -> 0 | Y49: =OFFSET('GrD-Grafikdaten'!$J92,0,Y$37-2014) - OFFSET('GrD-Grafikdaten'!$J48,0,Y$37-2014) -> 0 | Z49: =OFFSET('GrD-Grafikdaten'!$J92,0,Z$37-2014) - OFFSET('GrD-Grafikdaten'!$J48,0,Z$37-2014) -> 0
C50: Wasser | D50: frei wählbar -> | E50: Referenz | F50: ='D-Dauer Goldenes Ende'!E6 -> keine
C51: Gase | D51: frei wählbar -> | E51: Referenz | F51: ='D-Dauer Goldenes Ende'!E7 -> keine
F52: >

Sheet ControlPanel (hidden)
C2: EEG Calculator
C4: Entscheidermodus
Q5: Monetäre Daten nominal oder real darstellen? | T5: nominal
D6: Eingabeparameter: Jährlicher Kapazitätszubau | J6: Eingabe-Parameter: Entwicklung der Vergütungssätze (Änderung pro Jahr)
C7: Technologie | D7: mögliche Werte | E7: gewähltes Szenario | I7: Technologie | J7: mögliche Werte | L7: gewähltes Szenario | R7: Auswahl für nominal / real Schalter:
C8: Wind Onshore | E8: =IF($C$4="Entscheidermodus",'Parameter-Entscheider'!E8,'Start-Experte'!E8) -> Referenz | F8: ='D-Bruttozubau'!E10 -> 1,5 GW bis 2021, ab 2023 2,5 GW/a | I8: Wind Onshore | L8: =IF($C$4="Entscheidermodus",'Parameter-Entscheider'!L8,'Start-Experte'!L8) -> Referenz | M8: ='D-Vergütungssatz Neuanlagen'!E10 -> sinkt auf 3,5 ct/kWh in 2035 | R8: nominal
C9: Wind Offshore | E9: =IF($C$4="Entscheidermodus",'Parameter-Entscheider'!E9,'Start-Experte'!E9) -> Referenz | F9: ='D-Bruttozubau'!E11 -> MFP Trend, danach konstant 1,6 GW | I9: Wind Offshore | L9: =IF($C$4="Entscheidermodus",'Parameter-Entscheider'!L9,'Start-Experte'!L9) -> Referenz | M9: ='D-Vergütungssatz Neuanlagen'!E11 -> sinkt auf 4,5 ct/kWh in 2035 | R9: real
C10: PV | E10: =IF($C$4="Entscheidermodus",'Parameter-Entscheider'!E10,'Start-Experte'!E10) -> Referenz | F10: ='D-Bruttozubau'!E12 -> MFP Trend | I10: Solar | L10: =IF($C$4="Entscheidermodus",'Parameter-Entscheider'!L10,'Start-Experte'!L10) -> Referenz | M10: ='D-Vergütungssatz Neuanlagen'!E12 -> EEG 2017; Anteil Ausschreibungen ab 2020 50%
C11: Biomasse | E11: =IF($C$4="Entscheidermodus",'Parameter-Entscheider'!E11,'Start-Experte'!E11) -> Referenz | F11: ='D-Bruttozubau'!E8 -> 0,2 GW/a | I11: Biomasse | L11: =IF($C$4="Entscheidermodus",'Parameter-Entscheider'!L11,'Start-Experte'!L11) -> Referenz | M11: ='D-Vergütungssatz Neuanlagen'!E8 -> EEG 2017 | R11: Achsenbeschriftung für monetäre Einheiten:
C12: Geothermie | E12: =IF($C$4="Entscheidermodus",'Parameter-Entscheider'!E12,'Start-Experte'!E12) -> Referenz | F12: ='D-Bruttozubau'!E9 -> 0,01GW/a | I12: Geothermie | L12: =IF($C$4="Entscheidermodus",'Parameter-Entscheider'!L12,'Start-Experte'!L12) -> Referenz | M12: ='D-Vergütungssatz Neuanlagen'!E9 -> EEG 2017 | R12: =IF(T5="real",CONCATENATE("Mrd. € (",D60,")"),"Mrd. €") -> Mrd. €
C13: Wasser | E13: =IF($C$4="Entscheidermodus",'Parameter-Entscheider'!E13,'Start-Experte'!E13) -> Referenz | F13: ='D-Bruttozubau'!E6 -> 0,01 GW/a | I13: Wasser | L13: =IF($C$4="Entscheidermodus",'Parameter-Entscheider'!L13,'Start-Experte'!L13) -> Referenz | M13: ='D-Vergütungssatz Neuanlagen'!E6 -> EEG 2017 | R13: =IF(T5="real",CONCATENATE("ct/kWh (",D60,")"),"ct/kWh") -> ct/kWh
C14: Gase | E14: =IF($C$4="Entscheidermodus",'Parameter-Entscheider'!E14,'Start-Experte'!E14) -> Referenz | F14: ='D-Bruttozubau'!E7 -> 0,01GW/a | I14: Gase | L14: =IF($C$4="Entscheidermodus",'Parameter-Entscheider'!L14,'Start-Experte'!L14) -> Referenz | M14: ='D-Vergütungssatz Neuanlagen'!E7 -> EEG 2017
D17: Eingabeparameter: Privilegierungen | J17: Eingabeparameter: Strompreis, Liquiditätsreserve und Kontostand
D18: mögliche Werte | E18: gewähltes Szenario | J18: mögliche Werte | L18: gewähltes Szenario
C19: Privilegierter Letztverbrauch | E19: =IF($C$4="Entscheidermodus",'Parameter-Entscheider'!E19,'Start-Experte'!E19) -> Referenz | F19: ='D-Privilegierter Letztverbrauch'!$D$6 -> MFP Referenz | I19: Großhandelsstrompreis (Future) | L19: =IF($C$4="Entscheidermodus",'Parameter-Entscheider'!L19,'Start-Experte'!L19) -> Referenz | M19: ='D-Future Strompreis'!$D$6 -> 4,9 -> 6,5 ct/kWh
C20: Anteil an Umlage für privilegierte Letztverbraucher | E20: =IF($C$4="Entscheidermodus",'Parameter-Entscheider'!E20,'Start-Experte'!E20) -> Referenz | F20: ='D-Umlage priv. Letztverbrauch'!$D$6 -> 15% (gem. EEG 2021) | I20: Liquiditätsreserve | L20: =IF($C$4="Entscheidermodus",'Parameter-Entscheider'!L20,'Start-Experte'!L20) -> Referenz | M20: ='D-Liquiditätspuffer'!$D$6 -> ÜNB-Umlageberechnungen, danach 6%
C21: Faktor zur Erfassung zusätzlicher Privilegierungen | E21: =IF($C$4="Entscheidermodus",'Parameter-Entscheider'!E21,'Start-Experte'!E21) -> Referenz | I21: =CONCATENATE("Kontostand am 30.9.",ControlPanel!$D$59-1) -> Kontostand am 30.9.2021 | L21: =IF($C$4="Entscheidermodus",'Parameter-Entscheider'!L21,'Start-Experte'!L21) -> endogen | M21: ='D-Kontostand aktuelles Jahr'!D6 -> wird endogen berechnet
I22: =CONCATENATE("Alternativ: Prognosefehler für Kontostand am 30.9.",ControlPanel!$D$59-1) -> Alternativ: Prognosefehler für Kontostand am 30.9.2021 | L22: =IF($C$4="Entscheidermodus",'Parameter-Entscheider'!L22,'Start-Experte'!L22) -> keine Abweichung | M22: ='D-Prognosefehler Kontostand'!D6 -> keine Abweichung
D24: Eingabeparameter: Eigenverbrauch | J24: Eingabeparameter: Sonstiges
C25: Kategorien Eigenverbrauch und jeweilige Beteiligung | D25: mögliche Werte | E25: gewähltes Szenario | J25: mögliche Werte | L25: gewähltes Szenario
C26: Eigenverbrauch (KWK-Neuanlagen) | E26: =IF($C$4="Entscheidermodus",'Parameter-Entscheider'!E26,'Start-Experte'!E26) -> Referenz | F26: ='D-Eigenverbrauch fossil Bestand'!$D$6 -> Eigenversorgung nach §61(3) aus ÜNB-Umlageberechnung für 2020 | I26: Nettostromverbrauch | L26: =IF($C$4="Entscheidermodus",'Parameter-Entscheider'!L26,'Start-Experte'!L26) -> Referenz | M26: ='D-Nettostromverbrauch'!$D$6 -> 2021: ÜNB-Umlageberechnung 2020. Danach ansteigend auf 600 TWh in 2030
C27: Eigenverbrauchsanteil bei PV-Neuanlagen | E27: =IF($C$4="Entscheidermodus",'Parameter-Entscheider'!E27,'Start-Experte'!E27) -> Referenz | F27: ='D-Anteil Eigenverbrauch EE neu'!E12 -> 9% | I27: Spot-Skalierungsfaktor | L27: =IF($C$4="Entscheidermodus",'Parameter-Entscheider'!L27,'Start-Experte'!L27) -> Referenz | M27: ='D-Spot-Skalierungsfaktor'!$D$6 -> 100%
C28: Anteil an Umlage für neuen Eigenverbrauch (PV und KWK) | E28: =IF($C$4="Entscheidermodus",'Parameter-Entscheider'!E28,'Start-Experte'!E28) -> Referenz | I28: Vermiedene Netzentgelte | L28: =IF($C$4="Entscheidermodus",'Parameter-Entscheider'!L28,'Start-Experte'!L28) -> Referenz | M28: ='D-vermiedene Netzentgelte'!$D$6 -> 7.17€/MWh
C29: Anteil an Umlage für Eigenverbrauch (Bestandsanlagen) | E29: =IF($C$4="Entscheidermodus",'Parameter-Entscheider'!E29,'Start-Experte'!E29) -> Referenz | I29: Sonstige Kosten | L29: =IF($C$4="Entscheidermodus",'Parameter-Entscheider'!L29,'Start-Experte'!L29) -> Referenz | M29: ='D-Sonstige Kosten'!$D$6 -> 0,06Mrd. €
I30: Inflationsrate | L30: =IF($C$4="Entscheidermodus",'Parameter-Entscheider'!L30,'Start-Experte'!L30) -> Referenz | M30: ='D-Inflationsrate'!$D$6 -> 1,5% pro Jahr
E32: Eingabeparameter: Standardauslastung | I32: Eingabeparameter: Dargebotsfaktor | L32: Eingabeparameter: Profilfaktor
C33: Technologie | D33: mögliche Werte | E33: gewähltes Szenario | I33: gewähltes Szenario | L33: gewähltes Szenario
C34: Wind Onshore | E34: =IF($C$4="Entscheidermodus",'Parameter-Entscheider'!E34,'Start-Experte'!E34) -> Referenz | F34: ='D-Standardauslastung'!E10 -> Anstieg auf 2600h in 2035 | I34: =IF($C$4="Entscheidermodus",'Parameter-Entscheider'!I34,'Start-Experte'!I34) -> Referenz | J34: ='D-Dargebotsfaktor'!E10 -> 100% | L34: =IF($C$4="Entscheidermodus",'Parameter-Entscheider'!L34,'Start-Experte'!L34) -> Referenz | M34: ='D-Profilfaktoren'!E10 -> eigene Berechnung
C35: Wind Offshore | E35: =IF($C$4="Entscheidermodus",'Parameter-Entscheider'!E35,'Start-Experte'!E35) -> Referenz | F35: ='D-Standardauslastung'!E11 -> Anstieg auf 4700 h in 2035 | I35: =IF($C$4="Entscheidermodus",'Parameter-Entscheider'!I35,'Start-Experte'!I35) -> Referenz | J35: ='D-Dargebotsfaktor'!E11 -> 100% | L35: =IF($C$4="Entscheidermodus",'Parameter-Entscheider'!L35,'Start-Experte'!L35) -> Referenz | M35: ='D-Profilfaktoren'!E11 -> eigene Berechnung
C36: PV | E36: =IF($C$4="Entscheidermodus",'Parameter-Entscheider'!E36,'Start-Experte'!E36) -> Referenz | F36: ='D-Standardauslastung'!E12 -> Anstieg auf 950h in 2035 | I36: =IF($C$4="Entscheidermodus",'Parameter-Entscheider'!I36,'Start-Experte'!I36) -> Referenz | J36: ='D-Dargebotsfaktor'!E12 -> 100% | L36: =IF($C$4="Entscheidermodus",'Parameter-Entscheider'!L36,'Start-Experte'!L36) -> Referenz | M36: ='D-Profilfaktoren'!E12 -> eigene Berechnung
C37: Biomasse | E37: =IF($C$4="Entscheidermodus",'Parameter-Entscheider'!E37,'Start-Experte'!E37) -> Referenz | F37: ='D-Standardauslastung'!E8 -> MFP Trend | I37: =IF($C$4="Entscheidermodus",'Parameter-Entscheider'!I37,'Start-Experte'!I37) -> Referenz | J37: ='D-Dargebotsfaktor'!E8 -> 100% | L37: =IF($C$4="Entscheidermodus",'Parameter-Entscheider'!L37,'Start-Experte'!L37) -> Referenz | M37: ='D-Profilfaktoren'!E8 -> 100%
C38: Geothermie | E38: =IF($C$4="Entscheidermodus",'Parameter-Entscheider'!E38,'Start-Experte'!E38) -> Referenz | F38: ='D-Standardauslastung'!E9 -> MFP Trend | I38: =IF($C$4="Entscheidermodus",'Parameter-Entscheider'!I38,'Start-Experte'!I38) -> Referenz | J38: ='D-Dargebotsfaktor'!E9 -> 100% | L38: =IF($C$4="Entscheidermodus",'Parameter-Entscheider'!L38,'Start-Experte'!L38) -> Referenz | M38: ='D-Profilfaktoren'!E9 -> 100%
C39: Wasser | E39: =IF($C$4="Entscheidermodus",'Parameter-Entscheider'!E39,'Start-Experte'!E39) -> Referenz | F39: ='D-Standardauslastung'!E6 -> MFP Trend | I39: =IF($C$4="Entscheidermodus",'Parameter-Entscheider'!I39,'Start-Experte'!I39) -> Referenz | J39: ='D-Dargebotsfaktor'!E6 -> 100% | L39: =IF($C$4="Entscheidermodus",'Parameter-Entscheider'!L39,'Start-Experte'!L39) -> Referenz | M39: ='D-Profilfaktoren'!E6 -> 100%
C40: Gase | E40: =IF($C$4="Entscheidermodus",'Parameter-Entscheider'!E40,'Start-Experte'!E40) -> Referenz | F40: ='D-Standardauslastung'!E7 -> MFP Trend | I40: =IF($C$4="Entscheidermodus",'Parameter-Entscheider'!I40,'Start-Experte'!I40) -> Referenz | J40: ='D-Dargebotsfaktor'!E7 -> 100% | L40: =IF($C$4="Entscheidermodus",'Parameter-Entscheider'!L40,'Start-Experte'!L40) -> Referenz | M40: ='D-Profilfaktoren'!E7 -> 100%
E43: Eingabeparameter: Lebensdauer der Anlagen nach Ende der Förderung | I43: Eingabeparameter: Zuschüsse aus dem Bundeshaushalt
C44: Technologie | D44: mögliche Werte | E44: gewähltes Szenario | I44: gewähltes Szenario
C45: Wind Onshore | E45: =IF($C$4="Entscheidermodus",'Parameter-Entscheider'!E45,'Start-Experte'!E45) -> Referenz | F45: ='D-Dauer Goldenes Ende'!E10 -> 5 Jahre | I45: =IF($C$4="Entscheidermodus",'Parameter-Entscheider'!I45,'Start-Experte'!L45) -> Referenz | J45: ='D-Zuschuss'!D6 -> 6,5 ct/kWh in 2021 und 6,0 ct/kWh in 2022 werden erreicht
C46: Wind Offshore | E46: =IF($C$4="Entscheidermodus",'Parameter-Entscheider'!E46,'Start-Experte'!E46) -> Referenz | F46: ='D-Dauer Goldenes Ende'!E11 -> keine
C47: Solar | E47: =IF($C$4="Entscheidermodus",'Parameter-Entscheider'!E47,'Start-Experte'!E47) -> Referenz | F47: ='D-Dauer Goldenes Ende'!E12 -> 5 Jahre
C48: Biomasse | E48: =IF($C$4="Entscheidermodus",'Parameter-Entscheider'!E48,'Start-Experte'!E48) -> Referenz | F48: ='D-Dauer Goldenes Ende'!E8 -> keine
C49: Geothermie | E49: =IF($C$4="Entscheidermodus",'Parameter-Entscheider'!E49,'Start-Experte'!E49) -> Referenz | F49: ='D-Dauer Goldenes Ende'!E9 -> keine
C50: Wasser | E50: =IF($C$4="Entscheidermodus",'Parameter-Entscheider'!E50,'Start-Experte'!E50) -> Referenz | F50: ='D-Dauer Goldenes Ende'!E6 -> keine
C51: Gase | E51: =IF($C$4="Entscheidermodus",'Parameter-Entscheider'!E51,'Start-Experte'!E51) -> Referenz | F51: ='D-Dauer Goldenes Ende'!E7 -> keine
C59: Erstes Prognose-Jahr | D59: 2022
C60: Basisjahr für reale monetäre Daten | D60: 2021

Sheet Parameter-Entscheider (hidden)
C2: EEG Calculator | D2: Entscheidermodus
C4: Entscheidermodus
D6: Eingabeparameter: Jährlicher Kapazitätszubau | J6: Eingabe-Parameter: Entwicklung der Vergütungssätze (Änderung pro Jahr)
C7: Technologie | D7: mögliche Werte | E7: gewähltes Szenario | I7: Technologie | J7: mögliche Werte | L7: gewähltes Szenario
C8: Wind Onshore | E8: =Start!E8 -> Referenz | I8: Wind Onshore | L8: =Start!L8 -> Referenz
C9: Wind Offshore | E9: =Start!E9 -> Referenz | I9: Wind Offshore | L9: =Start!L9 -> Referenz
C10: PV | E10: =Start!E10 -> Referenz | I10: Solar | L10: =Start!L10 -> Referenz
C11: Biomasse | E11: =Start!E11 -> Referenz | I11: Biomasse | L11: =Start!L11 -> Referenz
C12: Geothermie | E12: Referenz | I12: Geothermie | L12: Referenz | R12: Was bedeuten die Farben?
C13: Wasser | E13: Referenz | I13: Wasser | L13: Referenz | R13: blau: kann im Entscheidermodus verändert werden
C14: Gase | E14: Referenz | I14: Gase | L14: Referenz | R14: grau: kann nur im Expertenmodus verändert werden. Standardwert ifür Entscheidermodus st hier eingetragen.
D17: Eingabeparameter: Privilegierungen | J17: Eingabeparameter: Strompreis, Liquiditätsreserve und Kontostand
D18: mögliche Werte | E18: gewähltes Szenario | J18: mögliche Werte | L18: gewähltes Szenario
C19: Privilegierter Letztverbrauch | E19: =Start!E19 -> Referenz | I19: Großhandelsstrompreis (Future) | L19: =Start!L19 -> Referenz
C20: Anteil an Umlage für privilegierte Letztverbraucher | E20: =Start!E20 -> Referenz | I20: Liquiditätsreserve | L20: Referenz
C21: Faktor zur Erfassung zusätzlicher Privilegierungen | E21: =Start!E21 -> Referenz | I21: =CONCATENATE("Kontostand am 30.9.",ControlPanel!$D$59-1) -> Kontostand am 30.9.2021 | L21: endogen
I22: =CONCATENATE("Alternativ: Prognosefehler für Kontostand am 30.9.",ControlPanel!$D$59-1) -> Alternativ: Prognosefehler für Kontostand am 30.9.2021 | L22: =Start!L20 -> keine Abweichung
D24: Eingabeparameter: Eigenverbrauch | J24: Eingabeparameter: Sonstiges
C25: Kategorien Eigenverbrauch und jeweilige Beteiligung | D25: mögliche Werte | E25: gewähltes Szenario | J25: mögliche Werte | L25: gewähltes Szenario
C26: Eigenverbrauch (KWK-Neuanlagen) | E26: =Start!E26 -> Referenz | I26: Nettostromverbrauch | L26: =Start!E34 -> Referenz
C27: Eigenverbrauchsanteil bei PV-Neuanlagen | E27: =Start!E27 -> Referenz | I27: Spot-Skalierungsfaktor | L27: Referenz
C28: Anteil an Umlage für neuen Eigenverbrauch (PV und KWK) | E28: =Start!E28 -> Referenz | I28: Vermiedene Netzentgelte | L28: Referenz
C29: Umlagereduktion für Eigenverbrauch (Bestandsanlagen) | E29: =Start!E29 -> Referenz | I29: Sonstige Kosten | L29: Referenz
I30: Sonstige Kosten | L30: Referenz
E32: Eingabeparameter: Standardauslastung | I32: Eingabeparameter: Dargebotsfaktor | L32: Eingabeparameter: Profilfaktor
C33: Technologie | D33: mögliche Werte | E33: gewähltes Szenario | I33: gewähltes Szenario | L33: gewähltes Szenario
C34: Wind Onshore | E34: Referenz | I34: Referenz | L34: Referenz
C35: Wind Offshore | E35: Referenz | I35: Referenz | L35: Referenz
C36: PV | E36: Referenz | I36: Referenz | L36: Referenz
C37: Biomasse | E37: Referenz | I37: Referenz | L37: Referenz
C38: Geothermie | E38: Referenz | I38: Referenz | L38: Referenz
C39: Wasser | E39: Referenz | I39: Referenz | L39: Referenz
C40: Gase | E40: Referenz | I40: Referenz | L40: Referenz
E43: Eingabeparameter: Lebensdauer der Anlagen nach Ende der Förderung | I43: Eingabeparameter: Zuschüsse aus dem Bundeshaushalt
C44: Technologie | D44: mögliche Werte | E44: gewähltes Szenario | I44: gewähltes Szenario
C45: Wind Onshore | E45: Referenz | I45: =Start!L21 -> Referenz
C46: Wind Offshore | E46: Referenz
C47: PV | E47: Referenz
C48: Biomasse | E48: Referenz
C49: Geothermie | E49: Referenz
C50: Wasser | E50: Referenz
C51: Gase | E51: Referenz

Sheet Start
C2: EEG-Rechner | T2: =CONCATENATE("Version ",Impressum!$C$17) -> Version 4.2.1
C4: Entscheidermodus
Q5: Darstellung monetärer Daten: | T5: =ControlPanel!$T$5 -> nominal
D6: Eingabeparameter: Jährlicher Kapazitätszubau (Brutto) | J6: ="Eingabe-Parameter: Entwicklung der Vergütungssätze (real, bezogen auf "&ControlPanel!D60&")" -> Eingabe-Parameter: Entwicklung der Vergütungssätze (real, bezogen auf 2021)
C7: Technologie | D7: mögliche Werte | E7: gewähltes Szenario | I7: Technologie | J7: mögliche Werte | L7: gewähltes Szenario
C8: Wind Onshore | D8: Szenario wählbar --> | E8: Referenz | F8: ='D-Bruttozubau'!E10 -> 1,5 GW bis 2021, ab 2023 2,5 GW/a | I8: Wind Onshore | J8: Szenario wählbar --> | L8: Referenz | M8: ='D-Vergütungssatz Neuanlagen'!E10 -> sinkt auf 3,5 ct/kWh in 2035
C9: Wind Offshore | D9: Szenario wählbar --> | E9: Referenz | F9: ='D-Bruttozubau'!E11 -> MFP Trend, danach konstant 1,6 GW | I9: Wind Offshore | J9: Szenario wählbar --> | L9: Referenz | M9: ='D-Vergütungssatz Neuanlagen'!E11 -> sinkt auf 4,5 ct/kWh in 2035
C10: Solar | D10: Szenario wählbar --> | E10: Referenz | F10: ='D-Bruttozubau'!E12 -> MFP Trend | I10: Solar | J10: Szenario wählbar --> | L10: Referenz | M10: ='D-Vergütungssatz Neuanlagen'!E12 -> EEG 2017; Anteil Ausschreibungen ab 2020 50%
C11: Biomasse | D11: Szenario wählbar --> | E11: Referenz | F11: ='D-Bruttozubau'!E8 -> 0,2 GW/a | I11: Biomasse | J11: Szenario wählbar --> | L11: Referenz | M11: ='D-Vergütungssatz Neuanlagen'!E8 -> EEG 2017
C12: Geothermie | D12: fest vorgegeben | E12: Referenz | F12: ='D-Bruttozubau'!E9 -> 0,01GW/a | I12: Geothermie | J12: fest vorgegeben | L12: Referenz | M12: ='D-Vergütungssatz Neuanlagen'!E9 -> EEG 2017
C13: Wasser | D13: fest vorgegeben | E13: Referenz | F13: ='D-Bruttozubau'!E6 -> 0,01 GW/a | I13: Wasser | J13: fest vorgegeben | L13: Referenz | M13: ='D-Vergütungssatz Neuanlagen'!E6 -> EEG 2017
C14: Gase | D14: fest vorgegeben | E14: Referenz | F14: ='D-Bruttozubau'!E7 -> 0,01GW/a | I14: Gase | J14: fest vorgegeben | L14: Referenz | M14: ='D-Vergütungssatz Neuanlagen'!E7 -> EEG 2017
D17: Eingabeparameter: Ausnahmen für stromintensive Unternehmen (BesAR) | J17: Eingabeparameter: Strompreis und Kontostand
D18: mögliche Werte | E18: gewähltes Szenario | J18: mögliche Werte | L18: gewähltes Szenario
C19: Privilegierter Letztverbrauch | D19: Szenario wählbar --> | E19: Referenz | F19: ='D-Privilegierter Letztverbrauch'!$D$6 -> MFP Referenz | I19: Großhandelsstrompreis (Future) | J19: Szenario wählbar --> | L19: Referenz | M19: ='D-Future Strompreis'!$D$6 -> 4,9 -> 6,5 ct/kWh
C20: Anteil an Umlage für privilegierte Letztverbraucher | D20: Szenario wählbar --> | E20: Referenz | F20: ='D-Umlage priv. Letztverbrauch'!$D$6 -> 15% (gem. EEG 2021) | I20: Abweichung von Kontostandsprognose für den 30.9.2019 | J20: Szenario wählbar --> | L20: keine Abweichung | M20: ='D-Prognosefehler Kontostand'!D6 -> keine Abweichung
C21: Faktor zur Erfassung zusätzlicher Privilegierungen | D21: Szenario wählbar --> | E21: Referenz | F21: ='D-Faktor Zusatzprivilegierung'!$D$6 -> Bis 2021: ÜNB-Umlageberechnungen, danach konstant (wirkt wie vollständige Befreiung von 62% des priv. LV) | I21: Zuschüsse aus dem Bundeshaushalt | J21: Szenario wählbar --> | L21: Referenz | M21: ='D-Zuschuss'!D6 -> 6,5 ct/kWh in 2021 und 6,0 ct/kWh in 2022 werden erreicht
Q22: Ergebnis: EEG-Umlage und Summe aus Strompreis und Umlage [ct/kWh]
S23: =ControlPanel!$D$59-1 -> 2021 | T23: =ControlPanel!$D$59 -> 2022 | U23: =ControlPanel!$D$59+1 -> 2023 | V23: =ControlPanel!$D$59+2 -> 2024 | W23: =ControlPanel!$D$59+3 -> 2025 | X23: 2025 | Y23: 2030 | Z23: 2035
D24: Eingabeparameter: Eigenverbrauch | Q24: Referenz-Szenario
C25: Kategorien Eigenverbrauch und jeweilige Beteiligung | D25: mögliche Werte | E25: gewähltes Szenario | Q25: Umlage | S25: =IF(ControlPanel!$T$5="nominal",OFFSET('GrD-Grafikdaten'!$J8,0,S$23-2014),OFFSET('GrD-Grafikdaten'!$J26,0,S$23-2014)) -> 6.503615364 | T25: =IF(ControlPanel!$T$5="nominal",OFFSET('GrD-Grafikdaten'!$J8,0,T$23-2014),OFFSET('GrD-Grafikdaten'!$J26,0,T$23-2014)) -> 4.272216638 | U25: =IF(ControlPanel!$T$5="nominal",OFFSET('GrD-Grafikdaten'!$J8,0,U$23-2014),OFFSET('GrD-Grafikdaten'!$J26,0,U$23-2014)) -> 4.309716663 | V25: =IF(ControlPanel!$T$5="nominal",OFFSET('GrD-Grafikdaten'!$J8,0,V$23-2014),OFFSET('GrD-Grafikdaten'!$J26,0,V$23-2014)) -> 4.014094388 | W25: =IF(ControlPanel!$T$5="nominal",OFFSET('GrD-Grafikdaten'!$J8,0,W$23-2014),OFFSET('GrD-Grafikdaten'!$J26,0,W$23-2014)) -> 3.379770582 | X25: =IF(ControlPanel!$T$5="nominal",OFFSET('GrD-Grafikdaten'!$J8,0,X$23-2014),OFFSET('GrD-Grafikdaten'!$J26,0,X$23-2014)) -> 3.379770582 | Y25: =IF(ControlPanel!$T$5="nominal",OFFSET('GrD-Grafikdaten'!$J8,0,Y$23-2014),OFFSET('GrD-Grafikdaten'!$J26,0,Y$23-2014)) -> 1.135168332 | Z25: =IF(ControlPanel!$T$5="nominal",OFFSET('GrD-Grafikdaten'!$J8,0,Z$23-2014),OFFSET('GrD-Grafikdaten'!$J26,0,Z$23-2014)) -> -0.1228598728
C26: Eigenverbrauch (KWK-Neuanlagen) | D26: Szenario wählbar --> | E26: Referenz | F26: ='D-Eigenverbrauch KWK Neue'!$D$6 -> 2021: ÜNB-Umlageberechnungen bis 2025, danach konstant | Q26: Strompreis + Umlage [ct/kWh] | S26: =IF(ControlPanel!$T$5="nominal",OFFSET('GrD-Grafikdaten'!$J20,0,S$23-2014),OFFSET('GrD-Grafikdaten'!$J38,0,S$23-2014)) -> 10.57761536 | T26: =IF(ControlPanel!$T$5="nominal",OFFSET('GrD-Grafikdaten'!$J20,0,T$23-2014),OFFSET('GrD-Grafikdaten'!$J38,0,T$23-2014)) -> 11.52337664 | U26: =IF(ControlPanel!$T$5="nominal",OFFSET('GrD-Grafikdaten'!$J20,0,U$23-2014),OFFSET('GrD-Grafikdaten'!$J38,0,U$23-2014)) -> 10.83619204 | V26: =IF(ControlPanel!$T$5="nominal",OFFSET('GrD-Grafikdaten'!$J20,0,V$23-2014),OFFSET('GrD-Grafikdaten'!$J38,0,V$23-2014)) -> 10.65284497 | W26: =IF(ControlPanel!$T$5="nominal",OFFSET('GrD-Grafikdaten'!$J20,0,W$23-2014),OFFSET('GrD-Grafikdaten'!$J38,0,W$23-2014)) -> 10.13269617 | X26: =IF(ControlPanel!$T$5="nominal",OFFSET('GrD-Grafikdaten'!$J20,0,X$23-2014),OFFSET('GrD-Grafikdaten'!$J38,0,X$23-2014)) -> 10.13269617 | Y26: =IF(ControlPanel!$T$5="nominal",OFFSET('GrD-Grafikdaten'!$J20,0,Y$23-2014),OFFSET('GrD-Grafikdaten'!$J38,0,Y$23-2014)) -> 8.488595112 | Z26: =IF(ControlPanel!$T$5="nominal",OFFSET('GrD-Grafikdaten'!$J20,0,Z$23-2014),OFFSET('GrD-Grafikdaten'!$J38,0,Z$23-2014)) -> 7.883552377
C27: Eigenverbrauchsanteil bei PV-Neuanlagen | D27: Szenario wählbar --> | E27: Referenz | F27: ='D-Anteil Eigenverbrauch EE neu'!E12 -> 9% | Q27: EE-Anteil an Bruttostromverbrauch | S27: =OFFSET('GrD-Grafikdaten'!$J48,0,S$23-2014) -> 0.4325342395 | T27: =OFFSET('GrD-Grafikdaten'!$J48,0,T$23-2014) -> 0.4635923294 | U27: =OFFSET('GrD-Grafikdaten'!$J48,0,U$23-2014) -> 0.4747262021 | V27: =OFFSET('GrD-Grafikdaten'!$J48,0,V$23-2014) -> 0.4861586614 | W27: =OFFSET('GrD-Grafikdaten'!$J48,0,W$23-2014) -> 0.494183211 | X27: =OFFSET('GrD-Grafikdaten'!$J48,0,X$23-2014) -> 0.494183211 | Y27: =OFFSET('GrD-Grafikdaten'!$J48,0,Y$23-2014) -> 0.5162281664 | Z27: =OFFSET('GrD-Grafikdaten'!$J48,0,Z$23-2014) -> 0.5320460353
C28: Anteil an Umlage für neuen Eigenverbrauch (PV und KWK) | D28: Szenario wählbar --> | E28: Referenz | F28: ='D-Umlage Eigenverbrauch PV+KWK'!$D$6 -> gem. EEG 2017, ab 2020 konstant 38% | Q28: Prognose-Szenario
C29: Anteil an Umlage für Eigenverbrauch (Bestandsanlagen) | D29: Szenario wählbar --> | E29: Referenz | F29: ='D-Umlage EV Bestand'!$D$6 -> vollständig befreit (gem. EEG 2014) | Q29: Umlage [ct/kWh] | S29: =S25+S33 -> 6.503615364 | T29: =T25+T33 -> 4.272216638 | U29: 4.309716663 | V29: 4.014094388 | W29: 3.379770582 | X29: 3.379770582 | Y29: 1.135168332 | Z29: -0.1228598728
Q30: Strompreis + Umlage [ct/kWh] | S30: =S26+S34 -> 10.57761536 | T30: 11.52337664 | U30: 10.83619204 | V30: 10.65284497 | W30: 10.13269617 | X30: 10.13269617 | Y30: 8.488595112 | Z30: 7.883552377
Q31: EE-Anteil an Bruttostromverbrauch | S31: 0.4325342395 | T31: 0.4635923294 | U31: 0.4747262021 | V31: 0.4861586614 | W31: 0.494183211 | X31: 0.494183211 | Y31: 0.5162281664 | Z31: 0.5320460353
D32: Eingabeparameter: Stromverbrauch | Q32: Differenz zum Referenz-Szenario
D33: mögliche Werte | E33: gewähltes Szenario | Q33: Umlage [ct/kWh] | S33: =OFFSET('GrD-Grafikdaten'!$J132,0,S$23-2014) -> 0 | T33: =OFFSET('GrD-Grafikdaten'!$J132,0,T$23-2014) -> 0 | U33: =OFFSET('GrD-Grafikdaten'!$J132,0,U$23-2014) -> 0 | V33: =OFFSET('GrD-Grafikdaten'!$J132,0,V$23-2014) -> 0 | W33: =OFFSET('GrD-Grafikdaten'!$J132,0,W$23-2014) -> 0 | X33: =OFFSET('GrD-Grafikdaten'!$J132,0,X$23-2014) -> 0 | Y33: =OFFSET('GrD-Grafikdaten'!$J132,0,Y$23-2014) -> 0 | Z33: =OFFSET('GrD-Grafikdaten'!$J132,0,Z$23-2014) -> 0
C34: Nettostromverbrauch | D34: Szenario wählbar --> | E34: Referenz | F34: ='D-Nettostromverbrauch'!D6 -> 2021: ÜNB-Umlageberechnung 2020. Danach ansteigend auf 600 TWh in 2030 | Q34: Strompreis + Umlage [ct/kWh] | S34: =OFFSET('GrD-Grafikdaten'!$J144,0,S$23-2014) -> 0 | T34: =OFFSET('GrD-Grafikdaten'!$J144,0,T$23-2014) -> 0 | U34: =OFFSET('GrD-Grafikdaten'!$J144,0,U$23-2014) -> 0 | V34: =OFFSET('GrD-Grafikdaten'!$J144,0,V$23-2014) -> 0 | W34: =OFFSET('GrD-Grafikdaten'!$J144,0,W$23-2014) -> 0 | X34: =OFFSET('GrD-Grafikdaten'!$J144,0,X$23-2014) -> 0 | Y34: =OFFSET('GrD-Grafikdaten'!$J144,0,Y$23-2014) -> 0 | Z34: =OFFSET('GrD-Grafikdaten'!$J144,0,Z$23-2014) -> 0
Q35: EE-Anteil an Bruttostromverbrauch | S35: =OFFSET('GrD-Grafikdaten'!$J92,0,S$23-2014) - OFFSET('GrD-Grafikdaten'!$J48,0,S$23-2014) -> 0 | T35: =OFFSET('GrD-Grafikdaten'!$J92,0,T$23-2014) - OFFSET('GrD-Grafikdaten'!$J48,0,T$23-2014) -> 0 | U35: =OFFSET('GrD-Grafikdaten'!$J92,0,U$23-2014) - OFFSET('GrD-Grafikdaten'!$J48,0,U$23-2014) -> 0 | V35: =OFFSET('GrD-Grafikdaten'!$J92,0,V$23-2014) - OFFSET('GrD-Grafikdaten'!$J48,0,V$23-2014) -> 0 | W35: =OFFSET('GrD-Grafikdaten'!$J92,0,W$23-2014) - OFFSET('GrD-Grafikdaten'!$J48,0,W$23-2014) -> 0 | X35: =OFFSET('GrD-Grafikdaten'!$J92,0,X$23-2014) - OFFSET('GrD-Grafikdaten'!$J48,0,X$23-2014) -> 0 | Y35: =OFFSET('GrD-Grafikdaten'!$J92,0,Y$23-2014) - OFFSET('GrD-Grafikdaten'!$J48,0,Y$23-2014) -> 0 | Z35: =OFFSET('GrD-Grafikdaten'!$J92,0,Z$23-2014) - OFFSET('GrD-Grafikdaten'!$J48,0,Z$23-2014) -> 0
I45: Referenz

Sheet Ergebnisse
C2: EEG-Rechner | T2: =CONCATENATE("Modellversion ",Impressum!$C$17) -> Modellversion 4.2.1
B4: Ergebnisse
U6: Darstellung monetärer Daten:
U9: =ControlPanel!$T$5 -> nominal
P57: Technologie auswählen:
P58: Solar
AE74: x
B99: Ergebnistabellen
C101: Ergebnis: EEG-Umlage und Summe aus Strompreis und Umlage [ct/kWh] | N101: Ergebnis: Zahlungsströme [Mrd. Euro]
E102: =ControlPanel!$D$59-1 -> 2021 | F102: =ControlPanel!$D$59 -> 2022 | G102: =ControlPanel!$D$59+1 -> 2023 | H102: =ControlPanel!$D$59+2 -> 2024 | I102: =ControlPanel!$D$59+3 -> 2025 | J102: 2025 | K102: 2030 | L102: 2035 | P102: =E102 -> 2021 | Q102: =F102 -> 2022 | R102: 2023 | S102: 2024 | T102: 2025 | U102: 2025 | V102: 2030 | W102: 2035
C103: Referenz-Szenario | N103: Referenzszenario [Mrd. Euro]
C104: Umlage | E104: =IF(ControlPanel!$T$5="nominal",OFFSET('GrD-Grafikdaten'!$J8,0,E$102-2014),OFFSET('GrD-Grafikdaten'!$J26,0,E$102-2014)) -> 6.503615364 | F104: =IF(ControlPanel!$T$5="nominal",OFFSET('GrD-Grafikdaten'!$J8,0,F$102-2014),OFFSET('GrD-Grafikdaten'!$J26,0,F$102-2014)) -> 4.272216638 | G104: =IF(ControlPanel!$T$5="nominal",OFFSET('GrD-Grafikdaten'!$J8,0,G$102-2014),OFFSET('GrD-Grafikdaten'!$J26,0,G$102-2014)) -> 4.309716663 | H104: =IF(ControlPanel!$T$5="nominal",OFFSET('GrD-Grafikdaten'!$J8,0,H$102-2014),OFFSET('GrD-Grafikdaten'!$J26,0,H$102-2014)) -> 4.014094388 | I104: =IF(ControlPanel!$T$5="nominal",OFFSET('GrD-Grafikdaten'!$J8,0,I$102-2014),OFFSET('GrD-Grafikdaten'!$J26,0,I$102-2014)) -> 3.379770582 | J104: =IF(ControlPanel!$T$5="nominal",OFFSET('GrD-Grafikdaten'!$J8,0,J$102-2014),OFFSET('GrD-Grafikdaten'!$J26,0,J$102-2014)) -> 3.379770582 | K104: =IF(ControlPanel!$T$5="nominal",OFFSET('GrD-Grafikdaten'!$J8,0,K$102-2014),OFFSET('GrD-Grafikdaten'!$J26,0,K$102-2014)) -> 1.135168332 | L104: =IF(ControlPanel!$T$5="nominal",OFFSET('GrD-Grafikdaten'!$J8,0,L$102-2014),OFFSET('GrD-Grafikdaten'!$J26,0,L$102-2014)) -> -0.1228598728 | N104: Nettozahlungen an Anlagenbetreiber | O104: Wind Onshore | P104: =IF(ControlPanel!$T$5="nominal",OFFSET('GrD-Grafikdaten'!$J13,0,E$102-2014),OFFSET('GrD-Grafikdaten'!$J31,0,E$102-2014)) -> 5.69110829 | Q104: =IF(ControlPanel!$T$5="nominal",OFFSET('GrD-Grafikdaten'!$J13,0,F$102-2014),OFFSET('GrD-Grafikdaten'!$J31,0,F$102-2014)) -> 2.176280998 | R104: =IF(ControlPanel!$T$5="nominal",OFFSET('GrD-Grafikdaten'!$J13,0,G$102-2014),OFFSET('GrD-Grafikdaten'!$J31,0,G$102-2014)) -> 2.689356542 | S104: =IF(ControlPanel!$T$5="nominal",OFFSET('GrD-Grafikdaten'!$J13,0,H$102-2014),OFFSET('GrD-Grafikdaten'!$J31,0,H$102-2014)) -> 2.615334971 | T104: =IF(ControlPanel!$T$5="nominal",OFFSET('GrD-Grafikdaten'!$J13,0,I$102-2014),OFFSET('GrD-Grafikdaten'!$J31,0,I$102-2014)) -> 2.092414961 | U104: =IF(ControlPanel!$T$5="nominal",OFFSET('GrD-Grafikdaten'!$J13,0,J$102-2014),OFFSET('GrD-Grafikdaten'!$J31,0,J$102-2014)) -> 2.092414961 | V104: =IF(ControlPanel!$T$5="nominal",OFFSET('GrD-Grafikdaten'!$J13,0,K$102-2014),OFFSET('GrD-Grafikdaten'!$J31,0,K$102-2014)) -> 1.581979532 | W104: =IF(ControlPanel!$T$5="nominal",OFFSET('GrD-Grafikdaten'!$J13,0,L$102-2014),OFFSET('GrD-Grafikdaten'!$J31,0,L$102-2014)) -> 1.773950527
C105: Strompreis + Umlage [ct/kWh] | E105: =IF(ControlPanel!$T$5="nominal",OFFSET('GrD-Grafikdaten'!$J20,0,E$102-2014),OFFSET('GrD-Grafikdaten'!$J38,0,E$102-2014)) -> 10.57761536 | F105: =IF(ControlPanel!$T$5="nominal",OFFSET('GrD-Grafikdaten'!$J20,0,F$102-2014),OFFSET('GrD-Grafikdaten'!$J38,0,F$102-2014)) -> 11.52337664 | G105: =IF(ControlPanel!$T$5="nominal",OFFSET('GrD-Grafikdaten'!$J20,0,G$102-2014),OFFSET('GrD-Grafikdaten'!$J38,0,G$102-2014)) -> 10.83619204 | H105: =IF(ControlPanel!$T$5="nominal",OFFSET('GrD-Grafikdaten'!$J20,0,H$102-2014),OFFSET('GrD-Grafikdaten'!$J38,0,H$102-2014)) -> 10.65284497 | I105: =IF(ControlPanel!$T$5="nominal",OFFSET('GrD-Grafikdaten'!$J20,0,I$102-2014),OFFSET('GrD-Grafikdaten'!$J38,0,I$102-2014)) -> 10.13269617 | J105: =IF(ControlPanel!$T$5="nominal",OFFSET('GrD-Grafikdaten'!$J20,0,J$102-2014),OFFSET('GrD-Grafikdaten'!$J38,0,J$102-2014)) -> 10.13269617 | K105: =IF(ControlPanel!$T$5="nominal",OFFSET('GrD-Grafikdaten'!$J20,0,K$102-2014),OFFSET('GrD-Grafikdaten'!$J38,0,K$102-2014)) -> 8.488595112 | L105: =IF(ControlPanel!$T$5="nominal",OFFSET('GrD-Grafikdaten'!$J20,0,L$102-2014),OFFSET('GrD-Grafikdaten'!$J38,0,L$102-2014)) -> 7.883552377 | O105: Wind Offshore | P105: =IF(ControlPanel!$T$5="nominal",OFFSET('GrD-Grafikdaten'!$J14,0,E$102-2014),OFFSET('GrD-Grafikdaten'!$J32,0,E$102-2014)) -> 4.575477098 | Q105: =IF(ControlPanel!$T$5="nominal",OFFSET('GrD-Grafikdaten'!$J14,0,F$102-2014),OFFSET('GrD-Grafikdaten'!$J32,0,F$102-2014)) -> 2.825218546 | R105: =IF(ControlPanel!$T$5="nominal",OFFSET('GrD-Grafikdaten'!$J14,0,G$102-2014),OFFSET('GrD-Grafikdaten'!$J32,0,G$102-2014)) -> 2.945418882 | S105: =IF(ControlPanel!$T$5="nominal",OFFSET('GrD-Grafikdaten'!$J14,0,H$102-2014),OFFSET('GrD-Grafikdaten'!$J32,0,H$102-2014)) -> 2.632047796 | T105: =IF(ControlPanel!$T$5="nominal",OFFSET('GrD-Grafikdaten'!$J14,0,I$102-2014),OFFSET('GrD-Grafikdaten'!$J32,0,I$102-2014)) -> 2.194421813 | U105: =IF(ControlPanel!$T$5="nominal",OFFSET('GrD-Grafikdaten'!$J14,0,J$102-2014),OFFSET('GrD-Grafikdaten'!$J32,0,J$102-2014)) -> 2.194421813 | V105: =IF(ControlPanel!$T$5="nominal",OFFSET('GrD-Grafikdaten'!$J14,0,K$102-2014),OFFSET('GrD-Grafikdaten'!$J32,0,K$102-2014)) -> 0 | W105: =IF(ControlPanel!$T$5="nominal",OFFSET('GrD-Grafikdaten'!$J14,0,L$102-2014),OFFSET('GrD-Grafikdaten'!$J32,0,L$102-2014)) -> 0
C106: EE-Anteil an Bruttostromverbrauch | E106: =OFFSET('GrD-Grafikdaten'!$J48,0,E$102-2014) -> 0.4325342395 | F106: =OFFSET('GrD-Grafikdaten'!$J48,0,F$102-2014) -> 0.4635923294 | G106: =OFFSET('GrD-Grafikdaten'!$J48,0,G$102-2014) -> 0.4747262021 | H106: =OFFSET('GrD-Grafikdaten'!$J48,0,H$102-2014) -> 0.4861586614 | I106: =OFFSET('GrD-Grafikdaten'!$J48,0,I$102-2014) -> 0.494183211 | J106: =OFFSET('GrD-Grafikdaten'!$J48,0,J$102-2014) -> 0.494183211 | K106: =OFFSET('GrD-Grafikdaten'!$J48,0,K$102-2014) -> 0.5162281664 | L106: =OFFSET('GrD-Grafikdaten'!$J48,0,L$102-2014) -> 0.5320460353 | O106: Solar | P106: =IF(ControlPanel!$T$5="nominal",OFFSET('GrD-Grafikdaten'!$J15,0,E$102-2014),OFFSET('GrD-Grafikdaten'!$J33,0,E$102-2014)) -> 9.579029903 | Q106: =IF(ControlPanel!$T$5="nominal",OFFSET('GrD-Grafikdaten'!$J15,0,F$102-2014),OFFSET('GrD-Grafikdaten'!$J33,0,F$102-2014)) -> 9.337785688 | R106: =IF(ControlPanel!$T$5="nominal",OFFSET('GrD-Grafikdaten'!$J15,0,G$102-2014),OFFSET('GrD-Grafikdaten'!$J33,0,G$102-2014)) -> 9.689074965 | S106: =IF(ControlPanel!$T$5="nominal",OFFSET('GrD-Grafikdaten'!$J15,0,H$102-2014),OFFSET('GrD-Grafikdaten'!$J33,0,H$102-2014)) -> 9.638519788 | T106: =IF(ControlPanel!$T$5="nominal",OFFSET('GrD-Grafikdaten'!$J15,0,I$102-2014),OFFSET('GrD-Grafikdaten'!$J33,0,I$102-2014)) -> 8.921056239 | U106: =IF(ControlPanel!$T$5="nominal",OFFSET('GrD-Grafikdaten'!$J15,0,J$102-2014),OFFSET('GrD-Grafikdaten'!$J33,0,J$102-2014)) -> 8.921056239 | V106: =IF(ControlPanel!$T$5="nominal",OFFSET('GrD-Grafikdaten'!$J15,0,K$102-2014),OFFSET('GrD-Grafikdaten'!$J33,0,K$102-2014)) -> 5.551561761 | W106: =IF(ControlPanel!$T$5="nominal",OFFSET('GrD-Grafikdaten'!$J15,0,L$102-2014),OFFSET('GrD-Grafikdaten'!$J33,0,L$102-2014)) -> 1.49518244
C107: Differenz zum Referenz-Szenario | O107: Biomasse | P107: =IF(ControlPanel!$T$5="nominal",OFFSET('GrD-Grafikdaten'!$J11,0,E$102-2014),OFFSET('GrD-Grafikdaten'!$J29,0,E$102-2014)) -> 6.495446249 | Q107: =IF(ControlPanel!$T$5="nominal",OFFSET('GrD-Grafikdaten'!$J11,0,F$102-2014),OFFSET('GrD-Grafikdaten'!$J29,0,F$102-2014)) -> 5.033777345 | R107: =IF(ControlPanel!$T$5="nominal",OFFSET('GrD-Grafikdaten'!$J11,0,G$102-2014),OFFSET('GrD-Grafikdaten'!$J29,0,G$102-2014)) -> 5.29486092 | S107: =IF(ControlPanel!$T$5="nominal",OFFSET('GrD-Grafikdaten'!$J11,0,H$102-2014),OFFSET('GrD-Grafikdaten'!$J29,0,H$102-2014)) -> 5.167478409 | T107: =IF(ControlPanel!$T$5="nominal",OFFSET('GrD-Grafikdaten'!$J11,0,I$102-2014),OFFSET('GrD-Grafikdaten'!$J29,0,I$102-2014)) -> 4.876791867 | U107: =IF(ControlPanel!$T$5="nominal",OFFSET('GrD-Grafikdaten'!$J11,0,J$102-2014),OFFSET('GrD-Grafikdaten'!$J29,0,J$102-2014)) -> 4.876791867 | V107: =IF(ControlPanel!$T$5="nominal",OFFSET('GrD-Grafikdaten'!$J11,0,K$102-2014),OFFSET('GrD-Grafikdaten'!$J29,0,K$102-2014)) -> 2.782196523 | W107: =IF(ControlPanel!$T$5="nominal",OFFSET('GrD-Grafikdaten'!$J11,0,L$102-2014),OFFSET('GrD-Grafikdaten'!$J29,0,L$102-2014)) -> 0.9862519456
C108: Umlage [ct/kWh] | E108: =OFFSET('GrD-Grafikdaten'!$J132,0,E$102-2014) -> 0 | F108: =OFFSET('GrD-Grafikdaten'!$J132,0,F$102-2014) -> 0 | G108: =OFFSET('GrD-Grafikdaten'!$J132,0,G$102-2014) -> 0 | H108: =OFFSET('GrD-Grafikdaten'!$J132,0,H$102-2014) -> 0 | I108: =OFFSET('GrD-Grafikdaten'!$J132,0,I$102-2014) -> 0 | J108: =OFFSET('GrD-Grafikdaten'!$J132,0,J$102-2014) -> 0 | K108: =OFFSET('GrD-Grafikdaten'!$J132,0,K$102-2014) -> 0 | L108: =OFFSET('GrD-Grafikdaten'!$J132,0,L$102-2014) -> 0 | O108: Geothermie | P108: =IF(ControlPanel!$T$5="nominal",OFFSET('GrD-Grafikdaten'!$J12,0,E$102-2014),OFFSET('GrD-Grafikdaten'!$J30,0,E$102-2014)) -> 0.0457318177 | Q108: =IF(ControlPanel!$T$5="nominal",OFFSET('GrD-Grafikdaten'!$J12,0,F$102-2014),OFFSET('GrD-Grafikdaten'!$J30,0,F$102-2014)) -> 0.0645980512 | R108: =IF(ControlPanel!$T$5="nominal",OFFSET('GrD-Grafikdaten'!$J12,0,G$102-2014),OFFSET('GrD-Grafikdaten'!$J30,0,G$102-2014)) -> 0.08386774013 | S108: =IF(ControlPanel!$T$5="nominal",OFFSET('GrD-Grafikdaten'!$J12,0,H$102-2014),OFFSET('GrD-Grafikdaten'!$J30,0,H$102-2014)) -> 0.0910870299 | T108: =IF(ControlPanel!$T$5="nominal",OFFSET('GrD-Grafikdaten'!$J12,0,I$102-2014),OFFSET('GrD-Grafikdaten'!$J30,0,I$102-2014)) -> 0.0946624776 | U108: =IF(ControlPanel!$T$5="nominal",OFFSET('GrD-Grafikdaten'!$J12,0,J$102-2014),OFFSET('GrD-Grafikdaten'!$J30,0,J$102-2014)) -> 0.0946624776 | V108: =IF(ControlPanel!$T$5="nominal",OFFSET('GrD-Grafikdaten'!$J12,0,K$102-2014),OFFSET('GrD-Grafikdaten'!$J30,0,K$102-2014)) -> 0.1140286089 | W108: =IF(ControlPanel!$T$5="nominal",OFFSET('GrD-Grafikdaten'!$J12,0,L$102-2014),OFFSET('GrD-Grafikdaten'!$J30,0,L$102-2014)) -> 0.09751920727
C109: Strompreis + Umlage [ct/kWh] | E109: =OFFSET('GrD-Grafikdaten'!$J144,0,E$102-2014) -> 0 | F109: =OFFSET('GrD-Grafikdaten'!$J144,0,F$102-2014) -> 0 | G109: =OFFSET('GrD-Grafikdaten'!$J144,0,G$102-2014) -> 0 | H109: =OFFSET('GrD-Grafikdaten'!$J144,0,H$102-2014) -> 0 | I109: =OFFSET('GrD-Grafikdaten'!$J144,0,I$102-2014) -> 0 | J109: =OFFSET('GrD-Grafikdaten'!$J144,0,J$102-2014) -> 0 | K109: =OFFSET('GrD-Grafikdaten'!$J144,0,K$102-2014) -> 0 | L109: =OFFSET('GrD-Grafikdaten'!$J144,0,L$102-2014) -> 0 | O109: Wasser | P109: =IF(ControlPanel!$T$5="nominal",OFFSET('GrD-Grafikdaten'!$J9,0,E$102-2014),OFFSET('GrD-Grafikdaten'!$J27,0,E$102-2014)) -> 0.3320931915 | Q109: =IF(ControlPanel!$T$5="nominal",OFFSET('GrD-Grafikdaten'!$J9,0,F$102-2014),OFFSET('GrD-Grafikdaten'!$J27,0,F$102-2014)) -> 0.1925725911 | R109: =IF(ControlPanel!$T$5="nominal",OFFSET('GrD-Grafikdaten'!$J9,0,G$102-2014),OFFSET('GrD-Grafikdaten'!$J27,0,G$102-2014)) -> 0.252043751 | S109: =IF(ControlPanel!$T$5="nominal",OFFSET('GrD-Grafikdaten'!$J9,0,H$102-2014),OFFSET('GrD-Grafikdaten'!$J27,0,H$102-2014)) -> 0.2453803932 | T109: =IF(ControlPanel!$T$5="nominal",OFFSET('GrD-Grafikdaten'!$J9,0,I$102-2014),OFFSET('GrD-Grafikdaten'!$J27,0,I$102-2014)) -> 0.2384109812 | U109: =IF(ControlPanel!$T$5="nominal",OFFSET('GrD-Grafikdaten'!$J9,0,J$102-2014),OFFSET('GrD-Grafikdaten'!$J27,0,J$102-2014)) -> 0.2384109812 | V109: =IF(ControlPanel!$T$5="nominal",OFFSET('GrD-Grafikdaten'!$J9,0,K$102-2014),OFFSET('GrD-Grafikdaten'!$J27,0,K$102-2014)) -> 0.1844537706 | W109: =IF(ControlPanel!$T$5="nominal",OFFSET('GrD-Grafikdaten'!$J9,0,L$102-2014),OFFSET('GrD-Grafikdaten'!$J27,0,L$102-2014)) -> 0.1256854986
C110: EE-Anteil an Bruttostromverbrauch | E110: =OFFSET('GrD-Grafikdaten'!$J92,0,E$102-2014) - OFFSET('GrD-Grafikdaten'!$J48,0,E$102-2014) -> 0 | F110: =OFFSET('GrD-Grafikdaten'!$J92,0,F$102-2014) - OFFSET('GrD-Grafikdaten'!$J48,0,F$102-2014) -> 0 | G110: =OFFSET('GrD-Grafikdaten'!$J92,0,G$102-2014) - OFFSET('GrD-Grafikdaten'!$J48,0,G$102-2014) -> 0 | H110: =OFFSET('GrD-Grafikdaten'!$J92,0,H$102-2014) - OFFSET('GrD-Grafikdaten'!$J48,0,H$102-2014) -> 0 | I110: =OFFSET('GrD-Grafikdaten'!$J92,0,I$102-2014) - OFFSET('GrD-Grafikdaten'!$J48,0,I$102-2014) -> 0 | J110: =OFFSET('GrD-Grafikdaten'!$J92,0,J$102-2014) - OFFSET('GrD-Grafikdaten'!$J48,0,J$102-2014) -> 0 | K110: =OFFSET('GrD-Grafikdaten'!$J92,0,K$102-2014) - OFFSET('GrD-Grafikdaten'!$J48,0,K$102-2014) -> 0 | L110: =OFFSET('GrD-Grafikdaten'!$J92,0,L$102-2014) - OFFSET('GrD-Grafikdaten'!$J48,0,L$102-2014) -> 0 | O110: Gase | P110: =IF(ControlPanel!$T$5="nominal",OFFSET('GrD-Grafikdaten'!$J10,0,E$102-2014),OFFSET('GrD-Grafikdaten'!$J28,0,E$102-2014)) -> 0.03026438526 | Q110: =IF(ControlPanel!$T$5="nominal",OFFSET('GrD-Grafikdaten'!$J10,0,F$102-2014),OFFSET('GrD-Grafikdaten'!$J28,0,F$102-2014)) -> 0.000232436446 | R110: =IF(ControlPanel!$T$5="nominal",OFFSET('GrD-Grafikdaten'!$J10,0,G$102-2014),OFFSET('GrD-Grafikdaten'!$J28,0,G$102-2014)) -> 0.007368786085 | S110: =IF(ControlPanel!$T$5="nominal",OFFSET('GrD-Grafikdaten'!$J10,0,H$102-2014),OFFSET('GrD-Grafikdaten'!$J28,0,H$102-2014)) -> 0.004822530618 | T110: =IF(ControlPanel!$T$5="nominal",OFFSET('GrD-Grafikdaten'!$J10,0,I$102-2014),OFFSET('GrD-Grafikdaten'!$J28,0,I$102-2014)) -> 0.002945012173 | U110: =IF(ControlPanel!$T$5="nominal",OFFSET('GrD-Grafikdaten'!$J10,0,J$102-2014),OFFSET('GrD-Grafikdaten'!$J28,0,J$102-2014)) -> 0.002945012173 | V110: =IF(ControlPanel!$T$5="nominal",OFFSET('GrD-Grafikdaten'!$J10,0,K$102-2014),OFFSET('GrD-Grafikdaten'!$J28,0,K$102-2014)) -> 0.001375689631 | W110: =IF(ControlPanel!$T$5="nominal",OFFSET('GrD-Grafikdaten'!$J10,0,L$102-2014),OFFSET('GrD-Grafikdaten'!$J28,0,L$102-2014)) -> 0.00147180805
N111: Belastung Letztver-brauch | O111: nichtprivilegiert | P111: =IF(ControlPanel!$T$5="nominal",OFFSET('GrD-Grafikdaten'!$J16,0,E$102-2014),OFFSET('GrD-Grafikdaten'!$J34,0,E$102-2014)) -> 21.56792194 | Q111: =IF(ControlPanel!$T$5="nominal",OFFSET('GrD-Grafikdaten'!$J16,0,F$102-2014),OFFSET('GrD-Grafikdaten'!$J34,0,F$102-2014)) -> 14.55273837 | R111: =IF(ControlPanel!$T$5="nominal",OFFSET('GrD-Grafikdaten'!$J16,0,G$102-2014),OFFSET('GrD-Grafikdaten'!$J34,0,G$102-2014)) -> 15.14414031 | S111: =IF(ControlPanel!$T$5="nominal",OFFSET('GrD-Grafikdaten'!$J16,0,H$102-2014),OFFSET('GrD-Grafikdaten'!$J34,0,H$102-2014)) -> 14.50311564 | T111: =IF(ControlPanel!$T$5="nominal",OFFSET('GrD-Grafikdaten'!$J16,0,I$102-2014),OFFSET('GrD-Grafikdaten'!$J34,0,I$102-2014)) -> 12.54640431 | U111: =IF(ControlPanel!$T$5="nominal",OFFSET('GrD-Grafikdaten'!$J16,0,J$102-2014),OFFSET('GrD-Grafikdaten'!$J34,0,J$102-2014)) -> 12.54640431 | V111: =IF(ControlPanel!$T$5="nominal",OFFSET('GrD-Grafikdaten'!$J16,0,K$102-2014),OFFSET('GrD-Grafikdaten'!$J34,0,K$102-2014)) -> 4.723701123 | W111: =IF(ControlPanel!$T$5="nominal",OFFSET('GrD-Grafikdaten'!$J16,0,L$102-2014),OFFSET('GrD-Grafikdaten'!$J34,0,L$102-2014)) -> -0.5666848143
O112: privilegiert | P112: =IF(ControlPanel!$T$5="nominal",OFFSET('GrD-Grafikdaten'!$J17,0,E$102-2014),OFFSET('GrD-Grafikdaten'!$J35,0,E$102-2014)) -> 0.4199036043 | Q112: =IF(ControlPanel!$T$5="nominal",OFFSET('GrD-Grafikdaten'!$J17,0,F$102-2014),OFFSET('GrD-Grafikdaten'!$J35,0,F$102-2014)) -> 0.273191537 | R112: =IF(ControlPanel!$T$5="nominal",OFFSET('GrD-Grafikdaten'!$J17,0,G$102-2014),OFFSET('GrD-Grafikdaten'!$J35,0,G$102-2014)) -> 0.2727015658 | S112: =IF(ControlPanel!$T$5="nominal",OFFSET('GrD-Grafikdaten'!$J17,0,H$102-2014),OFFSET('GrD-Grafikdaten'!$J35,0,H$102-2014)) -> 0.251030039 | T112: =IF(ControlPanel!$T$5="nominal",OFFSET('GrD-Grafikdaten'!$J17,0,I$102-2014),OFFSET('GrD-Grafikdaten'!$J35,0,I$102-2014)) -> 0.2089028694 | U112: =IF(ControlPanel!$T$5="nominal",OFFSET('GrD-Grafikdaten'!$J17,0,J$102-2014),OFFSET('GrD-Grafikdaten'!$J35,0,J$102-2014)) -> 0.2089028694 | V112: =IF(ControlPanel!$T$5="nominal",OFFSET('GrD-Grafikdaten'!$J17,0,K$102-2014),OFFSET('GrD-Grafikdaten'!$J35,0,K$102-2014)) -> 0.07016450263 | W112: =IF(ControlPanel!$T$5="nominal",OFFSET('GrD-Grafikdaten'!$J17,0,L$102-2014),OFFSET('GrD-Grafikdaten'!$J35,0,L$102-2014)) -> -0.007593941466
C113: Ergebnis: Kontostand am Tag der Umlage-Neuberechnung (30.9. des Vorjahres) [Mrd. Euro] | O113: Eigenverbrauch | P113: =IF(ControlPanel!$T$5="nominal",OFFSET('GrD-Grafikdaten'!$J18,0,E$102-2014),OFFSET('GrD-Grafikdaten'!$J36,0,E$102-2014)) -> 0.06298200678 | Q113: =IF(ControlPanel!$T$5="nominal",OFFSET('GrD-Grafikdaten'!$J18,0,F$102-2014),OFFSET('GrD-Grafikdaten'!$J36,0,F$102-2014)) -> 0.06710765425 | R113: =IF(ControlPanel!$T$5="nominal",OFFSET('GrD-Grafikdaten'!$J18,0,G$102-2014),OFFSET('GrD-Grafikdaten'!$J36,0,G$102-2014)) -> 0.06919725462 | S113: =IF(ControlPanel!$T$5="nominal",OFFSET('GrD-Grafikdaten'!$J18,0,H$102-2014),OFFSET('GrD-Grafikdaten'!$J36,0,H$102-2014)) -> 0.07096918355 | T113: =IF(ControlPanel!$T$5="nominal",OFFSET('GrD-Grafikdaten'!$J18,0,I$102-2014),OFFSET('GrD-Grafikdaten'!$J36,0,I$102-2014)) -> 0.07270041981 | U113: =IF(ControlPanel!$T$5="nominal",OFFSET('GrD-Grafikdaten'!$J18,0,J$102-2014),OFFSET('GrD-Grafikdaten'!$J36,0,J$102-2014)) -> 0.07270041981 | V113: =IF(ControlPanel!$T$5="nominal",OFFSET('GrD-Grafikdaten'!$J18,0,K$102-2014),OFFSET('GrD-Grafikdaten'!$J36,0,K$102-2014)) -> 0.07735566016 | W113: =IF(ControlPanel!$T$5="nominal",OFFSET('GrD-Grafikdaten'!$J18,0,L$102-2014),OFFSET('GrD-Grafikdaten'!$J36,0,L$102-2014)) -> 0.08210312725
C114: für Umlage des Jahres | E114: =E102 -> 2021 | F114: =F102 -> 2022 | G114: 2023 | H114: 2024 | I114: 2025 | J114: 2025 | K114: 2030 | L114: 2035 | N114: Differenz zum Referenz-Szenario [Mrd. Euro]
C115: Kontostand am | E115: =CONCATENATE("30.9.",E$102-1) -> 30.9.2020 | F115: 30.9.2021 | G115: 30.9.2022 | H115: 30.9.2023 | I115: 30.9.2024 | J115: 30.9.2024 | K115: 30.9.2029 | L115: 30.9.2034 | N115: Nettozahlungen an Anlagenbetreiber | O115: Wind Onshore | P115: =OFFSET('GrD-Grafikdaten'!$J137,0,E$102-2014) -> 0 | Q115: =OFFSET('GrD-Grafikdaten'!$J137,0,F$102-2014) -> 0 | R115: =OFFSET('GrD-Grafikdaten'!$J137,0,G$102-2014) -> 0 | S115: =OFFSET('GrD-Grafikdaten'!$J137,0,H$102-2014) -> 0 | T115: =OFFSET('GrD-Grafikdaten'!$J137,0,I$102-2014) -> 0 | U115: =OFFSET('GrD-Grafikdaten'!$J137,0,J$102-2014) -> 0 | V115: =OFFSET('GrD-Grafikdaten'!$J137,0,K$102-2014) -> 0 | W115: =OFFSET('GrD-Grafikdaten'!$J137,0,L$102-2014) -> 0
C116: Referenzszenario | E116: =IF(ControlPanel!$T$5="nominal",OFFSET('GrD-Grafikdaten'!$J23,0,E$102-2014),OFFSET('GrD-Grafikdaten'!$J41,0,E$102-2014)) -> -4.080394277 | F116: =IF(ControlPanel!$T$5="nominal",OFFSET('GrD-Grafikdaten'!$J23,0,F$102-2014),OFFSET('GrD-Grafikdaten'!$J41,0,F$102-2014)) -> 5.348731996 | G116: =IF(ControlPanel!$T$5="nominal",OFFSET('GrD-Grafikdaten'!$J23,0,G$102-2014),OFFSET('GrD-Grafikdaten'!$J41,0,G$102-2014)) -> 1.158190208 | H116: =IF(ControlPanel!$T$5="nominal",OFFSET('GrD-Grafikdaten'!$J23,0,H$102-2014),OFFSET('GrD-Grafikdaten'!$J41,0,H$102-2014)) -> 1.23810864 | I116: =IF(ControlPanel!$T$5="nominal",OFFSET('GrD-Grafikdaten'!$J23,0,I$102-2014),OFFSET('GrD-Grafikdaten'!$J41,0,I$102-2014)) -> 1.204365924 | J116: =IF(ControlPanel!$T$5="nominal",OFFSET('GrD-Grafikdaten'!$J23,0,J$102-2014),OFFSET('GrD-Grafikdaten'!$J41,0,J$102-2014)) -> 1.204365924 | K116: =IF(ControlPanel!$T$5="nominal",OFFSET('GrD-Grafikdaten'!$J23,0,K$102-2014),OFFSET('GrD-Grafikdaten'!$J41,0,K$102-2014)) -> 0.7140082678 | L116: =IF(ControlPanel!$T$5="nominal",OFFSET('GrD-Grafikdaten'!$J23,0,L$102-2014),OFFSET('GrD-Grafikdaten'!$J41,0,L$102-2014)) -> 0.1851072669 | O116: Wind Offshore | P116: =OFFSET('GrD-Grafikdaten'!$J138,0,E$102-2014) -> 0 | Q116: =OFFSET('GrD-Grafikdaten'!$J138,0,F$102-2014) -> 0 | R116: =OFFSET('GrD-Grafikdaten'!$J138,0,G$102-2014) -> 0 | S116: =OFFSET('GrD-Grafikdaten'!$J138,0,H$102-2014) -> 0 | T116: =OFFSET('GrD-Grafikdaten'!$J138,0,I$102-2014) -> 0 | U116: =OFFSET('GrD-Grafikdaten'!$J138,0,J$102-2014) -> 0 | V116: =OFFSET('GrD-Grafikdaten'!$J138,0,K$102-2014) -> 0 | W116: =OFFSET('GrD-Grafikdaten'!$J138,0,L$102-2014) -> 0
C117: neues Szenario | E117: =IF(ControlPanel!$T$5="nominal",OFFSET('GrD-Grafikdaten'!$J67,0,E$102-2014),OFFSET('GrD-Grafikdaten'!$J85,0,E$102-2014)) -> -4.080394277 | F117: =IF(ControlPanel!$T$5="nominal",OFFSET('GrD-Grafikdaten'!$J67,0,F$102-2014),OFFSET('GrD-Grafikdaten'!$J85,0,F$102-2014)) -> 5.348731996 | G117: =IF(ControlPanel!$T$5="nominal",OFFSET('GrD-Grafikdaten'!$J67,0,G$102-2014),OFFSET('GrD-Grafikdaten'!$J85,0,G$102-2014)) -> 1.158190208 | H117: =IF(ControlPanel!$T$5="nominal",OFFSET('GrD-Grafikdaten'!$J67,0,H$102-2014),OFFSET('GrD-Grafikdaten'!$J85,0,H$102-2014)) -> 1.23810864 | I117: =IF(ControlPanel!$T$5="nominal",OFFSET('GrD-Grafikdaten'!$J67,0,I$102-2014),OFFSET('GrD-Grafikdaten'!$J85,0,I$102-2014)) -> 1.204365924 | J117: =IF(ControlPanel!$T$5="nominal",OFFSET('GrD-Grafikdaten'!$J67,0,J$102-2014),OFFSET('GrD-Grafikdaten'!$J85,0,J$102-2014)) -> 1.204365924 | K117: =IF(ControlPanel!$T$5="nominal",OFFSET('GrD-Grafikdaten'!$J67,0,K$102-2014),OFFSET('GrD-Grafikdaten'!$J85,0,K$102-2014)) -> 0.7140082678 | L117: =IF(ControlPanel!$T$5="nominal",OFFSET('GrD-Grafikdaten'!$J67,0,L$102-2014),OFFSET('GrD-Grafikdaten'!$J85,0,L$102-2014)) -> 0.1851072669 | O117: Solar | P117: =OFFSET('GrD-Grafikdaten'!$J139,0,E$102-2014) -> 0 | Q117: =OFFSET('GrD-Grafikdaten'!$J139,0,F$102-2014) -> 0 | R117: =OFFSET('GrD-Grafikdaten'!$J139,0,G$102-2014) -> 0 | S117: =OFFSET('GrD-Grafikdaten'!$J139,0,H$102-2014) -> 0 | T117: =OFFSET('GrD-Grafikdaten'!$J139,0,I$102-2014) -> 0 | U117: =OFFSET('GrD-Grafikdaten'!$J139,0,J$102-2014) -> 0 | V117: =OFFSET('GrD-Grafikdaten'!$J139,0,K$102-2014) -> 0 | W117: =OFFSET('GrD-Grafikdaten'!$J139,0,L$102-2014) -> 0
O118: Biomasse | P118: =OFFSET('GrD-Grafikdaten'!$J135,0,E$102-2014) -> 0 | Q118: =OFFSET('GrD-Grafikdaten'!$J135,0,F$102-2014) -> 0 | R118: =OFFSET('GrD-Grafikdaten'!$J135,0,G$102-2014) -> 0 | S118: =OFFSET('GrD-Grafikdaten'!$J135,0,H$102-2014) -> 0 | T118: =OFFSET('GrD-Grafikdaten'!$J135,0,I$102-2014) -> 0 | U118: =OFFSET('GrD-Grafikdaten'!$J135,0,J$102-2014) -> 0 | V118: =OFFSET('GrD-Grafikdaten'!$J135,0,K$102-2014) -> 0 | W118: =OFFSET('GrD-Grafikdaten'!$J135,0,L$102-2014) -> 0
O119: Geothermie | P119: =OFFSET('GrD-Grafikdaten'!$J136,0,E$102-2014) -> 0 | Q119: =OFFSET('GrD-Grafikdaten'!$J136,0,F$102-2014) -> 0 | R119: =OFFSET('GrD-Grafikdaten'!$J136,0,G$102-2014) -> 0 | S119: =OFFSET('GrD-Grafikdaten'!$J136,0,H$102-2014) -> 0 | T119: =OFFSET('GrD-Grafikdaten'!$J136,0,I$102-2014) -> 0 | U119: =OFFSET('GrD-Grafikdaten'!$J136,0,J$102-2014) -> 0 | V119: =OFFSET('GrD-Grafikdaten'!$J136,0,K$102-2014) -> 0 | W119: =OFFSET('GrD-Grafikdaten'!$J136,0,L$102-2014) -> 0
O120: Wasser | P120: =OFFSET('GrD-Grafikdaten'!$J133,0,E$102-2014) -> 0 | Q120: =OFFSET('GrD-Grafikdaten'!$J133,0,F$102-2014) -> 0 | R120: =OFFSET('GrD-Grafikdaten'!$J133,0,G$102-2014) -> 0 | S120: =OFFSET('GrD-Grafikdaten'!$J133,0,H$102-2014) -> 0 | T120: =OFFSET('GrD-Grafikdaten'!$J133,0,I$102-2014) -> 0 | U120: =OFFSET('GrD-Grafikdaten'!$J133,0,J$102-2014) -> 0 | V120: =OFFSET('GrD-Grafikdaten'!$J133,0,K$102-2014) -> 0 | W120: =OFFSET('GrD-Grafikdaten'!$J133,0,L$102-2014) -> 0
O121: Gase | P121: =OFFSET('GrD-Grafikdaten'!$J134,0,E$102-2014) -> 0 | Q121: =OFFSET('GrD-Grafikdaten'!$J134,0,F$102-2014) -> 0 | R121: =OFFSET('GrD-Grafikdaten'!$J134,0,G$102-2014) -> 0 | S121: =OFFSET('GrD-Grafikdaten'!$J134,0,H$102-2014) -> 0 | T121: =OFFSET('GrD-Grafikdaten'!$J134,0,I$102-2014) -> 0 | U121: =OFFSET('GrD-Grafikdaten'!$J134,0,J$102-2014) -> 0 | V121: =OFFSET('GrD-Grafikdaten'!$J134,0,K$102-2014) -> 0 | W121: =OFFSET('GrD-Grafikdaten'!$J134,0,L$102-2014) -> 0
N122: Belastung Letztver-brauch | O122: nichtprivilegiert | P122: =OFFSET('GrD-Grafikdaten'!$J140,0,E$102-2014) -> 0 | Q122: =OFFSET('GrD-Grafikdaten'!$J140,0,F$102-2014) -> 0 | R122: =OFFSET('GrD-Grafikdaten'!$J140,0,G$102-2014) -> 0 | S122: =OFFSET('GrD-Grafikdaten'!$J140,0,H$102-2014) -> 0 | T122: =OFFSET('GrD-Grafikdaten'!$J140,0,I$102-2014) -> 0 | U122: =OFFSET('GrD-Grafikdaten'!$J140,0,J$102-2014) -> 0 | V122: =OFFSET('GrD-Grafikdaten'!$J140,0,K$102-2014) -> 0 | W122: =OFFSET('GrD-Grafikdaten'!$J140,0,L$102-2014) -> 0
O123: privilegiert | P123: =OFFSET('GrD-Grafikdaten'!$J141,0,E$102-2014) -> 0 | Q123: =OFFSET('GrD-Grafikdaten'!$J141,0,F$102-2014) -> 0 | R123: =OFFSET('GrD-Grafikdaten'!$J141,0,G$102-2014) -> 0 | S123: =OFFSET('GrD-Grafikdaten'!$J141,0,H$102-2014) -> 0 | T123: =OFFSET('GrD-Grafikdaten'!$J141,0,I$102-2014) -> 0 | U123: =OFFSET('GrD-Grafikdaten'!$J141,0,J$102-2014) -> 0 | V123: =OFFSET('GrD-Grafikdaten'!$J141,0,K$102-2014) -> 0 | W123: =OFFSET('GrD-Grafikdaten'!$J141,0,L$102-2014) -> 0
O124: Eigenverbrauch | P124: =OFFSET('GrD-Grafikdaten'!$J142,0,E$102-2014) -> 0 | Q124: =OFFSET('GrD-Grafikdaten'!$J142,0,F$102-2014) -> 0 | R124: =OFFSET('GrD-Grafikdaten'!$J142,0,G$102-2014) -> 0 | S124: =OFFSET('GrD-Grafikdaten'!$J142,0,H$102-2014) -> 0 | T124: =OFFSET('GrD-Grafikdaten'!$J142,0,I$102-2014) -> 0 | U124: =OFFSET('GrD-Grafikdaten'!$J142,0,J$102-2014) -> 0 | V124: =OFFSET('GrD-Grafikdaten'!$J142,0,K$102-2014) -> 0 | W124: =OFFSET('GrD-Grafikdaten'!$J142,0,L$102-2014) -> 0
B127: Gewählte Eingabeparameter
C129: Eingabeparameter: Jährlicher Kapazitätszubau (Brutto) | I129: ="Eingabe-Parameter: Entwicklung der Vergütungssätze (real, bezogen auf "&ControlPanel!D60&")" -> Eingabe-Parameter: Entwicklung der Vergütungssätze (real, bezogen auf 2021)
C130: ='Start-Experte'!C7 -> Technologie | D130: gewähltes Szenario | I130: Technologie | L130: ='Start-Experte'!L7 -> gewähltes Szenario
C131: ='Start-Experte'!C8 -> Wind Onshore | D131: ='Start-Experte'!E8 -> Referenz | E131: ='Start-Experte'!F8 -> 1,5 GW bis 2021, ab 2023 2,5 GW/a | I131: ='Start-Experte'!I8 -> Wind Onshore | L131: ='Start-Experte'!L8 -> Referenz | M131: ='Start-Experte'!M8 -> sinkt auf 3,5 ct/kWh in 2035
C132: ='Start-Experte'!C9 -> Wind Offshore | D132: ='Start-Experte'!E9 -> Referenz | E132: ='Start-Experte'!F9 -> MFP Trend, danach konstant 1,6 GW | I132: ='Start-Experte'!I9 -> Wind Offshore | L132: ='Start-Experte'!L9 -> Referenz | M132: ='Start-Experte'!M9 -> sinkt auf 4,5 ct/kWh in 2035
C133: ='Start-Experte'!C10 -> Solar | D133: ='Start-Experte'!E10 -> Referenz | E133: ='Start-Experte'!F10 -> MFP Trend | I133: ='Start-Experte'!I10 -> Solar | L133: ='Start-Experte'!L10 -> Referenz | M133: ='Start-Experte'!M10 -> EEG 2017; Anteil Ausschreibungen ab 2020 50%
C134: ='Start-Experte'!C11 -> Biomasse | D134: ='Start-Experte'!E11 -> Referenz | E134: ='Start-Experte'!F11 -> 0,2 GW/a | I134: ='Start-Experte'!I11 -> Biomasse | L134: ='Start-Experte'!L11 -> Referenz | M134: ='Start-Experte'!M11 -> EEG 2017
C135: ='Start-Experte'!C12 -> Geothermie | D135: ='Start-Experte'!E12 -> Referenz | E135: ='Start-Experte'!F12 -> 0,01GW/a | I135: ='Start-Experte'!I12 -> Geothermie | L135: ='Start-Experte'!L12 -> Referenz | M135: ='Start-Experte'!M12 -> EEG 2017
C136: ='Start-Experte'!C13 -> Wasser | D136: ='Start-Experte'!E13 -> Referenz | E136: ='Start-Experte'!F13 -> 0,01 GW/a | I136: ='Start-Experte'!I13 -> Wasser | L136: ='Start-Experte'!L13 -> Referenz | M136: ='Start-Experte'!M13 -> EEG 2017
C137: ='Start-Experte'!C14 -> Gase | D137: ='Start-Experte'!E14 -> Referenz | E137: ='Start-Experte'!F14 -> 0,01GW/a | I137: ='Start-Experte'!I14 -> Gase | L137: ='Start-Experte'!L14 -> Referenz | M137: ='Start-Experte'!M14 -> EEG 2017
C140: Eingabeparameter: Privilegierungen | I140: Eingabeparameter: Strompreis, Liquiditätsreserve und Kontostand
C141: Parameter | D141: ='Start-Experte'!E18 -> gewähltes Szenario | I141: Parameter | L141: ='Start-Experte'!L18 -> gewähltes Szenario | M141: ='Start-Experte'!M18 -> 0
C142: ='Start-Experte'!C19 -> Privilegierter Letztverbrauch | D142: ='Start-Experte'!E19 -> Referenz | E142: ='Start-Experte'!F19 -> MFP Referenz | I142: ='Start-Experte'!I19 -> Großhandelsstrompreis (Future) | L142: ='Start-Experte'!L19 -> Referenz | M142: ='Start-Experte'!M19 -> 4,9 -> 6,5 ct/kWh
C143: ='Start-Experte'!C20 -> Anteil an Umlage für privilegierte Letztverbraucher | D143: ='Start-Experte'!E20 -> Referenz | E143: ='Start-Experte'!F20 -> 15% (gem. EEG 2021) | I143: ='Start-Experte'!I20 -> Liquiditätsreserve | L143: ='Start-Experte'!L20 -> Referenz | M143: ='Start-Experte'!M20 -> ÜNB-Umlageberechnungen, danach 6%
C144: ='Start-Experte'!C21 -> Faktor zur Erfassung zusätzlicher Privilegierungen | D144: ='Start-Experte'!E21 -> Referenz | E144: ='Start-Experte'!F21 -> Bis 2021: ÜNB-Umlageberechnungen, danach konstant (wirkt wie vollständige Befreiung von 62% des priv. LV) | I144: ='Start-Experte'!I21 -> Kontostand am 30.9.2021 | L144: ='Start-Experte'!L21 -> endogen | M144: ='Start-Experte'!M21 -> wird endogen berechnet
I145: ='Start-Experte'!I22 -> Alternativ: Abweichung von Kontostandsprognose für den 30.9.2021 | L145: ='Start-Experte'!L22 -> keine Abweichung | M145: ='Start-Experte'!M22 -> keine Abweichung
I146: Zuschüsse aus dem Bundeshaushalt | L146: ='Start-Experte'!L45 -> Referenz | M146: ='Start-Experte'!J45 -> frei wählbar ->
C147: Eingabeparameter: Eigenverbrauch
C148: ='Start-Experte'!C25 -> Kategorien Eigenverbrauch und jeweilige Beteiligung | D148: ='Start-Experte'!E25 -> gewähltes Szenario
C149: ='Start-Experte'!C26 -> Eigenverbrauch (KWK-Neuanlagen) | D149: ='Start-Experte'!E26 -> Referenz | E149: ='Start-Experte'!F26 -> 2021: ÜNB-Umlageberechnungen bis 2025, danach konstant
C150: ='Start-Experte'!C27 -> Eigenverbrauchsanteil bei PV-Neuanlagen | D150: ='Start-Experte'!E27 -> Referenz | E150: ='Start-Experte'!F27 -> 9%
C151: ='Start-Experte'!C28 -> Anteil an Umlage für neuen Eigenverbrauch (PV und KWK) | D151: ='Start-Experte'!E28 -> Referenz | E151: ='Start-Experte'!F28 -> gem. EEG 2017, ab 2020 konstant 38%
C152: ='Start-Experte'!C29 -> Anteil an Umlage für Eigenverbrauch (Bestandsanlagen) | D152: ='Start-Experte'!E29 -> Referenz | E152: ='Start-Experte'!F29 -> vollständig befreit (gem. EEG 2014)
B155: Gewählte Eingabeparameter (Expertenmodus)
C157: Eingabeparameter: Standardauslastung | I157: Eingabeparameter: Sonstiges
C158: ='Start-Experte'!C33 -> Technologie | D158: ='Start-Experte'!E33 -> gewähltes Szenario | I158: Parameter | L158: ='Start-Experte'!L25 -> gewähltes Szenario
C159: ='Start-Experte'!C34 -> Wind Onshore | D159: ='Start-Experte'!E34 -> Referenz | E159: ='Start-Experte'!F34 -> Anstieg auf 2600h in 2035 | I159: ='Start-Experte'!I26 -> Nettostromverbrauch | L159: ='Start-Experte'!L26 -> Referenz | M159: ='Start-Experte'!M26 -> 2021: ÜNB-Umlageberechnung 2020. Danach ansteigend auf 600 TWh in 2030
C160: ='Start-Experte'!C35 -> Wind Offshore | D160: ='Start-Experte'!E35 -> Referenz | E160: ='Start-Experte'!F35 -> Anstieg auf 4700 h in 2035 | I160: ='Start-Experte'!I27 -> Spot-Skalierungsfaktor (Verhältnis Spotpreis zu Futurepreis) | L160: ='Start-Experte'!L27 -> Referenz | M160: ='Start-Experte'!M27 -> 100%
C161: ='Start-Experte'!C36 -> Solar | D161: ='Start-Experte'!E36 -> Referenz | E161: ='Start-Experte'!F36 -> Anstieg auf 950h in 2035 | I161: ='Start-Experte'!I28 -> Vermiedene Netzentgelte (für nicht fluktuierende Erzeugung) | L161: ='Start-Experte'!L28 -> Referenz | M161: ='Start-Experte'!M28 -> 7.17€/MWh
C162: ='Start-Experte'!C37 -> Biomasse | D162: ='Start-Experte'!E37 -> Referenz | E162: ='Start-Experte'!F37 -> MFP Trend | I162: ='Start-Experte'!I29 -> Sonstige Kosten | L162: ='Start-Experte'!L29 -> Referenz | M162: ='Start-Experte'!M29 -> 0,06Mrd. €
C163: ='Start-Experte'!C38 -> Geothermie | D163: ='Start-Experte'!E38 -> Referenz | E163: ='Start-Experte'!F38 -> MFP Trend | I163: ='Start-Experte'!I30 -> Inflationsrate | L163: ='Start-Experte'!L30 -> Referenz | M163: ='Start-Experte'!M30 -> 1,5% pro Jahr
C164: ='Start-Experte'!C39 -> Wasser | D164: ='Start-Experte'!E39 -> Referenz | E164: ='Start-Experte'!F39 -> MFP Trend
C165: ='Start-Experte'!C40 -> Gase | D165: ='Start-Experte'!E40 -> Referenz | E165: ='Start-Experte'!F40 -> MFP Trend
C168: Eingabeparameter: Lebensdauer der Anlagen nach Ende der Förderung | H168: Eingabeparameter: Dargebotsfaktor | K168: Eingabeparameter: Profilfaktor
C169: ='Start-Experte'!C44 -> Technologie | D169: ='Start-Experte'!E44 -> gewähltes Szenario | H169: ='Start-Experte'!I33 -> gewähltes Szenario | K169: ='Start-Experte'!L33 -> gewähltes Szenario
C170: ='Start-Experte'!C45 -> Wind Onshore | D170: ='Start-Experte'!E45 -> Referenz | E170: ='Start-Experte'!F45 -> 5 Jahre | H170: ='Start-Experte'!I34 -> Referenz | I170: ='Start-Experte'!J34 -> 100% | K170: ='Start-Experte'!L34 -> Referenz | L170: ='Start-Experte'!M34 -> eigene Berechnung
C171: ='Start-Experte'!C46 -> Wind Offshore | D171: ='Start-Experte'!E46 -> Referenz | E171: ='Start-Experte'!F46 -> keine | H171: ='Start-Experte'!I35 -> Referenz | I171: ='Start-Experte'!J35 -> 100% | K171: ='Start-Experte'!L35 -> Referenz | L171: ='Start-Experte'!M35 -> eigene Berechnung
C172: ='Start-Experte'!C47 -> Solar | D172: ='Start-Experte'!E47 -> Referenz | E172: ='Start-Experte'!F47 -> 5 Jahre | H172: ='Start-Experte'!I36 -> Referenz | I172: ='Start-Experte'!J36 -> 100% | K172: ='Start-Experte'!L36 -> Referenz | L172: ='Start-Experte'!M36 -> eigene Berechnung
C173: ='Start-Experte'!C48 -> Biomasse | D173: ='Start-Experte'!E48 -> Referenz | E173: ='Start-Experte'!F48 -> keine | H173: ='Start-Experte'!I37 -> Referenz | I173: ='Start-Experte'!J37 -> 100% | K173: ='Start-Experte'!L37 -> Referenz | L173: ='Start-Experte'!M37 -> 100%
C174: ='Start-Experte'!C49 -> Geothermie | D174: ='Start-Experte'!E49 -> Referenz | E174: ='Start-Experte'!F49 -> keine | H174: ='Start-Experte'!I38 -> Referenz | I174: ='Start-Experte'!J38 -> 100% | K174: ='Start-Experte'!L38 -> Referenz | L174: ='Start-Experte'!M38 -> 100%
C175: ='Start-Experte'!C50 -> Wasser | D175: ='Start-Experte'!E50 -> Referenz | E175: ='Start-Experte'!F50 -> keine | H175: ='Start-Experte'!I39 -> Referenz | I175: ='Start-Experte'!J39 -> 100% | K175: ='Start-Experte'!L39 -> Referenz | L175: ='Start-Experte'!M39 -> 100%
C176: ='Start-Experte'!C51 -> Gase | D176: ='Start-Experte'!E51 -> Referenz | E176: ='Start-Experte'!F51 -> keine | H176: ='Start-Experte'!I40 -> Referenz | I176: ='Start-Experte'!J40 -> 100% | K176: ='Start-Experte'!L40 -> Referenz | L176: ='Start-Experte'!M40 -> 100%

Sheet Manual
C2: EEG-Rechner: Kurzanleitung
C4: Wichtige Hinweise:
C5: 1. Für die Nutzung des EEG-Rechners müssen Makros zugelassen sein!
C6: 2. Standardmässig werden alle Ergebniss als nominale Werte (also ohne Inflationsbereinigung) angegeben. Um auf reale Werte (bezogen auf das aktuelle Jahr) zu wechseln, bitte auf das entsprechende Feld bei "Start" klicken.
C7: 3. Der EEG-Rechner führt keine Plausibilitätsprüfung der gewählten Szenarien durch. Der Benutzer ist selbst dafür verantwortlich, konsistente Szenarien (z.B. mit Blick auf EE-Zubaumenge, Vergütungshöhe und Strompreisprognose) einzugeben. Dies gilt insbesondere für mögliche 0 Cent-Gebote in Ausschreibungen, da hierfür die Strompreis-Erwartung über dem Niveau des EEG-Vergütungssatzes für Neuanlagen liegen muss.
C9: Das Erneuerbare-Energien-Gesetz (EEG) ist das zentrale Instrument zur Flankierung der Stromerzeugung aus erneuerbaren Energien in Deutschland. Es regelt u.a. die Einspeisevergütungen für die verschiedenen Anlagenklassen und in welcher Form die nach Vermarktung des erzeugten Stroms entstehende Deckungslücke auf die verschiedenen Stromverbraucher umgelegt werden.
C10: Einen wesentlichen Parameter bildet dabei die EEG-Umlage, die für Endkunden auf den Stromverbrauch aufgeschlagen wird, und über die ein Großteil der Netto-Kosten des EEG gedeckt wird. Die Höhe der EEG-Umlage wird, entsprechend der zu erwartenden Deckungslücke, einmal jährlich angepasst. Die Höhe der Umlage wird von zahlreichen Parametern beeinflusst. Der EEG-Rechner erlaubt es, diese Parameter zu variieren und die Entwicklung der EEG-Umlage sowie der zu Grunde liegenden Zahlungsströme bis 2035 abzuschätzen.
C11: Bedienung:
C12: Der EEG-Rechner kann in zwei verschiedenen Modi betrieben werden:
C13: Im Entscheidermodus können die wichtigesten Stellgrößen auf einer benutzerfreundlicher Oberfläche variiert werden. Für jeden Parameter stehen verschiedene vordefinierte Szenarien zur Verfügung.
C14: Im Expertenmodus stehen wesentlich mehr (alle relevanten) Eingangsparameter für Variationen zur Verfügung. Darüber hinaus können für jeden Parameter, zusätzlich zu den vordefinierten Szenarien, eigene Szenarien definiert und in einer Datenbankstruktur abgelegt werden. Im Expertenmodus sind sämtliche Daten und Berechnungen für den Benutzer zugänglich.
C15: Über die entsprechende Schaltfläche auf der Benutzeroberfläche kann zwischen den beiden Modi hin- und hergeschaltet werden, dabei werden die für den jeweiligen Modus nutzbaren Tabellenblätter ein- bzw. ausgeblendet.
C17: Bedienung im Entscheidermodus (Blatt "Start"):
C18: Auf der Benutzeroberfläche im Tabellenblatt "Start" werden alle veränderbaren Parameter dargestellt. Für jeden Parameter wird der ausgewählte Wert angezeigt, sowie die Spannbreite der möglichen auszuwählenden Werte. Für jeden Parameter ist ein Referenzwert voreingestellt - dieses Referenzszenario stellt die Entwicklung der EEG-Umlage unter der Annahme dar, dass keine wesentlichen Änderungen am EEG-Mechanismus vorgenommen werden und Kapazitätsausbau, Strompreis und -nachfrage sich moderat entwickeln.
C19: Die Abbildungen auf dem Tabellenblatt "Start" geben einen Überblick über die wichtigsten Ergebnisse (Entwicklung der EEG-Umlage und der Summe aus Börsenstrompreis und Umlage). Weitere Ergebnisse in Form von Abbildungen und Tabellen sind im Tabellenblatt "Ergebnisse" zusammengestellt. Dieses Tabellenblatt kann auch ausgedruckt werden, um alle Ergebnisse und Schalterstellungen für ein Szenario festzuhalten.
C20: Für jeden Parameter kann durch Anklicken aus einer Auswahlliste das gewünschte Szenario ausgewählt werden. Die Grafiken und Tabellen zeigen, wie sich die Änderung eines Parameters auf EEG-Umlage und Zahlungströme etc. auswirkt.
C21: Über die Schaltfläche "Zurücksetzen" können alle Parameter wieder auf ihren Referenzwert zurückgestellt werden.
C22: Über die Schaltfläche "Hilfe" kann von der Benutzeroberfläche diese Kurzanleitung angewählt werden.
C23: Bedienung im Expertenmodus (Blatt "Start-Experte"):
C24: Im Expertenmodus kann über die Benutzeroberfläche im Tabellenblatt "Start-Experte" eine wesentlich größere Zahl an Eingangsparametern variiert werden. Darüber hinaus können in den für die einzelnen Parameter hinterlegten Bibliotheken eigene Szenarien definert werden. Die mitgelieferten Standard-Szenarien können jedoch nicht verändert werden. Auf der Benutzeroberfläche ist neben jedem Parameter ein Link ( > ) zu dem entsprechenden Bibliotheks-Datenblatt eingefügt. Pro Parameter können, einschließlich der mitgelieferten Standard-Szenarien bis zu 20 Szenarien definiert werden. Sind die Szenarien im Bibliotheks-Datenblatt erstellt, können sie in der Benutzeroberfläche über das jeweilige Dropdown-Menüs ausgewählt werden. Für die Konsistenz neu angelegter Szenarien müssen die Nutzer eigenverantwortlich sorgen.
C25: Die Berechnungen werden in dem Tabellenblatt "MOD-Berechnungen" und "MOD-Jahresgang" durchgeführt. Hier können alle Methoden und Zwischenergebnisse nachvollzogen werden. Die Daten für die Abbildungen und Tabellen sind auf den Datenblättern "Grd-Grafikdaten" und "Grd-Grafikdaten(2)" zusammengefasst. Das Tabellenblatt "Index" enthält eine Liste aller Tabellenblätter mit einer kurzen Beschreibung.
C26: Über die Schaltfläche "Zurücksetzen" können alle Parameter wieder auf ihren Referenzwert zurückgestellt werden.
C28: Eine ausführliche Dokumentation für den EEG-Rechner steht auf der Webseite der Agora Energiewende zur Verfügung:
C29: http://www.agora-energiewende.de/de/service/eeg-rechner/

Sheet Impressum
B4: EEG-Rechner: Berechnungs- und Szenarienmodell zur Ermittlung der EEG-Umlage
B6: erarbeitet durch: | C6: Öko-Institut e.V. | H6: im Auftrag von: | J6: Agora Energiewende
C7: Schicklerstr. 5-7 | J7: Anna-Louisa-Karsch-Straße 2
C8: 10179 Berlin | J8: 10178 Berlin
C9: www.oeko.de | J9: www.agora-energiewende.de
B11: Autoren: | C11: Markus Haller
C12: David Ritter
C13: Charlotte Loreck
C14: Felix Chr. Matthes | H14: © Öko-Institut und Agora Energiewende. Alle Rechte vorbehalten. Nutzung der Methoden,
H15: Standarddaten und Ergebnisse nur mit Verweis auf die Autoren und Agora Energiewende gestattet.
B16: Letzte Aktualisierung: | C16: 2021-07-20
B17: Modellversion: | C17: 4.2.1 | H17: Zitiervorschlag: | J17: Öko-Institut (2021): EEG-Rechner. Berechnungs- und Szenarienmodell
J18: zur Ermittlung der EEG-Umlage. Erstellt im Auftrag von Agora Energiewende.
B19: Kontakt: | C19: info@agora-energiewende.de | J19: =CONCATENATE("Modellversion ",C17,", Berlin, ",TEXT(C16,"TT.MM.JJJJ")) -> Modellversion 4.2.1, Berlin, 20.07.2021

Sheet Index (hidden)
B3: Index
B5: No. | C5: Name
B7: 1 | C7: Start-Experte | D7: Table
B8: 2 | C8: ControlPanel | D8: Table
B9: 3 | C9: Parameter-Entscheider | D9: Table
B10: 4 | C10: Start | D10: Table
B11: 5 | C11: Ergebnisse | D11: Table
B12: 6 | C12: Manual | D12: Table
B13: 7 | C13: Impressum | D13: Table
B14: 8 | C14: Version | D14: Table
B15: 9 | C15: Index | D15: Table
B16: 10 | C16: IndexComplete | D16: Table
B17: 11 | C17: MOD-Berechnungen | D17: Table
B18: 12 | C18: MOD-Jahresgang | D18: Table
B19: 13 | C19: GrD-Grafikdaten | D19: Table
B20: 14 | C20: GrD-Grafikdaten (2) | D20: Table
B21: 15 | C21: MOD_Absenkung_Wind_offshore | D21: Table
B22: 16 | C22: D-Vergütungssatz Neuanlagen | D22: Table
B23: 17 | C23: D-Bruttozubau | D23: Table
B24: 18 | C24: D-Standardauslastung | D24: Table
B25: 19 | C25: D-Dargebotsfaktor | D25: Table
B26: 20 | C26: D-Spot-Skalierungsfaktor | D26: Table
B27: 21 | C27: D-Profilfaktoren | D27: Table
B28: 22 | C28: D-Dauer Goldenes Ende | D28: Table
B29: 23 | C29: D-Future Strompreis | D29: Table
B30: 24 | C30: D-Liquiditätspuffer | D30: Table
B31: 25 | C31: D-Nettostromverbrauch | D31: Table
B32: 26 | C32: D-Privilegierter Letztverbrauch | D32: Table
B33: 27 | C33: D-Umlage priv. Letztverbrauch | D33: Table
B34: 28 | C34: D-Faktor Zusatzprivilegierung | D34: Table
B35: 29 | C35: D-Umlage EV Bestand | D35: Table
B36: 30 | C36: D-Eigenverbrauch KWK Neue | D36: Table
B37: 31 | C37: D-Umlage Eigenverbrauch PV+KWK | D37: Table
B38: 32 | C38: D-vermiedene Netzentgelte | D38: Table
B39: 33 | C39: D-Sonstige Kosten | D39: Table
B40: 34 | C40: D-Inflationsrate | D40: Table
B41: 35 | C41: D-Prognosefehler Kontostand | D41: Table
B42: 36 | C42: D-Kontostand aktuelles Jahr | D42: Table
B43: 37 | C43: D-Anteil Eigenverbrauch EE neu | D43: Table
B44: 38 | C44: D-Strommenge ges. | D44: Table
B45: 39 | C45: D-Strommenge FV+DM | D45: Table
B46: 40 | C46: D-Mittlerer Vergütungssatz | D46: Table
B47: 41 | C47: D-Kontostand Vorjahr | D47: Table
B48: 42 | C48: D-Bestand Kapazität | D48: Table
B49: 43 | C49: D-Bestand Strommenge | D49: Table
B50: 44 | C50: D-Bestand Zahlungen | D50: Table
B51: 45 | C51: D-Grünstromprivileg | D51: Table
B52: 46 | C52: D-Eigenverbrauch fossil Bestand | D52: Table
B53: 47 | C53: D-Eigenverbrauch fossile Neue | D53: Table
B54: 48 | C54: D-Eigenverbrauch EE-Bestand | D54: Table
B55: 49 | C55: D-Umlagereduktion Grünstrom | D55: Table
B56: 50 | C56: D-Umlage Eigenverb fossile Neue | D56: Table
B57: 51 | C57: D-Vergütung Eigenverbrauch | D57: Table
B58: 52 | C58: D-Managementprämie_Bestand | D58: Table
B59: 53 | C59: D-Netzverl. u. KW-Eigenverbr. | D59: Table
B60: 54 | C60: D-Kapazitäten 2009 | D60: Table
B61: 55 | C61: D-Rückbau vor 2015 | D61: Table
B62: 56 | C62: D-EE-Kapazitäten nicht EEG | D62: Table
B63: 57 | C63: D-EE-Strommengen nicht EEG | D63: Table
B64: 58 | C64: D-Korrekt. Strommenge akt. Jahr | D64: Table

Sheet IndexComplete (hidden)
A1: Table of contents | E1: ### kein Bezug möglich, Text nach Abschluss der Arbeiten per Hand eingeben
B3: Index
G4: For Update of Index
B5: No. | C5: Name | G5: click this button
G6: (Macros must be enabled)
B7: 1 | C7: Impressum | D7: Table | E7: Impressum
B8: 2 | C8: Manual | D8: Table | E8: Kurzanleitung
B9: 3 | C9: Version | D9: Table | E9: Versionshistorie.
B10: 4 | C10: Index | D10: Table | E10: Index aller Tabellenblätter.
B11: 5 | C11: IndexComplete | D11: Table | E11: Vollständiger Index (inkl. Für benutzer nicht sichtbarer Sheets)
B12: 6 | C12: Start | D12: Table | E12: Benutzeroberfläche für Entscheidermodus
B13: 7 | C13: Start-Experte | D13: Table | E13: Benutzeroberfläche im Expertenmodus
B14: 8 | C14: Parameter-Entscheider | D14: Table | E14: Für den Entscheidermodus werden hier die Standardwerte definiert, die für Parameter genutzt werden, die im Entscheidermodus nicht variiert werden können.
B15: 9 | C15: ControlPanel | D15: Table | E15: In dieses Tabellenblatt werden die Einstellungen aus den beiden Startblättern kopiert, und auf dieses Blatt greifen die Bibliotheksblätter zu, um die gewünschten Parameter zu filtern.
B16: 10 | C16: MOD-Berechnungen | D16: Table | E16: Hier finden alle Berechnung in jahresscharfer Auflösung statt.
B17: 11 | C17: MOD-Jahresgang | D17: Table | E17: Berechnung des Kontoverlaufs für das aktuelle Jahr.
B18: 12 | C18: GrD-Grafikdaten | D18: Table | E18: Ergebnisse für Grafiken aufbereitet
B19: 13 | C19: MOD-Output | D19: Table | E19: Modell-Ergebnisse in tabellarischer Form
B20: 14 | C20: D-Jahreszubau | D20: Table | E20: Datenblatt: Jährlicher Kapazitätszubau pro Technologie
B21: 15 | C21: D-Standardauslastung | D21: Table | E21: Datenblatt: jährliche Vollaststunden pro Technologie
B22: 16 | C22: D-Dargebotsfaktor | D22: Table | E22: Datenblatt: Dargebotsfaktor pro Technologie
B23: 17 | C23: D-Anteil Direktvermarktung | D23: Table | E23: Datenblatt: Anteil des direkt vermarkteten Stroms (Marktprämienmodell) an der Gesamt-Stromerzeugung (pro Technologie)
B24: 18 | C24: D-Anteil Eigenverbrauch | D24: Table | E24: Datenblatt: Anteil des Eigenverbrauchs an der Gesamt-Stromerzeugung (pro Technologie)
B25: 19 | C25: D-Anteil Sonstige DV | D25: Table | E25: Datenblatt: Anteil der sonstigen Direktvermarktungsmodelle an der Gesamt-Stromerzeugung (pro Technologie)
B26: 20 | C26: D-Profilfaktoren-real | D26: Table | E26: Datenblatt: Profilfaktoren für Berechnung von Vermarktungserlösen und Marktprämienzahlungen in Prognosejahren
B27: 21 | C27: D-Vergütungssatz Neuanlagen | D27: Table | E27: Datenblatt: Vergütungssätze für Neuanlagen (pro Technologie). Nur relevant für Prognosejahre.
B28: 22 | C28: D-Vergütung Eigenverbrauch | D28: Table | E28: Datenblatt: Vergütungssätze für eigenverbrauchten Strom (pro Technologie).
B29: 23 | C29: D-Managementprämie | D29: Table | E29: Datenblatt: Managementprämien (pro Technologie).
B30: 24 | C30: D-Future Strompreis | D30: Table | E30: Datenblatt: Entwicklung des Strompreises (PHELIX base year future) für die Umlageberechnung.
B31: 25 | C31: D-Spot-Skalierungsfaktor | D31: Table | E31: Datenblatt: Skalierungsfaktor, der die systematische Differenz zwischen Future- und Spotmarktpreis beschreibt.
B32: 26 | C32: D-Liquiditätspuffer | D32: Table | E32: Datenblatt: Höhe des Liquiditätspuffers.
B33: 27 | C33: D-Gesamtstromverbrauch | D33: Table | E33: Datenblatt: Gesamt-Stromverbrauch.
B34: 28 | C34: D-Privilegierter Letztverbrauch | D34: Table | E34: Datenblatt: Anteil des privilegierten Letztverbrauchs am Gesamt-Stromverbrauch.
B35: 29 | C35: D-Eigenstromverbrauch | D35: Table | E35: Datenblatt: Anteil des eigenerzeugten Eigenverbrauchs am Gesamt-Stromverbrauch.
B36: 30 | C36: D-Grünstromprivileg | D36: Table | E36: Datenblatt: Anteil des für Grünstromprivileg-Stroms am Gesamt-Stromverbrauch.
B37: 31 | C37: D-Umlage priv. Letztverbrauch | D37: Table | E37: Datenblatt: Umlagesätze für privilegierten Letztverbrauch
B38: 32 | C38: D-Umlage Eigenstromverbrauch | D38: Table | E38: Datenblatt: Umlagesätze für eigenverbrauchte Eigenerzeugung
B39: 33 | C39: D-Umlage Grünstromprivileg | D39: Table | E39: Datenblatt: Umlagesätze für Grünstromprivileg.
B40: 34 | C40: D-vermiedene Netzentgelte | D40: Table | E40: Datenblatt: vermiedene Netzentgelte (abgebildet als Pauschalbetrag pro zu vergütender Strommenge).
B41: 35 | C41: D-Sonstige Kosten | D41: Table | E41: Datenblatt: sonstige Kosten (als Pauschalbetrag).
B42: 36 | C42: D-Stromerzeugung | D42: Table | E42: Datenblatt: Stromerzeugung pro Technologie (nur für historische Jahre relevant).
B43: 37 | C43: D-Mittlerer Vergütungssatz | D43: Table | E43: Datenblatt: Mittlere Vergütungssätze pro Technologie (nur für historische Jahre relevant).
B44: 38 | C44: D-Profilfaktoren | D44: Table | E44: Datenblatt: In den ÜNB-Jahresprognosen verwendete Profilfaktoren (nur für historische Jahre relevant).
B45: 39 | C45: D-Profilfaktoren-Marktprämie | D45: Table | E45: Datenblatt: In den ÜNB-Jahresprognosen für die Berechnung der Marktprämienzahlungen verwendete Profilfaktoren (nur für historische Jahre relevant).
B46: 40 | C46: D-Kontostand September | D46: Table | E46: Datenblatt: historische Kontostände, jeweils am 30.9. (nur für historische Jahre relevant).

Sheet MOD-Berechnungen (hidden)
B1: Übersicht der ausgewählten Eingangsparameter (blau) und Berechnungen (grün) | E1: In diesem Tabellenblatt finden alle Berechnung in jährlicher Auflösung statt.
E3: grün: Eingangsparameter
E4: blau: Berechnungen
A5: ID | B5: Szenario | C5: Bearbeiter | D5: Beschreibung | F5: 2010 | G5: 2011 | H5: 2012 | I5: 2013 | J5: 2014 | K5: 2015 | L5: 2016 | M5: 2017 | N5: 2018 | O5: 2019 | P5: 2020 | Q5: 2021 | R5: 2022 | S5: 2023 | T5: 2024 | U5: 2025 | V5: 2026 | W5: 2027 | X5: 2028 | Y5: 2029 | Z5: 2030 | AA5: 2031 | AB5: 2032 | AC5: 2033 | AD5: 2034 | AE5: 2035 | AF5: zuletzt geändert | AG5: wann hinzu-gefügt | AJ5: Kommentar
E6: Eingangsparameter
A7: 7 | B7: ='D-Future Strompreis'!B$6 -> Referenz | C7: ='D-Future Strompreis'!C$6 -> fh | D7: ='D-Future Strompreis'!D$6 -> 4,9 -> 6,5 ct/kWh | E7: Future-Strompreis (nominal für historische Jahre, real für Prognosejahre) [Euro/MWh] | F7: ='D-Future Strompreis'!F$6 -> 53.65048 | G7: ='D-Future Strompreis'!G$6 -> 50.73909 | H7: ='D-Future Strompreis'!H$6 -> 55.22 | I7: ='D-Future Strompreis'!I$6 -> 51.15 | J7: ='D-Future Strompreis'!J$6 -> 41.45 | K7: ='D-Future Strompreis'!K$6 -> 35.67 | L7: ='D-Future Strompreis'!L$6 -> 31.26 | M7: ='D-Future Strompreis'!M$6 -> 26.75 | N7: ='D-Future Strompreis'!N$6 -> 32.22 | O7: ='D-Future Strompreis'!O$6 -> 46.28 | P7: ='D-Future Strompreis'!P$6 -> 49.34 | Q7: ='D-Future Strompreis'!Q$6 -> 40.74 | R7: ='D-Future Strompreis'!R$6 -> 71.44 | S7: ='D-Future Strompreis'!S$6 -> 63.35 | T7: ='D-Future Strompreis'!T$6 -> 63.4875 | U7: ='D-Future Strompreis'!U$6 -> 63.625 | V7: ='D-Future Strompreis'!V$6 -> 63.7625 | W7: ='D-Future Strompreis'!W$6 -> 63.9 | X7: ='D-Future Strompreis'!X$6 -> 64.0375 | Y7: ='D-Future Strompreis'!Y$6 -> 64.175 | Z7: ='D-Future Strompreis'!Z$6 -> 64.3125 | AA7: ='D-Future Strompreis'!AA$6 -> 64.45 | AB7: ='D-Future Strompreis'!AB$6 -> 64.5875 | AC7: ='D-Future Strompreis'!AC$6 -> 64.725 | AD7: ='D-Future Strompreis'!AD$6 -> 64.8625 | AE7: ='D-Future Strompreis'!AE$6 -> 65
A8: 8 | B8: ='D-Spot-Skalierungsfaktor'!B$6 -> Referenz | C8: ='D-Spot-Skalierungsfaktor'!C$6 -> fh | D8: ='D-Spot-Skalierungsfaktor'!D$6 -> 100% | E8: Spot-Skalierungsfaktor [-] | F8: ='D-Spot-Skalierungsfaktor'!F$6 -> 0 | G8: ='D-Spot-Skalierungsfaktor'!G$6 -> 0 | H8: ='D-Spot-Skalierungsfaktor'!H$6 -> 0 | I8: ='D-Spot-Skalierungsfaktor'!I$6 -> 0.6842619746 | J8: ='D-Spot-Skalierungsfaktor'!J$6 -> 0.9 | K8: ='D-Spot-Skalierungsfaktor'!K$6 -> 0.9 | L8: ='D-Spot-Skalierungsfaktor'!L$6 -> 0.9 | M8: ='D-Spot-Skalierungsfaktor'!M$6 -> 0.9 | N8: ='D-Spot-Skalierungsfaktor'!N$6 -> 0.9 | O8: ='D-Spot-Skalierungsfaktor'!O$6 -> 0.9 | P8: ='D-Spot-Skalierungsfaktor'!P$6 -> 0.9 | Q8: ='D-Spot-Skalierungsfaktor'!Q$6 -> 1.39 | R8: ='D-Spot-Skalierungsfaktor'!R$6 -> 1 | S8: ='D-Spot-Skalierungsfaktor'!S$6 -> 1 | T8: ='D-Spot-Skalierungsfaktor'!T$6 -> 1 | U8: ='D-Spot-Skalierungsfaktor'!U$6 -> 1 | V8: ='D-Spot-Skalierungsfaktor'!V$6 -> 1 | W8: ='D-Spot-Skalierungsfaktor'!W$6 -> 1 | X8: ='D-Spot-Skalierungsfaktor'!X$6 -> 1 | Y8: ='D-Spot-Skalierungsfaktor'!Y$6 -> 1 | Z8: ='D-Spot-Skalierungsfaktor'!Z$6 -> 1 | AA8: ='D-Spot-Skalierungsfaktor'!AA$6 -> 1 | AB8: ='D-Spot-Skalierungsfaktor'!AB$6 -> 1 | AC8: ='D-Spot-Skalierungsfaktor'!AC$6 -> 1 | AD8: ='D-Spot-Skalierungsfaktor'!AD$6 -> 1 | AE8: ='D-Spot-Skalierungsfaktor'!AE$6 -> 1
A9: 9 | B9: ='D-Liquiditätspuffer'!B$6 -> Referenz | C9: ='D-Liquiditätspuffer'!C$6 -> fh | D9: ='D-Liquiditätspuffer'!D$6 -> ÜNB-Umlageberechnungen, danach 6% | E9: Liquiditätsreserve [-] | F9: ='D-Liquiditätspuffer'!F$6 -> 0 | G9: ='D-Liquiditätspuffer'!G$6 -> 0 | H9: ='D-Liquiditätspuffer'!H$6 -> 0.03 | I9: ='D-Liquiditätspuffer'!I$6 -> 0.1 | J9: ='D-Liquiditätspuffer'!J$6 -> 0.1 | K9: ='D-Liquiditätspuffer'!K$6 -> 0.1 | L9: ='D-Liquiditätspuffer'!L$6 -> 0.1 | M9: ='D-Liquiditätspuffer'!M$6 -> 0.06 | N9: ='D-Liquiditätspuffer'!N$6 -> 0.06 | O9: ='D-Liquiditätspuffer'!O$6 -> 0.06 | P9: ='D-Liquiditätspuffer'!P$6 -> 0.08 | Q9: ='D-Liquiditätspuffer'!Q$6 -> 0.1 | R9: ='D-Liquiditätspuffer'!R$6 -> 0.06 | S9: ='D-Liquiditätspuffer'!S$6 -> 0.06 | T9: ='D-Liquiditätspuffer'!T$6 -> 0.06 | U9: ='D-Liquiditätspuffer'!U$6 -> 0.06 | V9: ='D-Liquiditätspuffer'!V$6 -> 0.06 | W9: ='D-Liquiditätspuffer'!W$6 -> 0.06 | X9: ='D-Liquiditätspuffer'!X$6 -> 0.06 | Y9: ='D-Liquiditätspuffer'!Y$6 -> 0.06 | Z9: ='D-Liquiditätspuffer'!Z$6 -> 0.06 | AA9: ='D-Liquiditätspuffer'!AA$6 -> 0.06 | AB9: ='D-Liquiditätspuffer'!AB$6 -> 0.06 | AC9: ='D-Liquiditätspuffer'!AC$6 -> 0.06 | AD9: ='D-Liquiditätspuffer'!AD$6 -> 0.06 | AE9: ='D-Liquiditätspuffer'!AE$6 -> 0.06
A10: 10 | B10: ='D-Kontostand Vorjahr'!B$6 -> Historisch | C10: ='D-Kontostand Vorjahr'!C$6 -> fh | D10: ='D-Kontostand Vorjahr'!D$6 -> ÜNB-Jahresprognosen | E10: Kontostand September (nominal) [Euro] | F10: ='D-Kontostand Vorjahr'!F$6 -> 0 | G10: ='D-Kontostand Vorjahr'!G$6 -> -1.116298942 | H10: ='D-Kontostand Vorjahr'!H$6 -> -0.7112411214 | I10: ='D-Kontostand Vorjahr'!I$6 -> -2.588913913 | J10: ='D-Kontostand Vorjahr'!J$6 -> -2.196925005 | K10: ='D-Kontostand Vorjahr'!K$6 -> 1.380744937 | L10: ='D-Kontostand Vorjahr'!L$6 -> 2.52119 | M10: ='D-Kontostand Vorjahr'!M$6 -> 1.947810149 | N10: ='D-Kontostand Vorjahr'!N$6 -> 3.329230143 | O10: ='D-Kontostand Vorjahr'!O$6 -> 3.651835355 | P10: ='D-Kontostand Vorjahr'!P$6 -> 2.190405417 | Q10: ='D-Kontostand Vorjahr'!Q$6 -> -4.080394277 | R10: ='D-Kontostand Vorjahr'!R$6 -> 0 | S10: ='D-Kontostand Vorjahr'!S$6 -> 0 | T10: ='D-Kontostand Vorjahr'!T$6 -> 0 | U10: ='D-Kontostand Vorjahr'!U$6 -> 0 | V10: ='D-Kontostand Vorjahr'!V$6 -> 0 | W10: ='D-Kontostand Vorjahr'!W$6 -> 0 | X10: ='D-Kontostand Vorjahr'!X$6 -> 0 | Y10: ='D-Kontostand Vorjahr'!Y$6 -> 0 | Z10: ='D-Kontostand Vorjahr'!Z$6 -> 0 | AA10: ='D-Kontostand Vorjahr'!AA$6 -> 0 | AB10: ='D-Kontostand Vorjahr'!AB$6 -> 0 | AC10: ='D-Kontostand Vorjahr'!AC$6 -> 0 | AD10: ='D-Kontostand Vorjahr'!AD$6 -> 0 | AE10: ='D-Kontostand Vorjahr'!AE$6 -> 0
A11: 11 | B11: ='D-Nettostromverbrauch'!B$6 -> Referenz | C11: ='D-Nettostromverbrauch'!C$6 -> fh | D11: ='D-Nettostromverbrauch'!D$6 -> 2021: ÜNB-Umlageberechnung 2020. Danach ansteigend auf 600 TWh in 2030 | E11: Nettostromverbrauch [TWh] | F11: ='D-Nettostromverbrauch'!F$6 -> 535.4 | G11: ='D-Nettostromverbrauch'!G$6 -> 536.8 | H11: ='D-Nettostromverbrauch'!H$6 -> 540.3 | I11: ='D-Nettostromverbrauch'!I$6 -> 537.1 | J11: ='D-Nettostromverbrauch'!J$6 -> 529.8786465 | K11: ='D-Nettostromverbrauch'!K$6 -> 520.6 | L11: ='D-Nettostromverbrauch'!L$6 -> 511.6 | M11: ='D-Nettostromverbrauch'!M$6 -> 521.904644 | N11: ='D-Nettostromverbrauch'!N$6 -> 524.64 | O11: ='D-Nettostromverbrauch'!O$6 -> 536.236465 | P11: ='D-Nettostromverbrauch'!P$6 -> 538.51777 | Q11: ='D-Nettostromverbrauch'!Q$6 -> 518.52683 | R11: ='D-Nettostromverbrauch'!R$6 -> 527.5794044 | S11: ='D-Nettostromverbrauch'!S$6 -> 536.6319789 | T11: ='D-Nettostromverbrauch'!T$6 -> 545.6845533 | U11: ='D-Nettostromverbrauch'!U$6 -> 554.7371278 | V11: ='D-Nettostromverbrauch'!V$6 -> 563.7897022 | W11: ='D-Nettostromverbrauch'!W$6 -> 572.8422767 | X11: ='D-Nettostromverbrauch'!X$6 -> 581.8948511 | Y11: ='D-Nettostromverbrauch'!Y$6 -> 590.9474256 | Z11: ='D-Nettostromverbrauch'!Z$6 -> 600 | AA11: ='D-Nettostromverbrauch'!AA$6 -> 609.0525744 | AB11: ='D-Nettostromverbrauch'!AB$6 -> 618.1051489 | AC11: ='D-Nettostromverbrauch'!AC$6 -> 627.1577233 | AD11: ='D-Nettostromverbrauch'!AD$6 -> 636.2102978 | AE11: ='D-Nettostromverbrauch'!AE$6 -> 645.2628722
A12: 12 | B12: ='D-Privilegierter Letztverbrauch'!B$6 -> Referenz | C12: ='D-Privilegierter Letztverbrauch'!C$6 -> fh | D12: ='D-Privilegierter Letztverbrauch'!D$6 -> MFP Referenz | E12: Privilegierter Letztverbrauch [TWh] | F12: ='D-Privilegierter Letztverbrauch'!F$6 -> 67.886 | G12: ='D-Privilegierter Letztverbrauch'!G$6 -> 74.72996608 | H12: ='D-Privilegierter Letztverbrauch'!H$6 -> 84.727446 | I12: ='D-Privilegierter Letztverbrauch'!I$6 -> 96.225492 | J12: ='D-Privilegierter Letztverbrauch'!J$6 -> 106.522991 | K12: ='D-Privilegierter Letztverbrauch'!K$6 -> 110.247 | L12: ='D-Privilegierter Letztverbrauch'!L$6 -> 103.9 | M12: ='D-Privilegierter Letztverbrauch'!M$6 -> 114.145597 | N12: ='D-Privilegierter Letztverbrauch'!N$6 -> 114.690017 | O12: ='D-Privilegierter Letztverbrauch'!O$6 -> 113.926688 | P12: ='D-Privilegierter Letztverbrauch'!P$6 -> 116.171665 | Q12: ='D-Privilegierter Letztverbrauch'!Q$6 -> 112.73 | R12: ='D-Privilegierter Letztverbrauch'!R$6 -> 111.65 | S12: ='D-Privilegierter Letztverbrauch'!S$6 -> 110.48 | T12: ='D-Privilegierter Letztverbrauch'!T$6 -> 109.19 | U12: ='D-Privilegierter Letztverbrauch'!U$6 -> 107.92 | V12: ='D-Privilegierter Letztverbrauch'!V$6 -> 107.92 | W12: ='D-Privilegierter Letztverbrauch'!W$6 -> 107.92 | X12: ='D-Privilegierter Letztverbrauch'!X$6 -> 107.92 | Y12: ='D-Privilegierter Letztverbrauch'!Y$6 -> 107.92 | Z12: ='D-Privilegierter Letztverbrauch'!Z$6 -> 107.92 | AA12: ='D-Privilegierter Letztverbrauch'!AA$6 -> 107.92 | AB12: ='D-Privilegierter Letztverbrauch'!AB$6 -> 107.92 | AC12: ='D-Privilegierter Letztverbrauch'!AC$6 -> 107.92 | AD12: ='D-Privilegierter Letztverbrauch'!AD$6 -> 107.92 | AE12: ='D-Privilegierter Letztverbrauch'!AE$6 -> 107.92
A13: 13 | B13: ='D-Eigenverbrauch fossil Bestand'!B$6 -> Referenz | C13: ='D-Eigenverbrauch fossil Bestand'!C$6 -> fh | D13: ='D-Eigenverbrauch fossil Bestand'!D$6 -> Eigenversorgung nach §61(3) aus ÜNB-Umlageberechnung für 2020 | E13: Eigenverbrauch fossile Bestandsanlagen [TWh] | F13: ='D-Eigenverbrauch fossil Bestand'!F$6 -> 66.919 | G13: ='D-Eigenverbrauch fossil Bestand'!G$6 -> 54.256242 | H13: ='D-Eigenverbrauch fossil Bestand'!H$6 -> 62.173273 | I13: ='D-Eigenverbrauch fossil Bestand'!I$6 -> 52.680143 | J13: ='D-Eigenverbrauch fossil Bestand'!J$6 -> 44.33 | K13: ='D-Eigenverbrauch fossil Bestand'!K$6 -> 57.291306 | L13: ='D-Eigenverbrauch fossil Bestand'!L$6 -> 48.547291 | M13: ='D-Eigenverbrauch fossil Bestand'!M$6 -> 60.95192652 | N13: ='D-Eigenverbrauch fossil Bestand'!N$6 -> 61.17355185 | O13: ='D-Eigenverbrauch fossil Bestand'!O$6 -> 69.75043 | P13: ='D-Eigenverbrauch fossil Bestand'!P$6 -> 68.086642 | Q13: ='D-Eigenverbrauch fossil Bestand'!Q$6 -> 60.732942 | R13: ='D-Eigenverbrauch fossil Bestand'!R$6 -> 60.732942 | S13: ='D-Eigenverbrauch fossil Bestand'!S$6 -> 60.732942 | T13: ='D-Eigenverbrauch fossil Bestand'!T$6 -> 60.732942 | U13: ='D-Eigenverbrauch fossil Bestand'!U$6 -> 60.732942 | V13: ='D-Eigenverbrauch fossil Bestand'!V$6 -> 60.732942 | W13: ='D-Eigenverbrauch fossil Bestand'!W$6 -> 60.732942 | X13: ='D-Eigenverbrauch fossil Bestand'!X$6 -> 60.732942 | Y13: ='D-Eigenverbrauch fossil Bestand'!Y$6 -> 60.732942 | Z13: ='D-Eigenverbrauch fossil Bestand'!Z$6 -> 60.732942 | AA13: ='D-Eigenverbrauch fossil Bestand'!AA$6 -> 60.732942 | AB13: ='D-Eigenverbrauch fossil Bestand'!AB$6 -> 60.732942 | AC13: ='D-Eigenverbrauch fossil Bestand'!AC$6 -> 60.732942 | AD13: ='D-Eigenverbrauch fossil Bestand'!AD$6 -> 60.732942 | AE13: ='D-Eigenverbrauch fossil Bestand'!AE$6 -> 60.732942
A14: 14 | B14: ='D-Eigenverbrauch KWK Neue'!B$6 -> Referenz | C14: ='D-Eigenverbrauch KWK Neue'!C$6 -> fh | D14: ='D-Eigenverbrauch KWK Neue'!D$6 -> 2021: ÜNB-Umlageberechnungen bis 2025, danach konstant | E14: Eigenverbrauch KWK-Neuanlagen [TWh] | F14: ='D-Eigenverbrauch KWK Neue'!F$6 -> 0 | G14: ='D-Eigenverbrauch KWK Neue'!G$6 -> 0 | H14: ='D-Eigenverbrauch KWK Neue'!H$6 -> 0 | I14: ='D-Eigenverbrauch KWK Neue'!I$6 -> 0 | J14: ='D-Eigenverbrauch KWK Neue'!J$6 -> 0 | K14: ='D-Eigenverbrauch KWK Neue'!K$6 -> 0.2 | L14: ='D-Eigenverbrauch KWK Neue'!L$6 -> 0.527025 | M14: ='D-Eigenverbrauch KWK Neue'!M$6 -> 0.795378 | N14: ='D-Eigenverbrauch KWK Neue'!N$6 -> 1.245194 | O14: ='D-Eigenverbrauch KWK Neue'!O$6 -> 2.983814 | P14: ='D-Eigenverbrauch KWK Neue'!P$6 -> 3.285245 | Q14: ='D-Eigenverbrauch KWK Neue'!Q$6 -> 5.19422 | R14: ='D-Eigenverbrauch KWK Neue'!R$6 -> 5.45 | S14: ='D-Eigenverbrauch KWK Neue'!S$6 -> 5.68 | T14: ='D-Eigenverbrauch KWK Neue'!T$6 -> 5.9 | U14: ='D-Eigenverbrauch KWK Neue'!U$6 -> 6.11 | V14: ='D-Eigenverbrauch KWK Neue'!V$6 -> 6.11 | W14: ='D-Eigenverbrauch KWK Neue'!W$6 -> 6.11 | X14: ='D-Eigenverbrauch KWK Neue'!X$6 -> 6.11 | Y14: ='D-Eigenverbrauch KWK Neue'!Y$6 -> 6.11 | Z14: ='D-Eigenverbrauch KWK Neue'!Z$6 -> 6.11 | AA14: ='D-Eigenverbrauch KWK Neue'!AA$6 -> 6.11 | AB14: ='D-Eigenverbrauch KWK Neue'!AB$6 -> 6.11 | AC14: ='D-Eigenverbrauch KWK Neue'!AC$6 -> 6.11 | AD14: ='D-Eigenverbrauch KWK Neue'!AD$6 -> 6.11 | AE14: ='D-Eigenverbrauch KWK Neue'!AE$6 -> 6.11
A15: 15 | B15: ='D-Eigenverbrauch fossile Neue'!B$6 -> Referenz | C15: ='D-Eigenverbrauch fossile Neue'!C$6 -> fh | D15: ='D-Eigenverbrauch fossile Neue'!D$6 -> Kein Neubau | E15: Eigenverbrauch fossile Nicht-KWK-Neuanlagen [TWh] | F15: ='D-Eigenverbrauch fossile Neue'!F$6 -> 0 | G15: ='D-Eigenverbrauch fossile Neue'!G$6 -> 0 | H15: ='D-Eigenverbrauch fossile Neue'!H$6 -> 0 | I15: ='D-Eigenverbrauch fossile Neue'!I$6 -> 0 | J15: ='D-Eigenverbrauch fossile Neue'!J$6 -> 0 | K15: ='D-Eigenverbrauch fossile Neue'!K$6 -> 0 | L15: ='D-Eigenverbrauch fossile Neue'!L$6 -> 0 | M15: ='D-Eigenverbrauch fossile Neue'!M$6 -> 1.174589 | N15: ='D-Eigenverbrauch fossile Neue'!N$6 -> 1.543948 | O15: ='D-Eigenverbrauch fossile Neue'!O$6 -> 2.510765 | P15: ='D-Eigenverbrauch fossile Neue'!P$6 -> 3.656414 | Q15: ='D-Eigenverbrauch fossile Neue'!Q$6 -> 3.882754 | R15: ='D-Eigenverbrauch fossile Neue'!R$6 -> 3.882754 | S15: ='D-Eigenverbrauch fossile Neue'!S$6 -> 3.882754 | T15: ='D-Eigenverbrauch fossile Neue'!T$6 -> 3.882754 | U15: ='D-Eigenverbrauch fossile Neue'!U$6 -> 3.882754 | V15: ='D-Eigenverbrauch fossile Neue'!V$6 -> 3.882754 | W15: ='D-Eigenverbrauch fossile Neue'!W$6 -> 3.882754 | X15: ='D-Eigenverbrauch fossile Neue'!X$6 -> 3.882754 | Y15: ='D-Eigenverbrauch fossile Neue'!Y$6 -> 3.882754 | Z15: ='D-Eigenverbrauch fossile Neue'!Z$6 -> 3.882754 | AA15: ='D-Eigenverbrauch fossile Neue'!AA$6 -> 3.882754 | AB15: ='D-Eigenverbrauch fossile Neue'!AB$6 -> 3.882754 | AC15: ='D-Eigenverbrauch fossile Neue'!AC$6 -> 3.882754 | AD15: ='D-Eigenverbrauch fossile Neue'!AD$6 -> 3.882754 | AE15: ='D-Eigenverbrauch fossile Neue'!AE$6 -> 3.882754
A16: 16 | B16: ='D-Grünstromprivileg'!B$6 -> Referenz | C16: ='D-Grünstromprivileg'!C$6 -> mh | D16: ='D-Grünstromprivileg'!D$6 -> ÜNB-Jahresprognosen und Prognos 2012; ab 2015 kein Grünstromprivileg mehr | E16: Strommenge Grünstromprivileg [TWh] | F16: ='D-Grünstromprivileg'!F$6 -> 0 | G16: ='D-Grünstromprivileg'!G$6 -> 24.66405964 | H16: ='D-Grünstromprivileg'!H$6 -> 6.318851 | I16: ='D-Grünstromprivileg'!I$6 -> 2.598343 | J16: ='D-Grünstromprivileg'!J$6 -> 5.97724 | K16: ='D-Grünstromprivileg'!K$6 -> 0 | L16: ='D-Grünstromprivileg'!L$6 -> 0 | M16: ='D-Grünstromprivileg'!M$6 -> 0 | N16: ='D-Grünstromprivileg'!N$6 -> 0 | O16: ='D-Grünstromprivileg'!O$6 -> 0 | P16: ='D-Grünstromprivileg'!P$6 -> 0 | Q16: ='D-Grünstromprivileg'!Q$6 -> 0 | R16: ='D-Grünstromprivileg'!R$6 -> 0 | S16: ='D-Grünstromprivileg'!S$6 -> 0 | T16: ='D-Grünstromprivileg'!T$6 -> 0 | U16: ='D-Grünstromprivileg'!U$6 -> 0 | V16: ='D-Grünstromprivileg'!V$6 -> 0 | W16: ='D-Grünstromprivileg'!W$6 -> 0 | X16: ='D-Grünstromprivileg'!X$6 -> 0 | Y16: ='D-Grünstromprivileg'!Y$6 -> 0 | Z16: ='D-Grünstromprivileg'!Z$6 -> 0 | AA16: ='D-Grünstromprivileg'!AA$6 -> 0 | AB16: ='D-Grünstromprivileg'!AB$6 -> 0 | AC16: ='D-Grünstromprivileg'!AC$6 -> 0 | AD16: ='D-Grünstromprivileg'!AD$6 -> 0 | AE16: ='D-Grünstromprivileg'!AE$6 -> 0
A17: 17 | B17: ='D-Umlage priv. Letztverbrauch'!B$6 -> Referenz | C17: ='D-Umlage priv. Letztverbrauch'!C$6 -> dr | D17: ='D-Umlage priv. Letztverbrauch'!D$6 -> 15% (gem. EEG 2021) | E17: Anteil an Umlage für privilegierte Letztverbraucher [-] | F17: ='D-Umlage priv. Letztverbrauch'!F$6 -> 0.02442100672 | G17: ='D-Umlage priv. Letztverbrauch'!G$6 -> 0.01416149742 | H17: ='D-Umlage priv. Letztverbrauch'!H$6 -> 0.01392026463 | I17: ='D-Umlage priv. Letztverbrauch'!I$6 -> 0.006442107438 | J17: ='D-Umlage priv. Letztverbrauch'!J$6 -> 0.02083534312 | K17: ='D-Umlage priv. Letztverbrauch'!K$6 -> 0.15 | L17: ='D-Umlage priv. Letztverbrauch'!L$6 -> 0.15 | M17: ='D-Umlage priv. Letztverbrauch'!M$6 -> 0.15 | N17: ='D-Umlage priv. Letztverbrauch'!N$6 -> 0.15 | O17: ='D-Umlage priv. Letztverbrauch'!O$6 -> 0.15 | P17: ='D-Umlage priv. Letztverbrauch'!P$6 -> 0.15 | Q17: ='D-Umlage priv. Letztverbrauch'!Q$6 -> 0.15 | R17: ='D-Umlage priv. Letztverbrauch'!R$6 -> 0.15 | S17: ='D-Umlage priv. Letztverbrauch'!S$6 -> 0.15 | T17: ='D-Umlage priv. Letztverbrauch'!T$6 -> 0.15 | U17: ='D-Umlage priv. Letztverbrauch'!U$6 -> 0.15 | V17: ='D-Umlage priv. Letztverbrauch'!V$6 -> 0.15 | W17: ='D-Umlage priv. Letztverbrauch'!W$6 -> 0.15 | X17: ='D-Umlage priv. Letztverbrauch'!X$6 -> 0.15 | Y17: ='D-Umlage priv. Letztverbrauch'!Y$6 -> 0.15 | Z17: ='D-Umlage priv. Letztverbrauch'!Z$6 -> 0.15 | AA17: ='D-Umlage priv. Letztverbrauch'!AA$6 -> 0.15 | AB17: ='D-Umlage priv. Letztverbrauch'!AB$6 -> 0.15 | AC17: ='D-Umlage priv. Letztverbrauch'!AC$6 -> 0.15 | AD17: ='D-Umlage priv. Letztverbrauch'!AD$6 -> 0.15 | AE17: ='D-Umlage priv. Letztverbrauch'!AE$6 -> 0.15
A18: 18 | B18: ='D-Faktor Zusatzprivilegierung'!B$6 -> Referenz | C18: ='D-Faktor Zusatzprivilegierung'!C$6 -> fh | D18: ='D-Faktor Zusatzprivilegierung'!D$6 -> Bis 2021: ÜNB-Umlageberechnungen, danach konstant (wirkt wie vollständige Befreiung von 62% des priv. LV) | E18: Faktor für zusätzliche Privilegierungsmechanismen [-] | F18: ='D-Faktor Zusatzprivilegierung'!F$6 -> 0 | G18: ='D-Faktor Zusatzprivilegierung'!G$6 -> 0 | H18: ='D-Faktor Zusatzprivilegierung'!H$6 -> 0 | I18: ='D-Faktor Zusatzprivilegierung'!I$6 -> 0 | J18: ='D-Faktor Zusatzprivilegierung'!J$6 -> 0 | K18: ='D-Faktor Zusatzprivilegierung'!K$6 -> 0.534 | L18: ='D-Faktor Zusatzprivilegierung'!L$6 -> 0.502 | M18: ='D-Faktor Zusatzprivilegierung'!M$6 -> 0.6195660665 | N18: ='D-Faktor Zusatzprivilegierung'!N$6 -> 0.5998245758 | O18: ='D-Faktor Zusatzprivilegierung'!O$6 -> 0.6179680673 | P18: ='D-Faktor Zusatzprivilegierung'!P$6 -> 0.6223524931 | Q18: ='D-Faktor Zusatzprivilegierung'!Q$6 -> 0.6181753274 | R18: ='D-Faktor Zusatzprivilegierung'!R$6 -> 0.6181753274 | S18: ='D-Faktor Zusatzprivilegierung'!S$6 -> 0.6181753274 | T18: ='D-Faktor Zusatzprivilegierung'!T$6 -> 0.6181753274 | U18: ='D-Faktor Zusatzprivilegierung'!U$6 -> 0.6181753274 | V18: ='D-Faktor Zusatzprivilegierung'!V$6 -> 0.6181753274 | W18: ='D-Faktor Zusatzprivilegierung'!W$6 -> 0.6181753274 | X18: ='D-Faktor Zusatzprivilegierung'!X$6 -> 0.6181753274 | Y18: ='D-Faktor Zusatzprivilegierung'!Y$6 -> 0.6181753274 | Z18: ='D-Faktor Zusatzprivilegierung'!Z$6 -> 0.6181753274 | AA18: ='D-Faktor Zusatzprivilegierung'!AA$6 -> 0.6181753274 | AB18: ='D-Faktor Zusatzprivilegierung'!AB$6 -> 0.6181753274 | AC18: ='D-Faktor Zusatzprivilegierung'!AC$6 -> 0.6181753274 | AD18: ='D-Faktor Zusatzprivilegierung'!AD$6 -> 0.6181753274 | AE18: ='D-Faktor Zusatzprivilegierung'!AE$6 -> 0.6181753274
A19: 19 | E19: Anteil an Umlage für Eigenverbrauch aus Bestandsanlagen [-] | F19: ='D-Umlage EV Bestand'!F$6 -> 0 | G19: ='D-Umlage EV Bestand'!G$6 -> 0 | H19: ='D-Umlage EV Bestand'!H$6 -> 0 | I19: ='D-Umlage EV Bestand'!I$6 -> 0 | J19: ='D-Umlage EV Bestand'!J$6 -> 0 | K19: ='D-Umlage EV Bestand'!K$6 -> 0 | L19: ='D-Umlage EV Bestand'!L$6 -> 0 | M19: ='D-Umlage EV Bestand'!M$6 -> 0 | N19: ='D-Umlage EV Bestand'!N$6 -> 0 | O19: ='D-Umlage EV Bestand'!O$6 -> 0 | P19: ='D-Umlage EV Bestand'!P$6 -> 0 | Q19: ='D-Umlage EV Bestand'!Q$6 -> 0 | R19: ='D-Umlage EV Bestand'!R$6 -> 0 | S19: ='D-Umlage EV Bestand'!S$6 -> 0 | T19: ='D-Umlage EV Bestand'!T$6 -> 0 | U19: ='D-Umlage EV Bestand'!U$6 -> 0 | V19: ='D-Umlage EV Bestand'!V$6 -> 0 | W19: ='D-Umlage EV Bestand'!W$6 -> 0 | X19: ='D-Umlage EV Bestand'!X$6 -> 0 | Y19: ='D-Umlage EV Bestand'!Y$6 -> 0 | Z19: ='D-Umlage EV Bestand'!Z$6 -> 0 | AA19: ='D-Umlage EV Bestand'!AA$6 -> 0 | AB19: ='D-Umlage EV Bestand'!AB$6 -> 0 | AC19: ='D-Umlage EV Bestand'!AC$6 -> 0 | AD19: ='D-Umlage EV Bestand'!AD$6 -> 0 | AE19: ='D-Umlage EV Bestand'!AE$6 -> 0 | AF19: v2.1.4 | AG19: v2.1.4
A20: 20 | B20: ='D-Umlage Eigenverbrauch PV+KWK'!B$6 -> Referenz | C20: ='D-Umlage Eigenverbrauch PV+KWK'!C$6 -> mh | D20: ='D-Umlage Eigenverbrauch PV+KWK'!D$6 -> gem. EEG 2017, ab 2020 konstant 38% | E20: Anteil an Umlage für Eigenverbrauch aus Solar- und KWK-Neuanlagen [-] | F20: ='D-Umlage Eigenverbrauch PV+KWK'!F$6 -> 0 | G20: ='D-Umlage Eigenverbrauch PV+KWK'!G$6 -> 0 | H20: ='D-Umlage Eigenverbrauch PV+KWK'!H$6 -> 0 | I20: ='D-Umlage Eigenverbrauch PV+KWK'!I$6 -> 0 | J20: ='D-Umlage Eigenverbrauch PV+KWK'!J$6 -> 0 | K20: ='D-Umlage Eigenverbrauch PV+KWK'!K$6 -> 0.3 | L20: ='D-Umlage Eigenverbrauch PV+KWK'!L$6 -> 0.35 | M20: ='D-Umlage Eigenverbrauch PV+KWK'!M$6 -> 0.4000006278 | N20: ='D-Umlage Eigenverbrauch PV+KWK'!N$6 -> 0.3364070369 | O20: ='D-Umlage Eigenverbrauch PV+KWK'!O$6 -> 0.3629670815 | P20: ='D-Umlage Eigenverbrauch PV+KWK'!P$6 -> 0.3770701124 | Q20: ='D-Umlage Eigenverbrauch PV+KWK'!Q$6 -> 0.3770701124 | R20: ='D-Umlage Eigenverbrauch PV+KWK'!R$6 -> 0.3770701124 | S20: ='D-Umlage Eigenverbrauch PV+KWK'!S$6 -> 0.3770701124 | T20: ='D-Umlage Eigenverbrauch PV+KWK'!T$6 -> 0.3770701124 | U20: ='D-Umlage Eigenverbrauch PV+KWK'!U$6 -> 0.3770701124 | V20: ='D-Umlage Eigenverbrauch PV+KWK'!V$6 -> 0.3770701124 | W20: ='D-Umlage Eigenverbrauch PV+KWK'!W$6 -> 0.3770701124 | X20: ='D-Umlage Eigenverbrauch PV+KWK'!X$6 -> 0.3770701124 | Y20: ='D-Umlage Eigenverbrauch PV+KWK'!Y$6 -> 0.3770701124 | Z20: ='D-Umlage Eigenverbrauch PV+KWK'!Z$6 -> 0.3770701124 | AA20: ='D-Umlage Eigenverbrauch PV+KWK'!AA$6 -> 0.3770701124 | AB20: ='D-Umlage Eigenverbrauch PV+KWK'!AB$6 -> 0.3770701124 | AC20: ='D-Umlage Eigenverbrauch PV+KWK'!AC$6 -> 0.3770701124 | AD20: ='D-Umlage Eigenverbrauch PV+KWK'!AD$6 -> 0.3770701124 | AE20: ='D-Umlage Eigenverbrauch PV+KWK'!AE$6 -> 0.3770701124
A21: 21 | B21: ='D-Umlage Eigenverb fossile Neue'!B$6 -> Referenz | C21: ='D-Umlage Eigenverb fossile Neue'!C$6 -> mh | D21: ='D-Umlage Eigenverb fossile Neue'!D$6 -> 100% (gem. EEG 2014) | E21: Anteil an Umlage für Eigenverbrauch aus fossilen Nicht-KWK-Neuanlagen [-] | F21: ='D-Umlage Eigenverb fossile Neue'!F$6 -> 0 | G21: ='D-Umlage Eigenverb fossile Neue'!G$6 -> 0 | H21: ='D-Umlage Eigenverb fossile Neue'!H$6 -> 0 | I21: ='D-Umlage Eigenverb fossile Neue'!I$6 -> 0 | J21: ='D-Umlage Eigenverb fossile Neue'!J$6 -> 0 | K21: ='D-Umlage Eigenverb fossile Neue'!K$6 -> 1 | L21: ='D-Umlage Eigenverb fossile Neue'!L$6 -> 1 | M21: ='D-Umlage Eigenverb fossile Neue'!M$6 -> 1 | N21: ='D-Umlage Eigenverb fossile Neue'!N$6 -> 1 | O21: ='D-Umlage Eigenverb fossile Neue'!O$6 -> 1 | P21: ='D-Umlage Eigenverb fossile Neue'!P$6 -> 1 | Q21: ='D-Umlage Eigenverb fossile Neue'!Q$6 -> 1 | R21: ='D-Umlage Eigenverb fossile Neue'!R$6 -> 1 | S21: ='D-Umlage Eigenverb fossile Neue'!S$6 -> 1 | T21: ='D-Umlage Eigenverb fossile Neue'!T$6 -> 1 | U21: ='D-Umlage Eigenverb fossile Neue'!U$6 -> 1 | V21: ='D-Umlage Eigenverb fossile Neue'!V$6 -> 1 | W21: ='D-Umlage Eigenverb fossile Neue'!W$6 -> 1 | X21: ='D-Umlage Eigenverb fossile Neue'!X$6 -> 1 | Y21: ='D-Umlage Eigenverb fossile Neue'!Y$6 -> 1 | Z21: ='D-Umlage Eigenverb fossile Neue'!Z$6 -> 1 | AA21: ='D-Umlage Eigenverb fossile Neue'!AA$6 -> 1 | AB21: ='D-Umlage Eigenverb fossile Neue'!AB$6 -> 1 | AC21: ='D-Umlage Eigenverb fossile Neue'!AC$6 -> 1 | AD21: ='D-Umlage Eigenverb fossile Neue'!AD$6 -> 1 | AE21: ='D-Umlage Eigenverb fossile Neue'!AE$6 -> 1
A22: 22 | B22: ='D-Umlagereduktion Grünstrom'!B$6 -> Referenz | C22: ='D-Umlagereduktion Grünstrom'!C$6 -> mh | D22: ='D-Umlagereduktion Grünstrom'!D$6 -> ÜNB-Jahresprognosen. Abzug von Umlage in Höhe der Umlage (100% Befreiung) von 2009-2011, Abzug von 2ct/kWh in 2012 und 2013. | E22: Umlagereduktion Grünstromprivileg (nominal) [Euro/MWh] | F22: ='D-Umlagereduktion Grünstrom'!F$6 -> 20.47 | G22: ='D-Umlagereduktion Grünstrom'!G$6 -> 35.31 | H22: ='D-Umlagereduktion Grünstrom'!H$6 -> 20 | I22: ='D-Umlagereduktion Grünstrom'!I$6 -> 20 | J22: ='D-Umlagereduktion Grünstrom'!J$6 -> 20 | K22: ='D-Umlagereduktion Grünstrom'!K$6 -> 0 | L22: ='D-Umlagereduktion Grünstrom'!L$6 -> 0 | M22: ='D-Umlagereduktion Grünstrom'!M$6 -> 0 | N22: ='D-Umlagereduktion Grünstrom'!N$6 -> 0 | O22: ='D-Umlagereduktion Grünstrom'!O$6 -> 0 | P22: ='D-Umlagereduktion Grünstrom'!P$6 -> 0 | Q22: ='D-Umlagereduktion Grünstrom'!Q$6 -> 0 | R22: ='D-Umlagereduktion Grünstrom'!R$6 -> 0 | S22: ='D-Umlagereduktion Grünstrom'!S$6 -> 0 | T22: ='D-Umlagereduktion Grünstrom'!T$6 -> 0 | U22: ='D-Umlagereduktion Grünstrom'!U$6 -> 0 | V22: ='D-Umlagereduktion Grünstrom'!V$6 -> 0 | W22: ='D-Umlagereduktion Grünstrom'!W$6 -> 0 | X22: ='D-Umlagereduktion Grünstrom'!X$6 -> 0 | Y22: ='D-Umlagereduktion Grünstrom'!Y$6 -> 0 | Z22: ='D-Umlagereduktion Grünstrom'!Z$6 -> 0 | AA22: ='D-Umlagereduktion Grünstrom'!AA$6 -> 0 | AB22: ='D-Umlagereduktion Grünstrom'!AB$6 -> 0 | AC22: ='D-Umlagereduktion Grünstrom'!AC$6 -> 0 | AD22: ='D-Umlagereduktion Grünstrom'!AD$6 -> 0 | AE22: ='D-Umlagereduktion Grünstrom'!AE$6 -> 0
A23: 23 | B23: ='D-vermiedene Netzentgelte'!B$6 -> Referenz | C23: ='D-vermiedene Netzentgelte'!C$6 -> fh | D23: ='D-vermiedene Netzentgelte'!D$6 -> 7.17€/MWh | E23: vermiedene Netzentgelte (nominal für historische Jahre, real für Prognosejahre) [Euro/MWh] | F23: ='D-vermiedene Netzentgelte'!F$6 -> 3.698627412 | G23: ='D-vermiedene Netzentgelte'!G$6 -> 3.676230397 | H23: ='D-vermiedene Netzentgelte'!H$6 -> 3.846630986 | I23: ='D-vermiedene Netzentgelte'!I$6 -> 3.727312213 | J23: ='D-vermiedene Netzentgelte'!J$6 -> 4.64602457 | K23: ='D-vermiedene Netzentgelte'!K$6 -> 4.663187232 | L23: ='D-vermiedene Netzentgelte'!L$6 -> 4.819160449 | M23: ='D-vermiedene Netzentgelte'!M$6 -> 7.723124279 | N23: ='D-vermiedene Netzentgelte'!N$6 -> 6.339184159 | O23: ='D-vermiedene Netzentgelte'!O$6 -> 7.382119303 | P23: ='D-vermiedene Netzentgelte'!P$6 -> 7.057532473 | Q23: ='D-vermiedene Netzentgelte'!Q$6 -> 7.172709019 | R23: ='D-vermiedene Netzentgelte'!R$6 -> 7.172709019 | S23: ='D-vermiedene Netzentgelte'!S$6 -> 7.172709019 | T23: ='D-vermiedene Netzentgelte'!T$6 -> 7.172709019 | U23: ='D-vermiedene Netzentgelte'!U$6 -> 7.172709019 | V23: ='D-vermiedene Netzentgelte'!V$6 -> 7.172709019 | W23: ='D-vermiedene Netzentgelte'!W$6 -> 7.172709019 | X23: ='D-vermiedene Netzentgelte'!X$6 -> 7.172709019 | Y23: ='D-vermiedene Netzentgelte'!Y$6 -> 7.172709019 | Z23: ='D-vermiedene Netzentgelte'!Z$6 -> 7.172709019 | AA23: ='D-vermiedene Netzentgelte'!AA$6 -> 7.172709019 | AB23: ='D-vermiedene Netzentgelte'!AB$6 -> 7.172709019 | AC23: ='D-vermiedene Netzentgelte'!AC$6 -> 7.172709019 | AD23: ='D-vermiedene Netzentgelte'!AD$6 -> 7.172709019 | AE23: ='D-vermiedene Netzentgelte'!AE$6 -> 7.172709019
A24: 24 | B24: ='D-Sonstige Kosten'!B$6 -> Referenz | C24: ='D-Sonstige Kosten'!C$6 -> fh | D24: ='D-Sonstige Kosten'!D$6 -> 0,06Mrd. € | E24: sonstige Kosten (nominal für historische Jahre, real für Prognosejahre) [Mrd. Euro] | F24: ='D-Sonstige Kosten'!F$6 -> 0.3845 | G24: ='D-Sonstige Kosten'!G$6 -> 0.4221886599 | H24: ='D-Sonstige Kosten'!H$6 -> 0.230288671 | I24: ='D-Sonstige Kosten'!I$6 -> 0.1546612268 | J24: ='D-Sonstige Kosten'!J$6 -> 0.2988769713 | K24: ='D-Sonstige Kosten'!K$6 -> 0.1959514004 | L24: ='D-Sonstige Kosten'!L$6 -> 0.1390830771 | M24: ='D-Sonstige Kosten'!M$6 -> 0.1434074174 | N24: ='D-Sonstige Kosten'!N$6 -> 0.06812218889 | O24: ='D-Sonstige Kosten'!O$6 -> 0.07040465373 | P24: ='D-Sonstige Kosten'!P$6 -> 0.06416789545 | Q24: ='D-Sonstige Kosten'!Q$6 -> 0.059920528 | R24: ='D-Sonstige Kosten'!R$6 -> 0.059920528 | S24: ='D-Sonstige Kosten'!S$6 -> 0.059920528 | T24: ='D-Sonstige Kosten'!T$6 -> 0.059920528 | U24: ='D-Sonstige Kosten'!U$6 -> 0.059920528 | V24: ='D-Sonstige Kosten'!V$6 -> 0.059920528 | W24: ='D-Sonstige Kosten'!W$6 -> 0.059920528 | X24: ='D-Sonstige Kosten'!X$6 -> 0.059920528 | Y24: ='D-Sonstige Kosten'!Y$6 -> 0.059920528 | Z24: ='D-Sonstige Kosten'!Z$6 -> 0.059920528 | AA24: ='D-Sonstige Kosten'!AA$6 -> 0.059920528 | AB24: ='D-Sonstige Kosten'!AB$6 -> 0.059920528 | AC24: ='D-Sonstige Kosten'!AC$6 -> 0.059920528 | AD24: ='D-Sonstige Kosten'!AD$6 -> 0.059920528 | AE24: ='D-Sonstige Kosten'!AE$6 -> 0.059920528
A25: 25 | E25: jährliche Inflationsrate [-] | F25: ='D-Inflationsrate'!F6 -> 0.011 | G25: ='D-Inflationsrate'!G6 -> 0.021 | H25: ='D-Inflationsrate'!H6 -> 0.02 | I25: ='D-Inflationsrate'!I6 -> 0.015 | J25: ='D-Inflationsrate'!J6 -> 0.009 | K25: ='D-Inflationsrate'!K6 -> 0.003 | L25: ='D-Inflationsrate'!L6 -> 0.015 | M25: ='D-Inflationsrate'!M6 -> 0.015 | N25: ='D-Inflationsrate'!N6 -> 0.015 | O25: ='D-Inflationsrate'!O6 -> 0.015 | P25: ='D-Inflationsrate'!P6 -> 0.015 | Q25: ='D-Inflationsrate'!Q6 -> 0.015 | R25: ='D-Inflationsrate'!R6 -> 0.015 | S25: ='D-Inflationsrate'!S6 -> 0.015 | T25: ='D-Inflationsrate'!T6 -> 0.015 | U25: ='D-Inflationsrate'!U6 -> 0.015 | V25: ='D-Inflationsrate'!V6 -> 0.015 | W25: ='D-Inflationsrate'!W6 -> 0.015 | X25: ='D-Inflationsrate'!X6 -> 0.015 | Y25: ='D-Inflationsrate'!Y6 -> 0.015 | Z25: ='D-Inflationsrate'!Z6 -> 0.015 | AA25: ='D-Inflationsrate'!AA6 -> 0.015 | AB25: ='D-Inflationsrate'!AB6 -> 0.015 | AC25: ='D-Inflationsrate'!AC6 -> 0.015 | AD25: ='D-Inflationsrate'!AD6 -> 0.015 | AE25: ='D-Inflationsrate'!AE6 -> 0.015 | AF25: v2.1.11 | AG25: v2.1.11
A26: 26 | E26: Umrechnungsfaktor real zu nominal [-] | F26: =IF(F5<ControlPanel!$D$60,G26/(1+G25),IF(F5>ControlPanel!$D$60,E26*(1+F25),1)) -> 0.8549086103 | G26: =IF(G5<ControlPanel!$D$60,H26/(1+H25),IF(G5>ControlPanel!$D$60,F26*(1+G25),1)) -> 0.8728616911 | H26: =IF(H5<ControlPanel!$D$60,I26/(1+I25),IF(H5>ControlPanel!$D$60,G26*(1+H25),1)) -> 0.8903189249 | I26: =IF(I5<ControlPanel!$D$60,J26/(1+J25),IF(I5>ControlPanel!$D$60,H26*(1+I25),1)) -> 0.9036737088 | J26: =IF(J5<ControlPanel!$D$60,K26/(1+K25),IF(J5>ControlPanel!$D$60,I26*(1+J25),1)) -> 0.9118067722 | K26: =IF(K5<ControlPanel!$D$60,L26/(1+L25),IF(K5>ControlPanel!$D$60,J26*(1+K25),1)) -> 0.9145421925 | L26: =IF(L5<ControlPanel!$D$60,M26/(1+M25),IF(L5>ControlPanel!$D$60,K26*(1+L25),1)) -> 0.9282603254 | M26: =IF(M5<ControlPanel!$D$60,N26/(1+N25),IF(M5>ControlPanel!$D$60,L26*(1+M25),1)) -> 0.9421842303 | N26: =IF(N5<ControlPanel!$D$60,O26/(1+O25),IF(N5>ControlPanel!$D$60,M26*(1+N25),1)) -> 0.9563169937 | O26: =IF(O5<ControlPanel!$D$60,P26/(1+P25),IF(O5>ControlPanel!$D$60,N26*(1+O25),1)) -> 0.9706617486 | P26: =IF(P5<ControlPanel!$D$60,Q26/(1+Q25),IF(P5>ControlPanel!$D$60,O26*(1+P25),1)) -> 0.9852216749 | Q26: =IF(Q5<ControlPanel!$D$60,R26/(1+R25),IF(Q5>ControlPanel!$D$60,P26*(1+Q25),1)) -> 1 | R26: =IF(R5<ControlPanel!$D$60,S26/(1+S25),IF(R5>ControlPanel!$D$60,Q26*(1+R25),1)) -> 1.015 | S26: =IF(S5<ControlPanel!$D$60,T26/(1+T25),IF(S5>ControlPanel!$D$60,R26*(1+S25),1)) -> 1.030225 | T26: =IF(T5<ControlPanel!$D$60,U26/(1+U25),IF(T5>ControlPanel!$D$60,S26*(1+T25),1)) -> 1.045678375 | U26: =IF(U5<ControlPanel!$D$60,V26/(1+V25),IF(U5>ControlPanel!$D$60,T26*(1+U25),1)) -> 1.061363551 | V26: =IF(V5<ControlPanel!$D$60,W26/(1+W25),IF(V5>ControlPanel!$D$60,U26*(1+V25),1)) -> 1.077284004 | W26: =IF(W5<ControlPanel!$D$60,X26/(1+X25),IF(W5>ControlPanel!$D$60,V26*(1+W25),1)) -> 1.093443264 | X26: =IF(X5<ControlPanel!$D$60,Y26/(1+Y25),IF(X5>ControlPanel!$D$60,W26*(1+X25),1)) -> 1.109844913 | Y26: =IF(Y5<ControlPanel!$D$60,Z26/(1+Z25),IF(Y5>ControlPanel!$D$60,X26*(1+Y25),1)) -> 1.126492587 | Z26: =IF(Z5<ControlPanel!$D$60,AA26/(1+AA25),IF(Z5>ControlPanel!$D$60,Y26*(1+Z25),1)) -> 1.143389975 | AA26: =IF(AA5<ControlPanel!$D$60,AB26/(1+AB25),IF(AA5>ControlPanel!$D$60,Z26*(1+AA25),1)) -> 1.160540825 | AB26: =IF(AB5<ControlPanel!$D$60,AC26/(1+AC25),IF(AB5>ControlPanel!$D$60,AA26*(1+AB25),1)) -> 1.177948937 | AC26: =IF(AC5<ControlPanel!$D$60,AD26/(1+AD25),IF(AC5>ControlPanel!$D$60,AB26*(1+AC25),1)) -> 1.195618171 | AD26: =IF(AD5<ControlPanel!$D$60,AE26/(1+AE25),IF(AD5>ControlPanel!$D$60,AC26*(1+AD25),1)) -> 1.213552444 | AE26: =IF(AE5<ControlPanel!$D$60,AF26/(1+AF25),IF(AE5>ControlPanel!$D$60,AD26*(1+AE25),1)) -> 1.231755731 | AF26: v3.1.3 | AG26: v2.1.11 | AJ26: mit diesem Faktor werden reale Zahlungen (bezugsjahr 2015) multipliziert, um sie in nominale Zahlungen umzurechnen.
A27: 27
A28: 28 | E28: Profilfaktoren [-]
A29: 29 | B29: =#REF! ->  | C29: =#REF! ->  | D29: =#REF! ->  | E29: Wasser | F29: ='D-Profilfaktoren'!G$6 -> 1 | G29: ='D-Profilfaktoren'!H$6 -> 1 | H29: ='D-Profilfaktoren'!I$6 -> 1 | I29: ='D-Profilfaktoren'!J$6 -> 1 | J29: ='D-Profilfaktoren'!K$6 -> 1 | K29: ='D-Profilfaktoren'!L$6 -> 1 | L29: ='D-Profilfaktoren'!M$6 -> 1 | M29: ='D-Profilfaktoren'!N$6 -> 1 | N29: ='D-Profilfaktoren'!O$6 -> 1 | O29: ='D-Profilfaktoren'!P$6 -> 1 | P29: ='D-Profilfaktoren'!Q$6 -> 1 | Q29: ='D-Profilfaktoren'!R$6 -> 1 | R29: ='D-Profilfaktoren'!S$6 -> 1 | S29: ='D-Profilfaktoren'!T$6 -> 1 | T29: ='D-Profilfaktoren'!U$6 -> 1 | U29: ='D-Profilfaktoren'!V$6 -> 1 | V29: ='D-Profilfaktoren'!W$6 -> 1 | W29: ='D-Profilfaktoren'!X$6 -> 1 | X29: ='D-Profilfaktoren'!Y$6 -> 1 | Y29: ='D-Profilfaktoren'!Z$6 -> 1 | Z29: ='D-Profilfaktoren'!AA$6 -> 1 | AA29: ='D-Profilfaktoren'!AB$6 -> 1 | AB29: ='D-Profilfaktoren'!AC$6 -> 1 | AC29: ='D-Profilfaktoren'!AD$6 -> 1 | AD29: ='D-Profilfaktoren'!AE$6 -> 1 | AE29: ='D-Profilfaktoren'!AF$6 -> 1
A30: 30 | B30: =#REF! ->  | C30: =#REF! ->  | D30: =#REF! ->  | E30: Gas | F30: ='D-Profilfaktoren'!G$7 -> 1 | G30: ='D-Profilfaktoren'!H$7 -> 1 | H30: ='D-Profilfaktoren'!I$7 -> 1 | I30: ='D-Profilfaktoren'!J$7 -> 1 | J30: ='D-Profilfaktoren'!K$7 -> 1 | K30: ='D-Profilfaktoren'!L$7 -> 1 | L30: ='D-Profilfaktoren'!M$7 -> 1 | M30: ='D-Profilfaktoren'!N$7 -> 1 | N30: ='D-Profilfaktoren'!O$7 -> 1 | O30: ='D-Profilfaktoren'!P$7 -> 1 | P30: ='D-Profilfaktoren'!Q$7 -> 1 | Q30: ='D-Profilfaktoren'!R$7 -> 1 | R30: ='D-Profilfaktoren'!S$7 -> 1 | S30: ='D-Profilfaktoren'!T$7 -> 1 | T30: ='D-Profilfaktoren'!U$7 -> 1 | U30: ='D-Profilfaktoren'!V$7 -> 1 | V30: ='D-Profilfaktoren'!W$7 -> 1 | W30: ='D-Profilfaktoren'!X$7 -> 1 | X30: ='D-Profilfaktoren'!Y$7 -> 1 | Y30: ='D-Profilfaktoren'!Z$7 -> 1 | Z30: ='D-Profilfaktoren'!AA$7 -> 1 | AA30: ='D-Profilfaktoren'!AB$7 -> 1 | AB30: ='D-Profilfaktoren'!AC$7 -> 1 | AC30: ='D-Profilfaktoren'!AD$7 -> 1 | AD30: ='D-Profilfaktoren'!AE$7 -> 1 | AE30: ='D-Profilfaktoren'!AF$7 -> 1
A31: 31 | B31: =#REF! ->  | C31: =#REF! ->  | D31: =#REF! ->  | E31: Biomasse | F31: ='D-Profilfaktoren'!G$8 -> 1 | G31: ='D-Profilfaktoren'!H$8 -> 1 | H31: ='D-Profilfaktoren'!I$8 -> 1 | I31: ='D-Profilfaktoren'!J$8 -> 1 | J31: ='D-Profilfaktoren'!K$8 -> 1 | K31: ='D-Profilfaktoren'!L$8 -> 1 | L31: ='D-Profilfaktoren'!M$8 -> 1 | M31: ='D-Profilfaktoren'!N$8 -> 1 | N31: ='D-Profilfaktoren'!O$8 -> 1 | O31: ='D-Profilfaktoren'!P$8 -> 1 | P31: ='D-Profilfaktoren'!Q$8 -> 1 | Q31: ='D-Profilfaktoren'!R$8 -> 1 | R31: ='D-Profilfaktoren'!S$8 -> 1 | S31: ='D-Profilfaktoren'!T$8 -> 1 | T31: ='D-Profilfaktoren'!U$8 -> 1 | U31: ='D-Profilfaktoren'!V$8 -> 1 | V31: ='D-Profilfaktoren'!W$8 -> 1 | W31: ='D-Profilfaktoren'!X$8 -> 1 | X31: ='D-Profilfaktoren'!Y$8 -> 1 | Y31: ='D-Profilfaktoren'!Z$8 -> 1 | Z31: ='D-Profilfaktoren'!AA$8 -> 1 | AA31: ='D-Profilfaktoren'!AB$8 -> 1 | AB31: ='D-Profilfaktoren'!AC$8 -> 1 | AC31: ='D-Profilfaktoren'!AD$8 -> 1 | AD31: ='D-Profilfaktoren'!AE$8 -> 1 | AE31: ='D-Profilfaktoren'!AF$8 -> 1
A32: 32 | B32: =#REF! ->  | C32: =#REF! ->  | D32: =#REF! ->  | E32: Geothermie | F32: ='D-Profilfaktoren'!G$9 -> 1 | G32: ='D-Profilfaktoren'!H$9 -> 1 | H32: ='D-Profilfaktoren'!I$9 -> 1 | I32: ='D-Profilfaktoren'!J$9 -> 1 | J32: ='D-Profilfaktoren'!K$9 -> 1 | K32: ='D-Profilfaktoren'!L$9 -> 1 | L32: ='D-Profilfaktoren'!M$9 -> 1 | M32: ='D-Profilfaktoren'!N$9 -> 1 | N32: ='D-Profilfaktoren'!O$9 -> 1 | O32: ='D-Profilfaktoren'!P$9 -> 1 | P32: ='D-Profilfaktoren'!Q$9 -> 1 | Q32: ='D-Profilfaktoren'!R$9 -> 1 | R32: ='D-Profilfaktoren'!S$9 -> 1 | S32: ='D-Profilfaktoren'!T$9 -> 1 | T32: ='D-Profilfaktoren'!U$9 -> 1 | U32: ='D-Profilfaktoren'!V$9 -> 1 | V32: ='D-Profilfaktoren'!W$9 -> 1 | W32: ='D-Profilfaktoren'!X$9 -> 1 | X32: ='D-Profilfaktoren'!Y$9 -> 1 | Y32: ='D-Profilfaktoren'!Z$9 -> 1 | Z32: ='D-Profilfaktoren'!AA$9 -> 1 | AA32: ='D-Profilfaktoren'!AB$9 -> 1 | AB32: ='D-Profilfaktoren'!AC$9 -> 1 | AC32: ='D-Profilfaktoren'!AD$9 -> 1 | AD32: ='D-Profilfaktoren'!AE$9 -> 1 | AE32: ='D-Profilfaktoren'!AF$9 -> 1
A33: 33 | B33: =#REF! ->  | C33: =#REF! ->  | D33: =#REF! ->  | E33: Wind Onshore | F33: ='D-Profilfaktoren'!G$10 -> 0.8275 | G33: ='D-Profilfaktoren'!H$10 -> 0.82 | H33: ='D-Profilfaktoren'!I$10 -> 0.905 | I33: ='D-Profilfaktoren'!J$10 -> 0.889 | J33: ='D-Profilfaktoren'!K$10 -> 0.851 | K33: ='D-Profilfaktoren'!L$10 -> 0.849 | L33: ='D-Profilfaktoren'!M$10 -> 0.88 | M33: ='D-Profilfaktoren'!N$10 -> 0.873 | N33: ='D-Profilfaktoren'!O$10 -> 0.827 | O33: ='D-Profilfaktoren'!P$10 -> 0.784 | P33: ='D-Profilfaktoren'!Q$10 -> 0.892 | Q33: ='D-Profilfaktoren'!R$10 -> 0.869 | R33: ='D-Profilfaktoren'!S$10 -> 0.886 | S33: ='D-Profilfaktoren'!T$10 -> 0.879 | T33: ='D-Profilfaktoren'!U$10 -> 0.852 | U33: ='D-Profilfaktoren'!V$10 -> 0.892 | V33: ='D-Profilfaktoren'!W$10 -> 0.87 | W33: ='D-Profilfaktoren'!X$10 -> 0.848 | X33: ='D-Profilfaktoren'!Y$10 -> 0.826 | Y33: ='D-Profilfaktoren'!Z$10 -> 0.804 | Z33: ='D-Profilfaktoren'!AA$10 -> 0.782 | AA33: ='D-Profilfaktoren'!AB$10 -> 0.76 | AB33: ='D-Profilfaktoren'!AC$10 -> 0.738 | AC33: ='D-Profilfaktoren'!AD$10 -> 0.716 | AD33: ='D-Profilfaktoren'!AE$10 -> 0.694 | AE33: ='D-Profilfaktoren'!AF$10 -> 0.6
A34: 34 | B34: =#REF! ->  | C34: =#REF! ->  | D34: =#REF! ->  | E34: Wind Offshore | F34: ='D-Profilfaktoren'!G$11 -> 0.8275 | G34: ='D-Profilfaktoren'!H$11 -> 0.82 | H34: ='D-Profilfaktoren'!I$11 -> 1.02 | I34: ='D-Profilfaktoren'!J$11 -> 0.997 | J34: ='D-Profilfaktoren'!K$11 -> 0.918 | K34: ='D-Profilfaktoren'!L$11 -> 0.941 | L34: ='D-Profilfaktoren'!M$11 -> 0.98 | M34: ='D-Profilfaktoren'!N$11 -> 0.921 | N34: ='D-Profilfaktoren'!O$11 -> 0.906 | O34: ='D-Profilfaktoren'!P$11 -> 0.913 | P34: ='D-Profilfaktoren'!Q$11 -> 0.922 | Q34: ='D-Profilfaktoren'!R$11 -> 0.888 | R34: ='D-Profilfaktoren'!S$11 -> 0.904 | S34: ='D-Profilfaktoren'!T$11 -> 0.896 | T34: ='D-Profilfaktoren'!U$11 -> 0.878 | U34: ='D-Profilfaktoren'!V$11 -> 0.922 | V34: ='D-Profilfaktoren'!W$11 -> 0.9063076923 | W34: ='D-Profilfaktoren'!X$11 -> 0.8906153846 | X34: ='D-Profilfaktoren'!Y$11 -> 0.8749230769 | Y34: ='D-Profilfaktoren'!Z$11 -> 0.8592307692 | Z34: ='D-Profilfaktoren'!AA$11 -> 0.8435384615 | AA34: ='D-Profilfaktoren'!AB$11 -> 0.8278461538 | AB34: ='D-Profilfaktoren'!AC$11 -> 0.8121538462 | AC34: ='D-Profilfaktoren'!AD$11 -> 0.7964615385 | AD34: ='D-Profilfaktoren'!AE$11 -> 0.7807692308 | AE34: ='D-Profilfaktoren'!AF$11 -> 0.7
A35: 35 | B35: =#REF! ->  | C35: =#REF! ->  | D35: =#REF! ->  | E35: Solar | F35: ='D-Profilfaktoren'!G$12 -> 1.2 | G35: ='D-Profilfaktoren'!H$12 -> 1.2 | H35: ='D-Profilfaktoren'!I$12 -> 1.046 | I35: ='D-Profilfaktoren'!J$12 -> 0.981 | J35: ='D-Profilfaktoren'!K$12 -> 1.011 | K35: ='D-Profilfaktoren'!L$12 -> 0.849 | L35: ='D-Profilfaktoren'!M$12 -> 0.98 | M35: ='D-Profilfaktoren'!N$12 -> 0.997 | N35: ='D-Profilfaktoren'!O$12 -> 0.95 | O35: ='D-Profilfaktoren'!P$12 -> 0.989 | P35: ='D-Profilfaktoren'!Q$12 -> 0.953 | Q35: ='D-Profilfaktoren'!R$12 -> 0.915 | R35: ='D-Profilfaktoren'!S$12 -> 0.882 | S35: ='D-Profilfaktoren'!T$12 -> 0.869 | T35: ='D-Profilfaktoren'!U$12 -> 0.864 | U35: ='D-Profilfaktoren'!V$12 -> 0.953 | V35: ='D-Profilfaktoren'!W$12 -> 0.9313076923 | W35: ='D-Profilfaktoren'!X$12 -> 0.9096153846 | X35: ='D-Profilfaktoren'!Y$12 -> 0.8879230769 | Y35: ='D-Profilfaktoren'!Z$12 -> 0.8662307692 | Z35: ='D-Profilfaktoren'!AA$12 -> 0.8445384615 | AA35: ='D-Profilfaktoren'!AB$12 -> 0.8228461538 | AB35: ='D-Profilfaktoren'!AC$12 -> 0.8011538462 | AC35: ='D-Profilfaktoren'!AD$12 -> 0.7794615385 | AD35: ='D-Profilfaktoren'!AE$12 -> 0.7577692308 | AE35: ='D-Profilfaktoren'!AF$12 -> 0.6
A36: 36
A37: 36.01 | E37: Profilfaktoren ÜNB Marktprämie [-] | AJ37: neu hinzugefügt
A38: 36.02 | B38: =#REF! ->  | C38: =#REF! ->  | D38: =#REF! ->  | E38: Wasser | F38: ='D-Profilfaktoren_Marktprämie'!G6 -> 0 | G38: ='D-Profilfaktoren_Marktprämie'!H6 -> 0 | H38: ='D-Profilfaktoren_Marktprämie'!I6 -> 0.997 | I38: ='D-Profilfaktoren_Marktprämie'!J6 -> 0.995 | J38: ='D-Profilfaktoren_Marktprämie'!K6 -> 0.999 | K38: ='D-Profilfaktoren_Marktprämie'!L6 -> 0.9810559009 | L38: ='D-Profilfaktoren_Marktprämie'!M6 -> 0.9956912516 | M38: ='D-Profilfaktoren_Marktprämie'!N6 -> 1.01162097 | N38: ='D-Profilfaktoren_Marktprämie'!O6 -> 0.9709722384 | O38: ='D-Profilfaktoren_Marktprämie'!P6 -> 0.866777094 | P38: ='D-Profilfaktoren_Marktprämie'!Q6 -> 0.9020923481 | Q38: ='D-Profilfaktoren_Marktprämie'!R6 -> 0.8567114142 | R38: ='D-Profilfaktoren_Marktprämie'!S6 -> 0 | S38: ='D-Profilfaktoren_Marktprämie'!T6 -> 0 | T38: ='D-Profilfaktoren_Marktprämie'!U6 -> 0 | U38: ='D-Profilfaktoren_Marktprämie'!V6 -> 0 | V38: ='D-Profilfaktoren_Marktprämie'!W6 -> 0 | W38: ='D-Profilfaktoren_Marktprämie'!X6 -> 0 | X38: ='D-Profilfaktoren_Marktprämie'!Y6 -> 0 | Y38: ='D-Profilfaktoren_Marktprämie'!Z6 -> 0 | Z38: ='D-Profilfaktoren_Marktprämie'!AA6 -> 0 | AA38: ='D-Profilfaktoren_Marktprämie'!AB6 -> 0 | AB38: ='D-Profilfaktoren_Marktprämie'!AC6 -> 0 | AC38: ='D-Profilfaktoren_Marktprämie'!AD6 -> 0 | AD38: ='D-Profilfaktoren_Marktprämie'!AE6 -> 0 | AE38: ='D-Profilfaktoren_Marktprämie'!AF6 -> 0 | AJ38: neu hinzugefügt
A39: 36.03 | B39: =#REF! ->  | C39: =#REF! ->  | D39: =#REF! ->  | E39: Gas | F39: ='D-Profilfaktoren_Marktprämie'!G7 -> 0 | G39: ='D-Profilfaktoren_Marktprämie'!H7 -> 0 | H39: ='D-Profilfaktoren_Marktprämie'!I7 -> 1 | I39: ='D-Profilfaktoren_Marktprämie'!J7 -> 1 | J39: ='D-Profilfaktoren_Marktprämie'!K7 -> 1.001 | K39: ='D-Profilfaktoren_Marktprämie'!L7 -> 0.9771732118 | L39: ='D-Profilfaktoren_Marktprämie'!M7 -> 1.000262911 | M39: ='D-Profilfaktoren_Marktprämie'!N7 -> 1.004937388 | N39: ='D-Profilfaktoren_Marktprämie'!O7 -> 0.9705895907 | O39: ='D-Profilfaktoren_Marktprämie'!P7 -> 0.8666245528 | P39: ='D-Profilfaktoren_Marktprämie'!Q7 -> 0.9028118198 | Q39: ='D-Profilfaktoren_Marktprämie'!R7 -> 0.8571700495 | R39: ='D-Profilfaktoren_Marktprämie'!S7 -> 0 | S39: ='D-Profilfaktoren_Marktprämie'!T7 -> 0 | T39: ='D-Profilfaktoren_Marktprämie'!U7 -> 0 | U39: ='D-Profilfaktoren_Marktprämie'!V7 -> 0 | V39: ='D-Profilfaktoren_Marktprämie'!W7 -> 0 | W39: ='D-Profilfaktoren_Marktprämie'!X7 -> 0 | X39: ='D-Profilfaktoren_Marktprämie'!Y7 -> 0 | Y39: ='D-Profilfaktoren_Marktprämie'!Z7 -> 0 | Z39: ='D-Profilfaktoren_Marktprämie'!AA7 -> 0 | AA39: ='D-Profilfaktoren_Marktprämie'!AB7 -> 0 | AB39: ='D-Profilfaktoren_Marktprämie'!AC7 -> 0 | AC39: ='D-Profilfaktoren_Marktprämie'!AD7 -> 0 | AD39: ='D-Profilfaktoren_Marktprämie'!AE7 -> 0 | AE39: ='D-Profilfaktoren_Marktprämie'!AF7 -> 0 | AJ39: neu hinzugefügt
A40: 36.04 | B40: =#REF! ->  | C40: =#REF! ->  | D40: =#REF! ->  | E40: Biomasse | F40: ='D-Profilfaktoren_Marktprämie'!G8 -> 0 | G40: ='D-Profilfaktoren_Marktprämie'!H8 -> 0 | H40: ='D-Profilfaktoren_Marktprämie'!I8 -> 1 | I40: ='D-Profilfaktoren_Marktprämie'!J8 -> 1 | J40: ='D-Profilfaktoren_Marktprämie'!K8 -> 1 | K40: ='D-Profilfaktoren_Marktprämie'!L8 -> 0.9770959492 | L40: ='D-Profilfaktoren_Marktprämie'!M8 -> 1.000238597 | M40: ='D-Profilfaktoren_Marktprämie'!N8 -> 1.006394473 | N40: ='D-Profilfaktoren_Marktprämie'!O8 -> 0.9705803053 | O40: ='D-Profilfaktoren_Marktprämie'!P8 -> 0.8666261357 | P40: ='D-Profilfaktoren_Marktprämie'!Q8 -> 0.9034267448 | Q40: ='D-Profilfaktoren_Marktprämie'!R8 -> 0.8564561683 | R40: ='D-Profilfaktoren_Marktprämie'!S8 -> 0 | S40: ='D-Profilfaktoren_Marktprämie'!T8 -> 0 | T40: ='D-Profilfaktoren_Marktprämie'!U8 -> 0 | U40: ='D-Profilfaktoren_Marktprämie'!V8 -> 0 | V40: ='D-Profilfaktoren_Marktprämie'!W8 -> 0 | W40: ='D-Profilfaktoren_Marktprämie'!X8 -> 0 | X40: ='D-Profilfaktoren_Marktprämie'!Y8 -> 0 | Y40: ='D-Profilfaktoren_Marktprämie'!Z8 -> 0 | Z40: ='D-Profilfaktoren_Marktprämie'!AA8 -> 0 | AA40: ='D-Profilfaktoren_Marktprämie'!AB8 -> 0 | AB40: ='D-Profilfaktoren_Marktprämie'!AC8 -> 0 | AC40: ='D-Profilfaktoren_Marktprämie'!AD8 -> 0 | AD40: ='D-Profilfaktoren_Marktprämie'!AE8 -> 0 | AE40: ='D-Profilfaktoren_Marktprämie'!AF8 -> 0 | AJ40: neu hinzugefügt
A41: 36.05 | B41: =#REF! ->  | C41: =#REF! ->  | D41: =#REF! ->  | E41: Geothermie | F41: ='D-Profilfaktoren_Marktprämie'!G9 -> 0 | G41: ='D-Profilfaktoren_Marktprämie'!H9 -> 0 | H41: ='D-Profilfaktoren_Marktprämie'!I9 -> 1 | I41: ='D-Profilfaktoren_Marktprämie'!J9 -> 1 | J41: ='D-Profilfaktoren_Marktprämie'!K9 -> 1.001 | K41: ='D-Profilfaktoren_Marktprämie'!L9 -> 0.9704087662 | L41: ='D-Profilfaktoren_Marktprämie'!M9 -> 1.000261624 | M41: ='D-Profilfaktoren_Marktprämie'!N9 -> 1.000800746 | N41: ='D-Profilfaktoren_Marktprämie'!O9 -> 0.9576555779 | O41: ='D-Profilfaktoren_Marktprämie'!P9 -> 0.8667215972 | P41: ='D-Profilfaktoren_Marktprämie'!Q9 -> 0.9025219773 | Q41: ='D-Profilfaktoren_Marktprämie'!R9 -> 0.8543954588 | R41: ='D-Profilfaktoren_Marktprämie'!S9 -> 0 | S41: ='D-Profilfaktoren_Marktprämie'!T9 -> 0 | T41: ='D-Profilfaktoren_Marktprämie'!U9 -> 0 | U41: ='D-Profilfaktoren_Marktprämie'!V9 -> 0 | V41: ='D-Profilfaktoren_Marktprämie'!W9 -> 0 | W41: ='D-Profilfaktoren_Marktprämie'!X9 -> 0 | X41: ='D-Profilfaktoren_Marktprämie'!Y9 -> 0 | Y41: ='D-Profilfaktoren_Marktprämie'!Z9 -> 0 | Z41: ='D-Profilfaktoren_Marktprämie'!AA9 -> 0 | AA41: ='D-Profilfaktoren_Marktprämie'!AB9 -> 0 | AB41: ='D-Profilfaktoren_Marktprämie'!AC9 -> 0 | AC41: ='D-Profilfaktoren_Marktprämie'!AD9 -> 0 | AD41: ='D-Profilfaktoren_Marktprämie'!AE9 -> 0 | AE41: ='D-Profilfaktoren_Marktprämie'!AF9 -> 0 | AJ41: neu hinzugefügt
A42: 36.06 | B42: =#REF! ->  | C42: =#REF! ->  | D42: =#REF! ->  | E42: Wind Onshore | F42: ='D-Profilfaktoren_Marktprämie'!G10 -> 0 | G42: ='D-Profilfaktoren_Marktprämie'!H10 -> 0 | H42: ='D-Profilfaktoren_Marktprämie'!I10 -> 0.905 | I42: ='D-Profilfaktoren_Marktprämie'!J10 -> 0.889 | J42: ='D-Profilfaktoren_Marktprämie'!K10 -> 0.851 | K42: ='D-Profilfaktoren_Marktprämie'!L10 -> 0.8780419945 | L42: ='D-Profilfaktoren_Marktprämie'!M10 -> 0.8847432065 | M42: ='D-Profilfaktoren_Marktprämie'!N10 -> 0.8855637639 | N42: ='D-Profilfaktoren_Marktprämie'!O10 -> 0.7992877542 | O42: ='D-Profilfaktoren_Marktprämie'!P10 -> 0.6784650733 | P42: ='D-Profilfaktoren_Marktprämie'!Q10 -> 0.7609838487 | Q42: ='D-Profilfaktoren_Marktprämie'!R10 -> 0.7449885183 | R42: ='D-Profilfaktoren_Marktprämie'!S10 -> 0 | S42: ='D-Profilfaktoren_Marktprämie'!T10 -> 0 | T42: ='D-Profilfaktoren_Marktprämie'!U10 -> 0 | U42: ='D-Profilfaktoren_Marktprämie'!V10 -> 0 | V42: ='D-Profilfaktoren_Marktprämie'!W10 -> 0 | W42: ='D-Profilfaktoren_Marktprämie'!X10 -> 0 | X42: ='D-Profilfaktoren_Marktprämie'!Y10 -> 0 | Y42: ='D-Profilfaktoren_Marktprämie'!Z10 -> 0 | Z42: ='D-Profilfaktoren_Marktprämie'!AA10 -> 0 | AA42: ='D-Profilfaktoren_Marktprämie'!AB10 -> 0 | AB42: ='D-Profilfaktoren_Marktprämie'!AC10 -> 0 | AC42: ='D-Profilfaktoren_Marktprämie'!AD10 -> 0 | AD42: ='D-Profilfaktoren_Marktprämie'!AE10 -> 0 | AE42: ='D-Profilfaktoren_Marktprämie'!AF10 -> 0 | AJ42: neu hinzugefügt
A43: 36.07 | B43: =#REF! ->  | C43: =#REF! ->  | D43: =#REF! ->  | E43: Wind Offshore | F43: ='D-Profilfaktoren_Marktprämie'!G11 -> 0 | G43: ='D-Profilfaktoren_Marktprämie'!H11 -> 0 | H43: ='D-Profilfaktoren_Marktprämie'!I11 -> 1.02 | I43: ='D-Profilfaktoren_Marktprämie'!J11 -> 0.997 | J43: ='D-Profilfaktoren_Marktprämie'!K11 -> 0.918 | K43: ='D-Profilfaktoren_Marktprämie'!L11 -> 0.9355561205 | L43: ='D-Profilfaktoren_Marktprämie'!M11 -> 0.9825534567 | M43: ='D-Profilfaktoren_Marktprämie'!N11 -> 0.921310059 | N43: ='D-Profilfaktoren_Marktprämie'!O11 -> 0.8831763234 | O43: ='D-Profilfaktoren_Marktprämie'!P11 -> 0.7902686218 | P43: ='D-Profilfaktoren_Marktprämie'!Q11 -> 0.7887883145 | Q43: ='D-Profilfaktoren_Marktprämie'!R11 -> 0.7611511894 | R43: ='D-Profilfaktoren_Marktprämie'!S11 -> 0 | S43: ='D-Profilfaktoren_Marktprämie'!T11 -> 0 | T43: ='D-Profilfaktoren_Marktprämie'!U11 -> 0 | U43: ='D-Profilfaktoren_Marktprämie'!V11 -> 0 | V43: ='D-Profilfaktoren_Marktprämie'!W11 -> 0 | W43: ='D-Profilfaktoren_Marktprämie'!X11 -> 0 | X43: ='D-Profilfaktoren_Marktprämie'!Y11 -> 0 | Y43: ='D-Profilfaktoren_Marktprämie'!Z11 -> 0 | Z43: ='D-Profilfaktoren_Marktprämie'!AA11 -> 0 | AA43: ='D-Profilfaktoren_Marktprämie'!AB11 -> 0 | AB43: ='D-Profilfaktoren_Marktprämie'!AC11 -> 0 | AC43: ='D-Profilfaktoren_Marktprämie'!AD11 -> 0 | AD43: ='D-Profilfaktoren_Marktprämie'!AE11 -> 0 | AE43: ='D-Profilfaktoren_Marktprämie'!AF11 -> 0 | AJ43: neu hinzugefügt
A44: 36.08 | B44: =#REF! ->  | C44: =#REF! ->  | D44: =#REF! ->  | E44: Solar | F44: ='D-Profilfaktoren_Marktprämie'!G12 -> 0 | G44: ='D-Profilfaktoren_Marktprämie'!H12 -> 0 | H44: ='D-Profilfaktoren_Marktprämie'!I12 -> 1.046 | I44: ='D-Profilfaktoren_Marktprämie'!J12 -> 0.981 | J44: ='D-Profilfaktoren_Marktprämie'!K12 -> 1.011 | K44: ='D-Profilfaktoren_Marktprämie'!L12 -> 0.940113338 | L44: ='D-Profilfaktoren_Marktprämie'!M12 -> 0.9782351022 | M44: ='D-Profilfaktoren_Marktprämie'!N12 -> 1.000794662 | N44: ='D-Profilfaktoren_Marktprämie'!O12 -> 0.9155231611 | O44: ='D-Profilfaktoren_Marktprämie'!P12 -> 0.8563271722 | P44: ='D-Profilfaktoren_Marktprämie'!Q12 -> 0.8187078709 | Q44: ='D-Profilfaktoren_Marktprämie'!R12 -> 0.7854746248 | R44: ='D-Profilfaktoren_Marktprämie'!S12 -> 0 | S44: ='D-Profilfaktoren_Marktprämie'!T12 -> 0 | T44: ='D-Profilfaktoren_Marktprämie'!U12 -> 0 | U44: ='D-Profilfaktoren_Marktprämie'!V12 -> 0 | V44: ='D-Profilfaktoren_Marktprämie'!W12 -> 0 | W44: ='D-Profilfaktoren_Marktprämie'!X12 -> 0 | X44: ='D-Profilfaktoren_Marktprämie'!Y12 -> 0 | Y44: ='D-Profilfaktoren_Marktprämie'!Z12 -> 0 | Z44: ='D-Profilfaktoren_Marktprämie'!AA12 -> 0 | AA44: ='D-Profilfaktoren_Marktprämie'!AB12 -> 0 | AB44: ='D-Profilfaktoren_Marktprämie'!AC12 -> 0 | AC44: ='D-Profilfaktoren_Marktprämie'!AD12 -> 0 | AD44: ='D-Profilfaktoren_Marktprämie'!AE12 -> 0 | AE44: ='D-Profilfaktoren_Marktprämie'!AF12 -> 0 | AJ44: neu hinzugefügt
A45: 36.09
A46: 37 | E46: Dargebotsfaktor [-]
A47: 38 | B47: ='D-Dargebotsfaktor'!C$6 -> Referenz | C47: ='D-Dargebotsfaktor'!D$6 -> mh | D47: ='D-Dargebotsfaktor'!E$6 -> 100% | E47: Wasser | F47: ='D-Dargebotsfaktor'!G$6 -> 0 | G47: ='D-Dargebotsfaktor'!H$6 -> 0 | H47: ='D-Dargebotsfaktor'!I$6 -> 0 | I47: ='D-Dargebotsfaktor'!J$6 -> 0 | J47: ='D-Dargebotsfaktor'!K$6 -> 1 | K47: ='D-Dargebotsfaktor'!L$6 -> 1 | L47: ='D-Dargebotsfaktor'!M$6 -> 1 | M47: ='D-Dargebotsfaktor'!N$6 -> 1 | N47: ='D-Dargebotsfaktor'!O$6 -> 1 | O47: ='D-Dargebotsfaktor'!P$6 -> 1 | P47: ='D-Dargebotsfaktor'!Q$6 -> 1 | Q47: ='D-Dargebotsfaktor'!R$6 -> 1 | R47: ='D-Dargebotsfaktor'!S$6 -> 1 | S47: ='D-Dargebotsfaktor'!T$6 -> 1 | T47: ='D-Dargebotsfaktor'!U$6 -> 1 | U47: ='D-Dargebotsfaktor'!V$6 -> 1 | V47: ='D-Dargebotsfaktor'!W$6 -> 1 | W47: ='D-Dargebotsfaktor'!X$6 -> 1 | X47: ='D-Dargebotsfaktor'!Y$6 -> 1 | Y47: ='D-Dargebotsfaktor'!Z$6 -> 1 | Z47: ='D-Dargebotsfaktor'!AA$6 -> 1 | AA47: ='D-Dargebotsfaktor'!AB$6 -> 1 | AB47: ='D-Dargebotsfaktor'!AC$6 -> 1 | AC47: ='D-Dargebotsfaktor'!AD$6 -> 1 | AD47: ='D-Dargebotsfaktor'!AE$6 -> 1 | AE47: ='D-Dargebotsfaktor'!AF$6 -> 1
A48: 39 | B48: ='D-Dargebotsfaktor'!C$7 -> Referenz | C48: ='D-Dargebotsfaktor'!D$7 -> mh | D48: ='D-Dargebotsfaktor'!E$7 -> 100% | E48: Gas | F48: ='D-Dargebotsfaktor'!G$7 -> 0 | G48: ='D-Dargebotsfaktor'!H$7 -> 0 | H48: ='D-Dargebotsfaktor'!I$7 -> 0 | I48: ='D-Dargebotsfaktor'!J$7 -> 0 | J48: ='D-Dargebotsfaktor'!K$7 -> 1 | K48: ='D-Dargebotsfaktor'!L$7 -> 1 | L48: ='D-Dargebotsfaktor'!M$7 -> 1 | M48: ='D-Dargebotsfaktor'!N$7 -> 1 | N48: ='D-Dargebotsfaktor'!O$7 -> 1 | O48: ='D-Dargebotsfaktor'!P$7 -> 1 | P48: ='D-Dargebotsfaktor'!Q$7 -> 1 | Q48: ='D-Dargebotsfaktor'!R$7 -> 1 | R48: ='D-Dargebotsfaktor'!S$7 -> 1 | S48: ='D-Dargebotsfaktor'!T$7 -> 1 | T48: ='D-Dargebotsfaktor'!U$7 -> 1 | U48: ='D-Dargebotsfaktor'!V$7 -> 1 | V48: ='D-Dargebotsfaktor'!W$7 -> 1 | W48: ='D-Dargebotsfaktor'!X$7 -> 1 | X48: ='D-Dargebotsfaktor'!Y$7 -> 1 | Y48: ='D-Dargebotsfaktor'!Z$7 -> 1 | Z48: ='D-Dargebotsfaktor'!AA$7 -> 1 | AA48: ='D-Dargebotsfaktor'!AB$7 -> 1 | AB48: ='D-Dargebotsfaktor'!AC$7 -> 1 | AC48: ='D-Dargebotsfaktor'!AD$7 -> 1 | AD48: ='D-Dargebotsfaktor'!AE$7 -> 1 | AE48: ='D-Dargebotsfaktor'!AF$7 -> 1
A49: 40 | B49: ='D-Dargebotsfaktor'!C$8 -> Referenz | C49: ='D-Dargebotsfaktor'!D$8 -> mh | D49: ='D-Dargebotsfaktor'!E$8 -> 100% | E49: Biomasse | F49: ='D-Dargebotsfaktor'!G$8 -> 0 | G49: ='D-Dargebotsfaktor'!H$8 -> 0 | H49: ='D-Dargebotsfaktor'!I$8 -> 0 | I49: ='D-Dargebotsfaktor'!J$8 -> 0 | J49: ='D-Dargebotsfaktor'!K$8 -> 1 | K49: ='D-Dargebotsfaktor'!L$8 -> 1 | L49: ='D-Dargebotsfaktor'!M$8 -> 1 | M49: ='D-Dargebotsfaktor'!N$8 -> 1 | N49: ='D-Dargebotsfaktor'!O$8 -> 1 | O49: ='D-Dargebotsfaktor'!P$8 -> 1 | P49: ='D-Dargebotsfaktor'!Q$8 -> 1 | Q49: ='D-Dargebotsfaktor'!R$8 -> 1 | R49: ='D-Dargebotsfaktor'!S$8 -> 1 | S49: ='D-Dargebotsfaktor'!T$8 -> 1 | T49: ='D-Dargebotsfaktor'!U$8 -> 1 | U49: ='D-Dargebotsfaktor'!V$8 -> 1 | V49: ='D-Dargebotsfaktor'!W$8 -> 1 | W49: ='D-Dargebotsfaktor'!X$8 -> 1 | X49: ='D-Dargebotsfaktor'!Y$8 -> 1 | Y49: ='D-Dargebotsfaktor'!Z$8 -> 1 | Z49: ='D-Dargebotsfaktor'!AA$8 -> 1 | AA49: ='D-Dargebotsfaktor'!AB$8 -> 1 | AB49: ='D-Dargebotsfaktor'!AC$8 -> 1 | AC49: ='D-Dargebotsfaktor'!AD$8 -> 1 | AD49: ='D-Dargebotsfaktor'!AE$8 -> 1 | AE49: ='D-Dargebotsfaktor'!AF$8 -> 1
A50: 41 | B50: ='D-Dargebotsfaktor'!C$9 -> Referenz | C50: ='D-Dargebotsfaktor'!D$9 -> mh | D50: ='D-Dargebotsfaktor'!E$9 -> 100% | E50: Geothermie | F50: ='D-Dargebotsfaktor'!G$9 -> 0 | G50: ='D-Dargebotsfaktor'!H$9 -> 0 | H50: ='D-Dargebotsfaktor'!I$9 -> 0 | I50: ='D-Dargebotsfaktor'!J$9 -> 0 | J50: ='D-Dargebotsfaktor'!K$9 -> 1 | K50: ='D-Dargebotsfaktor'!L$9 -> 1 | L50: ='D-Dargebotsfaktor'!M$9 -> 1 | M50: ='D-Dargebotsfaktor'!N$9 -> 1 | N50: ='D-Dargebotsfaktor'!O$9 -> 1 | O50: ='D-Dargebotsfaktor'!P$9 -> 1 | P50: ='D-Dargebotsfaktor'!Q$9 -> 1 | Q50: ='D-Dargebotsfaktor'!R$9 -> 1 | R50: ='D-Dargebotsfaktor'!S$9 -> 1 | S50: ='D-Dargebotsfaktor'!T$9 -> 1 | T50: ='D-Dargebotsfaktor'!U$9 -> 1 | U50: ='D-Dargebotsfaktor'!V$9 -> 1 | V50: ='D-Dargebotsfaktor'!W$9 -> 1 | W50: ='D-Dargebotsfaktor'!X$9 -> 1 | X50: ='D-Dargebotsfaktor'!Y$9 -> 1 | Y50: ='D-Dargebotsfaktor'!Z$9 -> 1 | Z50: ='D-Dargebotsfaktor'!AA$9 -> 1 | AA50: ='D-Dargebotsfaktor'!AB$9 -> 1 | AB50: ='D-Dargebotsfaktor'!AC$9 -> 1 | AC50: ='D-Dargebotsfaktor'!AD$9 -> 1 | AD50: ='D-Dargebotsfaktor'!AE$9 -> 1 | AE50: ='D-Dargebotsfaktor'!AF$9 -> 1
A51: 42 | B51: ='D-Dargebotsfaktor'!C$10 -> Referenz | C51: ='D-Dargebotsfaktor'!D$10 -> mh | D51: ='D-Dargebotsfaktor'!E$10 -> 100% | E51: Wind Onshore | F51: ='D-Dargebotsfaktor'!G$10 -> 0 | G51: ='D-Dargebotsfaktor'!H$10 -> 0 | H51: ='D-Dargebotsfaktor'!I$10 -> 0 | I51: ='D-Dargebotsfaktor'!J$10 -> 0 | J51: ='D-Dargebotsfaktor'!K$10 -> 1 | K51: ='D-Dargebotsfaktor'!L$10 -> 1 | L51: ='D-Dargebotsfaktor'!M$10 -> 1 | M51: ='D-Dargebotsfaktor'!N$10 -> 1 | N51: ='D-Dargebotsfaktor'!O$10 -> 1 | O51: ='D-Dargebotsfaktor'!P$10 -> 1 | P51: ='D-Dargebotsfaktor'!Q$10 -> 1 | Q51: ='D-Dargebotsfaktor'!R$10 -> 1 | R51: ='D-Dargebotsfaktor'!S$10 -> 1 | S51: ='D-Dargebotsfaktor'!T$10 -> 1 | T51: ='D-Dargebotsfaktor'!U$10 -> 1 | U51: ='D-Dargebotsfaktor'!V$10 -> 1 | V51: ='D-Dargebotsfaktor'!W$10 -> 1 | W51: ='D-Dargebotsfaktor'!X$10 -> 1 | X51: ='D-Dargebotsfaktor'!Y$10 -> 1 | Y51: ='D-Dargebotsfaktor'!Z$10 -> 1 | Z51: ='D-Dargebotsfaktor'!AA$10 -> 1 | AA51: ='D-Dargebotsfaktor'!AB$10 -> 1 | AB51: ='D-Dargebotsfaktor'!AC$10 -> 1 | AC51: ='D-Dargebotsfaktor'!AD$10 -> 1 | AD51: ='D-Dargebotsfaktor'!AE$10 -> 1 | AE51: ='D-Dargebotsfaktor'!AF$10 -> 1
A52: 43 | B52: ='D-Dargebotsfaktor'!C$11 -> Referenz | C52: ='D-Dargebotsfaktor'!D$11 -> mh | D52: ='D-Dargebotsfaktor'!E$11 -> 100% | E52: Wind Offshore | F52: ='D-Dargebotsfaktor'!G$11 -> 0 | G52: ='D-Dargebotsfaktor'!H$11 -> 0 | H52: ='D-Dargebotsfaktor'!I$11 -> 0 | I52: ='D-Dargebotsfaktor'!J$11 -> 0 | J52: ='D-Dargebotsfaktor'!K$11 -> 1 | K52: ='D-Dargebotsfaktor'!L$11 -> 1 | L52: ='D-Dargebotsfaktor'!M$11 -> 1 | M52: ='D-Dargebotsfaktor'!N$11 -> 1 | N52: ='D-Dargebotsfaktor'!O$11 -> 1 | O52: ='D-Dargebotsfaktor'!P$11 -> 1 | P52: ='D-Dargebotsfaktor'!Q$11 -> 1 | Q52: ='D-Dargebotsfaktor'!R$11 -> 1 | R52: ='D-Dargebotsfaktor'!S$11 -> 1 | S52: ='D-Dargebotsfaktor'!T$11 -> 1 | T52: ='D-Dargebotsfaktor'!U$11 -> 1 | U52: ='D-Dargebotsfaktor'!V$11 -> 1 | V52: ='D-Dargebotsfaktor'!W$11 -> 1 | W52: ='D-Dargebotsfaktor'!X$11 -> 1 | X52: ='D-Dargebotsfaktor'!Y$11 -> 1 | Y52: ='D-Dargebotsfaktor'!Z$11 -> 1 | Z52: ='D-Dargebotsfaktor'!AA$11 -> 1 | AA52: ='D-Dargebotsfaktor'!AB$11 -> 1 | AB52: ='D-Dargebotsfaktor'!AC$11 -> 1 | AC52: ='D-Dargebotsfaktor'!AD$11 -> 1 | AD52: ='D-Dargebotsfaktor'!AE$11 -> 1 | AE52: ='D-Dargebotsfaktor'!AF$11 -> 1
A53: 44 | B53: ='D-Dargebotsfaktor'!C$12 -> Referenz | C53: ='D-Dargebotsfaktor'!D$12 -> mh | D53: ='D-Dargebotsfaktor'!E$12 -> 100% | E53: Solar | F53: ='D-Dargebotsfaktor'!G$12 -> 0 | G53: ='D-Dargebotsfaktor'!H$12 -> 0 | H53: ='D-Dargebotsfaktor'!I$12 -> 0 | I53: ='D-Dargebotsfaktor'!J$12 -> 0 | J53: ='D-Dargebotsfaktor'!K$12 -> 1 | K53: ='D-Dargebotsfaktor'!L$12 -> 1 | L53: ='D-Dargebotsfaktor'!M$12 -> 1 | M53: ='D-Dargebotsfaktor'!N$12 -> 1 | N53: ='D-Dargebotsfaktor'!O$12 -> 1 | O53: ='D-Dargebotsfaktor'!P$12 -> 1 | P53: ='D-Dargebotsfaktor'!Q$12 -> 1 | Q53: ='D-Dargebotsfaktor'!R$12 -> 1 | R53: ='D-Dargebotsfaktor'!S$12 -> 1 | S53: ='D-Dargebotsfaktor'!T$12 -> 1 | T53: ='D-Dargebotsfaktor'!U$12 -> 1 | U53: ='D-Dargebotsfaktor'!V$12 -> 1 | V53: ='D-Dargebotsfaktor'!W$12 -> 1 | W53: ='D-Dargebotsfaktor'!X$12 -> 1 | X53: ='D-Dargebotsfaktor'!Y$12 -> 1 | Y53: ='D-Dargebotsfaktor'!Z$12 -> 1 | Z53: ='D-Dargebotsfaktor'!AA$12 -> 1 | AA53: ='D-Dargebotsfaktor'!AB$12 -> 1 | AB53: ='D-Dargebotsfaktor'!AC$12 -> 1 | AC53: ='D-Dargebotsfaktor'!AD$12 -> 1 | AD53: ='D-Dargebotsfaktor'!AE$12 -> 1 | AE53: ='D-Dargebotsfaktor'!AF$12 -> 1
A54: 45
A55: 46 | E55: Jahreszubau (Brutto) [GW] | AF55: v2.1.29
A56: 47 | B56: ='D-Bruttozubau'!C$6 -> Referenz | C56: ='D-Bruttozubau'!D$6 -> fh | D56: ='D-Bruttozubau'!E$6 -> 0,01 GW/a | E56: Wasser | F56: ='D-Bruttozubau'!G$6 -> 0.11411 | G56: ='D-Bruttozubau'!H$6 -> 0.0920759 | H56: ='D-Bruttozubau'!I$6 -> 0.0508235 | I56: ='D-Bruttozubau'!J$6 -> 0.0740436 | J56: ='D-Bruttozubau'!K$6 -> 0 | K56: ='D-Bruttozubau'!L$6 -> 0.290824785 | L56: ='D-Bruttozubau'!M$6 -> 0.021633775 | M56: ='D-Bruttozubau'!N$6 -> 0.0054 | N56: ='D-Bruttozubau'!O$6 -> 0.015 | O56: ='D-Bruttozubau'!P$6 -> 0.017 | P56: ='D-Bruttozubau'!Q$6 -> 0.013 | Q56: ='D-Bruttozubau'!R$6 -> 0.014 | R56: ='D-Bruttozubau'!S$6 -> 0.014 | S56: ='D-Bruttozubau'!T$6 -> 0.014 | T56: ='D-Bruttozubau'!U$6 -> 0.014 | U56: ='D-Bruttozubau'!V$6 -> 0.014 | V56: ='D-Bruttozubau'!W$6 -> 0.014 | W56: ='D-Bruttozubau'!X$6 -> 0.014 | X56: ='D-Bruttozubau'!Y$6 -> 0.014 | Y56: ='D-Bruttozubau'!Z$6 -> 0.014 | Z56: ='D-Bruttozubau'!AA$6 -> 0.014 | AA56: ='D-Bruttozubau'!AB$6 -> 0.014 | AB56: ='D-Bruttozubau'!AC$6 -> 0.014 | AC56: ='D-Bruttozubau'!AD$6 -> 0.014 | AD56: ='D-Bruttozubau'!AE$6 -> 0.014 | AE56: ='D-Bruttozubau'!AF$6 -> 0.014
A57: 48 | B57: ='D-Bruttozubau'!C$7 -> Referenz | C57: ='D-Bruttozubau'!D$7 -> fh | D57: ='D-Bruttozubau'!E$7 -> 0,01GW/a | E57: Gas | F57: ='D-Bruttozubau'!G$7 -> 0.015436 | G57: ='D-Bruttozubau'!H$7 -> 0.012639 | H57: ='D-Bruttozubau'!I$7 -> 0.007803 | I57: ='D-Bruttozubau'!J$7 -> 0.0082572 | J57: ='D-Bruttozubau'!K$7 -> 0 | K57: ='D-Bruttozubau'!L$7 -> 0.045782 | L57: ='D-Bruttozubau'!M$7 -> 0.004084 | M57: ='D-Bruttozubau'!N$7 -> 0.0017 | N57: ='D-Bruttozubau'!O$7 -> 0.006 | O57: ='D-Bruttozubau'!P$7 -> 0.002 | P57: ='D-Bruttozubau'!Q$7 -> 0.002 | Q57: ='D-Bruttozubau'!R$7 -> 0.002 | R57: ='D-Bruttozubau'!S$7 -> 0.002 | S57: ='D-Bruttozubau'!T$7 -> 0.002 | T57: ='D-Bruttozubau'!U$7 -> 0.002 | U57: ='D-Bruttozubau'!V$7 -> 0.01 | V57: ='D-Bruttozubau'!W$7 -> 0.01 | W57: ='D-Bruttozubau'!X$7 -> 0.01 | X57: ='D-Bruttozubau'!Y$7 -> 0.01 | Y57: ='D-Bruttozubau'!Z$7 -> 0.01 | Z57: ='D-Bruttozubau'!AA$7 -> 0.01 | AA57: ='D-Bruttozubau'!AB$7 -> 0.01 | AB57: ='D-Bruttozubau'!AC$7 -> 0.01 | AC57: ='D-Bruttozubau'!AD$7 -> 0.01 | AD57: ='D-Bruttozubau'!AE$7 -> 0.01 | AE57: ='D-Bruttozubau'!AF$7 -> 0.01
A58: 49 | B58: ='D-Bruttozubau'!C$8 -> Referenz | C58: ='D-Bruttozubau'!D$8 -> fh | D58: ='D-Bruttozubau'!E$8 -> 0,2 GW/a | E58: Biomasse | F58: ='D-Bruttozubau'!G$8 -> 0.418 | G58: ='D-Bruttozubau'!H$8 -> 0.86586813 | H58: ='D-Bruttozubau'!I$8 -> 0.32809184 | I58: ='D-Bruttozubau'!J$8 -> 0.67685503 | J58: ='D-Bruttozubau'!K$8 -> 0.21741 | K58: ='D-Bruttozubau'!L$8 -> 0.234616 | L58: ='D-Bruttozubau'!M$8 -> 0.224972 | M58: ='D-Bruttozubau'!N$8 -> 0.306787 | N58: ='D-Bruttozubau'!O$8 -> 0.427511081 | O58: ='D-Bruttozubau'!P$8 -> 0.332533659 | P58: ='D-Bruttozubau'!Q$8 -> 0.176 | Q58: ='D-Bruttozubau'!R$8 -> 0.124 | R58: ='D-Bruttozubau'!S$8 -> 0.036 | S58: ='D-Bruttozubau'!T$8 -> 0.04 | T58: ='D-Bruttozubau'!U$8 -> 0.043 | U58: ='D-Bruttozubau'!V$8 -> 0.045 | V58: ='D-Bruttozubau'!W$8 -> 0.2 | W58: ='D-Bruttozubau'!X$8 -> 0.2 | X58: ='D-Bruttozubau'!Y$8 -> 0.2 | Y58: ='D-Bruttozubau'!Z$8 -> 0.2 | Z58: ='D-Bruttozubau'!AA$8 -> 0.2 | AA58: ='D-Bruttozubau'!AB$8 -> 0.2 | AB58: ='D-Bruttozubau'!AC$8 -> 0.2 | AC58: ='D-Bruttozubau'!AD$8 -> 0.2 | AD58: ='D-Bruttozubau'!AE$8 -> 0.2 | AE58: ='D-Bruttozubau'!AF$8 -> 0.2
A59: 50 | B59: ='D-Bruttozubau'!C$9 -> Referenz | C59: ='D-Bruttozubau'!D$9 -> fh | D59: ='D-Bruttozubau'!E$9 -> 0,01GW/a | E59: Geothermie | F59: ='D-Bruttozubau'!G$9 -> 0 | G59: ='D-Bruttozubau'!H$9 -> 0 | H59: ='D-Bruttozubau'!I$9 -> 0.0118 | I59: ='D-Bruttozubau'!J$9 -> 0.01132 | J59: ='D-Bruttozubau'!K$9 -> 0.00373 | K59: ='D-Bruttozubau'!L$9 -> 0 | L59: ='D-Bruttozubau'!M$9 -> 0.005 | M59: ='D-Bruttozubau'!N$9 -> 0.002 | N59: ='D-Bruttozubau'!O$9 -> 0.005 | O59: ='D-Bruttozubau'!P$9 -> 0.004 | P59: ='D-Bruttozubau'!Q$9 -> 0.005 | Q59: ='D-Bruttozubau'!R$9 -> 0.009 | R59: ='D-Bruttozubau'!S$9 -> 0.025 | S59: ='D-Bruttozubau'!T$9 -> 0.014 | T59: ='D-Bruttozubau'!U$9 -> 0.006 | U59: ='D-Bruttozubau'!V$9 -> 0.006 | V59: ='D-Bruttozubau'!W$9 -> 0.01 | W59: ='D-Bruttozubau'!X$9 -> 0.01 | X59: ='D-Bruttozubau'!Y$9 -> 0.01 | Y59: ='D-Bruttozubau'!Z$9 -> 0.01 | Z59: ='D-Bruttozubau'!AA$9 -> 0.01 | AA59: ='D-Bruttozubau'!AB$9 -> 0.01 | AB59: ='D-Bruttozubau'!AC$9 -> 0.01 | AC59: ='D-Bruttozubau'!AD$9 -> 0.01 | AD59: ='D-Bruttozubau'!AE$9 -> 0.01 | AE59: ='D-Bruttozubau'!AF$9 -> 0.01
A60: 51 | B60: ='D-Bruttozubau'!C$10 -> Referenz | C60: ='D-Bruttozubau'!D$10 -> fh | D60: ='D-Bruttozubau'!E$10 -> 1,5 GW bis 2021, ab 2023 2,5 GW/a | E60: Wind Onshore | F60: ='D-Bruttozubau'!G$10 -> 1.411797 | G60: ='D-Bruttozubau'!H$10 -> 1.871298 | H60: ='D-Bruttozubau'!I$10 -> 2.408529 | I60: ='D-Bruttozubau'!J$10 -> 2.996571 | J60: ='D-Bruttozubau'!K$10 -> 4.652297 | K60: ='D-Bruttozubau'!L$10 -> 3.787208 | L60: ='D-Bruttozubau'!M$10 -> 4.445403 | M60: ='D-Bruttozubau'!N$10 -> 5.501745 | N60: ='D-Bruttozubau'!O$10 -> 2.40315 | O60: ='D-Bruttozubau'!P$10 -> 1.5 | P60: ='D-Bruttozubau'!Q$10 -> 1.5 | Q60: ='D-Bruttozubau'!R$10 -> 1.5 | R60: ='D-Bruttozubau'!S$10 -> 2 | S60: ='D-Bruttozubau'!T$10 -> 2.5 | T60: ='D-Bruttozubau'!U$10 -> 2.5 | U60: ='D-Bruttozubau'!V$10 -> 2.5 | V60: ='D-Bruttozubau'!W$10 -> 2.5 | W60: ='D-Bruttozubau'!X$10 -> 2.5 | X60: ='D-Bruttozubau'!Y$10 -> 2.5 | Y60: ='D-Bruttozubau'!Z$10 -> 2.5 | Z60: ='D-Bruttozubau'!AA$10 -> 2.5 | AA60: ='D-Bruttozubau'!AB$10 -> 2.5 | AB60: ='D-Bruttozubau'!AC$10 -> 2.5 | AC60: ='D-Bruttozubau'!AD$10 -> 2.5 | AD60: ='D-Bruttozubau'!AE$10 -> 2.5 | AE60: ='D-Bruttozubau'!AF$10 -> 2.5
A61: 52 | B61: ='D-Bruttozubau'!C$11 -> Referenz | C61: ='D-Bruttozubau'!D$11 -> fh | D61: ='D-Bruttozubau'!E$11 -> MFP Trend, danach konstant 1,6 GW | E61: Wind Offshore | F61: ='D-Bruttozubau'!G$11 -> 0.045 | G61: ='D-Bruttozubau'!H$11 -> 0.108 | H61: ='D-Bruttozubau'!I$11 -> 0.08 | I61: ='D-Bruttozubau'!J$11 -> 0.24 | J61: ='D-Bruttozubau'!K$11 -> 0.486 | K61: ='D-Bruttozubau'!L$11 -> 2.289 | L61: ='D-Bruttozubau'!M$11 -> 0.869 | M61: ='D-Bruttozubau'!N$11 -> 1.254 | N61: ='D-Bruttozubau'!O$11 -> 0.987 | O61: ='D-Bruttozubau'!P$11 -> 1.135 | P61: ='D-Bruttozubau'!Q$11 -> 0.219 | Q61: ='D-Bruttozubau'!R$11 -> 0 | R61: ='D-Bruttozubau'!S$11 -> 0.342 | S61: ='D-Bruttozubau'!T$11 -> 0.975 | T61: ='D-Bruttozubau'!U$11 -> 0.9 | U61: ='D-Bruttozubau'!V$11 -> 0.9 | V61: ='D-Bruttozubau'!W$11 -> 0.9 | W61: ='D-Bruttozubau'!X$11 -> 0.9 | X61: ='D-Bruttozubau'!Y$11 -> 0.9 | Y61: ='D-Bruttozubau'!Z$11 -> 0.9 | Z61: ='D-Bruttozubau'!AA$11 -> 0.9 | AA61: ='D-Bruttozubau'!AB$11 -> 0.9 | AB61: ='D-Bruttozubau'!AC$11 -> 0.9 | AC61: ='D-Bruttozubau'!AD$11 -> 0.9 | AD61: ='D-Bruttozubau'!AE$11 -> 0.9 | AE61: ='D-Bruttozubau'!AF$11 -> 0.9
A62: 53 | B62: ='D-Bruttozubau'!C$12 -> Referenz | C62: ='D-Bruttozubau'!D$12 -> fh | D62: ='D-Bruttozubau'!E$12 -> MFP Trend | E62: Solar | F62: ='D-Bruttozubau'!G$12 -> 7.44 | G62: ='D-Bruttozubau'!H$12 -> 7.91 | H62: ='D-Bruttozubau'!I$12 -> 8.161 | I62: ='D-Bruttozubau'!J$12 -> 2.633 | J62: ='D-Bruttozubau'!K$12 -> 1.19 | K62: ='D-Bruttozubau'!L$12 -> 1.324 | L62: ='D-Bruttozubau'!M$12 -> 1.455 | M62: ='D-Bruttozubau'!N$12 -> 1.614 | N62: ='D-Bruttozubau'!O$12 -> 2.865 | O62: ='D-Bruttozubau'!P$12 -> 3.889 | P62: ='D-Bruttozubau'!Q$12 -> 4.801 | Q62: ='D-Bruttozubau'!R$12 -> 5.414 | R62: ='D-Bruttozubau'!S$12 -> 4.938 | S62: ='D-Bruttozubau'!T$12 -> 3.152 | T62: ='D-Bruttozubau'!U$12 -> 3.022 | U62: ='D-Bruttozubau'!V$12 -> 3.129 | V62: ='D-Bruttozubau'!W$12 -> 3 | W62: ='D-Bruttozubau'!X$12 -> 3 | X62: ='D-Bruttozubau'!Y$12 -> 3 | Y62: ='D-Bruttozubau'!Z$12 -> 3 | Z62: ='D-Bruttozubau'!AA$12 -> 3 | AA62: ='D-Bruttozubau'!AB$12 -> 3 | AB62: ='D-Bruttozubau'!AC$12 -> 3 | AC62: ='D-Bruttozubau'!AD$12 -> 3 | AD62: ='D-Bruttozubau'!AE$12 -> 3 | AE62: ='D-Bruttozubau'!AF$12 -> 3
A63: 54
A64: 55 | E64: Verbleibende Kapazitäten von Anlagen, die bis ende 2014 gebaut wurden [GW] | L64: =K69-L69 -> 0.344 | AG64: v2.1.6
A65: 56 | B65: ='D-Standardauslastung'!C$6 -> Referenz | C65: ='D-Standardauslastung'!D$6 -> fh | D65: ='D-Standardauslastung'!E$6 -> MFP Trend | E65: Wasser | F65: ='D-Bestand Kapazität'!G6 -> 0 | G65: ='D-Bestand Kapazität'!H6 -> 0 | H65: ='D-Bestand Kapazität'!I6 -> 0 | I65: ='D-Bestand Kapazität'!J6 -> 0 | J65: ='D-Bestand Kapazität'!K6 -> 1.56174381 | K65: ='D-Bestand Kapazität'!L6 -> 1.56174381 | L65: ='D-Bestand Kapazität'!M6 -> 1.56174381 | M65: ='D-Bestand Kapazität'!N6 -> 1.56174381 | N65: ='D-Bestand Kapazität'!O6 -> 1.56174381 | O65: ='D-Bestand Kapazität'!P6 -> 1.56174381 | P65: ='D-Bestand Kapazität'!Q6 -> 1.56174381 | Q65: ='D-Bestand Kapazität'!R6 -> 1.56174381 | R65: ='D-Bestand Kapazität'!S6 -> 1.56174381 | S65: ='D-Bestand Kapazität'!T6 -> 1.56174381 | T65: ='D-Bestand Kapazität'!U6 -> 1.56174381 | U65: ='D-Bestand Kapazität'!V6 -> 1.56174381 | V65: ='D-Bestand Kapazität'!W6 -> 1.56174381 | W65: ='D-Bestand Kapazität'!X6 -> 1.56174381 | X65: ='D-Bestand Kapazität'!Y6 -> 1.56174381 | Y65: ='D-Bestand Kapazität'!Z6 -> 1.56174381 | Z65: ='D-Bestand Kapazität'!AA6 -> 1.45086618 | AA65: ='D-Bestand Kapazität'!AB6 -> 1.35951799 | AB65: ='D-Bestand Kapazität'!AC6 -> 1.28609024 | AC65: ='D-Bestand Kapazität'!AD6 -> 1.23956489 | AD65: ='D-Bestand Kapazität'!AE6 -> 1.13165755 | AE65: ='D-Bestand Kapazität'!AF6 -> 1.11880635 | AG65: v2.1.6
A66: 57 | B66: ='D-Standardauslastung'!C$7 -> Referenz | C66: ='D-Standardauslastung'!D$7 -> fh | D66: ='D-Standardauslastung'!E$7 -> MFP Trend | E66: Gas | F66: ='D-Bestand Kapazität'!G7 -> 0 | G66: ='D-Bestand Kapazität'!H7 -> 0 | H66: ='D-Bestand Kapazität'!I7 -> 0 | I66: ='D-Bestand Kapazität'!J7 -> 0 | J66: ='D-Bestand Kapazität'!K7 -> 0.50447249 | K66: ='D-Bestand Kapazität'!L7 -> 0.50447249 | L66: ='D-Bestand Kapazität'!M7 -> 0.50447249 | M66: ='D-Bestand Kapazität'!N7 -> 0.50447249 | N66: ='D-Bestand Kapazität'!O7 -> 0.50447249 | O66: ='D-Bestand Kapazität'!P7 -> 0.50447249 | P66: ='D-Bestand Kapazität'!Q7 -> 0.50447249 | Q66: ='D-Bestand Kapazität'!R7 -> 0.32682229 | R66: ='D-Bestand Kapazität'!S7 -> 0.27378529 | S66: ='D-Bestand Kapazität'!T7 -> 0.21108429 | T66: ='D-Bestand Kapazität'!U7 -> 0.13316929 | U66: ='D-Bestand Kapazität'!V7 -> 0.06677199 | V66: ='D-Bestand Kapazität'!W7 -> 0.05315499 | W66: ='D-Bestand Kapazität'!X7 -> 0.04461899 | X66: ='D-Bestand Kapazität'!Y7 -> 0.03610399 | Y66: ='D-Bestand Kapazität'!Z7 -> 0.03039999 | Z66: ='D-Bestand Kapazität'!AA7 -> 0.020893 | AA66: ='D-Bestand Kapazität'!AB7 -> 0.017971 | AB66: ='D-Bestand Kapazität'!AC7 -> 0.008754 | AC66: ='D-Bestand Kapazität'!AD7 -> 0.006964 | AD66: ='D-Bestand Kapazität'!AE7 -> 0.005836 | AE66: ='D-Bestand Kapazität'!AF7 -> 0 | AG66: v2.1.6
A67: 58 | B67: ='D-Standardauslastung'!C$8 -> Referenz | C67: ='D-Standardauslastung'!D$8 -> fh | D67: ='D-Standardauslastung'!E$8 -> MFP Trend | E67: Biomasse | F67: ='D-Bestand Kapazität'!G8 -> 0 | G67: ='D-Bestand Kapazität'!H8 -> 0 | H67: ='D-Bestand Kapazität'!I8 -> 0 | I67: ='D-Bestand Kapazität'!J8 -> 0 | J67: ='D-Bestand Kapazität'!K8 -> 6.799 | K67: ='D-Bestand Kapazität'!L8 -> 6.799 | L67: ='D-Bestand Kapazität'!M8 -> 6.799 | M67: ='D-Bestand Kapazität'!N8 -> 6.799 | N67: ='D-Bestand Kapazität'!O8 -> 6.799 | O67: ='D-Bestand Kapazität'!P8 -> 6.799 | P67: ='D-Bestand Kapazität'!Q8 -> 6.799 | Q67: ='D-Bestand Kapazität'!R8 -> 6.62318923 | R67: ='D-Bestand Kapazität'!S8 -> 6.43495543 | S67: ='D-Bestand Kapazität'!T8 -> 6.29470627 | T67: ='D-Bestand Kapazität'!U8 -> 6.06274792 | U67: ='D-Bestand Kapazität'!V8 -> 5.49024093 | V67: ='D-Bestand Kapazität'!W8 -> 4.79450243 | W67: ='D-Bestand Kapazität'!X8 -> 3.9465004 | X67: ='D-Bestand Kapazität'!Y8 -> 3.306008 | Y67: ='D-Bestand Kapazität'!Z8 -> 2.9487316 | Z67: ='D-Bestand Kapazität'!AA8 -> 2.4935236 | AA67: ='D-Bestand Kapazität'!AB8 -> 1.856432 | AB67: ='D-Bestand Kapazität'!AC8 -> 0.80025794 | AC67: ='D-Bestand Kapazität'!AD8 -> 0.46639324 | AD67: ='D-Bestand Kapazität'!AE8 -> 0.21003933 | AE67: ='D-Bestand Kapazität'!AF8 -> 0 | AG67: v2.1.6
A68: 59 | B68: ='D-Standardauslastung'!C$9 -> Referenz | C68: ='D-Standardauslastung'!D$9 -> fh | D68: ='D-Standardauslastung'!E$9 -> MFP Trend | E68: Geothermie | F68: ='D-Bestand Kapazität'!G9 -> 0 | G68: ='D-Bestand Kapazität'!H9 -> 0 | H68: ='D-Bestand Kapazität'!I9 -> 0 | I68: ='D-Bestand Kapazität'!J9 -> 0 | J68: ='D-Bestand Kapazität'!K9 -> 0.033985 | K68: ='D-Bestand Kapazität'!L9 -> 0.033985 | L68: ='D-Bestand Kapazität'!M9 -> 0.033985 | M68: ='D-Bestand Kapazität'!N9 -> 0.033985 | N68: ='D-Bestand Kapazität'!O9 -> 0.033985 | O68: ='D-Bestand Kapazität'!P9 -> 0.033985 | P68: ='D-Bestand Kapazität'!Q9 -> 0.033985 | Q68: ='D-Bestand Kapazität'!R9 -> 0.033985 | R68: ='D-Bestand Kapazität'!S9 -> 0.033985 | S68: ='D-Bestand Kapazität'!T9 -> 0.033985 | T68: ='D-Bestand Kapazität'!U9 -> 0.033985 | U68: ='D-Bestand Kapazität'!V9 -> 0.033765 | V68: ='D-Bestand Kapazität'!W9 -> 0.033765 | W68: ='D-Bestand Kapazität'!X9 -> 0.033765 | X68: ='D-Bestand Kapazität'!Y9 -> 0.030765 | Y68: ='D-Bestand Kapazität'!Z9 -> 0.030765 | Z68: ='D-Bestand Kapazität'!AA9 -> 0.026615 | AA68: ='D-Bestand Kapazität'!AB9 -> 0.026615 | AB68: ='D-Bestand Kapazität'!AC9 -> 0.026615 | AC68: ='D-Bestand Kapazität'!AD9 -> 0.014815 | AD68: ='D-Bestand Kapazität'!AE9 -> 0.0035 | AE68: ='D-Bestand Kapazität'!AF9 -> 0 | AG68: v2.1.6
A69: 60 | B69: ='D-Standardauslastung'!C$10 -> Referenz | C69: ='D-Standardauslastung'!D$10 -> fh | D69: ='D-Standardauslastung'!E$10 -> Anstieg auf 2600h in 2035 | E69: Wind Onshore | F69: ='D-Bestand Kapazität'!G10 -> 0 | G69: ='D-Bestand Kapazität'!H10 -> 0 | H69: ='D-Bestand Kapazität'!I10 -> 0 | I69: ='D-Bestand Kapazität'!J10 -> 0 | J69: ='D-Bestand Kapazität'!K10 -> 37.62 | K69: ='D-Bestand Kapazität'!L10 -> 37.50856948 | L69: ='D-Bestand Kapazität'!M10 -> 37.16456948 | M69: ='D-Bestand Kapazität'!N10 -> 36.76456948 | N69: ='D-Bestand Kapazität'!O10 -> 36.26456948 | O69: ='D-Bestand Kapazität'!P10 -> 35.66456948 | P69: ='D-Bestand Kapazität'!Q10 -> 34.96456948 | Q69: ='D-Bestand Kapazität'!R10 -> 33.15877637 | R69: ='D-Bestand Kapazität'!S10 -> 30.56510257 | S69: ='D-Bestand Kapazität'!T10 -> 27.51489948 | T69: ='D-Bestand Kapazität'!U10 -> 24.79703148 | U69: ='D-Bestand Kapazität'!V10 -> 22.74326048 | V69: ='D-Bestand Kapazität'!W10 -> 20.92921698 | W69: ='D-Bestand Kapazität'!X10 -> 18.69937898 | X69: ='D-Bestand Kapazität'!Y10 -> 17.01313278 | Y69: ='D-Bestand Kapazität'!Z10 -> 16.24126878 | Z69: ='D-Bestand Kapazität'!AA10 -> 13.54192886 | AA69: ='D-Bestand Kapazität'!AB10 -> 12.11526921 | AB69: ='D-Bestand Kapazität'!AC10 -> 10.23878695 | AC69: ='D-Bestand Kapazität'!AD10 -> 7.81766242 | AD69: ='D-Bestand Kapazität'!AE10 -> 4.78523063 | AE69: ='D-Bestand Kapazität'!AF10 -> 0 | AG69: v2.1.6
A70: 61 | B70: ='D-Standardauslastung'!C$11 -> Referenz | C70: ='D-Standardauslastung'!D$11 -> as/pl/fh | D70: ='D-Standardauslastung'!E$11 -> Anstieg auf 4700 h in 2035 | E70: Wind Offshore | F70: ='D-Bestand Kapazität'!G11 -> 0 | G70: ='D-Bestand Kapazität'!H11 -> 0 | H70: ='D-Bestand Kapazität'!I11 -> 0 | I70: ='D-Bestand Kapazität'!J11 -> 0 | J70: ='D-Bestand Kapazität'!K11 -> 0.994 | K70: ='D-Bestand Kapazität'!L11 -> 0.994 | L70: ='D-Bestand Kapazität'!M11 -> 0.994 | M70: ='D-Bestand Kapazität'!N11 -> 0.994 | N70: ='D-Bestand Kapazität'!O11 -> 0.994 | O70: ='D-Bestand Kapazität'!P11 -> 0.994 | P70: ='D-Bestand Kapazität'!Q11 -> 0.994 | Q70: ='D-Bestand Kapazität'!R11 -> 0.994 | R70: ='D-Bestand Kapazität'!S11 -> 0.994 | S70: ='D-Bestand Kapazität'!T11 -> 0.994 | T70: ='D-Bestand Kapazität'!U11 -> 0.994 | U70: ='D-Bestand Kapazität'!V11 -> 0.994 | V70: ='D-Bestand Kapazität'!W11 -> 0.994 | W70: ='D-Bestand Kapazität'!X11 -> 0.994 | X70: ='D-Bestand Kapazität'!Y11 -> 0.994 | Y70: ='D-Bestand Kapazität'!Z11 -> 0.994 | Z70: ='D-Bestand Kapazität'!AA11 -> 0.9622 | AA70: ='D-Bestand Kapazität'!AB11 -> 0.9172 | AB70: ='D-Bestand Kapazität'!AC11 -> 0.8089 | AC70: ='D-Bestand Kapazität'!AD11 -> 0.7289 | AD70: ='D-Bestand Kapazität'!AE11 -> 0.4889 | AE70: ='D-Bestand Kapazität'!AF11 -> 0 | AG70: v2.1.6
A71: 62 | B71: ='D-Standardauslastung'!C$12 -> Referenz | C71: ='D-Standardauslastung'!D$12 -> fh | D71: ='D-Standardauslastung'!E$12 -> Anstieg auf 950h in 2035 | E71: Solar | F71: ='D-Bestand Kapazität'!G12 -> 0 | G71: ='D-Bestand Kapazität'!H12 -> 0 | H71: ='D-Bestand Kapazität'!I12 -> 0 | I71: ='D-Bestand Kapazität'!J12 -> 0 | J71: ='D-Bestand Kapazität'!K12 -> 37.9 | K71: ='D-Bestand Kapazität'!L12 -> 37.9 | L71: ='D-Bestand Kapazität'!M12 -> 37.9 | M71: ='D-Bestand Kapazität'!N12 -> 37.9 | N71: ='D-Bestand Kapazität'!O12 -> 37.9 | O71: ='D-Bestand Kapazität'!P12 -> 37.9 | P71: ='D-Bestand Kapazität'!Q12 -> 37.9 | Q71: ='D-Bestand Kapazität'!R12 -> 37.77602751 | R71: ='D-Bestand Kapazität'!S12 -> 37.66738882 | S71: ='D-Bestand Kapazität'!T12 -> 37.55716727 | T71: ='D-Bestand Kapazität'!U12 -> 37.41472072 | U71: ='D-Bestand Kapazität'!V12 -> 36.75869142 | V71: ='D-Bestand Kapazität'!W12 -> 35.83408936 | W71: ='D-Bestand Kapazität'!X12 -> 34.98949441 | X71: ='D-Bestand Kapazität'!Y12 -> 33.73574328 | Y71: ='D-Bestand Kapazität'!Z12 -> 31.75620017 | Z71: ='D-Bestand Kapazität'!AA12 -> 27.31774033 | AA71: ='D-Bestand Kapazität'!AB12 -> 19.72386399 | AB71: ='D-Bestand Kapazität'!AC12 -> 11.72347393 | AC71: ='D-Bestand Kapazität'!AD12 -> 4.88118005 | AD71: ='D-Bestand Kapazität'!AE12 -> 1.74555929 | AE71: ='D-Bestand Kapazität'!AF12 -> 0 | AG71: v2.1.6
A72: 63 | AG72: v2.1.6
A73: 64 | E73: Verbleibende Strommengen von Anlagen, die bis ende 2014 gebaut wurden [TWh/a] | AG73: v2.1.6
A74: 65 | E74: Wasser | F74: ='D-Bestand Strommenge'!G6 -> 0 | G74: ='D-Bestand Strommenge'!H6 -> 0 | H74: ='D-Bestand Strommenge'!I6 -> 0 | I74: ='D-Bestand Strommenge'!J6 -> 0 | J74: ='D-Bestand Strommenge'!K6 -> 6.34005772 | K74: ='D-Bestand Strommenge'!L6 -> 6.365383901 | L74: ='D-Bestand Strommenge'!M6 -> 6.365383901 | M74: ='D-Bestand Strommenge'!N6 -> 6.365383901 | N74: ='D-Bestand Strommenge'!O6 -> 6.365383901 | O74: ='D-Bestand Strommenge'!P6 -> 6.365383901 | P74: ='D-Bestand Strommenge'!Q6 -> 6.365383901 | Q74: ='D-Bestand Strommenge'!R6 -> 6.365383901 | R74: ='D-Bestand Strommenge'!S6 -> 6.365383901 | S74: ='D-Bestand Strommenge'!T6 -> 6.365383901 | T74: ='D-Bestand Strommenge'!U6 -> 6.365383901 | U74: ='D-Bestand Strommenge'!V6 -> 6.365383901 | V74: ='D-Bestand Strommenge'!W6 -> 6.365383901 | W74: ='D-Bestand Strommenge'!X6 -> 6.365383901 | X74: ='D-Bestand Strommenge'!Y6 -> 6.365383901 | Y74: ='D-Bestand Strommenge'!Z6 -> 6.365383901 | Z74: ='D-Bestand Strommenge'!AA6 -> 5.826401868 | AA74: ='D-Bestand Strommenge'!AB6 -> 5.360667229 | AB74: ='D-Bestand Strommenge'!AC6 -> 5.039722367 | AC74: ='D-Bestand Strommenge'!AD6 -> 4.853722159 | AD74: ='D-Bestand Strommenge'!AE6 -> 4.253056932 | AE74: ='D-Bestand Strommenge'!AF6 -> 4.202404569 | AG74: v2.1.6
A75: 66 | E75: Gas | F75: ='D-Bestand Strommenge'!G7 -> 0 | G75: ='D-Bestand Strommenge'!H7 -> 0 | H75: ='D-Bestand Strommenge'!I7 -> 0 | I75: ='D-Bestand Strommenge'!J7 -> 0 | J75: ='D-Bestand Strommenge'!K7 -> 1.434004892 | K75: ='D-Bestand Strommenge'!L7 -> 1.438065041 | L75: ='D-Bestand Strommenge'!M7 -> 1.438065041 | M75: ='D-Bestand Strommenge'!N7 -> 1.438065041 | N75: ='D-Bestand Strommenge'!O7 -> 1.438065041 | O75: ='D-Bestand Strommenge'!P7 -> 1.438065041 | P75: ='D-Bestand Strommenge'!Q7 -> 1.438065041 | Q75: ='D-Bestand Strommenge'!R7 -> 1.111642281 | R75: ='D-Bestand Strommenge'!S7 -> 1.010608381 | S75: ='D-Bestand Strommenge'!T7 -> 0.7419776952 | T75: ='D-Bestand Strommenge'!U7 -> 0.4392768675 | U75: ='D-Bestand Strommenge'!V7 -> 0.1558288618 | V75: ='D-Bestand Strommenge'!W7 -> 0.1253723083 | W75: ='D-Bestand Strommenge'!X7 -> 0.1004752485 | X75: ='D-Bestand Strommenge'!Y7 -> 0.09675270074 | Y75: ='D-Bestand Strommenge'!Z7 -> 0.09361970321 | Z75: ='D-Bestand Strommenge'!AA7 -> 0.05507999338 | AA75: ='D-Bestand Strommenge'!AB7 -> 0.0483524372 | AB75: ='D-Bestand Strommenge'!AC7 -> 0.01510455542 | AC75: ='D-Bestand Strommenge'!AD7 -> 0.01236723045 | AD75: ='D-Bestand Strommenge'!AE7 -> 0.008120298978 | AE75: ='D-Bestand Strommenge'!AF7 -> 0 | AG75: v2.1.6
A76: 67 | E76: Biomasse | F76: ='D-Bestand Strommenge'!G8 -> 0 | G76: ='D-Bestand Strommenge'!H8 -> 0 | H76: ='D-Bestand Strommenge'!I8 -> 0 | I76: ='D-Bestand Strommenge'!J8 -> 0 | J76: ='D-Bestand Strommenge'!K8 -> 38.108395 | K76: ='D-Bestand Strommenge'!L8 -> 38.108395 | L76: ='D-Bestand Strommenge'!M8 -> 38.108395 | M76: ='D-Bestand Strommenge'!N8 -> 38.108395 | N76: ='D-Bestand Strommenge'!O8 -> 38.108395 | O76: ='D-Bestand Strommenge'!P8 -> 38.108395 | P76: ='D-Bestand Strommenge'!Q8 -> 38.108395 | Q76: ='D-Bestand Strommenge'!R8 -> 37.12297563 | R76: ='D-Bestand Strommenge'!S8 -> 36.06792519 | S76: ='D-Bestand Strommenge'!T8 -> 35.28182864 | T76: ='D-Bestand Strommenge'!U8 -> 33.98170209 | U76: ='D-Bestand Strommenge'!V8 -> 30.77280041 | V76: ='D-Bestand Strommenge'!W8 -> 26.87318612 | W76: ='D-Bestand Strommenge'!X8 -> 22.12013474 | X76: ='D-Bestand Strommenge'!Y8 -> 18.53017484 | Y76: ='D-Bestand Strommenge'!Z8 -> 16.52764062 | Z76: ='D-Bestand Strommenge'!AA8 -> 13.97619978 | AA76: ='D-Bestand Strommenge'!AB8 -> 10.40530136 | AB76: ='D-Bestand Strommenge'!AC8 -> 4.485445754 | AC76: ='D-Bestand Strommenge'!AD8 -> 2.61413411 | AD76: ='D-Bestand Strommenge'!AE8 -> 1.177270445 | AE76: ='D-Bestand Strommenge'!AF8 -> 0 | AG76: v2.1.6
A77: 68 | E77: Geothermie | F77: ='D-Bestand Strommenge'!G9 -> 0 | G77: ='D-Bestand Strommenge'!H9 -> 0 | H77: ='D-Bestand Strommenge'!I9 -> 0 | I77: ='D-Bestand Strommenge'!J9 -> 0 | J77: ='D-Bestand Strommenge'!K9 -> 0.1413419359 | K77: ='D-Bestand Strommenge'!L9 -> 0.1496888402 | L77: ='D-Bestand Strommenge'!M9 -> 0.1496888402 | M77: ='D-Bestand Strommenge'!N9 -> 0.1496888402 | N77: ='D-Bestand Strommenge'!O9 -> 0.1496888402 | O77: ='D-Bestand Strommenge'!P9 -> 0.1496888402 | P77: ='D-Bestand Strommenge'!Q9 -> 0.1496888402 | Q77: ='D-Bestand Strommenge'!R9 -> 0.1496888402 | R77: ='D-Bestand Strommenge'!S9 -> 0.1496888402 | S77: ='D-Bestand Strommenge'!T9 -> 0.1496888402 | T77: ='D-Bestand Strommenge'!U9 -> 0.1496888402 | U77: ='D-Bestand Strommenge'!V9 -> 0.1496888402 | V77: ='D-Bestand Strommenge'!W9 -> 0.1496888402 | W77: ='D-Bestand Strommenge'!X9 -> 0.1496888402 | X77: ='D-Bestand Strommenge'!Y9 -> 0.1496888402 | Y77: ='D-Bestand Strommenge'!Z9 -> 0.1496888402 | Z77: ='D-Bestand Strommenge'!AA9 -> 0.1402727975 | AA77: ='D-Bestand Strommenge'!AB9 -> 0.1402727975 | AB77: ='D-Bestand Strommenge'!AC9 -> 0.1402727975 | AC77: ='D-Bestand Strommenge'!AD9 -> 0.08017471048 | AD77: ='D-Bestand Strommenge'!AE9 -> 0.01669380853 | AE77: ='D-Bestand Strommenge'!AF9 -> 0 | AG77: v2.1.6
A78: 69 | E78: Wind Onshore | F78: ='D-Bestand Strommenge'!G10 -> 0 | G78: ='D-Bestand Strommenge'!H10 -> 0 | H78: ='D-Bestand Strommenge'!I10 -> 0 | I78: ='D-Bestand Strommenge'!J10 -> 0 | J78: ='D-Bestand Strommenge'!K10 -> 61.58394 | K78: ='D-Bestand Strommenge'!L10 -> 61.40152824 | L78: ='D-Bestand Strommenge'!M10 -> 60.83840024 | M78: ='D-Bestand Strommenge'!N10 -> 60.18360024 | N78: ='D-Bestand Strommenge'!O10 -> 59.36510024 | O78: ='D-Bestand Strommenge'!P10 -> 58.38290024 | P78: ='D-Bestand Strommenge'!Q10 -> 57.23700024 | Q78: ='D-Bestand Strommenge'!R10 -> 54.28091692 | R78: ='D-Bestand Strommenge'!S10 -> 50.03507291 | S78: ='D-Bestand Strommenge'!T10 -> 45.04189045 | T78: ='D-Bestand Strommenge'!U10 -> 40.59274053 | U78: ='D-Bestand Strommenge'!V10 -> 37.23071741 | V78: ='D-Bestand Strommenge'!W10 -> 34.2611282 | W78: ='D-Bestand Strommenge'!X10 -> 30.61088339 | X78: ='D-Bestand Strommenge'!Y10 -> 27.85049836 | Y78: ='D-Bestand Strommenge'!Z10 -> 26.58695699 | Z78: ='D-Bestand Strommenge'!AA10 -> 22.16813754 | AA78: ='D-Bestand Strommenge'!AB10 -> 19.8326957 | AB78: ='D-Bestand Strommenge'!AC10 -> 16.76089424 | AC78: ='D-Bestand Strommenge'!AD10 -> 12.79751338 | AD78: ='D-Bestand Strommenge'!AE10 -> 7.833422541 | AE78: ='D-Bestand Strommenge'!AF10 -> 0 | AG78: v2.1.6
A79: 70 | E79: Wind Offshore | F79: ='D-Bestand Strommenge'!G11 -> 0 | G79: ='D-Bestand Strommenge'!H11 -> 0 | H79: ='D-Bestand Strommenge'!I11 -> 0 | I79: ='D-Bestand Strommenge'!J11 -> 0 | J79: ='D-Bestand Strommenge'!K11 -> 3.441228 | K79: ='D-Bestand Strommenge'!L11 -> 3.441228 | L79: ='D-Bestand Strommenge'!M11 -> 3.441228 | M79: ='D-Bestand Strommenge'!N11 -> 3.441228 | N79: ='D-Bestand Strommenge'!O11 -> 3.441228 | O79: ='D-Bestand Strommenge'!P11 -> 3.441228 | P79: ='D-Bestand Strommenge'!Q11 -> 3.441228 | Q79: ='D-Bestand Strommenge'!R11 -> 3.441228 | R79: ='D-Bestand Strommenge'!S11 -> 3.441228 | S79: ='D-Bestand Strommenge'!T11 -> 3.441228 | T79: ='D-Bestand Strommenge'!U11 -> 3.441228 | U79: ='D-Bestand Strommenge'!V11 -> 3.441228 | V79: ='D-Bestand Strommenge'!W11 -> 3.441228 | W79: ='D-Bestand Strommenge'!X11 -> 3.441228 | X79: ='D-Bestand Strommenge'!Y11 -> 3.441228 | Y79: ='D-Bestand Strommenge'!Z11 -> 3.441228 | Z79: ='D-Bestand Strommenge'!AA11 -> 3.3311364 | AA79: ='D-Bestand Strommenge'!AB11 -> 3.1753464 | AB79: ='D-Bestand Strommenge'!AC11 -> 2.8004118 | AC79: ='D-Bestand Strommenge'!AD11 -> 2.5234518 | AD79: ='D-Bestand Strommenge'!AE11 -> 1.6925718 | AE79: ='D-Bestand Strommenge'!AF11 -> 0 | AG79: v2.1.6
A80: 71 | E80: Solar | F80: ='D-Bestand Strommenge'!G12 -> 0 | G80: ='D-Bestand Strommenge'!H12 -> 0 | H80: ='D-Bestand Strommenge'!I12 -> 0 | I80: ='D-Bestand Strommenge'!J12 -> 0 | J80: ='D-Bestand Strommenge'!K12 -> 36.384 | K80: ='D-Bestand Strommenge'!L12 -> 36.384 | L80: ='D-Bestand Strommenge'!M12 -> 36.384 | M80: ='D-Bestand Strommenge'!N12 -> 36.384 | N80: ='D-Bestand Strommenge'!O12 -> 36.384 | O80: ='D-Bestand Strommenge'!P12 -> 36.384 | P80: ='D-Bestand Strommenge'!Q12 -> 36.384 | Q80: ='D-Bestand Strommenge'!R12 -> 36.26498641 | R80: ='D-Bestand Strommenge'!S12 -> 36.16069326 | S80: ='D-Bestand Strommenge'!T12 -> 36.05488058 | T80: ='D-Bestand Strommenge'!U12 -> 35.91813189 | U80: ='D-Bestand Strommenge'!V12 -> 35.28834376 | V80: ='D-Bestand Strommenge'!W12 -> 34.40072578 | W80: ='D-Bestand Strommenge'!X12 -> 33.58991463 | X80: ='D-Bestand Strommenge'!Y12 -> 32.38631355 | Y80: ='D-Bestand Strommenge'!Z12 -> 30.48595216 | Z80: ='D-Bestand Strommenge'!AA12 -> 26.22503072 | AA80: ='D-Bestand Strommenge'!AB12 -> 18.93490943 | AB80: ='D-Bestand Strommenge'!AC12 -> 11.25453497 | AC80: ='D-Bestand Strommenge'!AD12 -> 4.685932848 | AD80: ='D-Bestand Strommenge'!AE12 -> 1.675736918 | AE80: ='D-Bestand Strommenge'!AF12 -> 0 | AG80: v2.1.6
A81: 72 | AG81: v2.1.6
A82: 73 | E82: Verbleibende Zahlungen für Anlagen, die bis ende 2014 gebaut wurden (nominal) [Mrd. Euro/a] | AG82: v2.1.6
A83: 74 | E83: Wasser | F83: ='D-Bestand Zahlungen'!G6 -> 0 | G83: ='D-Bestand Zahlungen'!H6 -> 0 | H83: ='D-Bestand Zahlungen'!I6 -> 0 | I83: ='D-Bestand Zahlungen'!J6 -> 0 | J83: ='D-Bestand Zahlungen'!K6 -> 0.5928687054 | K83: ='D-Bestand Zahlungen'!L6 -> 0.5958983415 | L83: ='D-Bestand Zahlungen'!M6 -> 0.5958983415 | M83: ='D-Bestand Zahlungen'!N6 -> 0.5958983415 | N83: ='D-Bestand Zahlungen'!O6 -> 0.5958983415 | O83: ='D-Bestand Zahlungen'!P6 -> 0.5958983415 | P83: ='D-Bestand Zahlungen'!Q6 -> 0.5958983415 | Q83: ='D-Bestand Zahlungen'!R6 -> 0.5958983415 | R83: ='D-Bestand Zahlungen'!S6 -> 0.5958983415 | S83: ='D-Bestand Zahlungen'!T6 -> 0.5958983415 | T83: ='D-Bestand Zahlungen'!U6 -> 0.5958983415 | U83: ='D-Bestand Zahlungen'!V6 -> 0.5958983415 | V83: ='D-Bestand Zahlungen'!W6 -> 0.5958983415 | W83: ='D-Bestand Zahlungen'!X6 -> 0.5958983415 | X83: ='D-Bestand Zahlungen'!Y6 -> 0.5958983415 | Y83: ='D-Bestand Zahlungen'!Z6 -> 0.5958983415 | Z83: ='D-Bestand Zahlungen'!AA6 -> 0.5419569522 | AA83: ='D-Bestand Zahlungen'!AB6 -> 0.5053394883 | AB83: ='D-Bestand Zahlungen'!AC6 -> 0.4726253755 | AC83: ='D-Bestand Zahlungen'!AD6 -> 0.450944476 | AD83: ='D-Bestand Zahlungen'!AE6 -> 0.4038898481 | AE83: ='D-Bestand Zahlungen'!AF6 -> 0.3978305758 | AG83: v2.1.6
A84: 75 | E84: Gas | F84: ='D-Bestand Zahlungen'!G7 -> 0 | G84: ='D-Bestand Zahlungen'!H7 -> 0 | H84: ='D-Bestand Zahlungen'!I7 -> 0 | I84: ='D-Bestand Zahlungen'!J7 -> 0 | J84: ='D-Bestand Zahlungen'!K7 -> 0.1008807005 | K84: ='D-Bestand Zahlungen'!L7 -> 0.1011612157 | L84: ='D-Bestand Zahlungen'!M7 -> 0.1011612157 | M84: ='D-Bestand Zahlungen'!N7 -> 0.1011612157 | N84: ='D-Bestand Zahlungen'!O7 -> 0.1011612157 | O84: ='D-Bestand Zahlungen'!P7 -> 0.1011612157 | P84: ='D-Bestand Zahlungen'!Q7 -> 0.1011612157 | Q84: ='D-Bestand Zahlungen'!R7 -> 0.07913354559 | R84: ='D-Bestand Zahlungen'!S7 -> 0.07172715088 | S84: ='D-Bestand Zahlungen'!T7 -> 0.05286408606 | T84: ='D-Bestand Zahlungen'!U7 -> 0.03135792954 | U84: ='D-Bestand Zahlungen'!V7 -> 0.01132228534 | V84: ='D-Bestand Zahlungen'!W7 -> 0.009065076133 | W84: ='D-Bestand Zahlungen'!X7 -> 0.00724457509 | X84: ='D-Bestand Zahlungen'!Y7 -> 0.006969999061 | Y84: ='D-Bestand Zahlungen'!Z7 -> 0.006741430147 | Z84: ='D-Bestand Zahlungen'!AA7 -> 0.003840401346 | AA84: ='D-Bestand Zahlungen'!AB7 -> 0.003193157611 | AB84: ='D-Bestand Zahlungen'!AC7 -> 0.001084612036 | AC84: ='D-Bestand Zahlungen'!AD7 -> 0.0008573637395 | AD84: ='D-Bestand Zahlungen'!AE7 -> 0.000561030568 | AE84: ='D-Bestand Zahlungen'!AF7 -> 0 | AG84: v2.1.6
A85: 76 | E85: Biomasse | F85: ='D-Bestand Zahlungen'!G8 -> 0 | G85: ='D-Bestand Zahlungen'!H8 -> 0 | H85: ='D-Bestand Zahlungen'!I8 -> 0 | I85: ='D-Bestand Zahlungen'!J8 -> 0 | J85: ='D-Bestand Zahlungen'!K8 -> 7.279994945 | K85: ='D-Bestand Zahlungen'!L8 -> 7.282209762 | L85: ='D-Bestand Zahlungen'!M8 -> 7.282209762 | M85: ='D-Bestand Zahlungen'!N8 -> 7.282209762 | N85: ='D-Bestand Zahlungen'!O8 -> 7.282209762 | O85: ='D-Bestand Zahlungen'!P8 -> 7.282209762 | P85: ='D-Bestand Zahlungen'!Q8 -> 7.282209762 | Q85: ='D-Bestand Zahlungen'!R8 -> 7.183559919 | R85: ='D-Bestand Zahlungen'!S8 -> 7.006382148 | S85: ='D-Bestand Zahlungen'!T8 -> 6.888468272 | T85: ='D-Bestand Zahlungen'!U8 -> 6.712765644 | U85: ='D-Bestand Zahlungen'!V8 -> 6.242318117 | V85: ='D-Bestand Zahlungen'!W8 -> 5.476145517 | W85: ='D-Bestand Zahlungen'!X8 -> 4.551163716 | X85: ='D-Bestand Zahlungen'!Y8 -> 3.829323218 | Y85: ='D-Bestand Zahlungen'!Z8 -> 3.443641662 | Z85: ='D-Bestand Zahlungen'!AA8 -> 2.930532905 | AA85: ='D-Bestand Zahlungen'!AB8 -> 2.16442597 | AB85: ='D-Bestand Zahlungen'!AC8 -> 0.8951381095 | AC85: ='D-Bestand Zahlungen'!AD8 -> 0.5188436404 | AD85: ='D-Bestand Zahlungen'!AE8 -> 0.2300138879 | AE85: ='D-Bestand Zahlungen'!AF8 -> 0 | AG85: v2.1.6
A86: 77 | E86: Geothermie | F86: ='D-Bestand Zahlungen'!G9 -> 0 | G86: ='D-Bestand Zahlungen'!H9 -> 0 | H86: ='D-Bestand Zahlungen'!I9 -> 0 | I86: ='D-Bestand Zahlungen'!J9 -> 0 | J86: ='D-Bestand Zahlungen'!K9 -> 0.03534756292 | K86: ='D-Bestand Zahlungen'!L9 -> 0.037412391 | L86: ='D-Bestand Zahlungen'!M9 -> 0.037412391 | M86: ='D-Bestand Zahlungen'!N9 -> 0.037412391 | N86: ='D-Bestand Zahlungen'!O9 -> 0.037412391 | O86: ='D-Bestand Zahlungen'!P9 -> 0.037412391 | P86: ='D-Bestand Zahlungen'!Q9 -> 0.037412391 | Q86: ='D-Bestand Zahlungen'!R9 -> 0.037412391 | R86: ='D-Bestand Zahlungen'!S9 -> 0.037412391 | S86: ='D-Bestand Zahlungen'!T9 -> 0.037412391 | T86: ='D-Bestand Zahlungen'!U9 -> 0.037412391 | U86: ='D-Bestand Zahlungen'!V9 -> 0.037412391 | V86: ='D-Bestand Zahlungen'!W9 -> 0.037412391 | W86: ='D-Bestand Zahlungen'!X9 -> 0.037412391 | X86: ='D-Bestand Zahlungen'!Y9 -> 0.037412391 | Y86: ='D-Bestand Zahlungen'!Z9 -> 0.037412391 | Z86: ='D-Bestand Zahlungen'!AA9 -> 0.03525572168 | AA86: ='D-Bestand Zahlungen'!AB9 -> 0.03525572168 | AB86: ='D-Bestand Zahlungen'!AC9 -> 0.03525572168 | AC86: ='D-Bestand Zahlungen'!AD9 -> 0.02011884495 | AD86: ='D-Bestand Zahlungen'!AE9 -> 0.004129656149 | AE86: ='D-Bestand Zahlungen'!AF9 -> 0 | AG86: v2.1.6
A87: 78 | E87: Wind Onshore | F87: ='D-Bestand Zahlungen'!G10 -> 0 | G87: ='D-Bestand Zahlungen'!H10 -> 0 | H87: ='D-Bestand Zahlungen'!I10 -> 0 | I87: ='D-Bestand Zahlungen'!J10 -> 0 | J87: ='D-Bestand Zahlungen'!K10 -> 5.913608732 | K87: ='D-Bestand Zahlungen'!L10 -> 5.908018149 | L87: ='D-Bestand Zahlungen'!M10 -> 5.85597838 | M87: ='D-Bestand Zahlungen'!N10 -> 5.795820753 | N87: ='D-Bestand Zahlungen'!O10 -> 5.720604065 | O87: ='D-Bestand Zahlungen'!P10 -> 5.539198304 | P87: ='D-Bestand Zahlungen'!Q10 -> 5.34507027 | Q87: ='D-Bestand Zahlungen'!R10 -> 5.004048271 | R87: ='D-Bestand Zahlungen'!S10 -> 4.593376946 | S87: ='D-Bestand Zahlungen'!T10 -> 4.139713423 | T87: ='D-Bestand Zahlungen'!U10 -> 3.747282926 | U87: ='D-Bestand Zahlungen'!V10 -> 3.435247591 | V87: ='D-Bestand Zahlungen'!W10 -> 3.172321608 | W87: ='D-Bestand Zahlungen'!X10 -> 2.918602741 | X87: ='D-Bestand Zahlungen'!Y10 -> 2.544218229 | Y87: ='D-Bestand Zahlungen'!Z10 -> 2.348850235 | Z87: ='D-Bestand Zahlungen'!AA10 -> 1.961661674 | AA87: ='D-Bestand Zahlungen'!AB10 -> 1.639765331 | AB87: ='D-Bestand Zahlungen'!AC10 -> 1.212221907 | AC87: ='D-Bestand Zahlungen'!AD10 -> 0.6294844966 | AD87: ='D-Bestand Zahlungen'!AE10 -> 0.3877544158 | AE87: ='D-Bestand Zahlungen'!AF10 -> 0 | AG87: v2.1.6
A88: 79 | E88: Wind Offshore | F88: ='D-Bestand Zahlungen'!G11 -> 0 | G88: ='D-Bestand Zahlungen'!H11 -> 0 | H88: ='D-Bestand Zahlungen'!I11 -> 0 | I88: ='D-Bestand Zahlungen'!J11 -> 0 | J88: ='D-Bestand Zahlungen'!K11 -> 0.6071654556 | K88: ='D-Bestand Zahlungen'!L11 -> 0.6035635755 | L88: ='D-Bestand Zahlungen'!M11 -> 0.6035635755 | M88: ='D-Bestand Zahlungen'!N11 -> 0.6035635755 | N88: ='D-Bestand Zahlungen'!O11 -> 0.6035635755 | O88: ='D-Bestand Zahlungen'!P11 -> 0.6035635755 | P88: ='D-Bestand Zahlungen'!Q11 -> 0.6035635755 | Q88: ='D-Bestand Zahlungen'!R11 -> 0.5925480506 | R88: ='D-Bestand Zahlungen'!S11 -> 0.5610330823 | S88: ='D-Bestand Zahlungen'!T11 -> 0.4927797555 | T88: ='D-Bestand Zahlungen'!U11 -> 0.4600085691 | U88: ='D-Bestand Zahlungen'!V11 -> 0.3512685327 | V88: ='D-Bestand Zahlungen'!W11 -> 0.1554039369 | W88: ='D-Bestand Zahlungen'!X11 -> 0.1089041535 | X88: ='D-Bestand Zahlungen'!Y11 -> 0.1088017735 | Y88: ='D-Bestand Zahlungen'!Z11 -> 0.1086532222 | Z88: ='D-Bestand Zahlungen'!AA11 -> 0.1045481205 | AA88: ='D-Bestand Zahlungen'!AB11 -> 0.09885190166 | AB88: ='D-Bestand Zahlungen'!AC11 -> 0.08536275128 | AC88: ='D-Bestand Zahlungen'!AD11 -> 0.07532452101 | AD88: ='D-Bestand Zahlungen'!AE11 -> 0.04612158592 | AE88: ='D-Bestand Zahlungen'!AF11 -> 0 | AG88: v2.1.6
A89: 80 | E89: Solar | F89: ='D-Bestand Zahlungen'!G12 -> 0 | G89: ='D-Bestand Zahlungen'!H12 -> 0 | H89: ='D-Bestand Zahlungen'!I12 -> 0 | I89: ='D-Bestand Zahlungen'!J12 -> 0 | J89: ='D-Bestand Zahlungen'!K12 -> 11.06664759 | K89: ='D-Bestand Zahlungen'!L12 -> 10.90802615 | L89: ='D-Bestand Zahlungen'!M12 -> 10.90802615 | M89: ='D-Bestand Zahlungen'!N12 -> 10.90802615 | N89: ='D-Bestand Zahlungen'!O12 -> 10.90802615 | O89: ='D-Bestand Zahlungen'!P12 -> 10.90802615 | P89: ='D-Bestand Zahlungen'!Q12 -> 10.90802615 | Q89: ='D-Bestand Zahlungen'!R12 -> 10.86119713 | R89: ='D-Bestand Zahlungen'!S12 -> 10.81182169 | S89: ='D-Bestand Zahlungen'!T12 -> 10.76272349 | T89: ='D-Bestand Zahlungen'!U12 -> 10.70091178 | U89: ='D-Bestand Zahlungen'!V12 -> 10.35004947 | V89: ='D-Bestand Zahlungen'!W12 -> 9.880764545 | W89: ='D-Bestand Zahlungen'!X12 -> 9.471333919 | X89: ='D-Bestand Zahlungen'!Y12 -> 8.899189872 | Y89: ='D-Bestand Zahlungen'!Z12 -> 8.037477261 | Z89: ='D-Bestand Zahlungen'!AA12 -> 6.29293464 | AA89: ='D-Bestand Zahlungen'!AB12 -> 3.742565902 | AB89: ='D-Bestand Zahlungen'!AC12 -> 1.729319501 | AC89: ='D-Bestand Zahlungen'!AD12 -> 0.4960726965 | AD89: ='D-Bestand Zahlungen'!AE12 -> 0.1517664906 | AE89: ='D-Bestand Zahlungen'!AF12 -> 0 | AG89: v2.1.6
A90: 81 | AG90: v2.1.6
A91: 82 | E91: Standardauslastung Neuanlagen [h]
A92: 83 | B92: ='D-Standardauslastung'!C$6 -> Referenz | C92: ='D-Standardauslastung'!D$6 -> fh | D92: ='D-Standardauslastung'!E$6 -> MFP Trend | E92: Wasser | F92: ='D-Standardauslastung'!G$6 -> 0 | G92: ='D-Standardauslastung'!H$6 -> 0 | H92: ='D-Standardauslastung'!I$6 -> 0 | I92: ='D-Standardauslastung'!J$6 -> 0 | J92: ='D-Standardauslastung'!K$6 -> 0 | K92: ='D-Standardauslastung'!L$6 -> 3956 | L92: ='D-Standardauslastung'!M$6 -> 3956 | M92: ='D-Standardauslastung'!N$6 -> 3956 | N92: ='D-Standardauslastung'!O$6 -> 3956 | O92: ='D-Standardauslastung'!P$6 -> 3956 | P92: ='D-Standardauslastung'!Q$6 -> 3956 | Q92: ='D-Standardauslastung'!R$6 -> 3950 | R92: ='D-Standardauslastung'!S$6 -> 3950 | S92: ='D-Standardauslastung'!T$6 -> 3950 | T92: ='D-Standardauslastung'!U$6 -> 3960 | U92: ='D-Standardauslastung'!V$6 -> 3950 | V92: ='D-Standardauslastung'!W$6 -> 3950 | W92: ='D-Standardauslastung'!X$6 -> 3950 | X92: ='D-Standardauslastung'!Y$6 -> 3950 | Y92: ='D-Standardauslastung'!Z$6 -> 3950 | Z92: ='D-Standardauslastung'!AA$6 -> 3950 | AA92: ='D-Standardauslastung'!AB$6 -> 3950 | AB92: ='D-Standardauslastung'!AC$6 -> 3950 | AC92: ='D-Standardauslastung'!AD$6 -> 3950 | AD92: ='D-Standardauslastung'!AE$6 -> 3950 | AE92: ='D-Standardauslastung'!AF$6 -> 3950
A93: 84 | B93: ='D-Standardauslastung'!C$7 -> Referenz | C93: ='D-Standardauslastung'!D$7 -> fh | D93: ='D-Standardauslastung'!E$7 -> MFP Trend | E93: Gas | F93: ='D-Standardauslastung'!G$7 -> 0 | G93: ='D-Standardauslastung'!H$7 -> 0 | H93: ='D-Standardauslastung'!I$7 -> 0 | I93: ='D-Standardauslastung'!J$7 -> 0 | J93: ='D-Standardauslastung'!K$7 -> 0 | K93: ='D-Standardauslastung'!L$7 -> 2901 | L93: ='D-Standardauslastung'!M$7 -> 2901 | M93: ='D-Standardauslastung'!N$7 -> 3944 | N93: ='D-Standardauslastung'!O$7 -> 3767 | O93: ='D-Standardauslastung'!P$7 -> 3685 | P93: ='D-Standardauslastung'!Q$7 -> 3372.36534 | Q93: ='D-Standardauslastung'!R$7 -> 4128.712871 | R93: ='D-Standardauslastung'!S$7 -> 4306.859206 | S93: ='D-Standardauslastung'!T$7 -> 5080.717489 | T93: ='D-Standardauslastung'!U$7 -> 5776.397516 | U93: ='D-Standardauslastung'!V$7 -> 5222.222222 | V93: ='D-Standardauslastung'!W$7 -> 5222.222222 | W93: ='D-Standardauslastung'!X$7 -> 5222.222222 | X93: ='D-Standardauslastung'!Y$7 -> 5222.222222 | Y93: ='D-Standardauslastung'!Z$7 -> 5222.222222 | Z93: ='D-Standardauslastung'!AA$7 -> 5222.222222 | AA93: ='D-Standardauslastung'!AB$7 -> 5222.222222 | AB93: ='D-Standardauslastung'!AC$7 -> 5222.222222 | AC93: ='D-Standardauslastung'!AD$7 -> 5222.222222 | AD93: ='D-Standardauslastung'!AE$7 -> 5222.222222 | AE93: ='D-Standardauslastung'!AF$7 -> 5222.222222
A94: 85 | B94: ='D-Standardauslastung'!C$8 -> Referenz | C94: ='D-Standardauslastung'!D$8 -> fh | D94: ='D-Standardauslastung'!E$8 -> MFP Trend | E94: Biomasse | F94: ='D-Standardauslastung'!G$8 -> 0 | G94: ='D-Standardauslastung'!H$8 -> 0 | H94: ='D-Standardauslastung'!I$8 -> 0 | I94: ='D-Standardauslastung'!J$8 -> 0 | J94: ='D-Standardauslastung'!K$8 -> 0 | K94: ='D-Standardauslastung'!L$8 -> 5605 | L94: ='D-Standardauslastung'!M$8 -> 4000 | M94: ='D-Standardauslastung'!N$8 -> 4000 | N94: ='D-Standardauslastung'!O$8 -> 4000 | O94: ='D-Standardauslastung'!P$8 -> 4000 | P94: ='D-Standardauslastung'!Q$8 -> 4000 | Q94: ='D-Standardauslastung'!R$8 -> 4000 | R94: ='D-Standardauslastung'!S$8 -> 4000 | S94: ='D-Standardauslastung'!T$8 -> 4000 | T94: ='D-Standardauslastung'!U$8 -> 4000 | U94: ='D-Standardauslastung'!V$8 -> 4000 | V94: ='D-Standardauslastung'!W$8 -> 4000 | W94: ='D-Standardauslastung'!X$8 -> 4000 | X94: ='D-Standardauslastung'!Y$8 -> 4000 | Y94: ='D-Standardauslastung'!Z$8 -> 4000 | Z94: ='D-Standardauslastung'!AA$8 -> 4000 | AA94: ='D-Standardauslastung'!AB$8 -> 4000 | AB94: ='D-Standardauslastung'!AC$8 -> 4000 | AC94: ='D-Standardauslastung'!AD$8 -> 4000 | AD94: ='D-Standardauslastung'!AE$8 -> 4000 | AE94: ='D-Standardauslastung'!AF$8 -> 4000
A95: 86 | B95: ='D-Standardauslastung'!C$9 -> Referenz | C95: ='D-Standardauslastung'!D$9 -> fh | D95: ='D-Standardauslastung'!E$9 -> MFP Trend | E95: Geothermie | F95: ='D-Standardauslastung'!G$9 -> 0 | G95: ='D-Standardauslastung'!H$9 -> 0 | H95: ='D-Standardauslastung'!I$9 -> 0 | I95: ='D-Standardauslastung'!J$9 -> 0 | J95: ='D-Standardauslastung'!K$9 -> 0 | K95: ='D-Standardauslastung'!L$9 -> 4341 | L95: ='D-Standardauslastung'!M$9 -> 4341 | M95: ='D-Standardauslastung'!N$9 -> 6304 | N95: ='D-Standardauslastung'!O$9 -> 6304 | O95: ='D-Standardauslastung'!P$9 -> 6406 | P95: ='D-Standardauslastung'!Q$9 -> 5457 | Q95: ='D-Standardauslastung'!R$9 -> 5797 | R95: ='D-Standardauslastung'!S$9 -> 5797 | S95: ='D-Standardauslastung'!T$9 -> 5797 | T95: ='D-Standardauslastung'!U$9 -> 5815 | U95: ='D-Standardauslastung'!V$9 -> 5797 | V95: ='D-Standardauslastung'!W$9 -> 5797 | W95: ='D-Standardauslastung'!X$9 -> 5797 | X95: ='D-Standardauslastung'!Y$9 -> 5797 | Y95: ='D-Standardauslastung'!Z$9 -> 5797 | Z95: ='D-Standardauslastung'!AA$9 -> 5797 | AA95: ='D-Standardauslastung'!AB$9 -> 5797 | AB95: ='D-Standardauslastung'!AC$9 -> 5797 | AC95: ='D-Standardauslastung'!AD$9 -> 5797 | AD95: ='D-Standardauslastung'!AE$9 -> 5797 | AE95: ='D-Standardauslastung'!AF$9 -> 5797
A96: 87 | B96: ='D-Standardauslastung'!C$10 -> Referenz | C96: ='D-Standardauslastung'!D$10 -> fh | D96: ='D-Standardauslastung'!E$10 -> Anstieg auf 2600h in 2035 | E96: Wind Onshore | F96: ='D-Standardauslastung'!G$10 -> 0 | G96: ='D-Standardauslastung'!H$10 -> 0 | H96: ='D-Standardauslastung'!I$10 -> 0 | I96: ='D-Standardauslastung'!J$10 -> 0 | J96: ='D-Standardauslastung'!K$10 -> 0 | K96: ='D-Standardauslastung'!L$10 -> 2258.352876 | L96: ='D-Standardauslastung'!M$10 -> 2316.69895 | M96: ='D-Standardauslastung'!N$10 -> 2375.045024 | N96: ='D-Standardauslastung'!O$10 -> 2433.391098 | O96: ='D-Standardauslastung'!P$10 -> 2491.737172 | P96: ='D-Standardauslastung'!Q$10 -> 2491.737172 | Q96: ='D-Standardauslastung'!R$10 -> 2491.737172 | R96: ='D-Standardauslastung'!S$10 -> 2133 | S96: ='D-Standardauslastung'!T$10 -> 2186 | T96: ='D-Standardauslastung'!U$10 -> 2246 | U96: ='D-Standardauslastung'!V$10 -> 2364 | V96: ='D-Standardauslastung'!W$10 -> 2423 | W96: ='D-Standardauslastung'!X$10 -> 2458.4 | X96: ='D-Standardauslastung'!Y$10 -> 2482 | Y96: ='D-Standardauslastung'!Z$10 -> 2498.857143 | Z96: ='D-Standardauslastung'!AA$10 -> 2511.5 | AA96: ='D-Standardauslastung'!AB$10 -> 2521.333333 | AB96: ='D-Standardauslastung'!AC$10 -> 2529.2 | AC96: ='D-Standardauslastung'!AD$10 -> 2535.636364 | AD96: ='D-Standardauslastung'!AE$10 -> 2541 | AE96: ='D-Standardauslastung'!AF$10 -> 2600
A97: 88 | B97: ='D-Standardauslastung'!C$11 -> Referenz | C97: ='D-Standardauslastung'!D$11 -> as/pl/fh | D97: ='D-Standardauslastung'!E$11 -> Anstieg auf 4700 h in 2035 | E97: Wind Offshore | F97: ='D-Standardauslastung'!G$11 -> 0 | G97: ='D-Standardauslastung'!H$11 -> 0 | H97: ='D-Standardauslastung'!I$11 -> 0 | I97: ='D-Standardauslastung'!J$11 -> 0 | J97: ='D-Standardauslastung'!K$11 -> 0 | K97: ='D-Standardauslastung'!L$11 -> 3462 | L97: ='D-Standardauslastung'!M$11 -> 3562 | M97: ='D-Standardauslastung'!N$11 -> 3662 | N97: ='D-Standardauslastung'!O$11 -> 3762 | O97: ='D-Standardauslastung'!P$11 -> 3862 | P97: ='D-Standardauslastung'!Q$11 -> 3962 | Q97: ='D-Standardauslastung'!R$11 -> 4259 | R97: ='D-Standardauslastung'!S$11 -> 4270 | S97: ='D-Standardauslastung'!T$11 -> 4302 | T97: ='D-Standardauslastung'!U$11 -> 4360 | U97: ='D-Standardauslastung'!V$11 -> 4473.333333 | V97: ='D-Standardauslastung'!W$11 -> 4530 | W97: ='D-Standardauslastung'!X$11 -> 4564 | X97: ='D-Standardauslastung'!Y$11 -> 4586.666667 | Y97: ='D-Standardauslastung'!Z$11 -> 4602.857143 | Z97: ='D-Standardauslastung'!AA$11 -> 4615 | AA97: ='D-Standardauslastung'!AB$11 -> 4624.444444 | AB97: ='D-Standardauslastung'!AC$11 -> 4632 | AC97: ='D-Standardauslastung'!AD$11 -> 4638.181818 | AD97: ='D-Standardauslastung'!AE$11 -> 4643.333333 | AE97: ='D-Standardauslastung'!AF$11 -> 4700
A98: 89 | B98: ='D-Standardauslastung'!C$12 -> Referenz | C98: ='D-Standardauslastung'!D$12 -> fh | D98: ='D-Standardauslastung'!E$12 -> Anstieg auf 950h in 2035 | E98: Solar | F98: ='D-Standardauslastung'!G$12 -> 0 | G98: ='D-Standardauslastung'!H$12 -> 0 | H98: ='D-Standardauslastung'!I$12 -> 0 | I98: ='D-Standardauslastung'!J$12 -> 0 | J98: ='D-Standardauslastung'!K$12 -> 0 | K98: ='D-Standardauslastung'!L$12 -> 960 | L98: ='D-Standardauslastung'!M$12 -> 960 | M98: ='D-Standardauslastung'!N$12 -> 960 | N98: ='D-Standardauslastung'!O$12 -> 965 | O98: ='D-Standardauslastung'!P$12 -> 965 | P98: ='D-Standardauslastung'!Q$12 -> 965 | Q98: ='D-Standardauslastung'!R$12 -> 965 | R98: ='D-Standardauslastung'!S$12 -> 884.9687793 | S98: ='D-Standardauslastung'!T$12 -> 899.0318758 | T98: ='D-Standardauslastung'!U$12 -> 900.0779492 | U98: ='D-Standardauslastung'!V$12 -> 900.0168724 | V98: ='D-Standardauslastung'!W$12 -> 904.2642161 | W98: ='D-Standardauslastung'!X$12 -> 908.5115598 | X98: ='D-Standardauslastung'!Y$12 -> 912.7589035 | Y98: ='D-Standardauslastung'!Z$12 -> 917.0062472 | Z98: ='D-Standardauslastung'!AA$12 -> 921.2535908 | AA98: ='D-Standardauslastung'!AB$12 -> 925.5009345 | AB98: ='D-Standardauslastung'!AC$12 -> 929.7482782 | AC98: ='D-Standardauslastung'!AD$12 -> 933.9956219 | AD98: ='D-Standardauslastung'!AE$12 -> 938.2429656 | AE98: ='D-Standardauslastung'!AF$12 -> 950
A99: 90
A100: 91 | E100: Stromerzeugung gesamt aus ÜNB-Prognosen [TWh]
A101: 92 | B101: ='D-Strommenge ges.'!C$6 -> Historisch | C101: ='D-Strommenge ges.'!D$6 -> fh | D101: ='D-Strommenge ges.'!E$6 -> ÜNB Jahresprognose | E101: Wasser | F101: ='D-Strommenge ges.'!G$6 -> 5.444 | G101: ='D-Strommenge ges.'!H$6 -> 6.066746 | H101: ='D-Strommenge ges.'!I$6 -> 5.829856 | I101: ='D-Strommenge ges.'!J$6 -> 6.295288 | J101: ='D-Strommenge ges.'!K$6 -> 6.154331 | K101: ='D-Strommenge ges.'!L$6 -> 6.091853 | L101: ='D-Strommenge ges.'!M$6 -> 6.246214 | M101: ='D-Strommenge ges.'!N$6 -> 6.280817 | N101: ='D-Strommenge ges.'!O$6 -> 5.923796 | O101: ='D-Strommenge ges.'!P$6 -> 6.514587 | P101: ='D-Strommenge ges.'!Q$6 -> 6.250337 | Q101: ='D-Strommenge ges.'!R$6 -> 6.378431 | R101: ='D-Strommenge ges.'!S$6 -> 0 | S101: ='D-Strommenge ges.'!T$6 -> 0 | T101: ='D-Strommenge ges.'!U$6 -> 0 | U101: ='D-Strommenge ges.'!V$6 -> 0 | V101: ='D-Strommenge ges.'!W$6 -> 0 | W101: ='D-Strommenge ges.'!X$6 -> 0 | X101: ='D-Strommenge ges.'!Y$6 -> 0 | Y101: ='D-Strommenge ges.'!Z$6 -> 0 | Z101: ='D-Strommenge ges.'!AA$6 -> 0 | AA101: ='D-Strommenge ges.'!AB$6 -> 0 | AB101: ='D-Strommenge ges.'!AC$6 -> 0 | AC101: ='D-Strommenge ges.'!AD$6 -> 0 | AD101: ='D-Strommenge ges.'!AE$6 -> 0 | AE101: ='D-Strommenge ges.'!AF$6 -> 0
A102: 93 | B102: ='D-Strommenge ges.'!C$7 -> Historisch | C102: ='D-Strommenge ges.'!D$7 -> fh | D102: ='D-Strommenge ges.'!E$7 -> ÜNB Jahresprognose | E102: Gas | F102: ='D-Strommenge ges.'!G$7 -> 1.835 | G102: ='D-Strommenge ges.'!H$7 -> 1.993012 | H102: ='D-Strommenge ges.'!I$7 -> 1.667049 | I102: ='D-Strommenge ges.'!J$7 -> 1.906967 | J102: ='D-Strommenge ges.'!K$7 -> 1.824149 | K102: ='D-Strommenge ges.'!L$7 -> 1.67857 | L102: ='D-Strommenge ges.'!M$7 -> 1.607626 | M102: ='D-Strommenge ges.'!N$7 -> 1.388073 | N102: ='D-Strommenge ges.'!O$7 -> 1.677745 | O102: ='D-Strommenge ges.'!P$7 -> 1.707856 | P102: ='D-Strommenge ges.'!Q$7 -> 1.439734 | Q102: ='D-Strommenge ges.'!R$7 -> 1.250781 | R102: ='D-Strommenge ges.'!S$7 -> 0 | S102: ='D-Strommenge ges.'!T$7 -> 0 | T102: ='D-Strommenge ges.'!U$7 -> 0 | U102: ='D-Strommenge ges.'!V$7 -> 0 | V102: ='D-Strommenge ges.'!W$7 -> 0 | W102: ='D-Strommenge ges.'!X$7 -> 0 | X102: ='D-Strommenge ges.'!Y$7 -> 0 | Y102: ='D-Strommenge ges.'!Z$7 -> 0 | Z102: ='D-Strommenge ges.'!AA$7 -> 0 | AA102: ='D-Strommenge ges.'!AB$7 -> 0 | AB102: ='D-Strommenge ges.'!AC$7 -> 0 | AC102: ='D-Strommenge ges.'!AD$7 -> 0 | AD102: ='D-Strommenge ges.'!AE$7 -> 0 | AE102: ='D-Strommenge ges.'!AF$7 -> 0
A103: 94 | B103: ='D-Strommenge ges.'!C$8 -> Historisch | C103: ='D-Strommenge ges.'!D$8 -> fh | D103: ='D-Strommenge ges.'!E$8 -> ÜNB Jahresprognose | E103: Biomasse | F103: ='D-Strommenge ges.'!G$8 -> 26.262 | G103: ='D-Strommenge ges.'!H$8 -> 27.776936 | H103: ='D-Strommenge ges.'!I$8 -> 30.355591 | I103: ='D-Strommenge ges.'!J$8 -> 33.165136 | J103: ='D-Strommenge ges.'!K$8 -> 34.944731 | K103: ='D-Strommenge ges.'!L$8 -> 38.357604 | L103: ='D-Strommenge ges.'!M$8 -> 40.238845 | M103: ='D-Strommenge ges.'!N$8 -> 40.770393 | N103: ='D-Strommenge ges.'!O$8 -> 41.554489 | O103: ='D-Strommenge ges.'!P$8 -> 41.35162 | P103: ='D-Strommenge ges.'!Q$8 -> 41.74669 | Q103: ='D-Strommenge ges.'!R$8 -> 40.206694 | R103: ='D-Strommenge ges.'!S$8 -> 0 | S103: ='D-Strommenge ges.'!T$8 -> 0 | T103: ='D-Strommenge ges.'!U$8 -> 0 | U103: ='D-Strommenge ges.'!V$8 -> 0 | V103: ='D-Strommenge ges.'!W$8 -> 0 | W103: ='D-Strommenge ges.'!X$8 -> 0 | X103: ='D-Strommenge ges.'!Y$8 -> 0 | Y103: ='D-Strommenge ges.'!Z$8 -> 0 | Z103: ='D-Strommenge ges.'!AA$8 -> 0 | AA103: ='D-Strommenge ges.'!AB$8 -> 0 | AB103: ='D-Strommenge ges.'!AC$8 -> 0 | AC103: ='D-Strommenge ges.'!AD$8 -> 0 | AD103: ='D-Strommenge ges.'!AE$8 -> 0 | AE103: ='D-Strommenge ges.'!AF$8 -> 0
A104: 95 | B104: ='D-Strommenge ges.'!C$9 -> Historisch | C104: ='D-Strommenge ges.'!D$9 -> fh | D104: ='D-Strommenge ges.'!E$9 -> ÜNB Jahresprognose | E104: Geothermie | F104: ='D-Strommenge ges.'!G$9 -> 0.036 | G104: ='D-Strommenge ges.'!H$9 -> 0.061612 | H104: ='D-Strommenge ges.'!I$9 -> 0.10724 | I104: ='D-Strommenge ges.'!J$9 -> 0.076875 | J104: ='D-Strommenge ges.'!K$9 -> 0.130407 | K104: ='D-Strommenge ges.'!L$9 -> 0.158705 | L104: ='D-Strommenge ges.'!M$9 -> 0.180356 | M104: ='D-Strommenge ges.'!N$9 -> 0.189524 | N104: ='D-Strommenge ges.'!O$9 -> 0.25728 | O104: ='D-Strommenge ges.'!P$9 -> 0.286386 | P104: ='D-Strommenge ges.'!Q$9 -> 0.214729 | Q104: ='D-Strommenge ges.'!R$9 -> 0.267714 | R104: ='D-Strommenge ges.'!S$9 -> 0 | S104: ='D-Strommenge ges.'!T$9 -> 0 | T104: ='D-Strommenge ges.'!U$9 -> 0 | U104: ='D-Strommenge ges.'!V$9 -> 0 | V104: ='D-Strommenge ges.'!W$9 -> 0 | W104: ='D-Strommenge ges.'!X$9 -> 0 | X104: ='D-Strommenge ges.'!Y$9 -> 0 | Y104: ='D-Strommenge ges.'!Z$9 -> 0 | Z104: ='D-Strommenge ges.'!AA$9 -> 0 | AA104: ='D-Strommenge ges.'!AB$9 -> 0 | AB104: ='D-Strommenge ges.'!AC$9 -> 0 | AC104: ='D-Strommenge ges.'!AD$9 -> 0 | AD104: ='D-Strommenge ges.'!AE$9 -> 0 | AE104: ='D-Strommenge ges.'!AF$9 -> 0
A105: 96 | B105: ='D-Strommenge ges.'!C$10 -> Historisch | C105: ='D-Strommenge ges.'!D$10 -> fh | D105: ='D-Strommenge ges.'!E$10 -> ÜNB Jahresprognose | E105: Wind Onshore | F105: ='D-Strommenge ges.'!G$10 -> 47.704 | G105: ='D-Strommenge ges.'!H$10 -> 53.882749 | H105: ='D-Strommenge ges.'!I$10 -> 50.12519 | I105: ='D-Strommenge ges.'!J$10 -> 55.83089 | J105: ='D-Strommenge ges.'!K$10 -> 62.19039 | K105: ='D-Strommenge ges.'!L$10 -> 66.872688 | L105: ='D-Strommenge ges.'!M$10 -> 75.948886 | M105: ='D-Strommenge ges.'!N$10 -> 82.001903 | N105: ='D-Strommenge ges.'!O$10 -> 92.724076 | O105: ='D-Strommenge ges.'!P$10 -> 98.799183 | P105: ='D-Strommenge ges.'!Q$10 -> 102.088204 | Q105: ='D-Strommenge ges.'!R$10 -> 101.185739 | R105: ='D-Strommenge ges.'!S$10 -> 0 | S105: ='D-Strommenge ges.'!T$10 -> 0 | T105: ='D-Strommenge ges.'!U$10 -> 0 | U105: ='D-Strommenge ges.'!V$10 -> 0 | V105: ='D-Strommenge ges.'!W$10 -> 0 | W105: ='D-Strommenge ges.'!X$10 -> 0 | X105: ='D-Strommenge ges.'!Y$10 -> 0 | Y105: ='D-Strommenge ges.'!Z$10 -> 0 | Z105: ='D-Strommenge ges.'!AA$10 -> 0 | AA105: ='D-Strommenge ges.'!AB$10 -> 0 | AB105: ='D-Strommenge ges.'!AC$10 -> 0 | AC105: ='D-Strommenge ges.'!AD$10 -> 0 | AD105: ='D-Strommenge ges.'!AE$10 -> 0 | AE105: ='D-Strommenge ges.'!AF$10 -> 0
A106: 97 | B106: ='D-Strommenge ges.'!C$11 -> Historisch | C106: ='D-Strommenge ges.'!D$11 -> fh | D106: ='D-Strommenge ges.'!E$11 -> ÜNB Jahresprognose | E106: Wind Offshore | F106: ='D-Strommenge ges.'!G$11 -> 0.654 | G106: ='D-Strommenge ges.'!H$11 -> 1.146791 | H106: ='D-Strommenge ges.'!I$11 -> 1.361415 | I106: ='D-Strommenge ges.'!J$11 -> 2.494042 | J106: ='D-Strommenge ges.'!K$11 -> 7.397958 | K106: ='D-Strommenge ges.'!L$11 -> 11.231204 | L106: ='D-Strommenge ges.'!M$11 -> 15.379544 | M106: ='D-Strommenge ges.'!N$11 -> 20.033355 | N106: ='D-Strommenge ges.'!O$11 -> 22.564406 | O106: ='D-Strommenge ges.'!P$11 -> 26.466161 | P106: ='D-Strommenge ges.'!Q$11 -> 29.940076 | Q106: ='D-Strommenge ges.'!R$11 -> 29.63894 | R106: ='D-Strommenge ges.'!S$11 -> 0 | S106: ='D-Strommenge ges.'!T$11 -> 0 | T106: ='D-Strommenge ges.'!U$11 -> 0 | U106: ='D-Strommenge ges.'!V$11 -> 0 | V106: ='D-Strommenge ges.'!W$11 -> 0 | W106: ='D-Strommenge ges.'!X$11 -> 0 | X106: ='D-Strommenge ges.'!Y$11 -> 0 | Y106: ='D-Strommenge ges.'!Z$11 -> 0 | Z106: ='D-Strommenge ges.'!AA$11 -> 0 | AA106: ='D-Strommenge ges.'!AB$11 -> 0 | AB106: ='D-Strommenge ges.'!AC$11 -> 0 | AC106: ='D-Strommenge ges.'!AD$11 -> 0 | AD106: ='D-Strommenge ges.'!AE$11 -> 0 | AE106: ='D-Strommenge ges.'!AF$11 -> 0
A107: 98 | B107: ='D-Strommenge ges.'!C$12 -> Historisch | C107: ='D-Strommenge ges.'!D$12 -> fh | D107: ='D-Strommenge ges.'!E$12 -> ÜNB Jahresprognose | E107: Solar | F107: ='D-Strommenge ges.'!G$12 -> 8.296 | G107: ='D-Strommenge ges.'!H$12 -> 19.399287 | H107: ='D-Strommenge ges.'!I$12 -> 24.072319 | I107: ='D-Strommenge ges.'!J$12 -> 34.673695 | J107: ='D-Strommenge ges.'!K$12 -> 36.594587 | K107: ='D-Strommenge ges.'!L$12 -> 36.096958 | L107: ='D-Strommenge ges.'!M$12 -> 36.82555 | M107: ='D-Strommenge ges.'!N$12 -> 36.562144 | N107: ='D-Strommenge ges.'!O$12 -> 39.173615 | O107: ='D-Strommenge ges.'!P$12 -> 41.877699 | P107: ='D-Strommenge ges.'!Q$12 -> 43.939246 | Q107: ='D-Strommenge ges.'!R$12 -> 49.344335 | R107: ='D-Strommenge ges.'!S$12 -> 0 | S107: ='D-Strommenge ges.'!T$12 -> 0 | T107: ='D-Strommenge ges.'!U$12 -> 0 | U107: ='D-Strommenge ges.'!V$12 -> 0 | V107: ='D-Strommenge ges.'!W$12 -> 0 | W107: ='D-Strommenge ges.'!X$12 -> 0 | X107: ='D-Strommenge ges.'!Y$12 -> 0 | Y107: ='D-Strommenge ges.'!Z$12 -> 0 | Z107: ='D-Strommenge ges.'!AA$12 -> 0 | AA107: ='D-Strommenge ges.'!AB$12 -> 0 | AB107: ='D-Strommenge ges.'!AC$12 -> 0 | AC107: ='D-Strommenge ges.'!AD$12 -> 0 | AD107: ='D-Strommenge ges.'!AE$12 -> 0 | AE107: ='D-Strommenge ges.'!AF$12 -> 0
A108: 99 | E108: Gesamt | F108: =SUM(F101:F107) -> 90.231 | G108: 110.327133 | H108: 113.51866 | I108: 134.442893 | J108: 149.236553 | K108: 160.487582 | L108: 176.427021 | M108: 187.226209 | N108: 203.875407 | O108: 217.003492 | P108: 225.619016 | Q108: 228.272634 | R108: 0 | S108: 0 | T108: 0 | U108: 0 | V108: 0 | W108: 0 | X108: 0 | Y108: 0 | Z108: 0 | AA108: 0 | AB108: 0 | AC108: 0 | AD108: 0 | AE108: 0
A109: 100
A110: 101 | E110: Strommenge Festvergütung (§23-33 EEG) aus ÜNB-Prognosen [TWh] | AJ110: umbenannt
A111: 102 | B111: ='D-Strommenge FV+DM'!C6 -> Historisch | C111: ='D-Strommenge FV+DM'!D6 -> fh | D111: ='D-Strommenge FV+DM'!E6 -> ÜNB Jahresprognose | E111: Wasser | F111: ='D-Strommenge FV+DM'!G6 -> 5.444 | G111: ='D-Strommenge FV+DM'!H6 -> 2.069683 | H111: ='D-Strommenge FV+DM'!I6 -> 2.641933 | I111: ='D-Strommenge FV+DM'!J6 -> 1.433531 | J111: ='D-Strommenge FV+DM'!K6 -> 2.626648 | K111: ='D-Strommenge FV+DM'!L6 -> 2.515503 | L111: ='D-Strommenge FV+DM'!M6 -> 2.450964 | M111: ='D-Strommenge FV+DM'!N6 -> 3.291545 | N111: ='D-Strommenge FV+DM'!O6 -> 2.44945 | O111: ='D-Strommenge FV+DM'!P6 -> 2.483958 | P111: ='D-Strommenge FV+DM'!Q6 -> 2.298615 | Q111: ='D-Strommenge FV+DM'!R6 -> 2.250448 | R111: ='D-Strommenge FV+DM'!S6 -> 0 | S111: ='D-Strommenge FV+DM'!T6 -> 0 | T111: ='D-Strommenge FV+DM'!U6 -> 0 | U111: ='D-Strommenge FV+DM'!V6 -> 0 | V111: ='D-Strommenge FV+DM'!W6 -> 0 | W111: ='D-Strommenge FV+DM'!X6 -> 0 | X111: ='D-Strommenge FV+DM'!Y6 -> 0 | Y111: ='D-Strommenge FV+DM'!Z6 -> 0 | Z111: ='D-Strommenge FV+DM'!AA6 -> 0 | AA111: ='D-Strommenge FV+DM'!AB6 -> 0 | AB111: ='D-Strommenge FV+DM'!AC6 -> 0 | AC111: ='D-Strommenge FV+DM'!AD6 -> 0 | AD111: ='D-Strommenge FV+DM'!AE6 -> 0 | AE111: ='D-Strommenge FV+DM'!AF6 -> 0 | AJ111: umbenannt
A112: 103 | B112: ='D-Strommenge FV+DM'!C7 -> Historisch | C112: ='D-Strommenge FV+DM'!D7 -> fh | D112: ='D-Strommenge FV+DM'!E7 -> ÜNB Jahresprognose | E112: Gas | F112: ='D-Strommenge FV+DM'!G7 -> 1.835 | G112: ='D-Strommenge FV+DM'!H7 -> 0.199301 | H112: ='D-Strommenge FV+DM'!I7 -> 0.434035 | I112: ='D-Strommenge FV+DM'!J7 -> 0.268084 | J112: ='D-Strommenge FV+DM'!K7 -> 0.274088 | K112: ='D-Strommenge FV+DM'!L7 -> 0.72459 | L112: ='D-Strommenge FV+DM'!M7 -> 0.675053 | M112: ='D-Strommenge FV+DM'!N7 -> 0.489457 | N112: ='D-Strommenge FV+DM'!O7 -> 0.400273 | O112: ='D-Strommenge FV+DM'!P7 -> 0.305251 | P112: ='D-Strommenge FV+DM'!Q7 -> 0.238468 | Q112: ='D-Strommenge FV+DM'!R7 -> 0.125401 | R112: ='D-Strommenge FV+DM'!S7 -> 0 | S112: ='D-Strommenge FV+DM'!T7 -> 0 | T112: ='D-Strommenge FV+DM'!U7 -> 0 | U112: ='D-Strommenge FV+DM'!V7 -> 0 | V112: ='D-Strommenge FV+DM'!W7 -> 0 | W112: ='D-Strommenge FV+DM'!X7 -> 0 | X112: ='D-Strommenge FV+DM'!Y7 -> 0 | Y112: ='D-Strommenge FV+DM'!Z7 -> 0 | Z112: ='D-Strommenge FV+DM'!AA7 -> 0 | AA112: ='D-Strommenge FV+DM'!AB7 -> 0 | AB112: ='D-Strommenge FV+DM'!AC7 -> 0 | AC112: ='D-Strommenge FV+DM'!AD7 -> 0 | AD112: ='D-Strommenge FV+DM'!AE7 -> 0 | AE112: ='D-Strommenge FV+DM'!AF7 -> 0 | AJ112: umbenannt
A113: 104 | B113: ='D-Strommenge FV+DM'!C8 -> Historisch | C113: ='D-Strommenge FV+DM'!D8 -> fh | D113: ='D-Strommenge FV+DM'!E8 -> ÜNB Jahresprognose | E113: Biomasse | F113: ='D-Strommenge FV+DM'!G8 -> 26.262 | G113: ='D-Strommenge FV+DM'!H8 -> 24.314577 | H113: ='D-Strommenge FV+DM'!I8 -> 23.696602 | I113: ='D-Strommenge FV+DM'!J8 -> 11.950589 | J113: ='D-Strommenge FV+DM'!K8 -> 12.996518 | K113: ='D-Strommenge FV+DM'!L8 -> 9.971876 | L113: ='D-Strommenge FV+DM'!M8 -> 11.098848 | M113: ='D-Strommenge FV+DM'!N8 -> 9.75144 | N113: ='D-Strommenge FV+DM'!O8 -> 10.333108 | O113: ='D-Strommenge FV+DM'!P8 -> 9.430601 | P113: ='D-Strommenge FV+DM'!Q8 -> 7.590904 | Q113: ='D-Strommenge FV+DM'!R8 -> 6.632316 | R113: ='D-Strommenge FV+DM'!S8 -> 0 | S113: ='D-Strommenge FV+DM'!T8 -> 0 | T113: ='D-Strommenge FV+DM'!U8 -> 0 | U113: ='D-Strommenge FV+DM'!V8 -> 0 | V113: ='D-Strommenge FV+DM'!W8 -> 0 | W113: ='D-Strommenge FV+DM'!X8 -> 0 | X113: ='D-Strommenge FV+DM'!Y8 -> 0 | Y113: ='D-Strommenge FV+DM'!Z8 -> 0 | Z113: ='D-Strommenge FV+DM'!AA8 -> 0 | AA113: ='D-Strommenge FV+DM'!AB8 -> 0 | AB113: ='D-Strommenge FV+DM'!AC8 -> 0 | AC113: ='D-Strommenge FV+DM'!AD8 -> 0 | AD113: ='D-Strommenge FV+DM'!AE8 -> 0 | AE113: ='D-Strommenge FV+DM'!AF8 -> 0 | AJ113: umbenannt
A114: 105 | B114: ='D-Strommenge FV+DM'!C9 -> Historisch | C114: ='D-Strommenge FV+DM'!D9 -> fh | D114: ='D-Strommenge FV+DM'!E9 -> ÜNB Jahresprognose | E114: Geothermie | F114: ='D-Strommenge FV+DM'!G9 -> 0.036 | G114: ='D-Strommenge FV+DM'!H9 -> 0.061612 | H114: ='D-Strommenge FV+DM'!I9 -> 0.090605 | I114: ='D-Strommenge FV+DM'!J9 -> 0.076875 | J114: ='D-Strommenge FV+DM'!K9 -> 0.113607 | K114: ='D-Strommenge FV+DM'!L9 -> 0.079648 | L114: ='D-Strommenge FV+DM'!M9 -> 0.082011 | M114: ='D-Strommenge FV+DM'!N9 -> 0.083443 | N114: ='D-Strommenge FV+DM'!O9 -> 0.032674 | O114: ='D-Strommenge FV+DM'!P9 -> 0.053083 | P114: ='D-Strommenge FV+DM'!Q9 -> 0.00784 | Q114: ='D-Strommenge FV+DM'!R9 -> 0.011445 | R114: ='D-Strommenge FV+DM'!S9 -> 0 | S114: ='D-Strommenge FV+DM'!T9 -> 0 | T114: ='D-Strommenge FV+DM'!U9 -> 0 | U114: ='D-Strommenge FV+DM'!V9 -> 0 | V114: ='D-Strommenge FV+DM'!W9 -> 0 | W114: ='D-Strommenge FV+DM'!X9 -> 0 | X114: ='D-Strommenge FV+DM'!Y9 -> 0 | Y114: ='D-Strommenge FV+DM'!Z9 -> 0 | Z114: ='D-Strommenge FV+DM'!AA9 -> 0 | AA114: ='D-Strommenge FV+DM'!AB9 -> 0 | AB114: ='D-Strommenge FV+DM'!AC9 -> 0 | AC114: ='D-Strommenge FV+DM'!AD9 -> 0 | AD114: ='D-Strommenge FV+DM'!AE9 -> 0 | AE114: ='D-Strommenge FV+DM'!AF9 -> 0 | AJ114: umbenannt
A115: 106 | B115: ='D-Strommenge FV+DM'!C10 -> Historisch | C115: ='D-Strommenge FV+DM'!D10 -> fh | D115: ='D-Strommenge FV+DM'!E10 -> ÜNB Jahresprognose | E115: Wind Onshore | F115: ='D-Strommenge FV+DM'!G10 -> 47.704 | G115: ='D-Strommenge FV+DM'!H10 -> 50.803852 | H115: ='D-Strommenge FV+DM'!I10 -> 41.210659 | I115: ='D-Strommenge FV+DM'!J10 -> 8.037706 | J115: ='D-Strommenge FV+DM'!K10 -> 8.923746 | K115: ='D-Strommenge FV+DM'!L10 -> 9.373807 | L115: ='D-Strommenge FV+DM'!M10 -> 8.18255 | M115: ='D-Strommenge FV+DM'!N10 -> 6.202017 | N115: ='D-Strommenge FV+DM'!O10 -> 4.950955 | O115: ='D-Strommenge FV+DM'!P10 -> 3.370538 | P115: ='D-Strommenge FV+DM'!Q10 -> 3.594046 | Q115: ='D-Strommenge FV+DM'!R10 -> 2.329029 | R115: ='D-Strommenge FV+DM'!S10 -> 0 | S115: ='D-Strommenge FV+DM'!T10 -> 0 | T115: ='D-Strommenge FV+DM'!U10 -> 0 | U115: ='D-Strommenge FV+DM'!V10 -> 0 | V115: ='D-Strommenge FV+DM'!W10 -> 0 | W115: ='D-Strommenge FV+DM'!X10 -> 0 | X115: ='D-Strommenge FV+DM'!Y10 -> 0 | Y115: ='D-Strommenge FV+DM'!Z10 -> 0 | Z115: ='D-Strommenge FV+DM'!AA10 -> 0 | AA115: ='D-Strommenge FV+DM'!AB10 -> 0 | AB115: ='D-Strommenge FV+DM'!AC10 -> 0 | AC115: ='D-Strommenge FV+DM'!AD10 -> 0 | AD115: ='D-Strommenge FV+DM'!AE10 -> 0 | AE115: ='D-Strommenge FV+DM'!AF10 -> 0 | AJ115: umbenannt
A116: 107 | B116: ='D-Strommenge FV+DM'!C11 -> Historisch | C116: ='D-Strommenge FV+DM'!D11 -> fh | D116: ='D-Strommenge FV+DM'!E11 -> ÜNB Jahresprognose | E116: Wind Offshore | F116: ='D-Strommenge FV+DM'!G11 -> 0.654 | G116: ='D-Strommenge FV+DM'!H11 -> 1.146791 | H116: ='D-Strommenge FV+DM'!I11 -> 0.918809 | I116: ='D-Strommenge FV+DM'!J11 -> 0 | J116: ='D-Strommenge FV+DM'!K11 -> 0 | K116: ='D-Strommenge FV+DM'!L11 -> 0 | L116: ='D-Strommenge FV+DM'!M11 -> 0 | M116: ='D-Strommenge FV+DM'!N11 -> 0 | N116: ='D-Strommenge FV+DM'!O11 -> 0 | O116: ='D-Strommenge FV+DM'!P11 -> 0 | P116: ='D-Strommenge FV+DM'!Q11 -> 0 | Q116: ='D-Strommenge FV+DM'!R11 -> 0 | R116: ='D-Strommenge FV+DM'!S11 -> 0 | S116: ='D-Strommenge FV+DM'!T11 -> 0 | T116: ='D-Strommenge FV+DM'!U11 -> 0 | U116: ='D-Strommenge FV+DM'!V11 -> 0 | V116: ='D-Strommenge FV+DM'!W11 -> 0 | W116: ='D-Strommenge FV+DM'!X11 -> 0 | X116: ='D-Strommenge FV+DM'!Y11 -> 0 | Y116: ='D-Strommenge FV+DM'!Z11 -> 0 | Z116: ='D-Strommenge FV+DM'!AA11 -> 0 | AA116: ='D-Strommenge FV+DM'!AB11 -> 0 | AB116: ='D-Strommenge FV+DM'!AC11 -> 0 | AC116: ='D-Strommenge FV+DM'!AD11 -> 0 | AD116: ='D-Strommenge FV+DM'!AE11 -> 0 | AE116: ='D-Strommenge FV+DM'!AF11 -> 0 | AJ116: umbenannt
A117: 108 | B117: ='D-Strommenge FV+DM'!C12 -> Historisch | C117: ='D-Strommenge FV+DM'!D12 -> fh | D117: ='D-Strommenge FV+DM'!E12 -> ÜNB Jahresprognose | E117: Solar | F117: ='D-Strommenge FV+DM'!G12 -> 8.296 | G117: ='D-Strommenge FV+DM'!H12 -> 19.399287 | H117: ='D-Strommenge FV+DM'!I12 -> 22.864762 | I117: ='D-Strommenge FV+DM'!J12 -> 29.414851 | J117: ='D-Strommenge FV+DM'!K12 -> 28.987664 | K117: ='D-Strommenge FV+DM'!L12 -> 27.794585 | L117: ='D-Strommenge FV+DM'!M12 -> 27.60231 | M117: ='D-Strommenge FV+DM'!N12 -> 26.451789 | N117: ='D-Strommenge FV+DM'!O12 -> 27.68471 | O117: ='D-Strommenge FV+DM'!P12 -> 26.884111 | P117: ='D-Strommenge FV+DM'!Q12 -> 27.468408 | Q117: ='D-Strommenge FV+DM'!R12 -> 28.536633 | R117: ='D-Strommenge FV+DM'!S12 -> 0 | S117: ='D-Strommenge FV+DM'!T12 -> 0 | T117: ='D-Strommenge FV+DM'!U12 -> 0 | U117: ='D-Strommenge FV+DM'!V12 -> 0 | V117: ='D-Strommenge FV+DM'!W12 -> 0 | W117: ='D-Strommenge FV+DM'!X12 -> 0 | X117: ='D-Strommenge FV+DM'!Y12 -> 0 | Y117: ='D-Strommenge FV+DM'!Z12 -> 0 | Z117: ='D-Strommenge FV+DM'!AA12 -> 0 | AA117: ='D-Strommenge FV+DM'!AB12 -> 0 | AB117: ='D-Strommenge FV+DM'!AC12 -> 0 | AC117: ='D-Strommenge FV+DM'!AD12 -> 0 | AD117: ='D-Strommenge FV+DM'!AE12 -> 0 | AE117: ='D-Strommenge FV+DM'!AF12 -> 0 | AJ117: umbenannt
A118: 109 | E118: Gesamt | F118: =SUM(F111:F117) -> 90.231 | G118: 97.995103 | H118: 91.857405 | I118: 51.181636 | J118: 53.922271 | K118: 50.460009 | L118: 50.091736 | M118: 46.269691 | N118: 45.85117 | O118: 42.527542 | P118: 41.198281 | Q118: 39.885272 | R118: 0 | S118: 0 | T118: 0 | U118: 0 | V118: 0 | W118: 0 | X118: 0 | Y118: 0 | Z118: 0 | AA118: 0 | AB118: 0 | AC118: 0 | AD118: 0 | AE118: 0 | AJ118: umbenannt
A119: 110
A120: 110.01 | E120: Strommenge Direktvermarktung nach § 33b Zif. 1 (Marktprämie) aus ÜNB-Prognosen [TWh]
A121: 110.02 | B121: ='D-Strommenge FV+DM'!C26 -> 0 | C121: ='D-Strommenge FV+DM'!D26 -> 0 | D121: ='D-Strommenge FV+DM'!E26 -> 0 | E121: Wasser | F121: ='D-Strommenge FV+DM'!G19 -> 0 | G121: ='D-Strommenge FV+DM'!H19 -> 0 | H121: ='D-Strommenge FV+DM'!I19 -> 2.181789 | I121: ='D-Strommenge FV+DM'!J19 -> 4.296739 | J121: ='D-Strommenge FV+DM'!K19 -> 2.831824 | K121: ='D-Strommenge FV+DM'!L19 -> 3.57635 | L121: ='D-Strommenge FV+DM'!M19 -> 3.708782 | M121: ='D-Strommenge FV+DM'!N19 -> 2.892002 | N121: ='D-Strommenge FV+DM'!O19 -> 3.012129 | O121: ='D-Strommenge FV+DM'!P19 -> 3.465357 | P121: ='D-Strommenge FV+DM'!Q19 -> 3.205884 | Q121: ='D-Strommenge FV+DM'!R19 -> 3.393874 | R121: ='D-Strommenge FV+DM'!S19 -> 0 | S121: ='D-Strommenge FV+DM'!T19 -> 0 | T121: ='D-Strommenge FV+DM'!U19 -> 0 | U121: ='D-Strommenge FV+DM'!V19 -> 0 | V121: ='D-Strommenge FV+DM'!W19 -> 0 | W121: ='D-Strommenge FV+DM'!X19 -> 0 | X121: ='D-Strommenge FV+DM'!Y19 -> 0 | Y121: ='D-Strommenge FV+DM'!Z19 -> 0 | Z121: ='D-Strommenge FV+DM'!AA19 -> 0 | AA121: ='D-Strommenge FV+DM'!AB19 -> 0 | AB121: ='D-Strommenge FV+DM'!AC19 -> 0 | AC121: ='D-Strommenge FV+DM'!AD19 -> 0 | AD121: ='D-Strommenge FV+DM'!AE19 -> 0 | AE121: ='D-Strommenge FV+DM'!AF19 -> 0 | AJ121: neu hinzugefügt
A122: 110.03 | B122: ='D-Strommenge FV+DM'!C27 -> 0 | C122: ='D-Strommenge FV+DM'!D27 -> 0 | D122: ='D-Strommenge FV+DM'!E27 -> 0 | E122: Gas | F122: ='D-Strommenge FV+DM'!G20 -> 0 | G122: ='D-Strommenge FV+DM'!H20 -> 0 | H122: ='D-Strommenge FV+DM'!I20 -> 0.290393 | I122: ='D-Strommenge FV+DM'!J20 -> 1.170036 | J122: ='D-Strommenge FV+DM'!K20 -> 0.521492 | K122: ='D-Strommenge FV+DM'!L20 -> 0.95398 | L122: ='D-Strommenge FV+DM'!M20 -> 0.93152 | M122: ='D-Strommenge FV+DM'!N20 -> 0.886997 | N122: ='D-Strommenge FV+DM'!O20 -> 0.906454 | O122: ='D-Strommenge FV+DM'!P20 -> 0.923757 | P122: ='D-Strommenge FV+DM'!Q20 -> 0.757748 | Q122: ='D-Strommenge FV+DM'!R20 -> 0.726764 | R122: ='D-Strommenge FV+DM'!S20 -> 0 | S122: ='D-Strommenge FV+DM'!T20 -> 0 | T122: ='D-Strommenge FV+DM'!U20 -> 0 | U122: ='D-Strommenge FV+DM'!V20 -> 0 | V122: ='D-Strommenge FV+DM'!W20 -> 0 | W122: ='D-Strommenge FV+DM'!X20 -> 0 | X122: ='D-Strommenge FV+DM'!Y20 -> 0 | Y122: ='D-Strommenge FV+DM'!Z20 -> 0 | Z122: ='D-Strommenge FV+DM'!AA20 -> 0 | AA122: ='D-Strommenge FV+DM'!AB20 -> 0 | AB122: ='D-Strommenge FV+DM'!AC20 -> 0 | AC122: ='D-Strommenge FV+DM'!AD20 -> 0 | AD122: ='D-Strommenge FV+DM'!AE20 -> 0 | AE122: ='D-Strommenge FV+DM'!AF20 -> 0 | AJ122: neu hinzugefügt
A123: 110.04 | B123: ='D-Strommenge FV+DM'!C28 -> 0 | C123: ='D-Strommenge FV+DM'!D28 -> 0 | D123: ='D-Strommenge FV+DM'!E28 -> 0 | E123: Biomasse | F123: ='D-Strommenge FV+DM'!G21 -> 0 | G123: ='D-Strommenge FV+DM'!H21 -> 0 | H123: ='D-Strommenge FV+DM'!I21 -> 5.943498 | I123: ='D-Strommenge FV+DM'!J21 -> 21.214547 | J123: ='D-Strommenge FV+DM'!K21 -> 21.925465 | K123: ='D-Strommenge FV+DM'!L21 -> 28.385728 | L123: ='D-Strommenge FV+DM'!M21 -> 29.12399 | M123: ='D-Strommenge FV+DM'!N21 -> 31.014033 | N123: ='D-Strommenge FV+DM'!O21 -> 31.204752 | O123: ='D-Strommenge FV+DM'!P21 -> 31.842125 | P123: ='D-Strommenge FV+DM'!Q21 -> 34.123956 | Q123: ='D-Strommenge FV+DM'!R21 -> 33.52495 | R123: ='D-Strommenge FV+DM'!S21 -> 0 | S123: ='D-Strommenge FV+DM'!T21 -> 0 | T123: ='D-Strommenge FV+DM'!U21 -> 0 | U123: ='D-Strommenge FV+DM'!V21 -> 0 | V123: ='D-Strommenge FV+DM'!W21 -> 0 | W123: ='D-Strommenge FV+DM'!X21 -> 0 | X123: ='D-Strommenge FV+DM'!Y21 -> 0 | Y123: ='D-Strommenge FV+DM'!Z21 -> 0 | Z123: ='D-Strommenge FV+DM'!AA21 -> 0 | AA123: ='D-Strommenge FV+DM'!AB21 -> 0 | AB123: ='D-Strommenge FV+DM'!AC21 -> 0 | AC123: ='D-Strommenge FV+DM'!AD21 -> 0 | AD123: ='D-Strommenge FV+DM'!AE21 -> 0 | AE123: ='D-Strommenge FV+DM'!AF21 -> 0 | AJ123: neu hinzugefügt
A124: 110.05 | B124: ='D-Strommenge FV+DM'!C29 -> 0 | C124: ='D-Strommenge FV+DM'!D29 -> 0 | D124: ='D-Strommenge FV+DM'!E29 -> 0 | E124: Geothermie | F124: ='D-Strommenge FV+DM'!G22 -> 0 | G124: ='D-Strommenge FV+DM'!H22 -> 0 | H124: ='D-Strommenge FV+DM'!I22 -> 0.016635 | I124: ='D-Strommenge FV+DM'!J22 -> 0 | J124: ='D-Strommenge FV+DM'!K22 -> 0.0168 | K124: ='D-Strommenge FV+DM'!L22 -> 0.079057 | L124: ='D-Strommenge FV+DM'!M22 -> 0.098345 | M124: ='D-Strommenge FV+DM'!N22 -> 0.106081 | N124: ='D-Strommenge FV+DM'!O22 -> 0.17315 | O124: ='D-Strommenge FV+DM'!P22 -> 0.176026 | P124: ='D-Strommenge FV+DM'!Q22 -> 0.163943 | Q124: ='D-Strommenge FV+DM'!R22 -> 0.202726 | R124: ='D-Strommenge FV+DM'!S22 -> 0 | S124: ='D-Strommenge FV+DM'!T22 -> 0 | T124: ='D-Strommenge FV+DM'!U22 -> 0 | U124: ='D-Strommenge FV+DM'!V22 -> 0 | V124: ='D-Strommenge FV+DM'!W22 -> 0 | W124: ='D-Strommenge FV+DM'!X22 -> 0 | X124: ='D-Strommenge FV+DM'!Y22 -> 0 | Y124: ='D-Strommenge FV+DM'!Z22 -> 0 | Z124: ='D-Strommenge FV+DM'!AA22 -> 0 | AA124: ='D-Strommenge FV+DM'!AB22 -> 0 | AB124: ='D-Strommenge FV+DM'!AC22 -> 0 | AC124: ='D-Strommenge FV+DM'!AD22 -> 0 | AD124: ='D-Strommenge FV+DM'!AE22 -> 0 | AE124: ='D-Strommenge FV+DM'!AF22 -> 0 | AJ124: neu hinzugefügt
A125: 110.06 | B125: ='D-Strommenge FV+DM'!C30 -> 0 | C125: ='D-Strommenge FV+DM'!D30 -> 0 | D125: ='D-Strommenge FV+DM'!E30 -> 0 | E125: Wind Onshore | F125: ='D-Strommenge FV+DM'!G23 -> 0 | G125: ='D-Strommenge FV+DM'!H23 -> 0 | H125: ='D-Strommenge FV+DM'!I23 -> 7.387108 | I125: ='D-Strommenge FV+DM'!J23 -> 46.901827 | J125: ='D-Strommenge FV+DM'!K23 -> 51.661168 | K125: ='D-Strommenge FV+DM'!L23 -> 57.498881 | L125: ='D-Strommenge FV+DM'!M23 -> 67.570857 | M125: ='D-Strommenge FV+DM'!N23 -> 75.744242 | N125: ='D-Strommenge FV+DM'!O23 -> 87.745679 | O125: ='D-Strommenge FV+DM'!P23 -> 95.400549 | P125: ='D-Strommenge FV+DM'!Q23 -> 98.452184 | Q125: ='D-Strommenge FV+DM'!R23 -> 97.184867 | R125: ='D-Strommenge FV+DM'!S23 -> 0 | S125: ='D-Strommenge FV+DM'!T23 -> 0 | T125: ='D-Strommenge FV+DM'!U23 -> 0 | U125: ='D-Strommenge FV+DM'!V23 -> 0 | V125: ='D-Strommenge FV+DM'!W23 -> 0 | W125: ='D-Strommenge FV+DM'!X23 -> 0 | X125: ='D-Strommenge FV+DM'!Y23 -> 0 | Y125: ='D-Strommenge FV+DM'!Z23 -> 0 | Z125: ='D-Strommenge FV+DM'!AA23 -> 0 | AA125: ='D-Strommenge FV+DM'!AB23 -> 0 | AB125: ='D-Strommenge FV+DM'!AC23 -> 0 | AC125: ='D-Strommenge FV+DM'!AD23 -> 0 | AD125: ='D-Strommenge FV+DM'!AE23 -> 0 | AE125: ='D-Strommenge FV+DM'!AF23 -> 0 | AJ125: neu hinzugefügt
A126: 110.07 | B126: ='D-Strommenge FV+DM'!C31 -> 0 | C126: ='D-Strommenge FV+DM'!D31 -> 0 | D126: ='D-Strommenge FV+DM'!E31 -> 0 | E126: Wind Offshore | F126: ='D-Strommenge FV+DM'!G24 -> 0 | G126: ='D-Strommenge FV+DM'!H24 -> 0 | H126: ='D-Strommenge FV+DM'!I24 -> 0.442606 | I126: ='D-Strommenge FV+DM'!J24 -> 2.494042 | J126: ='D-Strommenge FV+DM'!K24 -> 7.397958 | K126: ='D-Strommenge FV+DM'!L24 -> 11.231204 | L126: ='D-Strommenge FV+DM'!M24 -> 15.379544 | M126: ='D-Strommenge FV+DM'!N24 -> 20.033355 | N126: ='D-Strommenge FV+DM'!O24 -> 22.564406 | O126: ='D-Strommenge FV+DM'!P24 -> 26.466161 | P126: ='D-Strommenge FV+DM'!Q24 -> 29.940076 | Q126: ='D-Strommenge FV+DM'!R24 -> 29.63894 | R126: ='D-Strommenge FV+DM'!S24 -> 0 | S126: ='D-Strommenge FV+DM'!T24 -> 0 | T126: ='D-Strommenge FV+DM'!U24 -> 0 | U126: ='D-Strommenge FV+DM'!V24 -> 0 | V126: ='D-Strommenge FV+DM'!W24 -> 0 | W126: ='D-Strommenge FV+DM'!X24 -> 0 | X126: ='D-Strommenge FV+DM'!Y24 -> 0 | Y126: ='D-Strommenge FV+DM'!Z24 -> 0 | Z126: ='D-Strommenge FV+DM'!AA24 -> 0 | AA126: ='D-Strommenge FV+DM'!AB24 -> 0 | AB126: ='D-Strommenge FV+DM'!AC24 -> 0 | AC126: ='D-Strommenge FV+DM'!AD24 -> 0 | AD126: ='D-Strommenge FV+DM'!AE24 -> 0 | AE126: ='D-Strommenge FV+DM'!AF24 -> 0 | AJ126: neu hinzugefügt
A127: 110.08 | B127: ='D-Strommenge FV+DM'!C32 -> 0 | C127: ='D-Strommenge FV+DM'!D32 -> 0 | D127: ='D-Strommenge FV+DM'!E32 -> 0 | E127: Solar | F127: ='D-Strommenge FV+DM'!G25 -> 0 | G127: ='D-Strommenge FV+DM'!H25 -> 0 | H127: ='D-Strommenge FV+DM'!I25 -> 0.635469 | I127: ='D-Strommenge FV+DM'!J25 -> 2.921383 | J127: ='D-Strommenge FV+DM'!K25 -> 4.81857 | K127: ='D-Strommenge FV+DM'!L25 -> 6.293679 | L127: ='D-Strommenge FV+DM'!M25 -> 6.960535 | M127: ='D-Strommenge FV+DM'!N25 -> 8.004357 | N127: ='D-Strommenge FV+DM'!O25 -> 9.045154 | O127: ='D-Strommenge FV+DM'!P25 -> 11.590814 | P127: ='D-Strommenge FV+DM'!Q25 -> 12.871558 | Q127: ='D-Strommenge FV+DM'!R25 -> 15.710375 | R127: ='D-Strommenge FV+DM'!S25 -> 0 | S127: ='D-Strommenge FV+DM'!T25 -> 0 | T127: ='D-Strommenge FV+DM'!U25 -> 0 | U127: ='D-Strommenge FV+DM'!V25 -> 0 | V127: ='D-Strommenge FV+DM'!W25 -> 0 | W127: ='D-Strommenge FV+DM'!X25 -> 0 | X127: ='D-Strommenge FV+DM'!Y25 -> 0 | Y127: ='D-Strommenge FV+DM'!Z25 -> 0 | Z127: ='D-Strommenge FV+DM'!AA25 -> 0 | AA127: ='D-Strommenge FV+DM'!AB25 -> 0 | AB127: ='D-Strommenge FV+DM'!AC25 -> 0 | AC127: ='D-Strommenge FV+DM'!AD25 -> 0 | AD127: ='D-Strommenge FV+DM'!AE25 -> 0 | AE127: ='D-Strommenge FV+DM'!AF25 -> 0 | AJ127: neu hinzugefügt
A128: 110.09 | E128: Gesamt | F128: =SUM(F121:F127) -> 0 | G128: 0 | H128: 16.897498 | I128: 78.998574 | J128: 89.173277 | K128: 108.018879 | L128: 123.773573 | M128: 138.681067 | N128: 154.651724 | O128: 169.864789 | P128: 179.515349 | Q128: 180.382496 | R128: 0 | S128: 0 | T128: 0 | U128: 0 | V128: 0 | W128: 0 | X128: 0 | Y128: 0 | Z128: 0 | AA128: 0 | AB128: 0 | AC128: 0 | AD128: 0 | AE128: 0 | AJ128: neu hinzugefügt
A129: 110.10
A130: 111 | E130: Anteil Eigenverbrauch Neuanlagen [-]
A131: 112 | B131: ='D-Anteil Eigenverbrauch EE neu'!C$6 -> Referenz | C131: ='D-Anteil Eigenverbrauch EE neu'!D$6 -> cl | D131: ='D-Anteil Eigenverbrauch EE neu'!E$6 -> 0 | E131: Wasser | F131: ='D-Anteil Eigenverbrauch EE neu'!G$6 -> 0 | G131: ='D-Anteil Eigenverbrauch EE neu'!H$6 -> 0 | H131: ='D-Anteil Eigenverbrauch EE neu'!I$6 -> 0 | I131: ='D-Anteil Eigenverbrauch EE neu'!J$6 -> 0 | J131: ='D-Anteil Eigenverbrauch EE neu'!K$6 -> 0 | K131: ='D-Anteil Eigenverbrauch EE neu'!L$6 -> 0 | L131: ='D-Anteil Eigenverbrauch EE neu'!M$6 -> 0 | M131: ='D-Anteil Eigenverbrauch EE neu'!N$6 -> 0 | N131: ='D-Anteil Eigenverbrauch EE neu'!O$6 -> 0 | O131: ='D-Anteil Eigenverbrauch EE neu'!P$6 -> 0 | P131: ='D-Anteil Eigenverbrauch EE neu'!Q$6 -> 0 | Q131: ='D-Anteil Eigenverbrauch EE neu'!R$6 -> 0 | R131: ='D-Anteil Eigenverbrauch EE neu'!S$6 -> 0 | S131: ='D-Anteil Eigenverbrauch EE neu'!T$6 -> 0 | T131: ='D-Anteil Eigenverbrauch EE neu'!U$6 -> 0 | U131: ='D-Anteil Eigenverbrauch EE neu'!V$6 -> 0 | V131: ='D-Anteil Eigenverbrauch EE neu'!W$6 -> 0 | W131: ='D-Anteil Eigenverbrauch EE neu'!X$6 -> 0 | X131: ='D-Anteil Eigenverbrauch EE neu'!Y$6 -> 0 | Y131: ='D-Anteil Eigenverbrauch EE neu'!Z$6 -> 0 | Z131: ='D-Anteil Eigenverbrauch EE neu'!AA$6 -> 0 | AA131: ='D-Anteil Eigenverbrauch EE neu'!AB$6 -> 0 | AB131: ='D-Anteil Eigenverbrauch EE neu'!AC$6 -> 0 | AC131: ='D-Anteil Eigenverbrauch EE neu'!AD$6 -> 0 | AD131: ='D-Anteil Eigenverbrauch EE neu'!AE$6 -> 0 | AE131: ='D-Anteil Eigenverbrauch EE neu'!AF$6 -> 0
A132: 113 | B132: ='D-Anteil Eigenverbrauch EE neu'!C$7 -> Referenz | C132: ='D-Anteil Eigenverbrauch EE neu'!D$7 -> cl | D132: ='D-Anteil Eigenverbrauch EE neu'!E$7 -> 0 | E132: Gas | F132: ='D-Anteil Eigenverbrauch EE neu'!G$7 -> 0 | G132: ='D-Anteil Eigenverbrauch EE neu'!H$7 -> 0 | H132: ='D-Anteil Eigenverbrauch EE neu'!I$7 -> 0 | I132: ='D-Anteil Eigenverbrauch EE neu'!J$7 -> 0 | J132: ='D-Anteil Eigenverbrauch EE neu'!K$7 -> 0 | K132: ='D-Anteil Eigenverbrauch EE neu'!L$7 -> 0 | L132: ='D-Anteil Eigenverbrauch EE neu'!M$7 -> 0 | M132: ='D-Anteil Eigenverbrauch EE neu'!N$7 -> 0 | N132: ='D-Anteil Eigenverbrauch EE neu'!O$7 -> 0 | O132: ='D-Anteil Eigenverbrauch EE neu'!P$7 -> 0 | P132: ='D-Anteil Eigenverbrauch EE neu'!Q$7 -> 0 | Q132: ='D-Anteil Eigenverbrauch EE neu'!R$7 -> 0 | R132: ='D-Anteil Eigenverbrauch EE neu'!S$7 -> 0 | S132: ='D-Anteil Eigenverbrauch EE neu'!T$7 -> 0 | T132: ='D-Anteil Eigenverbrauch EE neu'!U$7 -> 0 | U132: ='D-Anteil Eigenverbrauch EE neu'!V$7 -> 0 | V132: ='D-Anteil Eigenverbrauch EE neu'!W$7 -> 0 | W132: ='D-Anteil Eigenverbrauch EE neu'!X$7 -> 0 | X132: ='D-Anteil Eigenverbrauch EE neu'!Y$7 -> 0 | Y132: ='D-Anteil Eigenverbrauch EE neu'!Z$7 -> 0 | Z132: ='D-Anteil Eigenverbrauch EE neu'!AA$7 -> 0 | AA132: ='D-Anteil Eigenverbrauch EE neu'!AB$7 -> 0 | AB132: ='D-Anteil Eigenverbrauch EE neu'!AC$7 -> 0 | AC132: ='D-Anteil Eigenverbrauch EE neu'!AD$7 -> 0 | AD132: ='D-Anteil Eigenverbrauch EE neu'!AE$7 -> 0 | AE132: ='D-Anteil Eigenverbrauch EE neu'!AF$7 -> 0
A133: 114 | B133: ='D-Anteil Eigenverbrauch EE neu'!C$8 -> Referenz | C133: ='D-Anteil Eigenverbrauch EE neu'!D$8 -> cl | D133: ='D-Anteil Eigenverbrauch EE neu'!E$8 -> 0 | E133: Biomasse | F133: ='D-Anteil Eigenverbrauch EE neu'!G$8 -> 0 | G133: ='D-Anteil Eigenverbrauch EE neu'!H$8 -> 0 | H133: ='D-Anteil Eigenverbrauch EE neu'!I$8 -> 0 | I133: ='D-Anteil Eigenverbrauch EE neu'!J$8 -> 0 | J133: ='D-Anteil Eigenverbrauch EE neu'!K$8 -> 0 | K133: ='D-Anteil Eigenverbrauch EE neu'!L$8 -> 0 | L133: ='D-Anteil Eigenverbrauch EE neu'!M$8 -> 0 | M133: ='D-Anteil Eigenverbrauch EE neu'!N$8 -> 0 | N133: ='D-Anteil Eigenverbrauch EE neu'!O$8 -> 0 | O133: ='D-Anteil Eigenverbrauch EE neu'!P$8 -> 0 | P133: ='D-Anteil Eigenverbrauch EE neu'!Q$8 -> 0 | Q133: ='D-Anteil Eigenverbrauch EE neu'!R$8 -> 0 | R133: ='D-Anteil Eigenverbrauch EE neu'!S$8 -> 0 | S133: ='D-Anteil Eigenverbrauch EE neu'!T$8 -> 0 | T133: ='D-Anteil Eigenverbrauch EE neu'!U$8 -> 0 | U133: ='D-Anteil Eigenverbrauch EE neu'!V$8 -> 0 | V133: ='D-Anteil Eigenverbrauch EE neu'!W$8 -> 0 | W133: ='D-Anteil Eigenverbrauch EE neu'!X$8 -> 0 | X133: ='D-Anteil Eigenverbrauch EE neu'!Y$8 -> 0 | Y133: ='D-Anteil Eigenverbrauch EE neu'!Z$8 -> 0 | Z133: ='D-Anteil Eigenverbrauch EE neu'!AA$8 -> 0 | AA133: ='D-Anteil Eigenverbrauch EE neu'!AB$8 -> 0 | AB133: ='D-Anteil Eigenverbrauch EE neu'!AC$8 -> 0 | AC133: ='D-Anteil Eigenverbrauch EE neu'!AD$8 -> 0 | AD133: ='D-Anteil Eigenverbrauch EE neu'!AE$8 -> 0 | AE133: ='D-Anteil Eigenverbrauch EE neu'!AF$8 -> 0
A134: 115 | B134: ='D-Anteil Eigenverbrauch EE neu'!C$9 -> Referenz | C134: ='D-Anteil Eigenverbrauch EE neu'!D$9 -> cl | D134: ='D-Anteil Eigenverbrauch EE neu'!E$9 -> 0 | E134: Geothermie | F134: ='D-Anteil Eigenverbrauch EE neu'!G$9 -> 0 | G134: ='D-Anteil Eigenverbrauch EE neu'!H$9 -> 0 | H134: ='D-Anteil Eigenverbrauch EE neu'!I$9 -> 0 | I134: ='D-Anteil Eigenverbrauch EE neu'!J$9 -> 0 | J134: ='D-Anteil Eigenverbrauch EE neu'!K$9 -> 0 | K134: ='D-Anteil Eigenverbrauch EE neu'!L$9 -> 0 | L134: ='D-Anteil Eigenverbrauch EE neu'!M$9 -> 0 | M134: ='D-Anteil Eigenverbrauch EE neu'!N$9 -> 0 | N134: ='D-Anteil Eigenverbrauch EE neu'!O$9 -> 0 | O134: ='D-Anteil Eigenverbrauch EE neu'!P$9 -> 0 | P134: ='D-Anteil Eigenverbrauch EE neu'!Q$9 -> 0 | Q134: ='D-Anteil Eigenverbrauch EE neu'!R$9 -> 0 | R134: ='D-Anteil Eigenverbrauch EE neu'!S$9 -> 0 | S134: ='D-Anteil Eigenverbrauch EE neu'!T$9 -> 0 | T134: ='D-Anteil Eigenverbrauch EE neu'!U$9 -> 0 | U134: ='D-Anteil Eigenverbrauch EE neu'!V$9 -> 0 | V134: ='D-Anteil Eigenverbrauch EE neu'!W$9 -> 0 | W134: ='D-Anteil Eigenverbrauch EE neu'!X$9 -> 0 | X134: ='D-Anteil Eigenverbrauch EE neu'!Y$9 -> 0 | Y134: ='D-Anteil Eigenverbrauch EE neu'!Z$9 -> 0 | Z134: ='D-Anteil Eigenverbrauch EE neu'!AA$9 -> 0 | AA134: ='D-Anteil Eigenverbrauch EE neu'!AB$9 -> 0 | AB134: ='D-Anteil Eigenverbrauch EE neu'!AC$9 -> 0 | AC134: ='D-Anteil Eigenverbrauch EE neu'!AD$9 -> 0 | AD134: ='D-Anteil Eigenverbrauch EE neu'!AE$9 -> 0 | AE134: ='D-Anteil Eigenverbrauch EE neu'!AF$9 -> 0
A135: 116 | B135: ='D-Anteil Eigenverbrauch EE neu'!C$10 -> Referenz | C135: ='D-Anteil Eigenverbrauch EE neu'!D$10 -> cl | D135: ='D-Anteil Eigenverbrauch EE neu'!E$10 -> 0 | E135: Wind Onshore | F135: ='D-Anteil Eigenverbrauch EE neu'!G$10 -> 0 | G135: ='D-Anteil Eigenverbrauch EE neu'!H$10 -> 0 | H135: ='D-Anteil Eigenverbrauch EE neu'!I$10 -> 0 | I135: ='D-Anteil Eigenverbrauch EE neu'!J$10 -> 0 | J135: ='D-Anteil Eigenverbrauch EE neu'!K$10 -> 0 | K135: ='D-Anteil Eigenverbrauch EE neu'!L$10 -> 0 | L135: ='D-Anteil Eigenverbrauch EE neu'!M$10 -> 0 | M135: ='D-Anteil Eigenverbrauch EE neu'!N$10 -> 0 | N135: ='D-Anteil Eigenverbrauch EE neu'!O$10 -> 0 | O135: ='D-Anteil Eigenverbrauch EE neu'!P$10 -> 0 | P135: ='D-Anteil Eigenverbrauch EE neu'!Q$10 -> 0 | Q135: ='D-Anteil Eigenverbrauch EE neu'!R$10 -> 0 | R135: ='D-Anteil Eigenverbrauch EE neu'!S$10 -> 0 | S135: ='D-Anteil Eigenverbrauch EE neu'!T$10 -> 0 | T135: ='D-Anteil Eigenverbrauch EE neu'!U$10 -> 0 | U135: ='D-Anteil Eigenverbrauch EE neu'!V$10 -> 0 | V135: ='D-Anteil Eigenverbrauch EE neu'!W$10 -> 0 | W135: ='D-Anteil Eigenverbrauch EE neu'!X$10 -> 0 | X135: ='D-Anteil Eigenverbrauch EE neu'!Y$10 -> 0 | Y135: ='D-Anteil Eigenverbrauch EE neu'!Z$10 -> 0 | Z135: ='D-Anteil Eigenverbrauch EE neu'!AA$10 -> 0 | AA135: ='D-Anteil Eigenverbrauch EE neu'!AB$10 -> 0 | AB135: ='D-Anteil Eigenverbrauch EE neu'!AC$10 -> 0 | AC135: ='D-Anteil Eigenverbrauch EE neu'!AD$10 -> 0 | AD135: ='D-Anteil Eigenverbrauch EE neu'!AE$10 -> 0 | AE135: ='D-Anteil Eigenverbrauch EE neu'!AF$10 -> 0
A136: 117 | B136: ='D-Anteil Eigenverbrauch EE neu'!C$11 -> Referenz | C136: ='D-Anteil Eigenverbrauch EE neu'!D$11 -> cl | D136: ='D-Anteil Eigenverbrauch EE neu'!E$11 -> 0 | E136: Wind Offshore | F136: ='D-Anteil Eigenverbrauch EE neu'!G$11 -> 0 | G136: ='D-Anteil Eigenverbrauch EE neu'!H$11 -> 0 | H136: ='D-Anteil Eigenverbrauch EE neu'!I$11 -> 0 | I136: ='D-Anteil Eigenverbrauch EE neu'!J$11 -> 0 | J136: ='D-Anteil Eigenverbrauch EE neu'!K$11 -> 0 | K136: ='D-Anteil Eigenverbrauch EE neu'!L$11 -> 0 | L136: ='D-Anteil Eigenverbrauch EE neu'!M$11 -> 0 | M136: ='D-Anteil Eigenverbrauch EE neu'!N$11 -> 0 | N136: ='D-Anteil Eigenverbrauch EE neu'!O$11 -> 0 | O136: ='D-Anteil Eigenverbrauch EE neu'!P$11 -> 0 | P136: ='D-Anteil Eigenverbrauch EE neu'!Q$11 -> 0 | Q136: ='D-Anteil Eigenverbrauch EE neu'!R$11 -> 0 | R136: ='D-Anteil Eigenverbrauch EE neu'!S$11 -> 0 | S136: ='D-Anteil Eigenverbrauch EE neu'!T$11 -> 0 | T136: ='D-Anteil Eigenverbrauch EE neu'!U$11 -> 0 | U136: ='D-Anteil Eigenverbrauch EE neu'!V$11 -> 0 | V136: ='D-Anteil Eigenverbrauch EE neu'!W$11 -> 0 | W136: ='D-Anteil Eigenverbrauch EE neu'!X$11 -> 0 | X136: ='D-Anteil Eigenverbrauch EE neu'!Y$11 -> 0 | Y136: ='D-Anteil Eigenverbrauch EE neu'!Z$11 -> 0 | Z136: ='D-Anteil Eigenverbrauch EE neu'!AA$11 -> 0 | AA136: ='D-Anteil Eigenverbrauch EE neu'!AB$11 -> 0 | AB136: ='D-Anteil Eigenverbrauch EE neu'!AC$11 -> 0 | AC136: ='D-Anteil Eigenverbrauch EE neu'!AD$11 -> 0 | AD136: ='D-Anteil Eigenverbrauch EE neu'!AE$11 -> 0 | AE136: ='D-Anteil Eigenverbrauch EE neu'!AF$11 -> 0
A137: 118 | B137: ='D-Anteil Eigenverbrauch EE neu'!C$12 -> Referenz | C137: ='D-Anteil Eigenverbrauch EE neu'!D$12 -> dr | D137: ='D-Anteil Eigenverbrauch EE neu'!E$12 -> 9% | E137: Solar | F137: ='D-Anteil Eigenverbrauch EE neu'!G$12 -> 0 | G137: ='D-Anteil Eigenverbrauch EE neu'!H$12 -> 0 | H137: ='D-Anteil Eigenverbrauch EE neu'!I$12 -> 0 | I137: ='D-Anteil Eigenverbrauch EE neu'!J$12 -> 0 | J137: ='D-Anteil Eigenverbrauch EE neu'!K$12 -> 0 | K137: ='D-Anteil Eigenverbrauch EE neu'!L$12 -> 0.20025 | L137: ='D-Anteil Eigenverbrauch EE neu'!M$12 -> 0.26 | M137: ='D-Anteil Eigenverbrauch EE neu'!N$12 -> 0.123 | N137: ='D-Anteil Eigenverbrauch EE neu'!O$12 -> 0.123 | O137: ='D-Anteil Eigenverbrauch EE neu'!P$12 -> 0.08628270421 | P137: ='D-Anteil Eigenverbrauch EE neu'!Q$12 -> 0.05896218017 | Q137: ='D-Anteil Eigenverbrauch EE neu'!R$12 -> 0.06738607519 | R137: ='D-Anteil Eigenverbrauch EE neu'!S$12 -> 0.09 | S137: ='D-Anteil Eigenverbrauch EE neu'!T$12 -> 0.09 | T137: ='D-Anteil Eigenverbrauch EE neu'!U$12 -> 0.09 | U137: ='D-Anteil Eigenverbrauch EE neu'!V$12 -> 0.09 | V137: ='D-Anteil Eigenverbrauch EE neu'!W$12 -> 0.09 | W137: ='D-Anteil Eigenverbrauch EE neu'!X$12 -> 0.09 | X137: ='D-Anteil Eigenverbrauch EE neu'!Y$12 -> 0.09 | Y137: ='D-Anteil Eigenverbrauch EE neu'!Z$12 -> 0.09 | Z137: ='D-Anteil Eigenverbrauch EE neu'!AA$12 -> 0.09 | AA137: ='D-Anteil Eigenverbrauch EE neu'!AB$12 -> 0.09 | AB137: ='D-Anteil Eigenverbrauch EE neu'!AC$12 -> 0.09 | AC137: ='D-Anteil Eigenverbrauch EE neu'!AD$12 -> 0.09 | AD137: ='D-Anteil Eigenverbrauch EE neu'!AE$12 -> 0.09 | AE137: ='D-Anteil Eigenverbrauch EE neu'!AF$12 -> 0.09
A138: 119
A139: 120 | E139: Mittlerer Vergütungssatz für historische Jahre und das aktuelle (nominal) [Euro/MWh]
A140: 121 | B140: ='D-Mittlerer Vergütungssatz'!C$6 -> Historisch | C140: ='D-Mittlerer Vergütungssatz'!D$6 -> fh | D140: ='D-Mittlerer Vergütungssatz'!E$6 -> Abgeleitet aus ÜNB-Jahresprognosen | E140: Wasser | F140: ='D-Mittlerer Vergütungssatz'!G$6 -> 76.04 | G140: ='D-Mittlerer Vergütungssatz'!H$6 -> 78.58057925 | H140: ='D-Mittlerer Vergütungssatz'!I$6 -> 85.42634908 | I140: ='D-Mittlerer Vergütungssatz'!J$6 -> 84.97332689 | J140: ='D-Mittlerer Vergütungssatz'!K$6 -> 93.5803587 | K140: ='D-Mittlerer Vergütungssatz'!L$6 -> 90.88812681 | L140: ='D-Mittlerer Vergütungssatz'!M$6 -> 94.02199555 | M140: ='D-Mittlerer Vergütungssatz'!N$6 -> 95.47194466 | N140: ='D-Mittlerer Vergütungssatz'!O$6 -> 93.25775257 | O140: ='D-Mittlerer Vergütungssatz'!P$6 -> 94.12885853 | P140: ='D-Mittlerer Vergütungssatz'!Q$6 -> 94.82427792 | Q140: ='D-Mittlerer Vergütungssatz'!R$6 -> 96.066608 | R140: ='D-Mittlerer Vergütungssatz'!S$6 -> 0 | S140: ='D-Mittlerer Vergütungssatz'!T$6 -> 0 | T140: ='D-Mittlerer Vergütungssatz'!U$6 -> 0 | U140: ='D-Mittlerer Vergütungssatz'!V$6 -> 0 | V140: ='D-Mittlerer Vergütungssatz'!W$6 -> 0 | W140: ='D-Mittlerer Vergütungssatz'!X$6 -> 0 | X140: ='D-Mittlerer Vergütungssatz'!Y$6 -> 0 | Y140: ='D-Mittlerer Vergütungssatz'!Z$6 -> 0 | Z140: ='D-Mittlerer Vergütungssatz'!AA$6 -> 0 | AA140: ='D-Mittlerer Vergütungssatz'!AB$6 -> 0 | AB140: ='D-Mittlerer Vergütungssatz'!AC$6 -> 0 | AC140: ='D-Mittlerer Vergütungssatz'!AD$6 -> 0 | AD140: ='D-Mittlerer Vergütungssatz'!AE$6 -> 0 | AE140: ='D-Mittlerer Vergütungssatz'!AF$6 -> 0
A141: 122 | B141: ='D-Mittlerer Vergütungssatz'!C$7 -> Historisch | C141: ='D-Mittlerer Vergütungssatz'!D$7 -> fh | D141: ='D-Mittlerer Vergütungssatz'!E$7 -> Abgeleitet aus ÜNB-Jahresprognosen | E141: Gas | F141: ='D-Mittlerer Vergütungssatz'!G$7 -> 70.59 | G141: ='D-Mittlerer Vergütungssatz'!H$7 -> 70.62381022 | H141: ='D-Mittlerer Vergütungssatz'!I$7 -> 72.33359486 | I141: ='D-Mittlerer Vergütungssatz'!J$7 -> 75.07860985 | J141: ='D-Mittlerer Vergütungssatz'!K$7 -> 80.30122708 | K141: ='D-Mittlerer Vergütungssatz'!L$7 -> 69.68992118 | L141: ='D-Mittlerer Vergütungssatz'!M$7 -> 70.33152182 | M141: ='D-Mittlerer Vergütungssatz'!N$7 -> 69.72914315 | N141: ='D-Mittlerer Vergütungssatz'!O$7 -> 69.58740426 | O141: ='D-Mittlerer Vergütungssatz'!P$7 -> 71.70038682 | P141: ='D-Mittlerer Vergütungssatz'!Q$7 -> 69.09867438 | Q141: ='D-Mittlerer Vergütungssatz'!R$7 -> 71.29209249 | R141: ='D-Mittlerer Vergütungssatz'!S$7 -> 0 | S141: ='D-Mittlerer Vergütungssatz'!T$7 -> 0 | T141: ='D-Mittlerer Vergütungssatz'!U$7 -> 0 | U141: ='D-Mittlerer Vergütungssatz'!V$7 -> 0 | V141: ='D-Mittlerer Vergütungssatz'!W$7 -> 0 | W141: ='D-Mittlerer Vergütungssatz'!X$7 -> 0 | X141: ='D-Mittlerer Vergütungssatz'!Y$7 -> 0 | Y141: ='D-Mittlerer Vergütungssatz'!Z$7 -> 0 | Z141: ='D-Mittlerer Vergütungssatz'!AA$7 -> 0 | AA141: ='D-Mittlerer Vergütungssatz'!AB$7 -> 0 | AB141: ='D-Mittlerer Vergütungssatz'!AC$7 -> 0 | AC141: ='D-Mittlerer Vergütungssatz'!AD$7 -> 0 | AD141: ='D-Mittlerer Vergütungssatz'!AE$7 -> 0 | AE141: ='D-Mittlerer Vergütungssatz'!AF$7 -> 0
A142: 123 | B142: ='D-Mittlerer Vergütungssatz'!C$8 -> Historisch | C142: ='D-Mittlerer Vergütungssatz'!D$8 -> fh | D142: ='D-Mittlerer Vergütungssatz'!E$8 -> Abgeleitet aus ÜNB-Jahresprognosen | E142: Biomasse | F142: ='D-Mittlerer Vergütungssatz'!G$8 -> 150.44 | G142: ='D-Mittlerer Vergütungssatz'!H$8 -> 174.7829259 | H142: ='D-Mittlerer Vergütungssatz'!I$8 -> 171.7121946 | I142: ='D-Mittlerer Vergütungssatz'!J$8 -> 182.4318591 | J142: ='D-Mittlerer Vergütungssatz'!K$8 -> 184.3941182 | K142: ='D-Mittlerer Vergütungssatz'!L$8 -> 185.8108844 | L142: ='D-Mittlerer Vergütungssatz'!M$8 -> 187.101872 | M142: ='D-Mittlerer Vergütungssatz'!N$8 -> 188.5931684 | N142: ='D-Mittlerer Vergütungssatz'!O$8 -> 191.1010999 | O142: ='D-Mittlerer Vergütungssatz'!P$8 -> 196.1307046 | P142: ='D-Mittlerer Vergütungssatz'!Q$8 -> 192.3639566 | Q142: ='D-Mittlerer Vergütungssatz'!R$8 -> 197.6080785 | R142: ='D-Mittlerer Vergütungssatz'!S$8 -> 0 | S142: ='D-Mittlerer Vergütungssatz'!T$8 -> 0 | T142: ='D-Mittlerer Vergütungssatz'!U$8 -> 0 | U142: ='D-Mittlerer Vergütungssatz'!V$8 -> 0 | V142: ='D-Mittlerer Vergütungssatz'!W$8 -> 0 | W142: ='D-Mittlerer Vergütungssatz'!X$8 -> 0 | X142: ='D-Mittlerer Vergütungssatz'!Y$8 -> 0 | Y142: ='D-Mittlerer Vergütungssatz'!Z$8 -> 0 | Z142: ='D-Mittlerer Vergütungssatz'!AA$8 -> 0 | AA142: ='D-Mittlerer Vergütungssatz'!AB$8 -> 0 | AB142: ='D-Mittlerer Vergütungssatz'!AC$8 -> 0 | AC142: ='D-Mittlerer Vergütungssatz'!AD$8 -> 0 | AD142: ='D-Mittlerer Vergütungssatz'!AE$8 -> 0 | AE142: ='D-Mittlerer Vergütungssatz'!AF$8 -> 0
A143: 124 | B143: ='D-Mittlerer Vergütungssatz'!C$9 -> Historisch | C143: ='D-Mittlerer Vergütungssatz'!D$9 -> fh | D143: ='D-Mittlerer Vergütungssatz'!E$9 -> Abgeleitet aus ÜNB-Jahresprognosen | E143: Geothermie | F143: ='D-Mittlerer Vergütungssatz'!G$9 -> 150 | G143: ='D-Mittlerer Vergütungssatz'!H$9 -> 212.4643901 | H143: ='D-Mittlerer Vergütungssatz'!I$9 -> 221.2727033 | I143: ='D-Mittlerer Vergütungssatz'!J$9 -> 235.7558504 | J143: ='D-Mittlerer Vergütungssatz'!K$9 -> 243.3346397 | K143: ='D-Mittlerer Vergütungssatz'!L$9 -> 245.3790303 | L143: ='D-Mittlerer Vergütungssatz'!M$9 -> 243.8896571 | M143: ='D-Mittlerer Vergütungssatz'!N$9 -> 247.415024 | N143: ='D-Mittlerer Vergütungssatz'!O$9 -> 241.0595655 | O143: ='D-Mittlerer Vergütungssatz'!P$9 -> 251.1313261 | P143: ='D-Mittlerer Vergütungssatz'!Q$9 -> 245.9140718 | Q143: ='D-Mittlerer Vergütungssatz'!R$9 -> 248.6545237 | R143: ='D-Mittlerer Vergütungssatz'!S$9 -> 0 | S143: ='D-Mittlerer Vergütungssatz'!T$9 -> 0 | T143: ='D-Mittlerer Vergütungssatz'!U$9 -> 0 | U143: ='D-Mittlerer Vergütungssatz'!V$9 -> 0 | V143: ='D-Mittlerer Vergütungssatz'!W$9 -> 0 | W143: ='D-Mittlerer Vergütungssatz'!X$9 -> 0 | X143: ='D-Mittlerer Vergütungssatz'!Y$9 -> 0 | Y143: ='D-Mittlerer Vergütungssatz'!Z$9 -> 0 | Z143: ='D-Mittlerer Vergütungssatz'!AA$9 -> 0 | AA143: ='D-Mittlerer Vergütungssatz'!AB$9 -> 0 | AB143: ='D-Mittlerer Vergütungssatz'!AC$9 -> 0 | AC143: ='D-Mittlerer Vergütungssatz'!AD$9 -> 0 | AD143: ='D-Mittlerer Vergütungssatz'!AE$9 -> 0 | AE143: ='D-Mittlerer Vergütungssatz'!AF$9 -> 0
A144: 125 | B144: ='D-Mittlerer Vergütungssatz'!C$10 -> Historisch | C144: ='D-Mittlerer Vergütungssatz'!D$10 -> fh | D144: ='D-Mittlerer Vergütungssatz'!E$10 -> Abgeleitet aus ÜNB-Jahresprognosen | E144: Wind Onshore | F144: ='D-Mittlerer Vergütungssatz'!G$10 -> 87.77 | G144: ='D-Mittlerer Vergütungssatz'!H$10 -> 88.47005698 | H144: ='D-Mittlerer Vergütungssatz'!I$10 -> 89.57989456 | I144: ='D-Mittlerer Vergütungssatz'!J$10 -> 97.55029245 | J144: ='D-Mittlerer Vergütungssatz'!K$10 -> 100.7463182 | K144: ='D-Mittlerer Vergütungssatz'!L$10 -> 92.87495354 | L144: ='D-Mittlerer Vergütungssatz'!M$10 -> 91.55549602 | M144: ='D-Mittlerer Vergütungssatz'!N$10 -> 88.10515975 | N144: ='D-Mittlerer Vergütungssatz'!O$10 -> 85.97028679 | O144: ='D-Mittlerer Vergütungssatz'!P$10 -> 88.68151306 | P144: ='D-Mittlerer Vergütungssatz'!Q$10 -> 84.9431856 | Q144: ='D-Mittlerer Vergütungssatz'!R$10 -> 87.65815617 | R144: ='D-Mittlerer Vergütungssatz'!S$10 -> 0 | S144: ='D-Mittlerer Vergütungssatz'!T$10 -> 0 | T144: ='D-Mittlerer Vergütungssatz'!U$10 -> 0 | U144: ='D-Mittlerer Vergütungssatz'!V$10 -> 0 | V144: ='D-Mittlerer Vergütungssatz'!W$10 -> 0 | W144: ='D-Mittlerer Vergütungssatz'!X$10 -> 0 | X144: ='D-Mittlerer Vergütungssatz'!Y$10 -> 0 | Y144: ='D-Mittlerer Vergütungssatz'!Z$10 -> 0 | Z144: ='D-Mittlerer Vergütungssatz'!AA$10 -> 0 | AA144: ='D-Mittlerer Vergütungssatz'!AB$10 -> 0 | AB144: ='D-Mittlerer Vergütungssatz'!AC$10 -> 0 | AC144: ='D-Mittlerer Vergütungssatz'!AD$10 -> 0 | AD144: ='D-Mittlerer Vergütungssatz'!AE$10 -> 0 | AE144: ='D-Mittlerer Vergütungssatz'!AF$10 -> 0
A145: 126 | B145: ='D-Mittlerer Vergütungssatz'!C$11 -> Historisch | C145: ='D-Mittlerer Vergütungssatz'!D$11 -> fh | D145: ='D-Mittlerer Vergütungssatz'!E$11 -> Abgeleitet aus ÜNB-Jahresprognosen | E145: Wind Offshore | F145: ='D-Mittlerer Vergütungssatz'!G$11 -> 150 | G145: ='D-Mittlerer Vergütungssatz'!H$11 -> 150.0000296 | H145: ='D-Mittlerer Vergütungssatz'!I$11 -> 159.5537433 | I145: ='D-Mittlerer Vergütungssatz'!J$11 -> 189.0973795 | J145: ='D-Mittlerer Vergütungssatz'!K$11 -> 191.1126927 | K145: ='D-Mittlerer Vergütungssatz'!L$11 -> 182.2426917 | L145: ='D-Mittlerer Vergütungssatz'!M$11 -> 183.6236199 | M145: ='D-Mittlerer Vergütungssatz'!N$11 -> 181.7371668 | N145: ='D-Mittlerer Vergütungssatz'!O$11 -> 185.9197204 | O145: ='D-Mittlerer Vergütungssatz'!P$11 -> 187.4213493 | P145: ='D-Mittlerer Vergütungssatz'!Q$11 -> 184.6160951 | Q145: ='D-Mittlerer Vergütungssatz'!R$11 -> 185.3831434 | R145: ='D-Mittlerer Vergütungssatz'!S$11 -> 0 | S145: ='D-Mittlerer Vergütungssatz'!T$11 -> 0 | T145: ='D-Mittlerer Vergütungssatz'!U$11 -> 0 | U145: ='D-Mittlerer Vergütungssatz'!V$11 -> 0 | V145: ='D-Mittlerer Vergütungssatz'!W$11 -> 0 | W145: ='D-Mittlerer Vergütungssatz'!X$11 -> 0 | X145: ='D-Mittlerer Vergütungssatz'!Y$11 -> 0 | Y145: ='D-Mittlerer Vergütungssatz'!Z$11 -> 0 | Z145: ='D-Mittlerer Vergütungssatz'!AA$11 -> 0 | AA145: ='D-Mittlerer Vergütungssatz'!AB$11 -> 0 | AB145: ='D-Mittlerer Vergütungssatz'!AC$11 -> 0 | AC145: ='D-Mittlerer Vergütungssatz'!AD$11 -> 0 | AD145: ='D-Mittlerer Vergütungssatz'!AE$11 -> 0 | AE145: ='D-Mittlerer Vergütungssatz'!AF$11 -> 0
A146: 127 | B146: ='D-Mittlerer Vergütungssatz'!C$12 -> Historisch | C146: ='D-Mittlerer Vergütungssatz'!D$12 -> fh | D146: ='D-Mittlerer Vergütungssatz'!E$12 -> Abgeleitet aus ÜNB-Jahresprognosen | E146: Solar | F146: ='D-Mittlerer Vergütungssatz'!G$12 -> 468.01 | G146: ='D-Mittlerer Vergütungssatz'!H$12 -> 413.4492683 | H146: ='D-Mittlerer Vergütungssatz'!I$12 -> 371.1522047 | I146: ='D-Mittlerer Vergütungssatz'!J$12 -> 315.5375695 | J146: ='D-Mittlerer Vergütungssatz'!K$12 -> 313.8879791 | K146: ='D-Mittlerer Vergütungssatz'!L$12 -> 316.5508512 | L146: ='D-Mittlerer Vergütungssatz'!M$12 -> 306.1264837 | M146: ='D-Mittlerer Vergütungssatz'!N$12 -> 292.273481 | N146: ='D-Mittlerer Vergütungssatz'!O$12 -> 288.191423 | O146: ='D-Mittlerer Vergütungssatz'!P$12 -> 273.5464334 | P146: ='D-Mittlerer Vergütungssatz'!Q$12 -> 264.3747463 | Q146: ='D-Mittlerer Vergütungssatz'!R$12 -> 249.0786431 | R146: ='D-Mittlerer Vergütungssatz'!S$12 -> 0 | S146: ='D-Mittlerer Vergütungssatz'!T$12 -> 0 | T146: ='D-Mittlerer Vergütungssatz'!U$12 -> 0 | U146: ='D-Mittlerer Vergütungssatz'!V$12 -> 0 | V146: ='D-Mittlerer Vergütungssatz'!W$12 -> 0 | W146: ='D-Mittlerer Vergütungssatz'!X$12 -> 0 | X146: ='D-Mittlerer Vergütungssatz'!Y$12 -> 0 | Y146: ='D-Mittlerer Vergütungssatz'!Z$12 -> 0 | Z146: ='D-Mittlerer Vergütungssatz'!AA$12 -> 0 | AA146: ='D-Mittlerer Vergütungssatz'!AB$12 -> 0 | AB146: ='D-Mittlerer Vergütungssatz'!AC$12 -> 0 | AC146: ='D-Mittlerer Vergütungssatz'!AD$12 -> 0 | AD146: ='D-Mittlerer Vergütungssatz'!AE$12 -> 0 | AE146: ='D-Mittlerer Vergütungssatz'!AF$12 -> 0
A147: 128
A148: 129 | E148: Vergütungssatz für Neuanlagen (real) [Euro/MWh]
A149: 130 | B149: ='D-Vergütungssatz Neuanlagen'!C$6 -> Referenz | C149: ='D-Vergütungssatz Neuanlagen'!D$6 -> dr | D149: ='D-Vergütungssatz Neuanlagen'!E$6 -> EEG 2017 | E149: Wasser | F149: ='D-Vergütungssatz Neuanlagen'!G$6 -> 0 | G149: ='D-Vergütungssatz Neuanlagen'!H$6 -> 0 | H149: ='D-Vergütungssatz Neuanlagen'!I$6 -> 0 | I149: ='D-Vergütungssatz Neuanlagen'!J$6 -> 0 | J149: ='D-Vergütungssatz Neuanlagen'!K$6 -> 0 | K149: ='D-Vergütungssatz Neuanlagen'!L$6 -> 115.6711123 | L149: ='D-Vergütungssatz Neuanlagen'!M$6 -> 118.5714353 | M149: ='D-Vergütungssatz Neuanlagen'!N$6 -> 119.0688898 | N149: ='D-Vergütungssatz Neuanlagen'!O$6 -> 116.7227048 | O149: ='D-Vergütungssatz Neuanlagen'!P$6 -> 114.42275 | P149: ='D-Vergütungssatz Neuanlagen'!Q$6 -> 112.1681145 | Q149: ='D-Vergütungssatz Neuanlagen'!R$6 -> 109.9579054 | R149: ='D-Vergütungssatz Neuanlagen'!S$6 -> 107.7912472 | S149: ='D-Vergütungssatz Neuanlagen'!T$6 -> 105.6672817 | T149: ='D-Vergütungssatz Neuanlagen'!U$6 -> 103.5851678 | U149: ='D-Vergütungssatz Neuanlagen'!V$6 -> 101.5440807 | V149: ='D-Vergütungssatz Neuanlagen'!W$6 -> 99.54321213 | W149: ='D-Vergütungssatz Neuanlagen'!X$6 -> 97.58176953 | X149: ='D-Vergütungssatz Neuanlagen'!Y$6 -> 95.65897604 | Y149: ='D-Vergütungssatz Neuanlagen'!Z$6 -> 93.77407011 | Z149: ='D-Vergütungssatz Neuanlagen'!AA$6 -> 91.92630518 | AA149: ='D-Vergütungssatz Neuanlagen'!AB$6 -> 90.11494941 | AB149: ='D-Vergütungssatz Neuanlagen'!AC$6 -> 88.33928538 | AC149: ='D-Vergütungssatz Neuanlagen'!AD$6 -> 86.59860981 | AD149: ='D-Vergütungssatz Neuanlagen'!AE$6 -> 84.89223326 | AE149: ='D-Vergütungssatz Neuanlagen'!AF$6 -> 83.2194799
A150: 131 | B150: ='D-Vergütungssatz Neuanlagen'!C$7 -> Referenz | C150: ='D-Vergütungssatz Neuanlagen'!D$7 -> dr | D150: ='D-Vergütungssatz Neuanlagen'!E$7 -> EEG 2017 | E150: Gas | F150: ='D-Vergütungssatz Neuanlagen'!G$7 -> 0 | G150: ='D-Vergütungssatz Neuanlagen'!H$7 -> 0 | H150: ='D-Vergütungssatz Neuanlagen'!I$7 -> 0 | I150: ='D-Vergütungssatz Neuanlagen'!J$7 -> 0 | J150: ='D-Vergütungssatz Neuanlagen'!K$7 -> 0 | K150: ='D-Vergütungssatz Neuanlagen'!L$7 -> 80.97316232 | L150: ='D-Vergütungssatz Neuanlagen'!M$7 -> 82.1692675 | M150: ='D-Vergütungssatz Neuanlagen'!N$7 -> 66.75559291 | N150: ='D-Vergütungssatz Neuanlagen'!O$7 -> 64.7825212 | O150: ='D-Vergütungssatz Neuanlagen'!P$7 -> 62.86776688 | P150: ='D-Vergütungssatz Neuanlagen'!Q$7 -> 61.00960628 | Q150: ='D-Vergütungssatz Neuanlagen'!R$7 -> 59.20636668 | R150: ='D-Vergütungssatz Neuanlagen'!S$7 -> 57.45642481 | S150: ='D-Vergütungssatz Neuanlagen'!T$7 -> 55.75820536 | T150: ='D-Vergütungssatz Neuanlagen'!U$7 -> 54.11017958 | U150: ='D-Vergütungssatz Neuanlagen'!V$7 -> 52.51086393 | V150: ='D-Vergütungssatz Neuanlagen'!W$7 -> 50.95881869 | W150: ='D-Vergütungssatz Neuanlagen'!X$7 -> 49.45264671 | X150: ='D-Vergütungssatz Neuanlagen'!Y$7 -> 47.99099213 | Y150: ='D-Vergütungssatz Neuanlagen'!Z$7 -> 46.57253916 | Z150: ='D-Vergütungssatz Neuanlagen'!AA$7 -> 45.19601091 | AA150: ='D-Vergütungssatz Neuanlagen'!AB$7 -> 43.86016822 | AB150: ='D-Vergütungssatz Neuanlagen'!AC$7 -> 42.56380857 | AC150: ='D-Vergütungssatz Neuanlagen'!AD$7 -> 41.30576497 | AD150: ='D-Vergütungssatz Neuanlagen'!AE$7 -> 40.08490492 | AE150: ='D-Vergütungssatz Neuanlagen'!AF$7 -> 38.9001294
A151: 132 | B151: ='D-Vergütungssatz Neuanlagen'!C$8 -> Referenz | C151: ='D-Vergütungssatz Neuanlagen'!D$8 -> dr | D151: ='D-Vergütungssatz Neuanlagen'!E$8 -> EEG 2017 | E151: Biomasse | F151: ='D-Vergütungssatz Neuanlagen'!G$8 -> 0 | G151: ='D-Vergütungssatz Neuanlagen'!H$8 -> 0 | H151: ='D-Vergütungssatz Neuanlagen'!I$8 -> 0 | I151: ='D-Vergütungssatz Neuanlagen'!J$8 -> 0 | J151: ='D-Vergütungssatz Neuanlagen'!K$8 -> 0 | K151: ='D-Vergütungssatz Neuanlagen'!L$8 -> 174.7619048 | L151: ='D-Vergütungssatz Neuanlagen'!M$8 -> 178.2436425 | M151: ='D-Vergütungssatz Neuanlagen'!N$8 -> 153.77 | N151: ='D-Vergütungssatz Neuanlagen'!O$8 -> 149.9914942 | O151: ='D-Vergütungssatz Neuanlagen'!P$8 -> 146.2962358 | P151: ='D-Vergütungssatz Neuanlagen'!Q$8 -> 138.9974612 | Q151: ='D-Vergütungssatz Neuanlagen'!R$8 -> 142.4590489 | R151: ='D-Vergütungssatz Neuanlagen'!S$8 -> 137.9096788 | S151: ='D-Vergütungssatz Neuanlagen'!T$8 -> 132.7487158 | T151: ='D-Vergütungssatz Neuanlagen'!U$8 -> 128.6261172 | U151: ='D-Vergütungssatz Neuanlagen'!V$8 -> 129.5399686 | V151: ='D-Vergütungssatz Neuanlagen'!W$8 -> 126.3304591 | W151: ='D-Vergütungssatz Neuanlagen'!X$8 -> 123.1975811 | X151: ='D-Vergütungssatz Neuanlagen'!Y$8 -> 120.1395229 | Y151: ='D-Vergütungssatz Neuanlagen'!Z$8 -> 117.1545155 | Z151: ='D-Vergütungssatz Neuanlagen'!AA$8 -> 114.2408322 | AA151: ='D-Vergütungssatz Neuanlagen'!AB$8 -> 111.3967868 | AB151: ='D-Vergütungssatz Neuanlagen'!AC$8 -> 108.6207333 | AC151: ='D-Vergütungssatz Neuanlagen'!AD$8 -> 105.9110644 | AD151: ='D-Vergütungssatz Neuanlagen'!AE$8 -> 103.2662111 | AE151: ='D-Vergütungssatz Neuanlagen'!AF$8 -> 103.2017811
A152: 133 | B152: ='D-Vergütungssatz Neuanlagen'!C$9 -> Referenz | C152: ='D-Vergütungssatz Neuanlagen'!D$9 -> dr | D152: ='D-Vergütungssatz Neuanlagen'!E$9 -> EEG 2017 | E152: Geothermie | F152: ='D-Vergütungssatz Neuanlagen'!G$9 -> 0 | G152: ='D-Vergütungssatz Neuanlagen'!H$9 -> 0 | H152: ='D-Vergütungssatz Neuanlagen'!I$9 -> 0 | I152: ='D-Vergütungssatz Neuanlagen'!J$9 -> 0 | J152: ='D-Vergütungssatz Neuanlagen'!K$9 -> 0 | K152: ='D-Vergütungssatz Neuanlagen'!L$9 -> 248.2758621 | L152: ='D-Vergütungssatz Neuanlagen'!M$9 -> 249.3855 | M152: ='D-Vergütungssatz Neuanlagen'!N$9 -> 252 | N152: ='D-Vergütungssatz Neuanlagen'!O$9 -> 248.2758621 | O152: ='D-Vergütungssatz Neuanlagen'!P$9 -> 244.6067607 | P152: ='D-Vergütungssatz Neuanlagen'!Q$9 -> 240.9918824 | Q152: ='D-Vergütungssatz Neuanlagen'!R$9 -> 225.5589047 | R152: ='D-Vergütungssatz Neuanlagen'!S$9 -> 211.1142458 | S152: ='D-Vergütungssatz Neuanlagen'!T$9 -> 197.5946143 | T152: ='D-Vergütungssatz Neuanlagen'!U$9 -> 184.940772 | U152: ='D-Vergütungssatz Neuanlagen'!V$9 -> 173.0972743 | V152: ='D-Vergütungssatz Neuanlagen'!W$9 -> 162.0122272 | W152: ='D-Vergütungssatz Neuanlagen'!X$9 -> 151.6370599 | X152: ='D-Vergütungssatz Neuanlagen'!Y$9 -> 141.9263122 | Y152: ='D-Vergütungssatz Neuanlagen'!Z$9 -> 132.8374351 | Z152: ='D-Vergütungssatz Neuanlagen'!AA$9 -> 124.3306043 | AA152: ='D-Vergütungssatz Neuanlagen'!AB$9 -> 116.3685459 | AB152: ='D-Vergütungssatz Neuanlagen'!AC$9 -> 108.916373 | AC152: ='D-Vergütungssatz Neuanlagen'!AD$9 -> 101.9414328 | AD152: ='D-Vergütungssatz Neuanlagen'!AE$9 -> 95.41316375 | AE152: ='D-Vergütungssatz Neuanlagen'!AF$9 -> 89.30296114
A153: 134 | B153: ='D-Vergütungssatz Neuanlagen'!C$10 -> Referenz | C153: ='D-Vergütungssatz Neuanlagen'!D$10 -> dr | D153: ='D-Vergütungssatz Neuanlagen'!E$10 -> sinkt auf 3,5 ct/kWh in 2035 | E153: Wind Onshore | F153: ='D-Vergütungssatz Neuanlagen'!G$10 -> 0 | G153: ='D-Vergütungssatz Neuanlagen'!H$10 -> 0 | H153: ='D-Vergütungssatz Neuanlagen'!I$10 -> 0 | I153: ='D-Vergütungssatz Neuanlagen'!J$10 -> 0 | J153: ='D-Vergütungssatz Neuanlagen'!K$10 -> 0 | K153: ='D-Vergütungssatz Neuanlagen'!L$10 -> 87.68472906 | L153: ='D-Vergütungssatz Neuanlagen'!M$10 -> 88.27707403 | M153: ='D-Vergütungssatz Neuanlagen'!N$10 -> 80.65 | N153: ='D-Vergütungssatz Neuanlagen'!O$10 -> 74.50738916 | O153: ='D-Vergütungssatz Neuanlagen'!P$10 -> 62.15341309 | P153: ='D-Vergütungssatz Neuanlagen'!Q$10 -> 60.18102842 | Q153: ='D-Vergütungssatz Neuanlagen'!R$10 -> 58.25336659 | R153: ='D-Vergütungssatz Neuanlagen'!S$10 -> 56.36953652 | S153: ='D-Vergütungssatz Neuanlagen'!T$10 -> 54.52866369 | T153: ='D-Vergütungssatz Neuanlagen'!U$10 -> 52.72988984 | U153: ='D-Vergütungssatz Neuanlagen'!V$10 -> 50.97237273 | V153: ='D-Vergütungssatz Neuanlagen'!W$10 -> 49.25528578 | W153: ='D-Vergütungssatz Neuanlagen'!X$10 -> 47.57781787 | X153: ='D-Vergütungssatz Neuanlagen'!Y$10 -> 45.93917298 | Y153: ='D-Vergütungssatz Neuanlagen'!Z$10 -> 44.33857001 | Z153: ='D-Vergütungssatz Neuanlagen'!AA$10 -> 42.77524243 | AA153: ='D-Vergütungssatz Neuanlagen'!AB$10 -> 41.24843809 | AB153: ='D-Vergütungssatz Neuanlagen'!AC$10 -> 39.7574189 | AC153: ='D-Vergütungssatz Neuanlagen'!AD$10 -> 38.30146064 | AD153: ='D-Vergütungssatz Neuanlagen'!AE$10 -> 36.87985264 | AE153: ='D-Vergütungssatz Neuanlagen'!AF$10 -> 35.49189762
A154: 135 | B154: ='D-Vergütungssatz Neuanlagen'!C$11 -> Referenz | C154: ='D-Vergütungssatz Neuanlagen'!D$11 -> dr | D154: ='D-Vergütungssatz Neuanlagen'!E$11 -> sinkt auf 4,5 ct/kWh in 2035 | E154: Wind Offshore | F154: ='D-Vergütungssatz Neuanlagen'!G$11 -> 0 | G154: ='D-Vergütungssatz Neuanlagen'!H$11 -> 0 | H154: ='D-Vergütungssatz Neuanlagen'!I$11 -> 0 | I154: ='D-Vergütungssatz Neuanlagen'!J$11 -> 0 | J154: ='D-Vergütungssatz Neuanlagen'!K$11 -> 0 | K154: ='D-Vergütungssatz Neuanlagen'!L$11 -> 191.1330049 | L154: ='D-Vergütungssatz Neuanlagen'!M$11 -> 191.7335 | M154: ='D-Vergütungssatz Neuanlagen'!N$11 -> 194 | N154: ='D-Vergütungssatz Neuanlagen'!O$11 -> 146.7980296 | O154: ='D-Vergütungssatz Neuanlagen'!P$11 -> 144.6286005 | P154: ='D-Vergütungssatz Neuanlagen'!Q$11 -> 137.7096471 | Q154: ='D-Vergütungssatz Neuanlagen'!R$11 -> 70 | R154: ='D-Vergütungssatz Neuanlagen'!S$11 -> 65 | S154: ='D-Vergütungssatz Neuanlagen'!T$11 -> 61.66666667 | T154: ='D-Vergütungssatz Neuanlagen'!U$11 -> 58.33333333 | U154: ='D-Vergütungssatz Neuanlagen'!V$11 -> 55 | V154: ='D-Vergütungssatz Neuanlagen'!W$11 -> 54 | W154: ='D-Vergütungssatz Neuanlagen'!X$11 -> 53 | X154: ='D-Vergütungssatz Neuanlagen'!Y$11 -> 52 | Y154: ='D-Vergütungssatz Neuanlagen'!Z$11 -> 51 | Z154: ='D-Vergütungssatz Neuanlagen'!AA$11 -> 50 | AA154: ='D-Vergütungssatz Neuanlagen'!AB$11 -> 49 | AB154: ='D-Vergütungssatz Neuanlagen'!AC$11 -> 48 | AC154: ='D-Vergütungssatz Neuanlagen'!AD$11 -> 47 | AD154: ='D-Vergütungssatz Neuanlagen'!AE$11 -> 46 | AE154: ='D-Vergütungssatz Neuanlagen'!AF$11 -> 45
A155: 136 | B155: ='D-Vergütungssatz Neuanlagen'!C$12 -> Referenz | C155: ='D-Vergütungssatz Neuanlagen'!D$12 -> dr | D155: ='D-Vergütungssatz Neuanlagen'!E$12 -> EEG 2017; Anteil Ausschreibungen ab 2020 50% | E155: Solar | F155: ='D-Vergütungssatz Neuanlagen'!G$12 -> 0 | G155: ='D-Vergütungssatz Neuanlagen'!H$12 -> 0 | H155: ='D-Vergütungssatz Neuanlagen'!I$12 -> 0 | I155: ='D-Vergütungssatz Neuanlagen'!J$12 -> 0 | J155: ='D-Vergütungssatz Neuanlagen'!K$12 -> 0 | K155: ='D-Vergütungssatz Neuanlagen'!L$12 -> 108.0279337 | L155: ='D-Vergütungssatz Neuanlagen'!M$12 -> 110.4576939 | M155: ='D-Vergütungssatz Neuanlagen'!N$12 -> 101.3588158 | N155: ='D-Vergütungssatz Neuanlagen'!O$12 -> 109.046318 | O155: ='D-Vergütungssatz Neuanlagen'!P$12 -> 106.9375217 | P155: ='D-Vergütungssatz Neuanlagen'!Q$12 -> 89.1185 | Q155: ='D-Vergütungssatz Neuanlagen'!R$12 -> 84.825 | R155: ='D-Vergütungssatz Neuanlagen'!S$12 -> 78.35854167 | S155: ='D-Vergütungssatz Neuanlagen'!T$12 -> 74.20916667 | T155: ='D-Vergütungssatz Neuanlagen'!U$12 -> 70.75820833 | U155: ='D-Vergütungssatz Neuanlagen'!V$12 -> 67.37475 | V155: ='D-Vergütungssatz Neuanlagen'!W$12 -> 64.19875 | W155: ='D-Vergütungssatz Neuanlagen'!X$12 -> 61.14345833 | X155: ='D-Vergütungssatz Neuanlagen'!Y$12 -> 58.26016667 | Y155: ='D-Vergütungssatz Neuanlagen'!Z$12 -> 55.46175 | Z155: ='D-Vergütungssatz Neuanlagen'!AA$12 -> 52.84058333 | AA155: ='D-Vergütungssatz Neuanlagen'!AB$12 -> 50.37691667 | AB155: ='D-Vergütungssatz Neuanlagen'!AC$12 -> 47.91625 | AC155: ='D-Vergütungssatz Neuanlagen'!AD$12 -> 45.50575 | AD155: ='D-Vergütungssatz Neuanlagen'!AE$12 -> 43.28516667 | AE155: ='D-Vergütungssatz Neuanlagen'!AF$12 -> 41.1365
A156: 137
A157: 138 | E157: Vergütung Eigenverbrauch [Euro/MWh]
A158: 139 | B158: ='D-Vergütung Eigenverbrauch'!C$6 -> Referenz | C158: ='D-Vergütung Eigenverbrauch'!D$6 -> cl | D158: ='D-Vergütung Eigenverbrauch'!E$6 -> 0 | E158: Wasser | F158: ='D-Vergütung Eigenverbrauch'!G6 -> 0 | G158: ='D-Vergütung Eigenverbrauch'!H6 -> 0 | H158: ='D-Vergütung Eigenverbrauch'!I6 -> 0 | I158: ='D-Vergütung Eigenverbrauch'!J6 -> 0 | J158: ='D-Vergütung Eigenverbrauch'!K6 -> 0 | K158: ='D-Vergütung Eigenverbrauch'!L6 -> 0 | L158: ='D-Vergütung Eigenverbrauch'!M6 -> 0 | M158: ='D-Vergütung Eigenverbrauch'!N6 -> 0 | N158: ='D-Vergütung Eigenverbrauch'!O6 -> 0 | O158: ='D-Vergütung Eigenverbrauch'!P6 -> 0 | P158: ='D-Vergütung Eigenverbrauch'!Q6 -> 0 | Q158: ='D-Vergütung Eigenverbrauch'!R6 -> 0 | R158: ='D-Vergütung Eigenverbrauch'!S6 -> 0 | S158: ='D-Vergütung Eigenverbrauch'!T6 -> 0 | T158: ='D-Vergütung Eigenverbrauch'!U6 -> 0 | U158: ='D-Vergütung Eigenverbrauch'!V6 -> 0 | V158: ='D-Vergütung Eigenverbrauch'!W6 -> 0 | W158: ='D-Vergütung Eigenverbrauch'!X6 -> 0 | X158: ='D-Vergütung Eigenverbrauch'!Y6 -> 0 | Y158: ='D-Vergütung Eigenverbrauch'!Z6 -> 0 | Z158: ='D-Vergütung Eigenverbrauch'!AA6 -> 0 | AA158: ='D-Vergütung Eigenverbrauch'!AB6 -> 0 | AB158: ='D-Vergütung Eigenverbrauch'!AC6 -> 0 | AC158: ='D-Vergütung Eigenverbrauch'!AD6 -> 0 | AD158: ='D-Vergütung Eigenverbrauch'!AE6 -> 0 | AE158: ='D-Vergütung Eigenverbrauch'!AF6 -> 0
A159: 140 | B159: ='D-Vergütung Eigenverbrauch'!C$7 -> Referenz | C159: ='D-Vergütung Eigenverbrauch'!D$7 -> cl | D159: ='D-Vergütung Eigenverbrauch'!E$7 -> 0 | E159: Gas | F159: ='D-Vergütung Eigenverbrauch'!G7 -> 0 | G159: ='D-Vergütung Eigenverbrauch'!H7 -> 0 | H159: ='D-Vergütung Eigenverbrauch'!I7 -> 0 | I159: ='D-Vergütung Eigenverbrauch'!J7 -> 0 | J159: ='D-Vergütung Eigenverbrauch'!K7 -> 0 | K159: ='D-Vergütung Eigenverbrauch'!L7 -> 0 | L159: ='D-Vergütung Eigenverbrauch'!M7 -> 0 | M159: ='D-Vergütung Eigenverbrauch'!N7 -> 0 | N159: ='D-Vergütung Eigenverbrauch'!O7 -> 0 | O159: ='D-Vergütung Eigenverbrauch'!P7 -> 0 | P159: ='D-Vergütung Eigenverbrauch'!Q7 -> 0 | Q159: ='D-Vergütung Eigenverbrauch'!R7 -> 0 | R159: ='D-Vergütung Eigenverbrauch'!S7 -> 0 | S159: ='D-Vergütung Eigenverbrauch'!T7 -> 0 | T159: ='D-Vergütung Eigenverbrauch'!U7 -> 0 | U159: ='D-Vergütung Eigenverbrauch'!V7 -> 0 | V159: ='D-Vergütung Eigenverbrauch'!W7 -> 0 | W159: ='D-Vergütung Eigenverbrauch'!X7 -> 0 | X159: ='D-Vergütung Eigenverbrauch'!Y7 -> 0 | Y159: ='D-Vergütung Eigenverbrauch'!Z7 -> 0 | Z159: ='D-Vergütung Eigenverbrauch'!AA7 -> 0 | AA159: ='D-Vergütung Eigenverbrauch'!AB7 -> 0 | AB159: ='D-Vergütung Eigenverbrauch'!AC7 -> 0 | AC159: ='D-Vergütung Eigenverbrauch'!AD7 -> 0 | AD159: ='D-Vergütung Eigenverbrauch'!AE7 -> 0 | AE159: ='D-Vergütung Eigenverbrauch'!AF7 -> 0
A160: 141 | B160: ='D-Vergütung Eigenverbrauch'!C$8 -> Referenz | C160: ='D-Vergütung Eigenverbrauch'!D$8 -> cl | D160: ='D-Vergütung Eigenverbrauch'!E$8 -> 0 | E160: Biomasse | F160: ='D-Vergütung Eigenverbrauch'!G8 -> 0 | G160: ='D-Vergütung Eigenverbrauch'!H8 -> 0 | H160: ='D-Vergütung Eigenverbrauch'!I8 -> 0 | I160: ='D-Vergütung Eigenverbrauch'!J8 -> 0 | J160: ='D-Vergütung Eigenverbrauch'!K8 -> 0 | K160: ='D-Vergütung Eigenverbrauch'!L8 -> 0 | L160: ='D-Vergütung Eigenverbrauch'!M8 -> 0 | M160: ='D-Vergütung Eigenverbrauch'!N8 -> 0 | N160: ='D-Vergütung Eigenverbrauch'!O8 -> 0 | O160: ='D-Vergütung Eigenverbrauch'!P8 -> 0 | P160: ='D-Vergütung Eigenverbrauch'!Q8 -> 0 | Q160: ='D-Vergütung Eigenverbrauch'!R8 -> 0 | R160: ='D-Vergütung Eigenverbrauch'!S8 -> 0 | S160: ='D-Vergütung Eigenverbrauch'!T8 -> 0 | T160: ='D-Vergütung Eigenverbrauch'!U8 -> 0 | U160: ='D-Vergütung Eigenverbrauch'!V8 -> 0 | V160: ='D-Vergütung Eigenverbrauch'!W8 -> 0 | W160: ='D-Vergütung Eigenverbrauch'!X8 -> 0 | X160: ='D-Vergütung Eigenverbrauch'!Y8 -> 0 | Y160: ='D-Vergütung Eigenverbrauch'!Z8 -> 0 | Z160: ='D-Vergütung Eigenverbrauch'!AA8 -> 0 | AA160: ='D-Vergütung Eigenverbrauch'!AB8 -> 0 | AB160: ='D-Vergütung Eigenverbrauch'!AC8 -> 0 | AC160: ='D-Vergütung Eigenverbrauch'!AD8 -> 0 | AD160: ='D-Vergütung Eigenverbrauch'!AE8 -> 0 | AE160: ='D-Vergütung Eigenverbrauch'!AF8 -> 0
A161: 142 | B161: ='D-Vergütung Eigenverbrauch'!C$9 -> Referenz | C161: ='D-Vergütung Eigenverbrauch'!D$9 -> cl | D161: ='D-Vergütung Eigenverbrauch'!E$9 -> 0 | E161: Geothermie | F161: ='D-Vergütung Eigenverbrauch'!G9 -> 0 | G161: ='D-Vergütung Eigenverbrauch'!H9 -> 0 | H161: ='D-Vergütung Eigenverbrauch'!I9 -> 0 | I161: ='D-Vergütung Eigenverbrauch'!J9 -> 0 | J161: ='D-Vergütung Eigenverbrauch'!K9 -> 0 | K161: ='D-Vergütung Eigenverbrauch'!L9 -> 0 | L161: ='D-Vergütung Eigenverbrauch'!M9 -> 0 | M161: ='D-Vergütung Eigenverbrauch'!N9 -> 0 | N161: ='D-Vergütung Eigenverbrauch'!O9 -> 0 | O161: ='D-Vergütung Eigenverbrauch'!P9 -> 0 | P161: ='D-Vergütung Eigenverbrauch'!Q9 -> 0 | Q161: ='D-Vergütung Eigenverbrauch'!R9 -> 0 | R161: ='D-Vergütung Eigenverbrauch'!S9 -> 0 | S161: ='D-Vergütung Eigenverbrauch'!T9 -> 0 | T161: ='D-Vergütung Eigenverbrauch'!U9 -> 0 | U161: ='D-Vergütung Eigenverbrauch'!V9 -> 0 | V161: ='D-Vergütung Eigenverbrauch'!W9 -> 0 | W161: ='D-Vergütung Eigenverbrauch'!X9 -> 0 | X161: ='D-Vergütung Eigenverbrauch'!Y9 -> 0 | Y161: ='D-Vergütung Eigenverbrauch'!Z9 -> 0 | Z161: ='D-Vergütung Eigenverbrauch'!AA9 -> 0 | AA161: ='D-Vergütung Eigenverbrauch'!AB9 -> 0 | AB161: ='D-Vergütung Eigenverbrauch'!AC9 -> 0 | AC161: ='D-Vergütung Eigenverbrauch'!AD9 -> 0 | AD161: ='D-Vergütung Eigenverbrauch'!AE9 -> 0 | AE161: ='D-Vergütung Eigenverbrauch'!AF9 -> 0
A162: 143 | B162: ='D-Vergütung Eigenverbrauch'!C$10 -> Referenz | C162: ='D-Vergütung Eigenverbrauch'!D$10 -> cl | D162: ='D-Vergütung Eigenverbrauch'!E$10 -> 0 | E162: Wind Onshore | F162: ='D-Vergütung Eigenverbrauch'!G10 -> 0 | G162: ='D-Vergütung Eigenverbrauch'!H10 -> 0 | H162: ='D-Vergütung Eigenverbrauch'!I10 -> 0 | I162: ='D-Vergütung Eigenverbrauch'!J10 -> 0 | J162: ='D-Vergütung Eigenverbrauch'!K10 -> 0 | K162: ='D-Vergütung Eigenverbrauch'!L10 -> 0 | L162: ='D-Vergütung Eigenverbrauch'!M10 -> 0 | M162: ='D-Vergütung Eigenverbrauch'!N10 -> 0 | N162: ='D-Vergütung Eigenverbrauch'!O10 -> 0 | O162: ='D-Vergütung Eigenverbrauch'!P10 -> 0 | P162: ='D-Vergütung Eigenverbrauch'!Q10 -> 0 | Q162: ='D-Vergütung Eigenverbrauch'!R10 -> 0 | R162: ='D-Vergütung Eigenverbrauch'!S10 -> 0 | S162: ='D-Vergütung Eigenverbrauch'!T10 -> 0 | T162: ='D-Vergütung Eigenverbrauch'!U10 -> 0 | U162: ='D-Vergütung Eigenverbrauch'!V10 -> 0 | V162: ='D-Vergütung Eigenverbrauch'!W10 -> 0 | W162: ='D-Vergütung Eigenverbrauch'!X10 -> 0 | X162: ='D-Vergütung Eigenverbrauch'!Y10 -> 0 | Y162: ='D-Vergütung Eigenverbrauch'!Z10 -> 0 | Z162: ='D-Vergütung Eigenverbrauch'!AA10 -> 0 | AA162: ='D-Vergütung Eigenverbrauch'!AB10 -> 0 | AB162: ='D-Vergütung Eigenverbrauch'!AC10 -> 0 | AC162: ='D-Vergütung Eigenverbrauch'!AD10 -> 0 | AD162: ='D-Vergütung Eigenverbrauch'!AE10 -> 0 | AE162: ='D-Vergütung Eigenverbrauch'!AF10 -> 0
A163: 144 | B163: ='D-Vergütung Eigenverbrauch'!C$11 -> Referenz | C163: ='D-Vergütung Eigenverbrauch'!D$11 -> cl | D163: ='D-Vergütung Eigenverbrauch'!E$11 -> 0 | E163: Wind Offshore | F163: ='D-Vergütung Eigenverbrauch'!G11 -> 0 | G163: ='D-Vergütung Eigenverbrauch'!H11 -> 0 | H163: ='D-Vergütung Eigenverbrauch'!I11 -> 0 | I163: ='D-Vergütung Eigenverbrauch'!J11 -> 0 | J163: ='D-Vergütung Eigenverbrauch'!K11 -> 0 | K163: ='D-Vergütung Eigenverbrauch'!L11 -> 0 | L163: ='D-Vergütung Eigenverbrauch'!M11 -> 0 | M163: ='D-Vergütung Eigenverbrauch'!N11 -> 0 | N163: ='D-Vergütung Eigenverbrauch'!O11 -> 0 | O163: ='D-Vergütung Eigenverbrauch'!P11 -> 0 | P163: ='D-Vergütung Eigenverbrauch'!Q11 -> 0 | Q163: ='D-Vergütung Eigenverbrauch'!R11 -> 0 | R163: ='D-Vergütung Eigenverbrauch'!S11 -> 0 | S163: ='D-Vergütung Eigenverbrauch'!T11 -> 0 | T163: ='D-Vergütung Eigenverbrauch'!U11 -> 0 | U163: ='D-Vergütung Eigenverbrauch'!V11 -> 0 | V163: ='D-Vergütung Eigenverbrauch'!W11 -> 0 | W163: ='D-Vergütung Eigenverbrauch'!X11 -> 0 | X163: ='D-Vergütung Eigenverbrauch'!Y11 -> 0 | Y163: ='D-Vergütung Eigenverbrauch'!Z11 -> 0 | Z163: ='D-Vergütung Eigenverbrauch'!AA11 -> 0 | AA163: ='D-Vergütung Eigenverbrauch'!AB11 -> 0 | AB163: ='D-Vergütung Eigenverbrauch'!AC11 -> 0 | AC163: ='D-Vergütung Eigenverbrauch'!AD11 -> 0 | AD163: ='D-Vergütung Eigenverbrauch'!AE11 -> 0 | AE163: ='D-Vergütung Eigenverbrauch'!AF11 -> 0
A164: 145 | B164: ='D-Vergütung Eigenverbrauch'!C$12 -> Referenz | C164: ='D-Vergütung Eigenverbrauch'!D$12 -> fh | D164: ='D-Vergütung Eigenverbrauch'!E$12 -> Historische Werte aus ÜNB-Jahresprognosen. Quotient aus Eigenverbrauch und Vergütungszahlungen für Eigenverbrauch | E164: Solar | F164: ='D-Vergütung Eigenverbrauch'!G12 -> 0 | G164: ='D-Vergütung Eigenverbrauch'!H12 -> 0 | H164: ='D-Vergütung Eigenverbrauch'!I12 -> 117.3445274 | I164: ='D-Vergütung Eigenverbrauch'!J12 -> 42.44653066 | J164: ='D-Vergütung Eigenverbrauch'!K12 -> 42.44653066 | K164: ='D-Vergütung Eigenverbrauch'!L12 -> 61.58487306 | L164: ='D-Vergütung Eigenverbrauch'!M12 -> 55.35361247 | M164: ='D-Vergütung Eigenverbrauch'!N12 -> 116.5922718 | N164: ='D-Vergütung Eigenverbrauch'!O12 -> 56.29769675 | O164: ='D-Vergütung Eigenverbrauch'!P12 -> 41.43547292 | P164: ='D-Vergütung Eigenverbrauch'!Q12 -> 37.24622544 | Q164: ='D-Vergütung Eigenverbrauch'!R12 -> 28.58354462 | R164: ='D-Vergütung Eigenverbrauch'!S12 -> 0 | S164: ='D-Vergütung Eigenverbrauch'!T12 -> 0 | T164: ='D-Vergütung Eigenverbrauch'!U12 -> 0 | U164: ='D-Vergütung Eigenverbrauch'!V12 -> 0 | V164: ='D-Vergütung Eigenverbrauch'!W12 -> 0 | W164: ='D-Vergütung Eigenverbrauch'!X12 -> 0 | X164: ='D-Vergütung Eigenverbrauch'!Y12 -> 0 | Y164: ='D-Vergütung Eigenverbrauch'!Z12 -> 0 | Z164: ='D-Vergütung Eigenverbrauch'!AA12 -> 0 | AA164: ='D-Vergütung Eigenverbrauch'!AB12 -> 0 | AB164: ='D-Vergütung Eigenverbrauch'!AC12 -> 0 | AC164: ='D-Vergütung Eigenverbrauch'!AD12 -> 0 | AD164: ='D-Vergütung Eigenverbrauch'!AE12 -> 0 | AE164: ='D-Vergütung Eigenverbrauch'!AF12 -> 0
A165: 146
A166: 147 | E166: Vermiedene Zahlungen durch Absenkung der Vergütung (Wind offshore) (nominal) [Mrd. Euro] | AF166: v2.1.13 | AJ166: Dieser Effekt wird dadurch verursacht, dass die für Offshore-Windkraftanlagen gewährte Anfangsvergütung nur für 8 Jahre (bis 2019) bzw. 12 Jahre (ab 2020) gewährt wird. Die Werte werden in "MOD_Absenkung_Wind_Offshore" berechnet.
A167: 148 | B167: =#REF! ->  | C167: =#REF! ->  | D167: =#REF! ->  | E167: Wasser | AF167: v2.1.13
A168: 149 | B168: =#REF! ->  | C168: =#REF! ->  | D168: =#REF! ->  | E168: Gas | AF168: v2.1.13
A169: 150 | B169: =#REF! ->  | C169: =#REF! ->  | D169: =#REF! ->  | E169: Biomasse | AF169: v2.1.13
A170: 151 | B170: =#REF! ->  | C170: =#REF! ->  | D170: =#REF! ->  | E170: Geothermie | AF170: v2.1.13
A171: 152 | B171: =#REF! ->  | C171: =#REF! ->  | D171: =#REF! ->  | E171: Wind Onshore | AF171: v2.1.13
A172: 153 | B172: =#REF! ->  | C172: =#REF! ->  | D172: =#REF! ->  | E172: Wind Offshore | K172: =MOD_Absenkung_Wind_offshore!K11 -> 0 | L172: =MOD_Absenkung_Wind_offshore!L11 -> 0 | M172: =MOD_Absenkung_Wind_offshore!M11 -> 0 | N172: =MOD_Absenkung_Wind_offshore!N11 -> 0 | O172: =MOD_Absenkung_Wind_offshore!O11 -> 0 | P172: =MOD_Absenkung_Wind_offshore!P11 -> 0 | Q172: =MOD_Absenkung_Wind_offshore!Q11 -> 0.0110784 | R172: =MOD_Absenkung_Wind_offshore!R11 -> 0.0443136 | S172: =MOD_Absenkung_Wind_offshore!S11 -> 0.11161488 | T172: =MOD_Absenkung_Wind_offshore!T11 -> 0.460446 | U172: =MOD_Absenkung_Wind_offshore!U11 -> 0.67981232 | V172: =MOD_Absenkung_Wind_offshore!V11 -> 1.07490527 | W172: =MOD_Absenkung_Wind_offshore!W11 -> 2.02922288 | X172: =MOD_Absenkung_Wind_offshore!X11 -> 2.38519135 | Y172: =MOD_Absenkung_Wind_offshore!Y11 -> 2.91328837 | Z172: =MOD_Absenkung_Wind_offshore!Z11 -> 2.91328837 | AA172: =MOD_Absenkung_Wind_offshore!AA11 -> 2.89537252 | AB172: =MOD_Absenkung_Wind_offshore!AB11 -> 2.85237448 | AC172: =MOD_Absenkung_Wind_offshore!AC11 -> 2.80944568 | AD172: =MOD_Absenkung_Wind_offshore!AD11 -> 3.08909962 | AE172: =MOD_Absenkung_Wind_offshore!AE11 -> 3.31047786 | AF172: v2.1.13
A173: 154 | B173: =#REF! ->  | C173: =#REF! ->  | D173: =#REF! ->  | E173: Solar | AF173: v2.1.13
A174: 155
A175: 156
A176: 157
A177: 158
A178: 159
A179: 160 | E179: Berechnungen
A180: 161
A181: 162 | E181: Future-Strompreis (nominal) [Euro/MWh] | F181: =IF(ControlPanel!$D$59>F$5,F7,F7*F26) -> 53.65048 | G181: =IF(ControlPanel!$D$59>G$5,G7,G7*G26) -> 50.73909 | H181: =IF(ControlPanel!$D$59>H$5,H7,H7*H26) -> 55.22 | I181: =IF(ControlPanel!$D$59>I$5,I7,I7*I26) -> 51.15 | J181: =IF(ControlPanel!$D$59>J$5,J7,J7*J26) -> 41.45 | K181: =IF(ControlPanel!$D$59>K$5,K7,K7*K26) -> 35.67 | L181: =IF(ControlPanel!$D$59>L$5,L7,L7*L26) -> 31.26 | M181: =IF(ControlPanel!$D$59>M$5,M7,M7*M26) -> 26.75 | N181: =IF(ControlPanel!$D$59>N$5,N7,N7*N26) -> 32.22 | O181: =IF(ControlPanel!$D$59>O$5,O7,O7*O26) -> 46.28 | P181: =IF(ControlPanel!$D$59>P$5,P7,P7*P26) -> 49.34 | Q181: =IF(ControlPanel!$D$59>Q$5,Q7,Q7*Q26) -> 40.74 | R181: =IF(ControlPanel!$D$59>R$5,R7,R7*R26) -> 72.5116 | S181: =IF(ControlPanel!$D$59>S$5,S7,S7*S26) -> 65.26475375 | T181: =IF(ControlPanel!$D$59>T$5,T7,T7*T26) -> 66.38750583 | U181: =IF(ControlPanel!$D$59>U$5,U7,U7*U26) -> 67.52925591 | V181: =IF(ControlPanel!$D$59>V$5,V7,V7*V26) -> 68.6903213 | W181: =IF(ControlPanel!$D$59>W$5,W7,W7*W26) -> 69.87102457 | X181: =IF(ControlPanel!$D$59>X$5,X7,X7*X26) -> 71.07169361 | Y181: =IF(ControlPanel!$D$59>Y$5,Y7,Y7*Y26) -> 72.29266174 | Z181: =IF(ControlPanel!$D$59>Z$5,Z7,Z7*Z26) -> 73.53426779 | AA181: =IF(ControlPanel!$D$59>AA$5,AA7,AA7*AA26) -> 74.79685617 | AB181: =IF(ControlPanel!$D$59>AB$5,AB7,AB7*AB26) -> 76.08077699 | AC181: =IF(ControlPanel!$D$59>AC$5,AC7,AC7*AC26) -> 77.38638615 | AD181: =IF(ControlPanel!$D$59>AD$5,AD7,AD7*AD26) -> 78.7140454 | AE181: =IF(ControlPanel!$D$59>AE$5,AE7,AE7*AE26) -> 80.0641225 | AF181: v2.1.14 | AG181: v2.1.14 | AJ181: für Prognosejahre werden hier die realen Input-Daten in nominale Werte umgerechnet. Für historische Jahre sind die Input-Daten bereits nominal.
A182: 163 | E182: vermiedene Netzentgelte (nominal) [Euro/MWh] | F182: =IF(ControlPanel!$D$59>F$5,F23,F23*F26) -> 3.698627412 | G182: =IF(ControlPanel!$D$59>G$5,G23,G23*G26) -> 3.676230397 | H182: =IF(ControlPanel!$D$59>H$5,H23,H23*H26) -> 3.846630986 | I182: =IF(ControlPanel!$D$59>I$5,I23,I23*I26) -> 3.727312213 | J182: =IF(ControlPanel!$D$59>J$5,J23,J23*J26) -> 4.64602457 | K182: =IF(ControlPanel!$D$59>K$5,K23,K23*K26) -> 4.663187232 | L182: =IF(ControlPanel!$D$59>L$5,L23,L23*L26) -> 4.819160449 | M182: =IF(ControlPanel!$D$59>M$5,M23,M23*M26) -> 7.723124279 | N182: =IF(ControlPanel!$D$59>N$5,N23,N23*N26) -> 6.339184159 | O182: =IF(ControlPanel!$D$59>O$5,O23,O23*O26) -> 7.382119303 | P182: =IF(ControlPanel!$D$59>P$5,P23,P23*P26) -> 7.057532473 | Q182: =IF(ControlPanel!$D$59>Q$5,Q23,Q23*Q26) -> 7.172709019 | R182: =IF(ControlPanel!$D$59>R$5,R23,R23*R26) -> 7.280299654 | S182: =IF(ControlPanel!$D$59>S$5,S23,S23*S26) -> 7.389504149 | T182: =IF(ControlPanel!$D$59>T$5,T23,T23*T26) -> 7.500346711 | U182: =IF(ControlPanel!$D$59>U$5,U23,U23*U26) -> 7.612851912 | V182: =IF(ControlPanel!$D$59>V$5,V23,V23*V26) -> 7.72704469 | W182: =IF(ControlPanel!$D$59>W$5,W23,W23*W26) -> 7.842950361 | X182: =IF(ControlPanel!$D$59>X$5,X23,X23*X26) -> 7.960594616 | Y182: =IF(ControlPanel!$D$59>Y$5,Y23,Y23*Y26) -> 8.080003535 | Z182: =IF(ControlPanel!$D$59>Z$5,Z23,Z23*Z26) -> 8.201203588 | AA182: =IF(ControlPanel!$D$59>AA$5,AA23,AA23*AA26) -> 8.324221642 | AB182: =IF(ControlPanel!$D$59>AB$5,AB23,AB23*AB26) -> 8.449084967 | AC182: =IF(ControlPanel!$D$59>AC$5,AC23,AC23*AC26) -> 8.575821241 | AD182: =IF(ControlPanel!$D$59>AD$5,AD23,AD23*AD26) -> 8.70445856 | AE182: =IF(ControlPanel!$D$59>AE$5,AE23,AE23*AE26) -> 8.835025438 | AF182: v2.1.14 | AG182: v2.1.14 | AJ182: für Prognosejahre werden hier die realen Input-Daten in nominale Werte umgerechnet. Für historische Jahre sind die Input-Daten bereits nominal.
A183: 164 | E183: sonstige Kosten (nominal) [Mrd. Euro] | F183: =IF(ControlPanel!$D$59>F$5,F24,F24*F26) -> 0.3845 | G183: =IF(ControlPanel!$D$59>G$5,G24,G24*G26) -> 0.4221886599 | H183: =IF(ControlPanel!$D$59>H$5,H24,H24*H26) -> 0.230288671 | I183: =IF(ControlPanel!$D$59>I$5,I24,I24*I26) -> 0.1546612268 | J183: =IF(ControlPanel!$D$59>J$5,J24,J24*J26) -> 0.2988769713 | K183: =IF(ControlPanel!$D$59>K$5,K24,K24*K26) -> 0.1959514004 | L183: =IF(ControlPanel!$D$59>L$5,L24,L24*L26) -> 0.1390830771 | M183: =IF(ControlPanel!$D$59>M$5,M24,M24*M26) -> 0.1434074174 | N183: =IF(ControlPanel!$D$59>N$5,N24,N24*N26) -> 0.06812218889 | O183: =IF(ControlPanel!$D$59>O$5,O24,O24*O26) -> 0.07040465373 | P183: =IF(ControlPanel!$D$59>P$5,P24,P24*P26) -> 0.06416789545 | Q183: =IF(ControlPanel!$D$59>Q$5,Q24,Q24*Q26) -> 0.059920528 | R183: =IF(ControlPanel!$D$59>R$5,R24,R24*R26) -> 0.06081933592 | S183: =IF(ControlPanel!$D$59>S$5,S24,S24*S26) -> 0.06173162596 | T183: =IF(ControlPanel!$D$59>T$5,T24,T24*T26) -> 0.06265760035 | U183: =IF(ControlPanel!$D$59>U$5,U24,U24*U26) -> 0.06359746435 | V183: =IF(ControlPanel!$D$59>V$5,V24,V24*V26) -> 0.06455142632 | W183: =IF(ControlPanel!$D$59>W$5,W24,W24*W26) -> 0.06551969771 | X183: =IF(ControlPanel!$D$59>X$5,X24,X24*X26) -> 0.06650249318 | Y183: =IF(ControlPanel!$D$59>Y$5,Y24,Y24*Y26) -> 0.06750003058 | Z183: =IF(ControlPanel!$D$59>Z$5,Z24,Z24*Z26) -> 0.06851253104 | AA183: =IF(ControlPanel!$D$59>AA$5,AA24,AA24*AA26) -> 0.069540219 | AB183: =IF(ControlPanel!$D$59>AB$5,AB24,AB24*AB26) -> 0.07058332229 | AC183: =IF(ControlPanel!$D$59>AC$5,AC24,AC24*AC26) -> 0.07164207212 | AD183: =IF(ControlPanel!$D$59>AD$5,AD24,AD24*AD26) -> 0.0727167032 | AE183: =IF(ControlPanel!$D$59>AE$5,AE24,AE24*AE26) -> 0.07380745375 | AF183: v2.1.14 | AG183: v2.1.14 | AJ183: für Prognosejahre werden hier die realen Input-Daten in nominale Werte umgerechnet. Für historische Jahre sind die Input-Daten bereits nominal.
A184: 165 | AG184: v2.1.14
A185: 166 | E185: Nicht privilegierter Letztverbrauch [TWh] | F185: =F11-F12-F13-F14-F15-F16-F254-F264 -> 400.595 | G185: 383.1497323 | H185: 386.508342 | I185: 383.258561 | J185: 370.260447 | K185: 350.7257371 | L185: 355.8609206 | M185: 342.7521021 | N185: 343.497915 | O185: 344.2674982 | P185: 344.0728846 | Q185: 331.629728 | R185: 340.6367139 | S185: 351.3952654 | T185: 361.3047985 | U185: 371.2205905 | V185: 380.0707637 | W185: 388.9485732 | X185: 397.8626102 | Y185: 406.9128881 | Z185: 416.1234055 | AA185: 425.3386658 | AB185: 434.5593294 | AC185: 443.5421609 | AD185: 452.4471705 | AE185: 461.2448322 | AF185: =AF11-AF12-AF13-AF14-AF15-AF16 -> 0 | AG185: =AG11-AG12-AG13-AG14-AG15-AG16 -> 0 | AJ185: NPL = Nettostromverbrauch - Privilegierter Letztverbrauch - Eigenverbrauch fossil Bestand - Eigenverbrauch KWK neu - Eigenverbrauch fossile nicht-KWK neu - Strommenge Grünstromprivileg - Eigenverbrauch PV Bestand - Eigenverbrauch PV neu
A186: 167 | E186: Für EEG-Umlage anzulegender Letztverbrauch [TWh] | F186: =F185+F12*F17*(1-F18)+(F14+F264)*F20+(F13+F254)*F19+F15*F21+F16 -> 402.2528445 | G186: 408.8720801 | H186: 394.0066215 | I186: 386.476799 | J186: 378.4571301 | K186: 358.5301813 | L186: 363.9859284 | M186: 350.9279458 | N186: 352.5768763 | O186: 354.6672613 | P186: 355.8390268 | Q186: 344.3843929 | R186: 353.742088 | S186: 364.6425894 | T186: 374.6554322 | U186: 384.6716102 | V186: 393.6155995 | W186: 402.5856874 | X186: 411.5924352 | Y186: 420.7358562 | Z186: 430.0399493 | AA186: 439.3492177 | AB186: 448.6643218 | AC186: 457.7420261 | AD186: 466.742341 | AE186: 475.6361227 | AF186: v2.1.4 | AJ186: Für Umlageberechnung anzulegender Letztverbrauch= NPL + privilegierter Letzverbrauch * Anteil an Umlage für privilegierten Letztverbrauch * (1-Faktor für zusätzliche Privilegierungsmechanismen) + (Eigenverbrauch KWK neu + Eigenverbrauch PV neu)* Umlageanteil KWK und EE neu + Eigenverbrauch fossile nicht-KWK neu * Umlageanteil fossile nicht-KWK neu + Strommenge Grünstromprivileg
A187: 168
A188: 169 | E188: Jährliches Ausscheiden aus EEG [GW/a] | AG188: v2.1.29 | AJ188: bis 2014: Daten aus D-Rückbau vor 2015 nehmen
A189: 170 | E189: Wasser | F189: =IF(2015>F$5,'D-Rückbau vor 2015'!G6,IF(F$5<2035,E65-F65,OFFSET(F56,0,2015-F$5))) -> 0.01511 | G189: =IF(2015>G$5,'D-Rückbau vor 2015'!H6,IF(G$5<2035,F65-G65,OFFSET(G56,0,2015-G$5))) -> 0.0190759 | H189: =IF(2015>H$5,'D-Rückbau vor 2015'!I6,IF(H$5<2035,G65-H65,OFFSET(H56,0,2015-H$5))) -> 0.0138235 | I189: =IF(2015>I$5,'D-Rückbau vor 2015'!J6,IF(I$5<2035,H65-I65,OFFSET(I56,0,2015-I$5))) -> 0.0130436 | J189: =IF(2015>J$5,'D-Rückbau vor 2015'!K6,IF(J$5<2035,I65-J65,OFFSET(J56,0,2015-J$5))) -> 0.0125353 | K189: =IF(2015>K$5,'D-Rückbau vor 2015'!L6,IF(K$5<2035,J65-K65,OFFSET(K56,0,2015-K$5))) -> 0 | L189: =IF(2015>L$5,'D-Rückbau vor 2015'!M6,IF(L$5<2035,K65-L65,OFFSET(L56,0,2015-L$5))) -> 0 | M189: =IF(2015>M$5,'D-Rückbau vor 2015'!N6,IF(M$5<2035,L65-M65,OFFSET(M56,0,2015-M$5))) -> 0 | N189: =IF(2015>N$5,'D-Rückbau vor 2015'!O6,IF(N$5<2035,M65-N65,OFFSET(N56,0,2015-N$5))) -> 0 | O189: =IF(2015>O$5,'D-Rückbau vor 2015'!P6,IF(O$5<2035,N65-O65,OFFSET(O56,0,2015-O$5))) -> 0 | P189: =IF(2015>P$5,'D-Rückbau vor 2015'!Q6,IF(P$5<2035,O65-P65,OFFSET(P56,0,2015-P$5))) -> 0 | Q189: =IF(2015>Q$5,'D-Rückbau vor 2015'!R6,IF(Q$5<2035,P65-Q65,OFFSET(Q56,0,2015-Q$5))) -> 0 | R189: =IF(2015>R$5,'D-Rückbau vor 2015'!S6,IF(R$5<2035,Q65-R65,OFFSET(R56,0,2015-R$5))) -> 0 | S189: =IF(2015>S$5,'D-Rückbau vor 2015'!T6,IF(S$5<2035,R65-S65,OFFSET(S56,0,2015-S$5))) -> 0 | T189: =IF(2015>T$5,'D-Rückbau vor 2015'!U6,IF(T$5<2035,S65-T65,OFFSET(T56,0,2015-T$5))) -> 0 | U189: =IF(2015>U$5,'D-Rückbau vor 2015'!V6,IF(U$5<2035,T65-U65,OFFSET(U56,0,2015-U$5))) -> 0 | V189: =IF(2015>V$5,'D-Rückbau vor 2015'!W6,IF(V$5<2035,U65-V65,OFFSET(V56,0,2015-V$5))) -> 0 | W189: =IF(2015>W$5,'D-Rückbau vor 2015'!X6,IF(W$5<2035,V65-W65,OFFSET(W56,0,2015-W$5))) -> 0 | X189: =IF(2015>X$5,'D-Rückbau vor 2015'!Y6,IF(X$5<2035,W65-X65,OFFSET(X56,0,2015-X$5))) -> 0 | Y189: =IF(2015>Y$5,'D-Rückbau vor 2015'!Z6,IF(Y$5<2035,X65-Y65,OFFSET(Y56,0,2015-Y$5))) -> 0 | Z189: =IF(2015>Z$5,'D-Rückbau vor 2015'!AA6,IF(Z$5<2035,Y65-Z65,OFFSET(Z56,0,2015-Z$5))) -> 0.11087763 | AA189: =IF(2015>AA$5,'D-Rückbau vor 2015'!AB6,IF(AA$5<2035,Z65-AA65,OFFSET(AA56,0,2015-AA$5))) -> 0.09134819 | AB189: =IF(2015>AB$5,'D-Rückbau vor 2015'!AC6,IF(AB$5<2035,AA65-AB65,OFFSET(AB56,0,2015-AB$5))) -> 0.07342775 | AC189: =IF(2015>AC$5,'D-Rückbau vor 2015'!AD6,IF(AC$5<2035,AB65-AC65,OFFSET(AC56,0,2015-AC$5))) -> 0.04652535 | AD189: =IF(2015>AD$5,'D-Rückbau vor 2015'!AE6,IF(AD$5<2035,AC65-AD65,OFFSET(AD56,0,2015-AD$5))) -> 0.10790734 | AE189: =IF(2015>AE$5,'D-Rückbau vor 2015'!AF6,IF(AE$5<2035,AD65-AE65,OFFSET(AE56,0,2015-AE$5))) -> 0.290824785 | AF189: v3.0.9 | AG189: v2.1.29 | AJ189: 2015-2034: Differenz Verbleibender Kapazitäten Baujahr < 2015 aus Vorjahr und aktuellem Jahr
A190: 171 | E190: Gas | F190: =IF(2015>F$5,'D-Rückbau vor 2015'!G7,IF(F$5<2035,E66-F66,OFFSET(F57,0,2015-F$5))) -> 0.008436 | G190: =IF(2015>G$5,'D-Rückbau vor 2015'!H7,IF(G$5<2035,F66-G66,OFFSET(G57,0,2015-G$5))) -> 0.002639 | H190: =IF(2015>H$5,'D-Rückbau vor 2015'!I7,IF(H$5<2035,G66-H66,OFFSET(H57,0,2015-H$5))) -> 0.007803 | I190: =IF(2015>I$5,'D-Rückbau vor 2015'!J7,IF(I$5<2035,H66-I66,OFFSET(I57,0,2015-I$5))) -> 0.0072572 | J190: =IF(2015>J$5,'D-Rückbau vor 2015'!K7,IF(J$5<2035,I66-J66,OFFSET(J57,0,2015-J$5))) -> 0.008337 | K190: =IF(2015>K$5,'D-Rückbau vor 2015'!L7,IF(K$5<2035,J66-K66,OFFSET(K57,0,2015-K$5))) -> 0 | L190: =IF(2015>L$5,'D-Rückbau vor 2015'!M7,IF(L$5<2035,K66-L66,OFFSET(L57,0,2015-L$5))) -> 0 | M190: =IF(2015>M$5,'D-Rückbau vor 2015'!N7,IF(M$5<2035,L66-M66,OFFSET(M57,0,2015-M$5))) -> 0 | N190: =IF(2015>N$5,'D-Rückbau vor 2015'!O7,IF(N$5<2035,M66-N66,OFFSET(N57,0,2015-N$5))) -> 0 | O190: =IF(2015>O$5,'D-Rückbau vor 2015'!P7,IF(O$5<2035,N66-O66,OFFSET(O57,0,2015-O$5))) -> 0 | P190: =IF(2015>P$5,'D-Rückbau vor 2015'!Q7,IF(P$5<2035,O66-P66,OFFSET(P57,0,2015-P$5))) -> 0 | Q190: =IF(2015>Q$5,'D-Rückbau vor 2015'!R7,IF(Q$5<2035,P66-Q66,OFFSET(Q57,0,2015-Q$5))) -> 0.1776502 | R190: =IF(2015>R$5,'D-Rückbau vor 2015'!S7,IF(R$5<2035,Q66-R66,OFFSET(R57,0,2015-R$5))) -> 0.053037 | S190: =IF(2015>S$5,'D-Rückbau vor 2015'!T7,IF(S$5<2035,R66-S66,OFFSET(S57,0,2015-S$5))) -> 0.062701 | T190: =IF(2015>T$5,'D-Rückbau vor 2015'!U7,IF(T$5<2035,S66-T66,OFFSET(T57,0,2015-T$5))) -> 0.077915 | U190: =IF(2015>U$5,'D-Rückbau vor 2015'!V7,IF(U$5<2035,T66-U66,OFFSET(U57,0,2015-U$5))) -> 0.0663973 | V190: =IF(2015>V$5,'D-Rückbau vor 2015'!W7,IF(V$5<2035,U66-V66,OFFSET(V57,0,2015-V$5))) -> 0.013617 | W190: =IF(2015>W$5,'D-Rückbau vor 2015'!X7,IF(W$5<2035,V66-W66,OFFSET(W57,0,2015-W$5))) -> 0.008536 | X190: =IF(2015>X$5,'D-Rückbau vor 2015'!Y7,IF(X$5<2035,W66-X66,OFFSET(X57,0,2015-X$5))) -> 0.008515 | Y190: =IF(2015>Y$5,'D-Rückbau vor 2015'!Z7,IF(Y$5<2035,X66-Y66,OFFSET(Y57,0,2015-Y$5))) -> 0.005704 | Z190: =IF(2015>Z$5,'D-Rückbau vor 2015'!AA7,IF(Z$5<2035,Y66-Z66,OFFSET(Z57,0,2015-Z$5))) -> 0.00950699 | AA190: =IF(2015>AA$5,'D-Rückbau vor 2015'!AB7,IF(AA$5<2035,Z66-AA66,OFFSET(AA57,0,2015-AA$5))) -> 0.002922 | AB190: =IF(2015>AB$5,'D-Rückbau vor 2015'!AC7,IF(AB$5<2035,AA66-AB66,OFFSET(AB57,0,2015-AB$5))) -> 0.009217 | AC190: =IF(2015>AC$5,'D-Rückbau vor 2015'!AD7,IF(AC$5<2035,AB66-AC66,OFFSET(AC57,0,2015-AC$5))) -> 0.00179 | AD190: =IF(2015>AD$5,'D-Rückbau vor 2015'!AE7,IF(AD$5<2035,AC66-AD66,OFFSET(AD57,0,2015-AD$5))) -> 0.001128 | AE190: =IF(2015>AE$5,'D-Rückbau vor 2015'!AF7,IF(AE$5<2035,AD66-AE66,OFFSET(AE57,0,2015-AE$5))) -> 0.045782 | AF190: v3.0.9 | AG190: v2.1.29 | AJ190: nach 2034: (modellendogener) Zubau vor 20 Jahren --> im Jahr 2035 also der Zubau im Jahr 2015
A191: 172 | E191: Biomasse | F191: =IF(2015>F$5,'D-Rückbau vor 2015'!G8,IF(F$5<2035,E67-F67,OFFSET(F58,0,2015-F$5))) -> 0 | G191: =IF(2015>G$5,'D-Rückbau vor 2015'!H8,IF(G$5<2035,F67-G67,OFFSET(G58,0,2015-G$5))) -> 0 | H191: =IF(2015>H$5,'D-Rückbau vor 2015'!I8,IF(H$5<2035,G67-H67,OFFSET(H58,0,2015-H$5))) -> 0 | I191: =IF(2015>I$5,'D-Rückbau vor 2015'!J8,IF(I$5<2035,H67-I67,OFFSET(I58,0,2015-I$5))) -> 0 | J191: =IF(2015>J$5,'D-Rückbau vor 2015'!K8,IF(J$5<2035,I67-J67,OFFSET(J58,0,2015-J$5))) -> 0 | K191: =IF(2015>K$5,'D-Rückbau vor 2015'!L8,IF(K$5<2035,J67-K67,OFFSET(K58,0,2015-K$5))) -> 0 | L191: =IF(2015>L$5,'D-Rückbau vor 2015'!M8,IF(L$5<2035,K67-L67,OFFSET(L58,0,2015-L$5))) -> 0 | M191: =IF(2015>M$5,'D-Rückbau vor 2015'!N8,IF(M$5<2035,L67-M67,OFFSET(M58,0,2015-M$5))) -> 0 | N191: =IF(2015>N$5,'D-Rückbau vor 2015'!O8,IF(N$5<2035,M67-N67,OFFSET(N58,0,2015-N$5))) -> 0 | O191: =IF(2015>O$5,'D-Rückbau vor 2015'!P8,IF(O$5<2035,N67-O67,OFFSET(O58,0,2015-O$5))) -> 0 | P191: =IF(2015>P$5,'D-Rückbau vor 2015'!Q8,IF(P$5<2035,O67-P67,OFFSET(P58,0,2015-P$5))) -> 0 | Q191: =IF(2015>Q$5,'D-Rückbau vor 2015'!R8,IF(Q$5<2035,P67-Q67,OFFSET(Q58,0,2015-Q$5))) -> 0.17581077 | R191: =IF(2015>R$5,'D-Rückbau vor 2015'!S8,IF(R$5<2035,Q67-R67,OFFSET(R58,0,2015-R$5))) -> 0.1882338 | S191: =IF(2015>S$5,'D-Rückbau vor 2015'!T8,IF(S$5<2035,R67-S67,OFFSET(S58,0,2015-S$5))) -> 0.14024916 | T191: =IF(2015>T$5,'D-Rückbau vor 2015'!U8,IF(T$5<2035,S67-T67,OFFSET(T58,0,2015-T$5))) -> 0.23195835 | U191: =IF(2015>U$5,'D-Rückbau vor 2015'!V8,IF(U$5<2035,T67-U67,OFFSET(U58,0,2015-U$5))) -> 0.57250699 | V191: =IF(2015>V$5,'D-Rückbau vor 2015'!W8,IF(V$5<2035,U67-V67,OFFSET(V58,0,2015-V$5))) -> 0.6957385 | W191: =IF(2015>W$5,'D-Rückbau vor 2015'!X8,IF(W$5<2035,V67-W67,OFFSET(W58,0,2015-W$5))) -> 0.84800203 | X191: =IF(2015>X$5,'D-Rückbau vor 2015'!Y8,IF(X$5<2035,W67-X67,OFFSET(X58,0,2015-X$5))) -> 0.6404924 | Y191: =IF(2015>Y$5,'D-Rückbau vor 2015'!Z8,IF(Y$5<2035,X67-Y67,OFFSET(Y58,0,2015-Y$5))) -> 0.3572764 | Z191: =IF(2015>Z$5,'D-Rückbau vor 2015'!AA8,IF(Z$5<2035,Y67-Z67,OFFSET(Z58,0,2015-Z$5))) -> 0.455208 | AA191: =IF(2015>AA$5,'D-Rückbau vor 2015'!AB8,IF(AA$5<2035,Z67-AA67,OFFSET(AA58,0,2015-AA$5))) -> 0.6370916 | AB191: =IF(2015>AB$5,'D-Rückbau vor 2015'!AC8,IF(AB$5<2035,AA67-AB67,OFFSET(AB58,0,2015-AB$5))) -> 1.05617406 | AC191: =IF(2015>AC$5,'D-Rückbau vor 2015'!AD8,IF(AC$5<2035,AB67-AC67,OFFSET(AC58,0,2015-AC$5))) -> 0.3338647 | AD191: =IF(2015>AD$5,'D-Rückbau vor 2015'!AE8,IF(AD$5<2035,AC67-AD67,OFFSET(AD58,0,2015-AD$5))) -> 0.25635391 | AE191: =IF(2015>AE$5,'D-Rückbau vor 2015'!AF8,IF(AE$5<2035,AD67-AE67,OFFSET(AE58,0,2015-AE$5))) -> 0.234616 | AF191: v3.0.9 | AG191: v2.1.29
A192: 173 | E192: Geothermie | F192: =IF(2015>F$5,'D-Rückbau vor 2015'!G9,IF(F$5<2035,E68-F68,OFFSET(F59,0,2015-F$5))) -> 0 | G192: =IF(2015>G$5,'D-Rückbau vor 2015'!H9,IF(G$5<2035,F68-G68,OFFSET(G59,0,2015-G$5))) -> 0 | H192: =IF(2015>H$5,'D-Rückbau vor 2015'!I9,IF(H$5<2035,G68-H68,OFFSET(H59,0,2015-H$5))) -> 0 | I192: =IF(2015>I$5,'D-Rückbau vor 2015'!J9,IF(I$5<2035,H68-I68,OFFSET(I59,0,2015-I$5))) -> 0 | J192: =IF(2015>J$5,'D-Rückbau vor 2015'!K9,IF(J$5<2035,I68-J68,OFFSET(J59,0,2015-J$5))) -> 0 | K192: =IF(2015>K$5,'D-Rückbau vor 2015'!L9,IF(K$5<2035,J68-K68,OFFSET(K59,0,2015-K$5))) -> 0 | L192: =IF(2015>L$5,'D-Rückbau vor 2015'!M9,IF(L$5<2035,K68-L68,OFFSET(L59,0,2015-L$5))) -> 0 | M192: =IF(2015>M$5,'D-Rückbau vor 2015'!N9,IF(M$5<2035,L68-M68,OFFSET(M59,0,2015-M$5))) -> 0 | N192: =IF(2015>N$5,'D-Rückbau vor 2015'!O9,IF(N$5<2035,M68-N68,OFFSET(N59,0,2015-N$5))) -> 0 | O192: =IF(2015>O$5,'D-Rückbau vor 2015'!P9,IF(O$5<2035,N68-O68,OFFSET(O59,0,2015-O$5))) -> 0 | P192: =IF(2015>P$5,'D-Rückbau vor 2015'!Q9,IF(P$5<2035,O68-P68,OFFSET(P59,0,2015-P$5))) -> 0 | Q192: =IF(2015>Q$5,'D-Rückbau vor 2015'!R9,IF(Q$5<2035,P68-Q68,OFFSET(Q59,0,2015-Q$5))) -> 0 | R192: =IF(2015>R$5,'D-Rückbau vor 2015'!S9,IF(R$5<2035,Q68-R68,OFFSET(R59,0,2015-R$5))) -> 0 | S192: =IF(2015>S$5,'D-Rückbau vor 2015'!T9,IF(S$5<2035,R68-S68,OFFSET(S59,0,2015-S$5))) -> 0 | T192: =IF(2015>T$5,'D-Rückbau vor 2015'!U9,IF(T$5<2035,S68-T68,OFFSET(T59,0,2015-T$5))) -> 0 | U192: =IF(2015>U$5,'D-Rückbau vor 2015'!V9,IF(U$5<2035,T68-U68,OFFSET(U59,0,2015-U$5))) -> 0.00022 | V192: =IF(2015>V$5,'D-Rückbau vor 2015'!W9,IF(V$5<2035,U68-V68,OFFSET(V59,0,2015-V$5))) -> 0 | W192: =IF(2015>W$5,'D-Rückbau vor 2015'!X9,IF(W$5<2035,V68-W68,OFFSET(W59,0,2015-W$5))) -> 0 | X192: =IF(2015>X$5,'D-Rückbau vor 2015'!Y9,IF(X$5<2035,W68-X68,OFFSET(X59,0,2015-X$5))) -> 0.003 | Y192: =IF(2015>Y$5,'D-Rückbau vor 2015'!Z9,IF(Y$5<2035,X68-Y68,OFFSET(Y59,0,2015-Y$5))) -> 0 | Z192: =IF(2015>Z$5,'D-Rückbau vor 2015'!AA9,IF(Z$5<2035,Y68-Z68,OFFSET(Z59,0,2015-Z$5))) -> 0.00415 | AA192: =IF(2015>AA$5,'D-Rückbau vor 2015'!AB9,IF(AA$5<2035,Z68-AA68,OFFSET(AA59,0,2015-AA$5))) -> 0 | AB192: =IF(2015>AB$5,'D-Rückbau vor 2015'!AC9,IF(AB$5<2035,AA68-AB68,OFFSET(AB59,0,2015-AB$5))) -> 0 | AC192: =IF(2015>AC$5,'D-Rückbau vor 2015'!AD9,IF(AC$5<2035,AB68-AC68,OFFSET(AC59,0,2015-AC$5))) -> 0.0118 | AD192: =IF(2015>AD$5,'D-Rückbau vor 2015'!AE9,IF(AD$5<2035,AC68-AD68,OFFSET(AD59,0,2015-AD$5))) -> 0.011315 | AE192: =IF(2015>AE$5,'D-Rückbau vor 2015'!AF9,IF(AE$5<2035,AD68-AE68,OFFSET(AE59,0,2015-AE$5))) -> 0 | AF192: v3.0.9 | AG192: v2.1.29
A193: 174 | E193: Wind Onshore | F193: =IF(2015>F$5,'D-Rückbau vor 2015'!G10,IF(F$5<2035,E69-F69,OFFSET(F60,0,2015-F$5))) -> 0.276 | G193: =IF(2015>G$5,'D-Rückbau vor 2015'!H10,IF(G$5<2035,F69-G69,OFFSET(G60,0,2015-G$5))) -> 0.391 | H193: =IF(2015>H$5,'D-Rückbau vor 2015'!I10,IF(H$5<2035,G69-H69,OFFSET(H60,0,2015-H$5))) -> 0.222 | I193: =IF(2015>I$5,'D-Rückbau vor 2015'!J10,IF(I$5<2035,H69-I69,OFFSET(I60,0,2015-I$5))) -> 0.738 | J193: =IF(2015>J$5,'D-Rückbau vor 2015'!K10,IF(J$5<2035,I69-J69,OFFSET(J60,0,2015-J$5))) -> 0 | K193: =IF(2015>K$5,'D-Rückbau vor 2015'!L10,IF(K$5<2035,J69-K69,OFFSET(K60,0,2015-K$5))) -> 0.11143052 | L193: =IF(2015>L$5,'D-Rückbau vor 2015'!M10,IF(L$5<2035,K69-L69,OFFSET(L60,0,2015-L$5))) -> 0.344 | M193: =IF(2015>M$5,'D-Rückbau vor 2015'!N10,IF(M$5<2035,L69-M69,OFFSET(M60,0,2015-M$5))) -> 0.4 | N193: =IF(2015>N$5,'D-Rückbau vor 2015'!O10,IF(N$5<2035,M69-N69,OFFSET(N60,0,2015-N$5))) -> 0.5 | O193: =IF(2015>O$5,'D-Rückbau vor 2015'!P10,IF(O$5<2035,N69-O69,OFFSET(O60,0,2015-O$5))) -> 0.6 | P193: =IF(2015>P$5,'D-Rückbau vor 2015'!Q10,IF(P$5<2035,O69-P69,OFFSET(P60,0,2015-P$5))) -> 0.7 | Q193: =IF(2015>Q$5,'D-Rückbau vor 2015'!R10,IF(Q$5<2035,P69-Q69,OFFSET(Q60,0,2015-Q$5))) -> 1.80579311 | R193: =IF(2015>R$5,'D-Rückbau vor 2015'!S10,IF(R$5<2035,Q69-R69,OFFSET(R60,0,2015-R$5))) -> 2.5936738 | S193: =IF(2015>S$5,'D-Rückbau vor 2015'!T10,IF(S$5<2035,R69-S69,OFFSET(S60,0,2015-S$5))) -> 3.05020309 | T193: =IF(2015>T$5,'D-Rückbau vor 2015'!U10,IF(T$5<2035,S69-T69,OFFSET(T60,0,2015-T$5))) -> 2.717868 | U193: =IF(2015>U$5,'D-Rückbau vor 2015'!V10,IF(U$5<2035,T69-U69,OFFSET(U60,0,2015-U$5))) -> 2.053771 | V193: =IF(2015>V$5,'D-Rückbau vor 2015'!W10,IF(V$5<2035,U69-V69,OFFSET(V60,0,2015-V$5))) -> 1.8140435 | W193: =IF(2015>W$5,'D-Rückbau vor 2015'!X10,IF(W$5<2035,V69-W69,OFFSET(W60,0,2015-W$5))) -> 2.229838 | X193: =IF(2015>X$5,'D-Rückbau vor 2015'!Y10,IF(X$5<2035,W69-X69,OFFSET(X60,0,2015-X$5))) -> 1.6862462 | Y193: =IF(2015>Y$5,'D-Rückbau vor 2015'!Z10,IF(Y$5<2035,X69-Y69,OFFSET(Y60,0,2015-Y$5))) -> 0.771864 | Z193: =IF(2015>Z$5,'D-Rückbau vor 2015'!AA10,IF(Z$5<2035,Y69-Z69,OFFSET(Z60,0,2015-Z$5))) -> 2.69933992 | AA193: =IF(2015>AA$5,'D-Rückbau vor 2015'!AB10,IF(AA$5<2035,Z69-AA69,OFFSET(AA60,0,2015-AA$5))) -> 1.42665965 | AB193: =IF(2015>AB$5,'D-Rückbau vor 2015'!AC10,IF(AB$5<2035,AA69-AB69,OFFSET(AB60,0,2015-AB$5))) -> 1.87648226 | AC193: =IF(2015>AC$5,'D-Rückbau vor 2015'!AD10,IF(AC$5<2035,AB69-AC69,OFFSET(AC60,0,2015-AC$5))) -> 2.42112453 | AD193: =IF(2015>AD$5,'D-Rückbau vor 2015'!AE10,IF(AD$5<2035,AC69-AD69,OFFSET(AD60,0,2015-AD$5))) -> 3.03243179 | AE193: =IF(2015>AE$5,'D-Rückbau vor 2015'!AF10,IF(AE$5<2035,AD69-AE69,OFFSET(AE60,0,2015-AE$5))) -> 3.787208 | AF193: v3.0.9 | AG193: v2.1.29
A194: 175 | E194: Wind Offshore | F194: =IF(2015>F$5,'D-Rückbau vor 2015'!G11,IF(F$5<2035,E70-F70,OFFSET(F61,0,2015-F$5))) -> 0 | G194: =IF(2015>G$5,'D-Rückbau vor 2015'!H11,IF(G$5<2035,F70-G70,OFFSET(G61,0,2015-G$5))) -> 0 | H194: =IF(2015>H$5,'D-Rückbau vor 2015'!I11,IF(H$5<2035,G70-H70,OFFSET(H61,0,2015-H$5))) -> 0 | I194: =IF(2015>I$5,'D-Rückbau vor 2015'!J11,IF(I$5<2035,H70-I70,OFFSET(I61,0,2015-I$5))) -> 0 | J194: =IF(2015>J$5,'D-Rückbau vor 2015'!K11,IF(J$5<2035,I70-J70,OFFSET(J61,0,2015-J$5))) -> 0 | K194: =IF(2015>K$5,'D-Rückbau vor 2015'!L11,IF(K$5<2035,J70-K70,OFFSET(K61,0,2015-K$5))) -> 0 | L194: =IF(2015>L$5,'D-Rückbau vor 2015'!M11,IF(L$5<2035,K70-L70,OFFSET(L61,0,2015-L$5))) -> 0 | M194: =IF(2015>M$5,'D-Rückbau vor 2015'!N11,IF(M$5<2035,L70-M70,OFFSET(M61,0,2015-M$5))) -> 0 | N194: =IF(2015>N$5,'D-Rückbau vor 2015'!O11,IF(N$5<2035,M70-N70,OFFSET(N61,0,2015-N$5))) -> 0 | O194: =IF(2015>O$5,'D-Rückbau vor 2015'!P11,IF(O$5<2035,N70-O70,OFFSET(O61,0,2015-O$5))) -> 0 | P194: =IF(2015>P$5,'D-Rückbau vor 2015'!Q11,IF(P$5<2035,O70-P70,OFFSET(P61,0,2015-P$5))) -> 0 | Q194: =IF(2015>Q$5,'D-Rückbau vor 2015'!R11,IF(Q$5<2035,P70-Q70,OFFSET(Q61,0,2015-Q$5))) -> 0 | R194: =IF(2015>R$5,'D-Rückbau vor 2015'!S11,IF(R$5<2035,Q70-R70,OFFSET(R61,0,2015-R$5))) -> 0 | S194: =IF(2015>S$5,'D-Rückbau vor 2015'!T11,IF(S$5<2035,R70-S70,OFFSET(S61,0,2015-S$5))) -> 0 | T194: =IF(2015>T$5,'D-Rückbau vor 2015'!U11,IF(T$5<2035,S70-T70,OFFSET(T61,0,2015-T$5))) -> 0 | U194: =IF(2015>U$5,'D-Rückbau vor 2015'!V11,IF(U$5<2035,T70-U70,OFFSET(U61,0,2015-U$5))) -> 0 | V194: =IF(2015>V$5,'D-Rückbau vor 2015'!W11,IF(V$5<2035,U70-V70,OFFSET(V61,0,2015-V$5))) -> 0 | W194: =IF(2015>W$5,'D-Rückbau vor 2015'!X11,IF(W$5<2035,V70-W70,OFFSET(W61,0,2015-W$5))) -> 0 | X194: =IF(2015>X$5,'D-Rückbau vor 2015'!Y11,IF(X$5<2035,W70-X70,OFFSET(X61,0,2015-X$5))) -> 0 | Y194: =IF(2015>Y$5,'D-Rückbau vor 2015'!Z11,IF(Y$5<2035,X70-Y70,OFFSET(Y61,0,2015-Y$5))) -> 0 | Z194: =IF(2015>Z$5,'D-Rückbau vor 2015'!AA11,IF(Z$5<2035,Y70-Z70,OFFSET(Z61,0,2015-Z$5))) -> 0.0318 | AA194: =IF(2015>AA$5,'D-Rückbau vor 2015'!AB11,IF(AA$5<2035,Z70-AA70,OFFSET(AA61,0,2015-AA$5))) -> 0.045 | AB194: =IF(2015>AB$5,'D-Rückbau vor 2015'!AC11,IF(AB$5<2035,AA70-AB70,OFFSET(AB61,0,2015-AB$5))) -> 0.1083 | AC194: =IF(2015>AC$5,'D-Rückbau vor 2015'!AD11,IF(AC$5<2035,AB70-AC70,OFFSET(AC61,0,2015-AC$5))) -> 0.08 | AD194: =IF(2015>AD$5,'D-Rückbau vor 2015'!AE11,IF(AD$5<2035,AC70-AD70,OFFSET(AD61,0,2015-AD$5))) -> 0.24 | AE194: =IF(2015>AE$5,'D-Rückbau vor 2015'!AF11,IF(AE$5<2035,AD70-AE70,OFFSET(AE61,0,2015-AE$5))) -> 2.289 | AF194: v3.0.9 | AG194: v2.1.29
A195: 176 | E195: Solar | F195: =IF(2015>F$5,'D-Rückbau vor 2015'!G12,IF(F$5<2035,E71-F71,OFFSET(F62,0,2015-F$5))) -> 0 | G195: =IF(2015>G$5,'D-Rückbau vor 2015'!H12,IF(G$5<2035,F71-G71,OFFSET(G62,0,2015-G$5))) -> 0 | H195: =IF(2015>H$5,'D-Rückbau vor 2015'!I12,IF(H$5<2035,G71-H71,OFFSET(H62,0,2015-H$5))) -> 0 | I195: =IF(2015>I$5,'D-Rückbau vor 2015'!J12,IF(I$5<2035,H71-I71,OFFSET(I62,0,2015-I$5))) -> 0 | J195: =IF(2015>J$5,'D-Rückbau vor 2015'!K12,IF(J$5<2035,I71-J71,OFFSET(J62,0,2015-J$5))) -> 0 | K195: =IF(2015>K$5,'D-Rückbau vor 2015'!L12,IF(K$5<2035,J71-K71,OFFSET(K62,0,2015-K$5))) -> 0 | L195: =IF(2015>L$5,'D-Rückbau vor 2015'!M12,IF(L$5<2035,K71-L71,OFFSET(L62,0,2015-L$5))) -> 0 | M195: =IF(2015>M$5,'D-Rückbau vor 2015'!N12,IF(M$5<2035,L71-M71,OFFSET(M62,0,2015-M$5))) -> 0 | N195: =IF(2015>N$5,'D-Rückbau vor 2015'!O12,IF(N$5<2035,M71-N71,OFFSET(N62,0,2015-N$5))) -> 0 | O195: =IF(2015>O$5,'D-Rückbau vor 2015'!P12,IF(O$5<2035,N71-O71,OFFSET(O62,0,2015-O$5))) -> 0 | P195: =IF(2015>P$5,'D-Rückbau vor 2015'!Q12,IF(P$5<2035,O71-P71,OFFSET(P62,0,2015-P$5))) -> 0 | Q195: =IF(2015>Q$5,'D-Rückbau vor 2015'!R12,IF(Q$5<2035,P71-Q71,OFFSET(Q62,0,2015-Q$5))) -> 0.123972494 | R195: =IF(2015>R$5,'D-Rückbau vor 2015'!S12,IF(R$5<2035,Q71-R71,OFFSET(R62,0,2015-R$5))) -> 0.10863869 | S195: =IF(2015>S$5,'D-Rückbau vor 2015'!T12,IF(S$5<2035,R71-S71,OFFSET(S62,0,2015-S$5))) -> 0.11022155 | T195: =IF(2015>T$5,'D-Rückbau vor 2015'!U12,IF(T$5<2035,S71-T71,OFFSET(T62,0,2015-T$5))) -> 0.14244655 | U195: =IF(2015>U$5,'D-Rückbau vor 2015'!V12,IF(U$5<2035,T71-U71,OFFSET(U62,0,2015-U$5))) -> 0.6560293 | V195: =IF(2015>V$5,'D-Rückbau vor 2015'!W12,IF(V$5<2035,U71-V71,OFFSET(V62,0,2015-V$5))) -> 0.92460206 | W195: =IF(2015>W$5,'D-Rückbau vor 2015'!X12,IF(W$5<2035,V71-W71,OFFSET(W62,0,2015-W$5))) -> 0.84459495 | X195: =IF(2015>X$5,'D-Rückbau vor 2015'!Y12,IF(X$5<2035,W71-X71,OFFSET(X62,0,2015-X$5))) -> 1.253751126 | Y195: =IF(2015>Y$5,'D-Rückbau vor 2015'!Z12,IF(Y$5<2035,X71-Y71,OFFSET(Y62,0,2015-Y$5))) -> 1.97954311 | Z195: =IF(2015>Z$5,'D-Rückbau vor 2015'!AA12,IF(Z$5<2035,Y71-Z71,OFFSET(Z62,0,2015-Z$5))) -> 4.43845984 | AA195: =IF(2015>AA$5,'D-Rückbau vor 2015'!AB12,IF(AA$5<2035,Z71-AA71,OFFSET(AA62,0,2015-AA$5))) -> 7.59387634 | AB195: =IF(2015>AB$5,'D-Rückbau vor 2015'!AC12,IF(AB$5<2035,AA71-AB71,OFFSET(AB62,0,2015-AB$5))) -> 8.00039006 | AC195: =IF(2015>AC$5,'D-Rückbau vor 2015'!AD12,IF(AC$5<2035,AB71-AC71,OFFSET(AC62,0,2015-AC$5))) -> 6.84229388 | AD195: =IF(2015>AD$5,'D-Rückbau vor 2015'!AE12,IF(AD$5<2035,AC71-AD71,OFFSET(AD62,0,2015-AD$5))) -> 3.13562076 | AE195: =IF(2015>AE$5,'D-Rückbau vor 2015'!AF12,IF(AE$5<2035,AD71-AE71,OFFSET(AE62,0,2015-AE$5))) -> 1.324 | AF195: v3.0.9 | AG195: v2.1.29
A196: 177 | E196: Gesamt | F196: =SUM(F189:F195) -> 0.299546 | G196: 0.4127149 | H196: 0.2436265 | I196: 0.7583008 | J196: 0.0208723 | K196: 0.11143052 | L196: 0.344 | M196: 0.4 | N196: 0.5 | O196: 0.6 | P196: 0.7 | Q196: 2.283226574 | R196: 2.94358329 | S196: 3.3633748 | T196: 3.1701879 | U196: 3.34892459 | V196: 3.44800106 | W196: 3.93097098 | X196: 3.592004726 | Y196: 3.11438751 | Z196: 7.74934238 | AA196: 9.79689778 | AB196: 11.12399113 | AC196: 9.73739846 | AD196: 6.7847568 | AE196: 7.971430785 | AG196: v2.1.29
A197: 178
A198: 179 | E198: Jahreszubau (Netto) [GW/a] | AF198: v2.1.29 | AG198: v2.1.6 | AJ198: Nettozubau = Bruttozubau - Ausscheidende Kapazitäten
A199: 180 | E199: Wasser | F199: =F56-F189 -> 0.099 | G199: 0.073 | H199: 0.037 | I199: 0.061 | J199: -0.0125353 | K199: 0.290824785 | L199: 0.021633775 | M199: 0.0054 | N199: 0.015 | O199: 0.017 | P199: 0.013 | Q199: 0.014 | R199: 0.014 | S199: 0.014 | T199: 0.014 | U199: 0.014 | V199: 0.014 | W199: 0.014 | X199: 0.014 | Y199: 0.014 | Z199: -0.09687763 | AA199: -0.07734819 | AB199: -0.05942775 | AC199: -0.03252535 | AD199: -0.09390734 | AE199: -0.276824785 | AF199: v2.1.29 | AG199: v2.1.6
A200: 181 | E200: Gas | F200: =F57-F190 -> 0.007 | G200: 0.01 | H200: 1.275021755e-16 | I200: 0.001 | J200: -0.008337 | K200: 0.045782 | L200: 0.004084 | M200: 0.0017 | N200: 0.006 | O200: 0.002 | P200: 0.002 | Q200: -0.1756502 | R200: -0.051037 | S200: -0.060701 | T200: -0.075915 | U200: -0.0563973 | V200: -0.003617 | W200: 0.001464 | X200: 0.001485 | Y200: 0.004296 | Z200: 0.00049301 | AA200: 0.007078 | AB200: 0.000783 | AC200: 0.00821 | AD200: 0.008872 | AE200: -0.035782 | AF200: v2.1.29 | AG200: v2.1.6
A201: 182 | E201: Biomasse | F201: =F58-F191 -> 0.418 | G201: 0.86586813 | H201: 0.32809184 | I201: 0.67685503 | J201: 0.21741 | K201: 0.234616 | L201: 0.224972 | M201: 0.306787 | N201: 0.427511081 | O201: 0.332533659 | P201: 0.176 | Q201: -0.05181077 | R201: -0.1522338 | S201: -0.10024916 | T201: -0.18895835 | U201: -0.52750699 | V201: -0.4957385 | W201: -0.64800203 | X201: -0.4404924 | Y201: -0.1572764 | Z201: -0.255208 | AA201: -0.4370916 | AB201: -0.85617406 | AC201: -0.1338647 | AD201: -0.05635391 | AE201: -0.034616 | AF201: v2.1.29 | AG201: v2.1.6
... 197 more rows

Sheet MOD-Jahresgang (hidden)
B1: Monatsscharfe Berechnung des Kontostands im aktuellen Jahr.
I2: aktuelles Jahr: | R2: wann hinzugefügt | S2: zuletzt verändert
B3: rosa: aus anderen Blättern eingelesen | I3: =ControlPanel!$D$59-1 -> 2021 | S3: v2.1.19
B4: blau: hier berechnet | E4: 9 | F4: 10 | G4: 11 | H4: 12 | I4: 1 | J4: 2 | K4: 3 | L4: 4 | M4: 5 | N4: 6 | O4: 7 | P4: 8 | Q4: 9
E5: =CONCATENATE("Sept ",$I$3-1) -> Sept 2020 | F5: =CONCATENATE("Okt ",$I$3-1) -> Okt 2020 | G5: =CONCATENATE("Nov ",$I$3-1) -> Nov 2020 | H5: =CONCATENATE("Dez ",$I$3-1) -> Dez 2020 | I5: =CONCATENATE("Jan ",$I$3) -> Jan 2021 | J5: =CONCATENATE("Feb ",$I$3) -> Feb 2021 | K5: =CONCATENATE("Mar ",$I$3) -> Mar 2021 | L5: =CONCATENATE("Apr ",$I$3) -> Apr 2021 | M5: =CONCATENATE("Mai ",$I$3) -> Mai 2021 | N5: =CONCATENATE("Jun ",$I$3) -> Jun 2021 | O5: =CONCATENATE("Jul ",$I$3) -> Jul 2021 | P5: =CONCATENATE("Aug ",$I$3) -> Aug 2021 | Q5: =CONCATENATE("Sep ",$I$3) -> Sep 2021
B6: Kontostand ÜNB (Euro) | F6: -4307222477 | G6: -4428900161 | H6: -4373872551 | I6: 1258293309 | J6: 2075827592 | K6: 2447467981 | L6: 2452612495 | M6: 5074873184 | N6: 4718390360 | S6: v.2.1.9
B7: Kontostand ÜNB [Mrd. Euro] | F7: =F6*0.000000001 -> -4.307222477 | G7: -4.428900161 | H7: -4.373872551 | I7: 1.258293309 | J7: 2.075827592 | K7: =K6*0.000000001 -> 2.447467981 | L7: 2.452612495 | M7: 5.074873184 | N7: =N6*0.000000001 -> 4.71839036 | O7: 0 | P7: 0 | Q7: 0 | S7: v2.1.25
B8: informativ: Kontostand Modell | F8: =E9+OFFSET(F10,0,-$C$12)+F17 -> -3.989083479 | G8: =F9+OFFSET(G10,0,-$C$12)+G17 -> -4.51618265 | H8: -3.935994447 | I8: 1.048083919 | J8: 1.440527252 | K8: 2.397233081 | L8: 2.027710759 | M8: 4.935055841 | N8: 4.479266205 | O8: 6.638463348 | P8: 5.996517658 | Q8: 5.348731996
B9: Kontostand Modell [Mrd. Euro] | E9: =OFFSET('MOD-Berechnungen'!$I10,0,'MOD-Jahresgang'!$I$3-2013) -> -4.080394277 | F9: =IF(ISNUMBER(F6),F7,E9+OFFSET(F10,0,-$C$12)+F17) -> -4.307222477 | G9: =IF(ISNUMBER(G6),G7,F9+OFFSET(G10,0,-$C$12)+G17) -> -4.428900161 | H9: -4.373872551 | I9: =IF(ISNUMBER(I6),I7,H9+OFFSET(I10,0,-$C$12)+I17) -> 1.258293309 | J9: 2.075827592 | K9: 2.447467981 | L9: 2.452612495 | M9: 5.074873184 | N9: 4.71839036 | O9: 6.638463348 | P9: 5.996517658 | Q9: 5.348731996
B10: Saldo Modell ohne staatl. Zuschüsse [Mrd. Euro] | E10: =91310797.6300004/10^9 -> 0.09131079763 | F10: =F110 -> -0.2089601736 | G10: =G110 -> 0.4929057141 | H10: =H110 -> 0.3219564697 | I10: 0.1822339433 | J10: 0.3214054888 | K10: -0.4197572219 | L10: -0.5175566537 | M10: -0.5956069791 | N10: -0.7799270118 | O10: -0.6419456901 | P10: =P110 -> -0.647785662 | Q10: -0.4456122772
B11: Saldo ÜNB | G11: =G7-F7 -> -0.1216776841 | H11: =H7-G7 -> 0.05502760986 | I11: 5.63216586 | J11: 0.8175342836 | K11: 0.3716403889 | L11: 0.00514451314 | M11: 2.62226069 | N11: -0.3564828246 | O11: -4.71839036 | P11: 0 | Q11: 0
B12: Zeitverschiebung zwischen Einspeisung und Buchung [Monate] | C12: 1
B13: Prognose der monatlichen Einnahmen und Ausgaben:
B15: Staatliche Zuschüsse | C15: =$I$3-1 -> 2020 | D15: =$I$3 -> 2021
B16: monatl. Verteilung der Zuschüsse[-] | C16: - | E16: 0 | F16: 0 | G16: 0 | H16: 0 | I16: =5.1/10.8 -> 0.4722222222 | J16: 0 | K16: 0 | L16: 0 | M16: 0 | N16: 0 | O16: =1-I16 -> 0.5277777778 | P16: 0 | Q16: 0
B17: staatliche Zuschüsse [Mrd. Euro] | C17: =OFFSET('MOD-Berechnungen'!$I383,0,'MOD-Jahresgang'!$C$15-2013) -> 0 | D17: =OFFSET('MOD-Berechnungen'!$I383,0,'MOD-Jahresgang'!$D$15-2013) -> 10.8 | E17: =E16*$C$17 -> 0 | F17: =F16*$C$17 -> 0 | G17: =G16*$C$17 -> 0 | H17: 0 | I17: =I16*$D$17 -> 5.1 | J17: =J16*$D$17 -> 0 | K17: 0 | L17: 0 | M17: 3 | N17: 0 | O17: 2.7 | P17: 0 | Q17: 0
B19: Last-Skalierungsfaktor [-] | C19: - | F19: 0.9944128806 | G19: 1.061577008 | H19: 1.01661669 | I19: 1.065412017 | J19: 1.08080453 | K19: 1.02852102 | L19: 0.9791844352 | M19: 0.986471782 | N19: 0.9438392729 | O19: 0.9399695567 | P19: 0.9245282808 | Q19: 0.9786625278
B21: Volllaststunden pro Monat [h]
B22: Wasser | F22: 274 | G22: 282 | H22: 359 | I22: 411 | J22: 409 | K22: 477 | L22: 446 | M22: 399 | N22: 295 | O22: 238 | P22: 254 | Q22: 263
B23: Gas | F23: 260 | G23: 251 | H23: 260 | I23: 259 | J23: 236 | K23: 259 | L23: 251 | M23: 259 | N23: 251 | O23: 259 | P23: 259 | Q23: 251
B24: Biomasse | F24: 502 | G24: 486 | H24: 502 | I24: 502 | J24: 454 | K24: 502 | L24: 486 | M24: 502 | N24: 486 | O24: 502 | P24: 502 | Q24: 486
B25: Geothermie | F25: 350 | G25: 298 | H25: 318 | I25: 318 | J25: 277 | K25: 349 | L25: 362 | M25: 413 | N25: 394 | O25: 413 | P25: 414 | Q25: 395
B26: Wind Onshore | F26: 167 | G26: 164 | H26: 197 | I26: 229 | J26: 186 | K26: 181 | L26: 118 | M26: 103 | N26: 96 | O26: 102 | P26: 100 | Q26: 120
B27: Wind Offshore | F27: 490 | G27: 397 | H27: 523 | I27: 425 | J27: 324 | K27: 442 | L27: 286 | M27: 273 | N27: 321 | O27: 146 | P27: 280 | Q27: 280
